Workbook

Sheet Introduction
C4: Joint Monitoring Programme for Water Supply, Sanitation and Hygiene
C6: Estimates on household water, sanitation and hygiene by wealth quintile and sub-national region in
C7: =+Water!B5 -> Thailand
C9: Updated May 2021
C11: Follow the links below to find the following information:
C13: JMP Estimates
C14: WASH status and trends by wealth quintile (customized quintiles made without water and sanitation assets)
C15: Water
C16: Sanitation
C17: Hygiene
C19: Data inputs
C20: customized wealth quintiles and subnational data:
C21: =IF(INDIRECT(CONCATENATE("Water","!B105"))=0,"",INDIRECT(CONCATENATE("Water","!B105"))) -> SES00
C22: =IF(INDIRECT(CONCATENATE("Water","!B106"))=0,"",INDIRECT(CONCATENATE("Water","!B106"))) -> SES04
C23: =IF(INDIRECT(CONCATENATE("Water","!B107"))=0,"",INDIRECT(CONCATENATE("Water","!B107"))) -> MICS06
C24: =IF(INDIRECT(CONCATENATE("Water","!B108"))=0,"",INDIRECT(CONCATENATE("Water","!B108"))) -> MICS13
C25: =IF(INDIRECT(CONCATENATE("Water","!B109"))=0,"",INDIRECT(CONCATENATE("Water","!B109"))) -> MICS16
C26: =IF(INDIRECT(CONCATENATE("Water","!B110"))=0,"",INDIRECT(CONCATENATE("Water","!B110"))) -> MICS19
C27: =IF(INDIRECT(CONCATENATE("Water","!B111"))=0,"",INDIRECT(CONCATENATE("Water","!B111"))) -> 
C28: =IF(INDIRECT(CONCATENATE("Water","!B112"))=0,"",INDIRECT(CONCATENATE("Water","!B112"))) -> 
C29: =IF(INDIRECT(CONCATENATE("Water","!B113"))=0,"",INDIRECT(CONCATENATE("Water","!B113"))) -> 
C30: =IF(INDIRECT(CONCATENATE("Water","!B114"))=0,"",INDIRECT(CONCATENATE("Water","!B114"))) -> 
C31: =IF(INDIRECT(CONCATENATE("Water","!B115"))=0,"",INDIRECT(CONCATENATE("Water","!B115"))) -> 
C32: =IF(INDIRECT(CONCATENATE("Water","!B116"))=0,"",INDIRECT(CONCATENATE("Water","!B116"))) -> 
L55: =+IF(ISNUMBER(M48), "", "Insufficient data to estimate safely managed sanitation services at national level") -> Insufficient data to estimate safely managed sanitation services at national level

Sheet Water
A1: BGD
B4: Summary of trends in use of drinking water by wealth quintile (%)
B5: =IF(ISERROR(INDIRECT(CONCATENATE($B105,"!A2"))),"",INDIRECT(CONCATENATE($B105,"!A2"))) -> Thailand
B7: =B118 -> National use of drinking water sources, 2000–2020 | J7: =B218 -> Urban use of drinking water sources, 2000–2020 | R7: =B318 -> Rural use of drinking water sources, 2000–2020
B31: =IF(ISERROR(INDIRECT(CONCATENATE($B105,"!A2"))),"",INDIRECT(CONCATENATE($B105,"!A2"))) -> Thailand | F31: Poorest | J31: Poor | N31: Middle | R31: Rich | V31: Richest
F32: Basic | G32: Limited | H32: Unimproved | I32: Surface water | J32: Basic | K32: Limited | L32: Unimproved | M32: Surface water | N32: Basic | O32: Limited | P32: Unimproved | Q32: Surface water | R32: Basic | S32: Limited | T32: Unimproved | U32: Surface water | V32: Basic | W32: Limited | X32: Unimproved | Y32: Surface water
B33: NATIONAL | D33: Estimate | E33: =C99 -> 2000 | F33: =E99 -> 90.58174757 | G33: =F99 -> 0.1918744552 | H33: 7.88302124 | I33: 1.343356734 | J33: =J99 -> 95.56586738 | K33: =K99 -> 0.124174699 | L33: 3.945978593 | M33: 0.3639793255 | N33: =O99 -> 95.75530968 | O33: =P99 -> 0.0451045625 | P33: 3.961613057 | Q33: 0.237972697 | R33: =T99 -> 96.68065627 | S33: =U99 -> 0.02417620812 | T33: 3.103014119 | U33: 0.1921534043 | V33: =Y99 -> 99.02563596 | W33: =Z99 -> 0.02149038152 | X33: 0.9528736585 | Y33: 0
E34: =C100 -> 2020 | F34: =E100 -> 98.62128824 | G34: 0.2089041827 | H34: 0 | I34: 1.169807581 | J34: =J100 -> 99.13257352 | K34: 0.128809143 | L34: 0.4707005653 | M34: 0.2679167687 | N34: =O100 -> 99.49172502 | O34: 0.04686456285 | P34: 0.3096196583 | Q34: 0.1517907612 | R34: =T100 -> 99.76410259 | S34: 0.02494726246 | T34: 0.1537966667 | U34: 0.05715347747 | V34: =Y100 -> 99.78906043 | W34: 0.02165605865 | X34: 0.1052828152 | Y34: 0.0840006994
B36: URBAN | D36: Estimate | E36: =C199 -> 2000 | F36: =E199 -> 98.43920452 | G36: =F199 -> 0.01113848679 | H36: 1.395882237 | I36: 0.1537747517 | J36: =J199 -> 98.99359867 | K36: =K199 -> 0.03092657487 | L36: 0.9266666104 | M36: 0.04880814615 | N36: =O199 -> 99.22765451 | O36: =P199 -> 0 | P36: 0.7011150465 | Q36: 0.07123044432 | R36: =T199 -> 99.3943285 | S36: =U199 -> 0.01808724113 | T36: 0.5700678 | U36: 0.01751646281 | V36: =Y199 -> 99.67032365 | W36: =Z199 -> 0.001549414311 | X36: 0.3274762485 | Y36: 0.0006506872996
E37: =C200 -> 2020 | F37: =E200 -> 98.67311283 | G37: 0.01116495373 | H37: 0.4918782891 | I37: 0.8238439231 | J37: =J200 -> 99.41379626 | K37: 0.03105784874 | L37: 0.2439428676 | M37: 0.3112030286 | N37: =O200 -> 99.81185821 | O37: 0 | P37: 0.1345258026 | Q37: 0.05361598685 | R37: =T200 -> 99.91591117 | S37: 0.01818215592 | T37: 0.00316383086 | U37: 0.06274284588 | V37: =Y200 -> 99.99469649 | W37: 0.001554456814 | X37: 0 | Y37: 0.00374905769
B39: RURAL | D39: Estimate | E39: =C299 -> 2000 | F39: =E299 -> 85.06886683 | G39: =F299 -> 0.2394253692 | H39: 12.84115458 | I39: 1.850553219 | J39: =J299 -> 93.6607151 | K39: =K299 -> 0.1581512452 | L39: 5.505696814 | M39: 0.6754368443 | N39: =O299 -> 91.93916933 | O39: =P299 -> 0.0828721802 | P39: 7.423964939 | Q39: 0.5539935542 | R39: =T299 -> 93.40377875 | S39: =U299 -> 0.02632498142 | T39: 6.244562702 | U39: 0.3253335663 | V39: =Y299 -> 95.21595484 | W39: =Z299 -> 0.0457929335 | X39: 4.60479016 | Y39: 0.1334620655
E40: =C300 -> 2020 | F40: =E300 -> 98.60038418 | G40: 0.2775096727 | H40: 0 | I40: 1.122106143 | J40: =J300 -> 99.38908689 | K40: 0.1678239145 | L40: 0.1397291646 | M40: 0.303360032 | N40: =O300 -> 99.77920163 | O40: 0.08993903293 | P40: 0 | Q40: 0.1308593414 | R40: =T300 -> 99.82254842 | S40: 0.02813405161 | T40: 0 | U40: 0.1493175264 | V40: =Y300 -> 99.77436682 | W40: 0.04798524525 | X40: 0 | Y40: 0.1776479382
A97: NATIONAL | D97: Poorest | I97: Poor | N97: Middle | S97: Rich | X97: Richest
D98: Improved | E98: Basic | F98: Limited | G98: Unimproved | H98: Surface water | I98: Improved | J98: Basic | K98: Limited | L98: Unimproved | M98: Surface water | N98: Improved | O98: Basic | P98: Limited | Q98: Unimproved | R98: Surface water | S98: Improved | T98: Basic | U98: Limited | V98: Unimproved | W98: Surface water | X98: Improved | Y98: Basic | Z98: Limited | AA98: Unimproved | AB98: Surface water
A99: Forecast period: | C99: 2000 | D99: =IF((D101+H101)>100,D101*100/(D101+H101),D101) -> 90.77362203 | E99: =D99*AVERAGEIF(E105:E116,">0")/100 -> 90.58174757 | F99: =D99*(100-AVERAGEIF(E105:E116,">0"))/100 -> 0.1918744552 | G99: =100-(E99+F99+H99) -> 7.88302124 | H99: =IF((D101+H101)>100,H101*100/(D101+H101),H101) -> 1.343356734 | I99: =IF((I101+M101)>100,I101*100/(I101+M101),I101) -> 95.69004208 | J99: =I99*AVERAGEIF(J105:J116,">0")/100 -> 95.56586738 | K99: =I99*(100-AVERAGEIF(J105:J116,">0"))/100 -> 0.124174699 | L99: =100-(J99+K99+M99) -> 3.945978593 | M99: =IF((I101+M101)>100,M101*100/(I101+M101),M101) -> 0.3639793255 | N99: =IF((N101+R101)>100,N101*100/(N101+R101),N101) -> 95.80041425 | O99: =N99*AVERAGEIF(O105:O116,">0")/100 -> 95.75530968 | P99: =N99*(100-AVERAGEIF(O105:O116,">0"))/100 -> 0.0451045625 | Q99: =100-(O99+P99+R99) -> 3.961613057 | R99: =IF((N101+R101)>100,R101*100/(N101+R101),R101) -> 0.237972697 | S99: =IF((S101+W101)>100,S101*100/(S101+W101),S101) -> 96.70483248 | T99: =S99*AVERAGEIF(T105:T116,">0")/100 -> 96.68065627 | U99: =S99*(100-AVERAGEIF(T105:T116,">0"))/100 -> 0.02417620812 | V99: =100-(T99+U99+W99) -> 3.103014119 | W99: =IF((S101+W101)>100,W101*100/(S101+W101),W101) -> 0.1921534043 | X99: =IF((X101+AB101)>100,X101*100/(X101+AB101),X101) -> 99.04712634 | Y99: =X99*AVERAGEIF(Y105:Y116,">0")/100 -> 99.02563596 | Z99: =X99*(100-AVERAGEIF(Y105:Y116,">0"))/100 -> 0.02149038152 | AA99: =100-(Y99+Z99+AB99) -> 0.9528736585 | AB99: =IF((X101+AB101)>100,AB101*100/(X101+AB101),AB101) -> 0
C100: 2020 | D100: =IF((D102+H102)>100,D102*100/(D102+H102),D102) -> 98.83019242 | E100: =D100*AVERAGEIF(E105:E116,">0")/100 -> 98.62128824 | F100: =D100*(100-AVERAGEIF(E105:E116,">0"))/100 -> 0.2089041827 | G100: =100-(E100+F100+H100) -> 0 | H100: =IF((D102+H102)>100,H102*100/(D102+H102),H102) -> 1.169807581 | I100: =IF((I102+M102)>100,I102*100/(I102+M102),I102) -> 99.26138267 | J100: =I100*AVERAGEIF(J105:J116,">0")/100 -> 99.13257352 | K100: =I100*(100-AVERAGEIF(J105:J116,">0"))/100 -> 0.128809143 | L100: =100-(J100+K100+M100) -> 0.4707005653 | M100: =IF((I102+M102)>100,M102*100/(I102+M102),M102) -> 0.2679167687 | N100: =IF((N102+R102)>100,N102*100/(N102+R102),N102) -> 99.53858958 | O100: =N100*AVERAGEIF(O105:O116,">0")/100 -> 99.49172502 | P100: =N100*(100-AVERAGEIF(O105:O116,">0"))/100 -> 0.04686456285 | Q100: =100-(O100+P100+R100) -> 0.3096196583 | R100: =IF((N102+R102)>100,R102*100/(N102+R102),R102) -> 0.1517907612 | S100: =IF((S102+W102)>100,S102*100/(S102+W102),S102) -> 99.78904986 | T100: =S100*AVERAGEIF(T105:T116,">0")/100 -> 99.76410259 | U100: =S100*(100-AVERAGEIF(T105:T116,">0"))/100 -> 0.02494726246 | V100: =100-(T100+U100+W100) -> 0.1537966667 | W100: =IF((S102+W102)>100,W102*100/(S102+W102),W102) -> 0.05715347747 | X100: =IF((X102+AB102)>100,X102*100/(X102+AB102),X102) -> 99.81071649 | Y100: =X100*AVERAGEIF(Y105:Y116,">0")/100 -> 99.78906043 | Z100: =X100*(100-AVERAGEIF(Y105:Y116,">0"))/100 -> 0.02165605865 | AA100: =100-(Y100+Z100+AB100) -> 0.1052828152 | AB100: =IF((X102+AB102)>100,AB102*100/(X102+AB102),AB102) -> 0.0840006994
A101: Regression period: | C101: =MinRegYear(C99,C105:C116) -> 2000 | D101: =IF(MAX(C105:C116)-MIN(C105:C116)<5,AVERAGEIF(C105:C116,">0",D105:D116), IF(FORECAST($C101,D$105:D$116,$C$105:$C$116)<0,0, IF(FORECAST($C101,D$105:D$116,$C$105:$C$116)>100,100, FORECAST($C101,D$105:D$116,$C$105:$C$116)))) -> 90.77362203 | H101: =IF(MAX(C105:C116)-MIN(C105:C116)<5,AVERAGEIF(C105:C116,">0",H105:H116), IF(FORECAST($C101,H$105:H$116,$C$105:$C$116)<0,0, IF(FORECAST($C101,H$105:H$116,$C$105:$C$116)>100,100, FORECAST($C101,H$105:H$116,$C$105:$C$116)))) -> 1.343356734 | I101: =IF(MAX(C105:C116)-MIN(C105:C116)<5,AVERAGEIF(C105:C116,">0",I105:I116), IF(FORECAST($C101,I$105:I$116,$C$105:$C$116)<0,0, IF(FORECAST($C101,I$105:I$116,$C$105:$C$116)>100,100, FORECAST($C101,I$105:I$116,$C$105:$C$116)))) -> 95.69004208 | M101: =IF(MAX(C105:C116)-MIN(C105:C116)<5,AVERAGEIF(C105:C116,">0",M105:M116), IF(FORECAST($C101,M$105:M$116,$C$105:$C$116)<0,0, IF(FORECAST($C101,M$105:M$116,$C$105:$C$116)>100,100, FORECAST($C101,M$105:M$116,$C$105:$C$116)))) -> 0.3639793255 | N101: =IF(MAX(C105:C116)-MIN(C105:C116)<5,AVERAGEIF(C105:C116,">0",N105:N116), IF(FORECAST($C101,N$105:N$116,$C$105:$C$116)<0,0, IF(FORECAST($C101,N$105:N$116,$C$105:$C$116)>100,100, FORECAST($C101,N$105:N$116,$C$105:$C$116)))) -> 95.80041425 | R101: =IF(MAX(C105:C116)-MIN(C105:C116)<5,AVERAGEIF(C105:C116,">0",R105:R116), IF(FORECAST($C101,R$105:R$116,$C$105:$C$116)<0,0, IF(FORECAST($C101,R$105:R$116,$C$105:$C$116)>100,100, FORECAST($C101,R$105:R$116,$C$105:$C$116)))) -> 0.237972697 | S101: =IF(MAX(C105:C116)-MIN(C105:C116)<5,AVERAGEIF(C105:C116,">0",S105:S116), IF(FORECAST($C101,S$105:S$116,$C$105:$C$116)<0,0, IF(FORECAST($C101,S$105:S$116,$C$105:$C$116)>100,100, FORECAST($C101,S$105:S$116,$C$105:$C$116)))) -> 96.70483248 | W101: =IF(MAX(C105:C116)-MIN(C105:C116)<5,AVERAGEIF(C105:C116,">0",W105:W116), IF(FORECAST($C101,W$105:W$116,$C$105:$C$116)<0,0, IF(FORECAST($C101,W$105:W$116,$C$105:$C$116)>100,100, FORECAST($C101,W$105:W$116,$C$105:$C$116)))) -> 0.1921534043 | X101: =IF(MAX(C105:C116)-MIN(C105:C116)<5,AVERAGEIF(C105:C116,">0",X105:X116), IF(FORECAST($C101,X$105:X$116,$C$105:$C$116)<0,0, IF(FORECAST($C101,X$105:X$116,$C$105:$C$116)>100,100, FORECAST($C101,X$105:X$116,$C$105:$C$116)))) -> 99.04712634 | AB101: =IF(MAX(C105:C116)-MIN(C105:C116)<5,AVERAGEIF(C105:C116,">0",AB105:AB116), IF(FORECAST($C101,AB$105:AB$116,$C$105:$C$116)<0,0, IF(FORECAST($C101,AB$105:AB$116,$C$105:$C$116)>100,100, FORECAST($C101,AB$105:AB$116,$C$105:$C$116)))) -> 0
C102: =MaxRegYear(C100,C105:C116) -> 2020 | D102: =IF(MAX(C105:C116)-MIN(C105:C116)<5,AVERAGEIF(C105:C116,">0",D105:D116), IF(FORECAST($C102,D$105:D$116,$C$105:$C$116)<0,0, IF(FORECAST($C102,D$105:D$116,$C$105:$C$116)>100,100, FORECAST($C102,D$105:D$116,$C$105:$C$116)))) -> 99.40129834 | H102: =IF(MAX(C105:C116)-MIN(C105:C116)<5,AVERAGEIF(C105:C116,">0",H105:H116), IF(FORECAST($C102,H$105:H$116,$C$105:$C$116)<0,0, IF(FORECAST($C102,H$105:H$116,$C$105:$C$116)>100,100, FORECAST($C102,H$105:H$116,$C$105:$C$116)))) -> 1.176567499 | I102: =IF(MAX(C105:C116)-MIN(C105:C116)<5,AVERAGEIF(C105:C116,">0",I105:I116), IF(FORECAST($C102,I$105:I$116,$C$105:$C$116)<0,0, IF(FORECAST($C102,I$105:I$116,$C$105:$C$116)>100,100, FORECAST($C102,I$105:I$116,$C$105:$C$116)))) -> 99.26138267 | M102: =IF(MAX(C105:C116)-MIN(C105:C116)<5,AVERAGEIF(C105:C116,">0",M105:M116), IF(FORECAST($C102,M$105:M$116,$C$105:$C$116)<0,0, IF(FORECAST($C102,M$105:M$116,$C$105:$C$116)>100,100, FORECAST($C102,M$105:M$116,$C$105:$C$116)))) -> 0.2679167687 | N102: =IF(MAX(C105:C116)-MIN(C105:C116)<5,AVERAGEIF(C105:C116,">0",N105:N116), IF(FORECAST($C102,N$105:N$116,$C$105:$C$116)<0,0, IF(FORECAST($C102,N$105:N$116,$C$105:$C$116)>100,100, FORECAST($C102,N$105:N$116,$C$105:$C$116)))) -> 99.53858958 | R102: =IF(MAX(C105:C116)-MIN(C105:C116)<5,AVERAGEIF(C105:C116,">0",R105:R116), IF(FORECAST($C102,R$105:R$116,$C$105:$C$116)<0,0, IF(FORECAST($C102,R$105:R$116,$C$105:$C$116)>100,100, FORECAST($C102,R$105:R$116,$C$105:$C$116)))) -> 0.1517907612 | S102: =IF(MAX(C105:C116)-MIN(C105:C116)<5,AVERAGEIF(C105:C116,">0",S105:S116), IF(FORECAST($C102,S$105:S$116,$C$105:$C$116)<0,0, IF(FORECAST($C102,S$105:S$116,$C$105:$C$116)>100,100, FORECAST($C102,S$105:S$116,$C$105:$C$116)))) -> 99.78904986 | W102: =IF(MAX(C105:C116)-MIN(C105:C116)<5,AVERAGEIF(C105:C116,">0",W105:W116), IF(FORECAST($C102,W$105:W$116,$C$105:$C$116)<0,0, IF(FORECAST($C102,W$105:W$116,$C$105:$C$116)>100,100, FORECAST($C102,W$105:W$116,$C$105:$C$116)))) -> 0.05715347747 | X102: =IF(MAX(C105:C116)-MIN(C105:C116)<5,AVERAGEIF(C105:C116,">0",X105:X116), IF(FORECAST($C102,X$105:X$116,$C$105:$C$116)<0,0, IF(FORECAST($C102,X$105:X$116,$C$105:$C$116)>100,100, FORECAST($C102,X$105:X$116,$C$105:$C$116)))) -> 99.81071649 | AB102: =IF(MAX(C105:C116)-MIN(C105:C116)<5,AVERAGEIF(C105:C116,">0",AB105:AB116), IF(FORECAST($C102,AB$105:AB$116,$C$105:$C$116)<0,0, IF(FORECAST($C102,AB$105:AB$116,$C$105:$C$116)>100,100, FORECAST($C102,AB$105:AB$116,$C$105:$C$116)))) -> 0.0840006994
B104: Survey | C104: Year | D104: Improved | E104: Basic | H104: Surface water | I104: Improved | J104: Basic | M104: Surface water | N104: Improved | O104: Basic | R104: Surface water | S104: Improved | T104: Basic | W104: Surface water | X104: Improved | Y104: Basic | AB104: Surface water
B105: SES00 | C105: 2000 | D105: =IF(ISERROR(INDIRECT(CONCATENATE($B105,"!C16"))),"",INDIRECT(CONCATENATE($B105,"!C16"))) -> 92.38533681 | E105: =IF(ISERROR(INDIRECT(CONCATENATE($B105,"!C23"))),"",INDIRECT(CONCATENATE($B105,"!C23"))) -> N/A | H105: =IF(ISERROR(INDIRECT(CONCATENATE($B105,"!C21"))),"",INDIRECT(CONCATENATE($B105,"!C21"))) -> 0.5152427295 | I105: =IF(ISERROR(INDIRECT(CONCATENATE($B105,"!D16"))),"",INDIRECT(CONCATENATE($B105,"!D16"))) -> 97.25497598 | J105: =IF(ISERROR(INDIRECT(CONCATENATE($B105,"!D23"))),"",INDIRECT(CONCATENATE($B105,"!D23"))) -> N/A | M105: =IF(ISERROR(INDIRECT(CONCATENATE($B105,"!D21"))),"",INDIRECT(CONCATENATE($B105,"!D21"))) -> 0.1932375008 | N105: =IF(ISERROR(INDIRECT(CONCATENATE($B105,"!E16"))),"",INDIRECT(CONCATENATE($B105,"!E16"))) -> 98.08494132 | O105: =IF(ISERROR(INDIRECT(CONCATENATE($B105,"!E23"))),"",INDIRECT(CONCATENATE($B105,"!E23"))) -> N/A | R105: =IF(ISERROR(INDIRECT(CONCATENATE($B105,"!E21"))),"",INDIRECT(CONCATENATE($B105,"!E21"))) -> 0.02625049419 | S105: =IF(ISERROR(INDIRECT(CONCATENATE($B105,"!F16"))),"",INDIRECT(CONCATENATE($B105,"!F16"))) -> 99.23549133 | T105: =IF(ISERROR(INDIRECT(CONCATENATE($B105,"!F23"))),"",INDIRECT(CONCATENATE($B105,"!F23"))) -> N/A | W105: =IF(ISERROR(INDIRECT(CONCATENATE($B105,"!F21"))),"",INDIRECT(CONCATENATE($B105,"!F21"))) -> 0 | X105: =IF(ISERROR(INDIRECT(CONCATENATE($B105,"!G16"))),"",INDIRECT(CONCATENATE($B105,"!G16"))) -> 99.57247035 | Y105: =IF(ISERROR(INDIRECT(CONCATENATE($B105,"!G23"))),"",INDIRECT(CONCATENATE($B105,"!G23"))) -> N/A | AB105: =IF(ISERROR(INDIRECT(CONCATENATE($B105,"!G221"))),"",INDIRECT(CONCATENATE($B105,"!G21"))) -> 0
B106: SES04 | C106: 2004 | D106: 90.4786003 | E106: N/A | H106: 0.8028204862 | I106: 94.82410109 | J106: N/A | M106: 0.1964909741 | N106: 94.3628071 | O106: N/A | R106: 0.1961916312 | S106: 95.11098662 | T106: N/A | W106: 0.2739798215 | X106: 98.57222717 | Y106: N/A | AB106: 0.03145358845
B107: MICS06 | C107: 2006 | D107: 93.15430542 | E107: 99.35510023 | H107: 2.528425615 | I107: 96.17128402 | J107: 99.48228604 | M107: 0.6269843355 | N107: 95.97947156 | O107: 99.91167279 | R107: 0.4790357786 | S107: 96.16641248 | T107: 100 | W107: 0.2792532634 | X107: 99.10059949 | Y107: 99.91321149 | AB107: 0.03736148951
B108: MICS13 | C108: 2013 | D108: 96.61696443 | E108: 99.9 | H108: 2.504151179 | I108: 98.05854999 | J108: 100 | M108: 0.6741904984 | N108: 98.29633171 | O108: 99.9 | R108: 0.3699617503 | S108: 99.17996521 | T108: 99.9 | W108: 0.2064336434 | X108: 99.8583879 | Y108: 100 | AB108: 0.01501196356
B109: MICS16 | C109: 2016 | D109: 98 | E109: 99.9 | H109: 1.1 | I109: 99 | J109: 100 | M109: 0.1 | N109: 99.2 | O109: 100 | R109: 0.1 | S109: 99.6 | T109: 100 | W109: 0 | X109: 99.6 | Y109: 100 | AB109: 0
B110: MICS19 | C110: 2019 | D110: 99.02678651 | E110: 99.99939223 | H110: 0.1258116148 | I110: 99.1882291 | J110: 99.99864344 | M110: 0.1143912294 | N110: 99.71964225 | O110: 100 | R110: 0.006468914095 | S110: 99.88036962 | T110: 100 | W110: 0.001753909754 | X110: 99.79348455 | Y110: 100 | AB110: 0.155339795
D111: =IF(ISERROR(INDIRECT(CONCATENATE($B111,"!C16"))),"",INDIRECT(CONCATENATE($B111,"!C16"))) ->  | E111: =IF(ISERROR(INDIRECT(CONCATENATE($B111,"!C23"))),"",INDIRECT(CONCATENATE($B111,"!C23"))) ->  | H111: =IF(ISERROR(INDIRECT(CONCATENATE($B111,"!C21"))),"",INDIRECT(CONCATENATE($B111,"!C21"))) ->  | I111: =IF(ISERROR(INDIRECT(CONCATENATE($B111,"!D16"))),"",INDIRECT(CONCATENATE($B111,"!D16"))) ->  | J111: =IF(ISERROR(INDIRECT(CONCATENATE($B111,"!D23"))),"",INDIRECT(CONCATENATE($B111,"!D23"))) ->  | M111: =IF(ISERROR(INDIRECT(CONCATENATE($B111,"!D21"))),"",INDIRECT(CONCATENATE($B111,"!D21"))) ->  | N111: =IF(ISERROR(INDIRECT(CONCATENATE($B111,"!E16"))),"",INDIRECT(CONCATENATE($B111,"!E16"))) ->  | O111: =IF(ISERROR(INDIRECT(CONCATENATE($B111,"!E23"))),"",INDIRECT(CONCATENATE($B111,"!E23"))) ->  | R111: =IF(ISERROR(INDIRECT(CONCATENATE($B111,"!E21"))),"",INDIRECT(CONCATENATE($B111,"!E21"))) ->  | S111: =IF(ISERROR(INDIRECT(CONCATENATE($B111,"!F16"))),"",INDIRECT(CONCATENATE($B111,"!F16"))) ->  | T111: =IF(ISERROR(INDIRECT(CONCATENATE($B111,"!F23"))),"",INDIRECT(CONCATENATE($B111,"!F23"))) ->  | W111: =IF(ISERROR(INDIRECT(CONCATENATE($B111,"!F21"))),"",INDIRECT(CONCATENATE($B111,"!F21"))) ->  | X111: =IF(ISERROR(INDIRECT(CONCATENATE($B111,"!G16"))),"",INDIRECT(CONCATENATE($B111,"!G16"))) ->  | Y111: =IF(ISERROR(INDIRECT(CONCATENATE($B111,"!G23"))),"",INDIRECT(CONCATENATE($B111,"!G23"))) ->  | AB111: =IF(ISERROR(INDIRECT(CONCATENATE($B111,"!G221"))),"",INDIRECT(CONCATENATE($B111,"!G21"))) -> 
D112: =IF(ISERROR(INDIRECT(CONCATENATE($B112,"!C16"))),"",INDIRECT(CONCATENATE($B112,"!C16"))) ->  | E112: =IF(ISERROR(INDIRECT(CONCATENATE($B112,"!C23"))),"",INDIRECT(CONCATENATE($B112,"!C23"))) ->  | H112: =IF(ISERROR(INDIRECT(CONCATENATE($B112,"!C21"))),"",INDIRECT(CONCATENATE($B112,"!C21"))) ->  | I112: =IF(ISERROR(INDIRECT(CONCATENATE($B112,"!D16"))),"",INDIRECT(CONCATENATE($B112,"!D16"))) ->  | J112: =IF(ISERROR(INDIRECT(CONCATENATE($B112,"!D23"))),"",INDIRECT(CONCATENATE($B112,"!D23"))) ->  | M112: =IF(ISERROR(INDIRECT(CONCATENATE($B112,"!D21"))),"",INDIRECT(CONCATENATE($B112,"!D21"))) ->  | N112: =IF(ISERROR(INDIRECT(CONCATENATE($B112,"!E16"))),"",INDIRECT(CONCATENATE($B112,"!E16"))) ->  | O112: =IF(ISERROR(INDIRECT(CONCATENATE($B112,"!E23"))),"",INDIRECT(CONCATENATE($B112,"!E23"))) ->  | R112: =IF(ISERROR(INDIRECT(CONCATENATE($B112,"!E21"))),"",INDIRECT(CONCATENATE($B112,"!E21"))) ->  | S112: =IF(ISERROR(INDIRECT(CONCATENATE($B112,"!F16"))),"",INDIRECT(CONCATENATE($B112,"!F16"))) ->  | T112: =IF(ISERROR(INDIRECT(CONCATENATE($B112,"!F23"))),"",INDIRECT(CONCATENATE($B112,"!F23"))) ->  | W112: =IF(ISERROR(INDIRECT(CONCATENATE($B112,"!F21"))),"",INDIRECT(CONCATENATE($B112,"!F21"))) ->  | X112: =IF(ISERROR(INDIRECT(CONCATENATE($B112,"!G16"))),"",INDIRECT(CONCATENATE($B112,"!G16"))) ->  | Y112: =IF(ISERROR(INDIRECT(CONCATENATE($B112,"!G23"))),"",INDIRECT(CONCATENATE($B112,"!G23"))) ->  | AB112: =IF(ISERROR(INDIRECT(CONCATENATE($B112,"!G221"))),"",INDIRECT(CONCATENATE($B112,"!G21"))) -> 
B118: =CONCATENATE("National use of drinking water sources, ",C99,"–",C100) -> National use of drinking water sources, 2000–2020 | S118: Data points used for regression
E153: =IF(ISERROR(INDIRECT(CONCATENATE($B153,"!M18"))),"",INDIRECT(CONCATENATE($B153,"!M18"))) ->  | F153: =IF(ISERROR(INDIRECT(CONCATENATE($B153,"!M19"))),"",INDIRECT(CONCATENATE($B153,"!M19"))) ->  | G153: =IF(ISERROR(INDIRECT(CONCATENATE($B153,"!M20"))),"",INDIRECT(CONCATENATE($B153,"!M20"))) ->  | H153: =IF(ISERROR(INDIRECT(CONCATENATE($B153,"!M21"))),"",INDIRECT(CONCATENATE($B153,"!M21"))) ->  | J153: =IF(ISERROR(INDIRECT(CONCATENATE($B153,"!N18"))),"",INDIRECT(CONCATENATE($B153,"!N18"))) ->  | K153: =IF(ISERROR(INDIRECT(CONCATENATE($B153,"!N19"))),"",INDIRECT(CONCATENATE($B153,"!N19"))) ->  | L153: =IF(ISERROR(INDIRECT(CONCATENATE($B153,"!N20"))),"",INDIRECT(CONCATENATE($B153,"!N20"))) ->  | M153: =IF(ISERROR(INDIRECT(CONCATENATE($B153,"!N21"))),"",INDIRECT(CONCATENATE($B153,"!N21"))) ->  | O153: =IF(ISERROR(INDIRECT(CONCATENATE($B153,"!O18"))),"",INDIRECT(CONCATENATE($B153,"!O18"))) ->  | P153: =IF(ISERROR(INDIRECT(CONCATENATE($B153,"!O19"))),"",INDIRECT(CONCATENATE($B153,"!O19"))) ->  | Q153: =IF(ISERROR(INDIRECT(CONCATENATE($B153,"!O20"))),"",INDIRECT(CONCATENATE($B153,"!O20"))) ->  | R153: =IF(ISERROR(INDIRECT(CONCATENATE($B153,"!O21"))),"",INDIRECT(CONCATENATE($B153,"!O21"))) ->  | T153: =IF(ISERROR(INDIRECT(CONCATENATE($B153,"!P18"))),"",INDIRECT(CONCATENATE($B153,"!P18"))) ->  | U153: =IF(ISERROR(INDIRECT(CONCATENATE($B153,"!P19"))),"",INDIRECT(CONCATENATE($B153,"!P19"))) ->  | V153: =IF(ISERROR(INDIRECT(CONCATENATE($B153,"!P20"))),"",INDIRECT(CONCATENATE($B153,"!P20"))) ->  | W153: =IF(ISERROR(INDIRECT(CONCATENATE($B153,"!P21"))),"",INDIRECT(CONCATENATE($B153,"!P21"))) ->  | Y153: =IF(ISERROR(INDIRECT(CONCATENATE($B153,"!Q18"))),"",INDIRECT(CONCATENATE($B153,"!Q18"))) ->  | Z153: =IF(ISERROR(INDIRECT(CONCATENATE($B153,"!Q19"))),"",INDIRECT(CONCATENATE($B153,"!Q19"))) ->  | AA153: =IF(ISERROR(INDIRECT(CONCATENATE($B153,"!Q20"))),"",INDIRECT(CONCATENATE($B153,"!Q20"))) ->  | AB153: =IF(ISERROR(INDIRECT(CONCATENATE($B153,"!Q21"))),"",INDIRECT(CONCATENATE($B153,"!Q1"))) -> 
A197: URBAN | D197: Poorest | I197: Poor | N197: Middle | S197: Rich | X197: Richest
D198: Improved | E198: Basic | F198: Limited | G198: Unimproved | H198: Surface water | I198: Improved | J198: Basic | K198: Limited | L198: Unimproved | M198: Surface water | N198: Improved | O198: Basic | P198: Limited | Q198: Unimproved | R198: Surface water | S198: Improved | T198: Basic | U198: Limited | V198: Unimproved | W198: Surface water | X198: Improved | Y198: Basic | Z198: Limited | AA198: Unimproved | AB198: Surface water
A199: Forecast period: | C199: 2000 | D199: =IF((D201+H201)>100,D201*100/(D201+H201),D201) -> 98.45034301 | E199: =D199*AVERAGEIF(E205:E216,">0")/100 -> 98.43920452 | F199: =D199*(100-AVERAGEIF(E205:E216,">0"))/100 -> 0.01113848679 | G199: =100-(E199+F199+H199) -> 1.395882237 | H199: =IF((D201+H201)>100,H201*100/(D201+H201),H201) -> 0.1537747517 | I199: =IF((I201+M201)>100,I201*100/(I201+M201),I201) -> 99.02452524 | J199: =I199*AVERAGEIF(J205:J216,">0")/100 -> 98.99359867 | K199: =I199*(100-AVERAGEIF(J205:J216,">0"))/100 -> 0.03092657487 | L199: =100-(J199+K199+M199) -> 0.9266666104 | M199: =IF((I201+M201)>100,M201*100/(I201+M201),M201) -> 0.04880814615 | N199: =IF((N201+R201)>100,N201*100/(N201+R201),N201) -> 99.22765451 | O199: =N199*AVERAGEIF(O205:O216,">0")/100 -> 99.22765451 | P199: =N199*(100-AVERAGEIF(O205:O216,">0"))/100 -> 0 | Q199: =100-(O199+P199+R199) -> 0.7011150465 | R199: =IF((N201+R201)>100,R201*100/(N201+R201),R201) -> 0.07123044432 | S199: =IF((S201+W201)>100,S201*100/(S201+W201),S201) -> 99.41241574 | T199: =S199*AVERAGEIF(T205:T216,">0")/100 -> 99.3943285 | U199: =S199*(100-AVERAGEIF(T205:T216,">0"))/100 -> 0.01808724113 | V199: =100-(T199+U199+W199) -> 0.5700678 | W199: =IF((S201+W201)>100,W201*100/(S201+W201),W201) -> 0.01751646281 | X199: =IF((X201+AB201)>100,X201*100/(X201+AB201),X201) -> 99.67187306 | Y199: =X199*AVERAGEIF(Y205:Y216,">0")/100 -> 99.67032365 | Z199: =X199*(100-AVERAGEIF(Y205:Y216,">0"))/100 -> 0.001549414311 | AA199: =100-(Y199+Z199+AB199) -> 0.3274762485 | AB199: =IF((X201+AB201)>100,AB201*100/(X201+AB201),AB201) -> 0.0006506872996
C200: 2020 | D200: =IF((D202+H202)>100,D202*100/(D202+H202),D202) -> 98.68427779 | E200: =D200*AVERAGEIF(E205:E216,">0")/100 -> 98.67311283 | F200: =D200*(100-AVERAGEIF(E205:E216,">0"))/100 -> 0.01116495373 | G200: =100-(E200+F200+H200) -> 0.4918782891 | H200: =IF((D202+H202)>100,H202*100/(D202+H202),H202) -> 0.8238439231 | I200: =IF((I202+M202)>100,I202*100/(I202+M202),I202) -> 99.4448541 | J200: =I200*AVERAGEIF(J205:J216,">0")/100 -> 99.41379626 | K200: =I200*(100-AVERAGEIF(J205:J216,">0"))/100 -> 0.03105784874 | L200: =100-(J200+K200+M200) -> 0.2439428676 | M200: =IF((I202+M202)>100,M202*100/(I202+M202),M202) -> 0.3112030286 | N200: =IF((N202+R202)>100,N202*100/(N202+R202),N202) -> 99.81185821 | O200: =N200*AVERAGEIF(O205:O216,">0")/100 -> 99.81185821 | P200: =N200*(100-AVERAGEIF(O205:O216,">0"))/100 -> 0 | Q200: =100-(O200+P200+R200) -> 0.1345258026 | R200: =IF((N202+R202)>100,R202*100/(N202+R202),R202) -> 0.05361598685 | S200: =IF((S202+W202)>100,S202*100/(S202+W202),S202) -> 99.93409332 | T200: =S200*AVERAGEIF(T205:T216,">0")/100 -> 99.91591117 | U200: =S200*(100-AVERAGEIF(T205:T216,">0"))/100 -> 0.01818215592 | V200: =100-(T200+U200+W200) -> 0.00316383086 | W200: =IF((S202+W202)>100,W202*100/(S202+W202),W202) -> 0.06274284588 | X200: =IF((X202+AB202)>100,X202*100/(X202+AB202),X202) -> 99.99625094 | Y200: =X200*AVERAGEIF(Y205:Y216,">0")/100 -> 99.99469649 | Z200: =X200*(100-AVERAGEIF(Y205:Y216,">0"))/100 -> 0.001554456814 | AA200: =100-(Y200+Z200+AB200) -> 0 | AB200: =IF((X202+AB202)>100,AB202*100/(X202+AB202),AB202) -> 0.00374905769
A201: Regression period: | C201: =MinRegYear(C199,C205:C216) -> 2000 | D201: =IF(MAX(C205:C216)-MIN(C205:C216)<5,AVERAGEIF(C205:C216,">0",D205:D216), IF(FORECAST($C201,D$205:D$216,$C$205:$C$216)<0,0, IF(FORECAST($C201,D$205:D$216,$C$205:$C$216)>100,100, FORECAST($C201,D$205:D$216,$C$205:$C$216)))) -> 98.45034301 | H201: =IF(MAX(C205:C216)-MIN(C205:C216)<5,AVERAGEIF(C205:C216,">0",H205:H216), IF(FORECAST($C201,H$205:H$216,$C$205:$C$216)<0,0, IF(FORECAST($C201,H$205:H$216,$C$205:$C$216)>100,100, FORECAST($C201,H$205:H$216,$C$205:$C$216)))) -> 0.1537747517 | I201: =IF(MAX(C205:C216)-MIN(C205:C216)<5,AVERAGEIF(C205:C216,">0",I205:I216), IF(FORECAST($C201,I$205:I$216,$C$205:$C$216)<0,0, IF(FORECAST($C201,I$205:I$216,$C$205:$C$216)>100,100, FORECAST($C201,I$205:I$216,$C$205:$C$216)))) -> 99.02452524 | M201: =IF(MAX(C205:C216)-MIN(C205:C216)<5,AVERAGEIF(C205:C216,">0",M205:M216), IF(FORECAST($C201,M$205:M$216,$C$205:$C$216)<0,0, IF(FORECAST($C201,M$205:M$216,$C$205:$C$216)>100,100, FORECAST($C201,M$205:M$216,$C$205:$C$216)))) -> 0.04880814615 | N201: =IF(MAX(C205:C216)-MIN(C205:C216)<5,AVERAGEIF(C205:C216,">0",N205:N216), IF(FORECAST($C201,N$205:N$216,$C$205:$C$216)<0,0, IF(FORECAST($C201,N$205:N$216,$C$205:$C$216)>100,100, FORECAST($C201,N$205:N$216,$C$205:$C$216)))) -> 99.22765451 | R201: =IF(MAX(C205:C216)-MIN(C205:C216)<5,AVERAGEIF(C205:C216,">0",R205:R216), IF(FORECAST($C201,R$205:R$216,$C$205:$C$216)<0,0, IF(FORECAST($C201,R$205:R$216,$C$205:$C$216)>100,100, FORECAST($C201,R$205:R$216,$C$205:$C$216)))) -> 0.07123044432 | S201: =IF(MAX(C205:C216)-MIN(C205:C216)<5,AVERAGEIF(C205:C216,">0",S205:S216), IF(FORECAST($C201,S$205:S$216,$C$205:$C$216)<0,0, IF(FORECAST($C201,S$205:S$216,$C$205:$C$216)>100,100, FORECAST($C201,S$205:S$216,$C$205:$C$216)))) -> 99.41241574 | W201: =IF(MAX(C205:C216)-MIN(C205:C216)<5,AVERAGEIF(C205:C216,">0",W205:W216), IF(FORECAST($C201,W$205:W$216,$C$205:$C$216)<0,0, IF(FORECAST($C201,W$205:W$216,$C$205:$C$216)>100,100, FORECAST($C201,W$205:W$216,$C$205:$C$216)))) -> 0.01751646281 | X201: =IF(MAX(C205:C216)-MIN(C205:C216)<5,AVERAGEIF(C205:C216,">0",X205:X216), IF(FORECAST($C201,X$205:X$216,$C$205:$C$216)<0,0, IF(FORECAST($C201,X$205:X$216,$C$205:$C$216)>100,100, FORECAST($C201,X$205:X$216,$C$205:$C$216)))) -> 99.67187306 | AB201: =IF(MAX(C205:C216)-MIN(C205:C216)<5,AVERAGEIF(C205:C216,">0",AB205:AB216), IF(FORECAST($C201,AB$205:AB$216,$C$205:$C$216)<0,0, IF(FORECAST($C201,AB$205:AB$216,$C$205:$C$216)>100,100, FORECAST($C201,AB$205:AB$216,$C$205:$C$216)))) -> 0.0006506872996
C202: =MaxRegYear(C200,C205:C216) -> 2020 | D202: =IF(MAX(C205:C216)-MIN(C205:C216)<5,AVERAGEIF(C205:C216,">0",D205:D216), IF(FORECAST($C202,D$205:D$216,$C$205:$C$216)<0,0, IF(FORECAST($C202,D$205:D$216,$C$205:$C$216)>100,100, FORECAST($C202,D$205:D$216,$C$205:$C$216)))) -> 98.68427779 | H202: =IF(MAX(C205:C216)-MIN(C205:C216)<5,AVERAGEIF(C205:C216,">0",H205:H216), IF(FORECAST($C202,H$205:H$216,$C$205:$C$216)<0,0, IF(FORECAST($C202,H$205:H$216,$C$205:$C$216)>100,100, FORECAST($C202,H$205:H$216,$C$205:$C$216)))) -> 0.8238439231 | I202: =IF(MAX(C205:C216)-MIN(C205:C216)<5,AVERAGEIF(C205:C216,">0",I205:I216), IF(FORECAST($C202,I$205:I$216,$C$205:$C$216)<0,0, IF(FORECAST($C202,I$205:I$216,$C$205:$C$216)>100,100, FORECAST($C202,I$205:I$216,$C$205:$C$216)))) -> 99.4448541 | M202: =IF(MAX(C205:C216)-MIN(C205:C216)<5,AVERAGEIF(C205:C216,">0",M205:M216), IF(FORECAST($C202,M$205:M$216,$C$205:$C$216)<0,0, IF(FORECAST($C202,M$205:M$216,$C$205:$C$216)>100,100, FORECAST($C202,M$205:M$216,$C$205:$C$216)))) -> 0.3112030286 | N202: =IF(MAX(C205:C216)-MIN(C205:C216)<5,AVERAGEIF(C205:C216,">0",N205:N216), IF(FORECAST($C202,N$205:N$216,$C$205:$C$216)<0,0, IF(FORECAST($C202,N$205:N$216,$C$205:$C$216)>100,100, FORECAST($C202,N$205:N$216,$C$205:$C$216)))) -> 99.81185821 | R202: =IF(MAX(C205:C216)-MIN(C205:C216)<5,AVERAGEIF(C205:C216,">0",R205:R216), IF(FORECAST($C202,R$205:R$216,$C$205:$C$216)<0,0, IF(FORECAST($C202,R$205:R$216,$C$205:$C$216)>100,100, FORECAST($C202,R$205:R$216,$C$205:$C$216)))) -> 0.05361598685 | S202: =IF(MAX(C205:C216)-MIN(C205:C216)<5,AVERAGEIF(C205:C216,">0",S205:S216), IF(FORECAST($C202,S$205:S$216,$C$205:$C$216)<0,0, IF(FORECAST($C202,S$205:S$216,$C$205:$C$216)>100,100, FORECAST($C202,S$205:S$216,$C$205:$C$216)))) -> 99.93409332 | W202: =IF(MAX(C205:C216)-MIN(C205:C216)<5,AVERAGEIF(C205:C216,">0",W205:W216), IF(FORECAST($C202,W$205:W$216,$C$205:$C$216)<0,0, IF(FORECAST($C202,W$205:W$216,$C$205:$C$216)>100,100, FORECAST($C202,W$205:W$216,$C$205:$C$216)))) -> 0.06274284588 | X202: =IF(MAX(C205:C216)-MIN(C205:C216)<5,AVERAGEIF(C205:C216,">0",X205:X216), IF(FORECAST($C202,X$205:X$216,$C$205:$C$216)<0,0, IF(FORECAST($C202,X$205:X$216,$C$205:$C$216)>100,100, FORECAST($C202,X$205:X$216,$C$205:$C$216)))) -> 100 | AB202: =IF(MAX(C205:C216)-MIN(C205:C216)<5,AVERAGEIF(C205:C216,">0",AB205:AB216), IF(FORECAST($C202,AB$205:AB$216,$C$205:$C$216)<0,0, IF(FORECAST($C202,AB$205:AB$216,$C$205:$C$216)>100,100, FORECAST($C202,AB$205:AB$216,$C$205:$C$216)))) -> 0.00374919825
B204: Survey | C204: Year | D204: Improved | E204: Basic | H204: Surface water | I204: Improved | J204: Basic | M204: Surface water | N204: Improved | O204: Basic | R204: Surface water | S204: Improved | T204: Basic | W204: Surface water | X204: Improved | Y204: Basic | AB204: Surface water
B205: SES00 | C205: 2000 | D205: =IF(ISERROR(INDIRECT(CONCATENATE($B205,"!H16"))),"",INDIRECT(CONCATENATE($B205,"!H16"))) -> 99.78582522 | E205: =IF(ISERROR(INDIRECT(CONCATENATE($B205,"!H23"))),"",INDIRECT(CONCATENATE($B205,"!H23"))) -> N/A | H205: =IF(ISERROR(INDIRECT(CONCATENATE($B205,"!H21"))),"",INDIRECT(CONCATENATE($B205,"!H21"))) -> 0.0002203361165 | I205: =IF(ISERROR(INDIRECT(CONCATENATE($B205,"!I16"))),"",INDIRECT(CONCATENATE($B205,"!I16"))) -> 99.93151509 | J205: =IF(ISERROR(INDIRECT(CONCATENATE($B205,"!I23"))),"",INDIRECT(CONCATENATE($B205,"!I23"))) -> N/A | M205: =IF(ISERROR(INDIRECT(CONCATENATE($B205,"!I21"))),"",INDIRECT(CONCATENATE($B205,"!I21"))) -> 0.004063839549 | N205: =IF(ISERROR(INDIRECT(CONCATENATE($B205,"!J16"))),"",INDIRECT(CONCATENATE($B205,"!J16"))) -> 99.87398946 | O205: =IF(ISERROR(INDIRECT(CONCATENATE($B205,"!J23"))),"",INDIRECT(CONCATENATE($B205,"!J23"))) -> N/A | R205: =IF(ISERROR(INDIRECT(CONCATENATE($B205,"!J21"))),"",INDIRECT(CONCATENATE($B205,"!J21"))) -> 0.004609968601 | S205: =IF(ISERROR(INDIRECT(CONCATENATE($B205,"!K16"))),"",INDIRECT(CONCATENATE($B205,"!K16"))) -> 99.71464224 | T205: =IF(ISERROR(INDIRECT(CONCATENATE($B205,"!K23"))),"",INDIRECT(CONCATENATE($B205,"!K23"))) -> N/A | W205: =IF(ISERROR(INDIRECT(CONCATENATE($B205,"!K21"))),"",INDIRECT(CONCATENATE($B205,"!K21"))) -> 0 | X205: =IF(ISERROR(INDIRECT(CONCATENATE($B205,"!L16"))),"",INDIRECT(CONCATENATE($B205,"!L16"))) -> 99.79404583 | Y205: =IF(ISERROR(INDIRECT(CONCATENATE($B205,"!L23"))),"",INDIRECT(CONCATENATE($B205,"!L23"))) -> N/A | AB205: =IF(ISERROR(INDIRECT(CONCATENATE($B205,"!L221"))),"",INDIRECT(CONCATENATE($B205,"!L21"))) -> 0
B206: SES04 | C206: 2004 | D206: 98.06034353 | E206: N/A | H206: 0.1450208502 | I206: 98.53676584 | J206: N/A | M206: 0.003922180901 | N206: 98.55165939 | O206: N/A | R206: 0.07375142354 | S206: 99.14968378 | T206: N/A | W206: 0 | X206: 99.66866204 | Y206: N/A | AB206: 0
B207: MICS06 | C207: 2006 | D207: 97.59284173 | E207: 99.95620411 | H207: 0.2065177325 | I207: 98.77713299 | J207: 99.97810793 | M207: 0.02915179834 | N207: 99.3135298 | O207: 100 | R207: 0.1230669485 | S207: 99.57018806 | T207: 99.92722341 | W207: 0.02291120677 | X207: 99.64991771 | Y207: 99.99378194 | AB207: 0
B208: MICS13 | C208: 2013 | D208: 97.29406218 | E208: 100 | H208: 1.74867825 | I208: 98.44479191 | J208: 99.9 | M208: 0.8969749315 | N208: 99.73392723 | O208: 100 | R208: 0.160443826 | S208: 99.62425356 | T208: 100 | W208: 0.213344081 | X208: 99.9871131 | Y208: 100 | AB208: 0.01288980555
B209: MICS16 | C209: 2016 | D209: 99 | E209: 100 | H209: 0.7 | I209: 99.8 | J209: 100 | M209: 0.1 | N209: 99.7 | O209: 100 | R209: 0 | S209: 100 | T209: 100 | W209: 0 | X209: 100 | Y209: 100 | AB209: 0
B210: MICS19 | C210: 2019 | D210: 99.64739626 | E210: 99.99854064 | H210: 0.06541193892 | I210: 99.87589933 | J210: 99.99696716 | M210: 0.01968128564 | N210: 99.88701191 | O210: 100 | R210: 0.01442857262 | S210: 99.92859178 | T210: 100 | W210: 0 | X210: 100 | Y210: 100 | AB210: 0
B218: =CONCATENATE("Urban use of drinking water sources, ",C199,"–",C200) -> Urban use of drinking water sources, 2000–2020 | S218: Data points used for regression
E253: =IF(ISERROR(INDIRECT(CONCATENATE($B253,"!M18"))),"",INDIRECT(CONCATENATE($B253,"!M18"))) ->  | F253: =IF(ISERROR(INDIRECT(CONCATENATE($B253,"!M19"))),"",INDIRECT(CONCATENATE($B253,"!M19"))) ->  | G253: =IF(ISERROR(INDIRECT(CONCATENATE($B253,"!M20"))),"",INDIRECT(CONCATENATE($B253,"!M20"))) ->  | H253: =IF(ISERROR(INDIRECT(CONCATENATE($B253,"!M21"))),"",INDIRECT(CONCATENATE($B253,"!M21"))) ->  | J253: =IF(ISERROR(INDIRECT(CONCATENATE($B253,"!N18"))),"",INDIRECT(CONCATENATE($B253,"!N18"))) ->  | K253: =IF(ISERROR(INDIRECT(CONCATENATE($B253,"!N19"))),"",INDIRECT(CONCATENATE($B253,"!N19"))) ->  | L253: =IF(ISERROR(INDIRECT(CONCATENATE($B253,"!N20"))),"",INDIRECT(CONCATENATE($B253,"!N20"))) ->  | M253: =IF(ISERROR(INDIRECT(CONCATENATE($B253,"!N21"))),"",INDIRECT(CONCATENATE($B253,"!N21"))) ->  | O253: =IF(ISERROR(INDIRECT(CONCATENATE($B253,"!O18"))),"",INDIRECT(CONCATENATE($B253,"!O18"))) ->  | P253: =IF(ISERROR(INDIRECT(CONCATENATE($B253,"!O19"))),"",INDIRECT(CONCATENATE($B253,"!O19"))) ->  | Q253: =IF(ISERROR(INDIRECT(CONCATENATE($B253,"!O20"))),"",INDIRECT(CONCATENATE($B253,"!O20"))) ->  | R253: =IF(ISERROR(INDIRECT(CONCATENATE($B253,"!O21"))),"",INDIRECT(CONCATENATE($B253,"!O21"))) ->  | T253: =IF(ISERROR(INDIRECT(CONCATENATE($B253,"!P18"))),"",INDIRECT(CONCATENATE($B253,"!P18"))) ->  | U253: =IF(ISERROR(INDIRECT(CONCATENATE($B253,"!P19"))),"",INDIRECT(CONCATENATE($B253,"!P19"))) ->  | V253: =IF(ISERROR(INDIRECT(CONCATENATE($B253,"!P20"))),"",INDIRECT(CONCATENATE($B253,"!P20"))) ->  | W253: =IF(ISERROR(INDIRECT(CONCATENATE($B253,"!P21"))),"",INDIRECT(CONCATENATE($B253,"!P21"))) ->  | Y253: =IF(ISERROR(INDIRECT(CONCATENATE($B253,"!Q18"))),"",INDIRECT(CONCATENATE($B253,"!Q18"))) ->  | Z253: =IF(ISERROR(INDIRECT(CONCATENATE($B253,"!Q19"))),"",INDIRECT(CONCATENATE($B253,"!Q19"))) ->  | AA253: =IF(ISERROR(INDIRECT(CONCATENATE($B253,"!Q20"))),"",INDIRECT(CONCATENATE($B253,"!Q20"))) ->  | AB253: =IF(ISERROR(INDIRECT(CONCATENATE($B253,"!Q21"))),"",INDIRECT(CONCATENATE($B253,"!Q1"))) -> 
E254: =IF(ISERROR(INDIRECT(CONCATENATE($B254,"!M18"))),"",INDIRECT(CONCATENATE($B254,"!M18"))) ->  | F254: =IF(ISERROR(INDIRECT(CONCATENATE($B254,"!M19"))),"",INDIRECT(CONCATENATE($B254,"!M19"))) ->  | G254: =IF(ISERROR(INDIRECT(CONCATENATE($B254,"!M20"))),"",INDIRECT(CONCATENATE($B254,"!M20"))) ->  | H254: =IF(ISERROR(INDIRECT(CONCATENATE($B254,"!M21"))),"",INDIRECT(CONCATENATE($B254,"!M21"))) ->  | J254: =IF(ISERROR(INDIRECT(CONCATENATE($B254,"!N18"))),"",INDIRECT(CONCATENATE($B254,"!N18"))) ->  | K254: =IF(ISERROR(INDIRECT(CONCATENATE($B254,"!N19"))),"",INDIRECT(CONCATENATE($B254,"!N19"))) ->  | L254: =IF(ISERROR(INDIRECT(CONCATENATE($B254,"!N20"))),"",INDIRECT(CONCATENATE($B254,"!N20"))) ->  | M254: =IF(ISERROR(INDIRECT(CONCATENATE($B254,"!N21"))),"",INDIRECT(CONCATENATE($B254,"!N21"))) ->  | O254: =IF(ISERROR(INDIRECT(CONCATENATE($B254,"!O18"))),"",INDIRECT(CONCATENATE($B254,"!O18"))) ->  | P254: =IF(ISERROR(INDIRECT(CONCATENATE($B254,"!O19"))),"",INDIRECT(CONCATENATE($B254,"!O19"))) ->  | Q254: =IF(ISERROR(INDIRECT(CONCATENATE($B254,"!O20"))),"",INDIRECT(CONCATENATE($B254,"!O20"))) ->  | R254: =IF(ISERROR(INDIRECT(CONCATENATE($B254,"!O21"))),"",INDIRECT(CONCATENATE($B254,"!O21"))) ->  | T254: =IF(ISERROR(INDIRECT(CONCATENATE($B254,"!P18"))),"",INDIRECT(CONCATENATE($B254,"!P18"))) ->  | U254: =IF(ISERROR(INDIRECT(CONCATENATE($B254,"!P19"))),"",INDIRECT(CONCATENATE($B254,"!P19"))) ->  | V254: =IF(ISERROR(INDIRECT(CONCATENATE($B254,"!P20"))),"",INDIRECT(CONCATENATE($B254,"!P20"))) ->  | W254: =IF(ISERROR(INDIRECT(CONCATENATE($B254,"!P21"))),"",INDIRECT(CONCATENATE($B254,"!P21"))) ->  | Y254: =IF(ISERROR(INDIRECT(CONCATENATE($B254,"!Q18"))),"",INDIRECT(CONCATENATE($B254,"!Q18"))) ->  | Z254: =IF(ISERROR(INDIRECT(CONCATENATE($B254,"!Q19"))),"",INDIRECT(CONCATENATE($B254,"!Q19"))) ->  | AA254: =IF(ISERROR(INDIRECT(CONCATENATE($B254,"!Q20"))),"",INDIRECT(CONCATENATE($B254,"!Q20"))) ->  | AB254: =IF(ISERROR(INDIRECT(CONCATENATE($B254,"!Q21"))),"",INDIRECT(CONCATENATE($B254,"!Q1"))) -> 
E255: =IF(ISERROR(INDIRECT(CONCATENATE($B255,"!M18"))),"",INDIRECT(CONCATENATE($B255,"!M18"))) ->  | F255: =IF(ISERROR(INDIRECT(CONCATENATE($B255,"!M19"))),"",INDIRECT(CONCATENATE($B255,"!M19"))) ->  | G255: =IF(ISERROR(INDIRECT(CONCATENATE($B255,"!M20"))),"",INDIRECT(CONCATENATE($B255,"!M20"))) ->  | H255: =IF(ISERROR(INDIRECT(CONCATENATE($B255,"!M21"))),"",INDIRECT(CONCATENATE($B255,"!M21"))) ->  | J255: =IF(ISERROR(INDIRECT(CONCATENATE($B255,"!N18"))),"",INDIRECT(CONCATENATE($B255,"!N18"))) ->  | K255: =IF(ISERROR(INDIRECT(CONCATENATE($B255,"!N19"))),"",INDIRECT(CONCATENATE($B255,"!N19"))) ->  | L255: =IF(ISERROR(INDIRECT(CONCATENATE($B255,"!N20"))),"",INDIRECT(CONCATENATE($B255,"!N20"))) ->  | M255: =IF(ISERROR(INDIRECT(CONCATENATE($B255,"!N21"))),"",INDIRECT(CONCATENATE($B255,"!N21"))) ->  | O255: =IF(ISERROR(INDIRECT(CONCATENATE($B255,"!O18"))),"",INDIRECT(CONCATENATE($B255,"!O18"))) ->  | P255: =IF(ISERROR(INDIRECT(CONCATENATE($B255,"!O19"))),"",INDIRECT(CONCATENATE($B255,"!O19"))) ->  | Q255: =IF(ISERROR(INDIRECT(CONCATENATE($B255,"!O20"))),"",INDIRECT(CONCATENATE($B255,"!O20"))) ->  | R255: =IF(ISERROR(INDIRECT(CONCATENATE($B255,"!O21"))),"",INDIRECT(CONCATENATE($B255,"!O21"))) ->  | T255: =IF(ISERROR(INDIRECT(CONCATENATE($B255,"!P18"))),"",INDIRECT(CONCATENATE($B255,"!P18"))) ->  | U255: =IF(ISERROR(INDIRECT(CONCATENATE($B255,"!P19"))),"",INDIRECT(CONCATENATE($B255,"!P19"))) ->  | V255: =IF(ISERROR(INDIRECT(CONCATENATE($B255,"!P20"))),"",INDIRECT(CONCATENATE($B255,"!P20"))) ->  | W255: =IF(ISERROR(INDIRECT(CONCATENATE($B255,"!P21"))),"",INDIRECT(CONCATENATE($B255,"!P21"))) ->  | Y255: =IF(ISERROR(INDIRECT(CONCATENATE($B255,"!Q18"))),"",INDIRECT(CONCATENATE($B255,"!Q18"))) ->  | Z255: =IF(ISERROR(INDIRECT(CONCATENATE($B255,"!Q19"))),"",INDIRECT(CONCATENATE($B255,"!Q19"))) ->  | AA255: =IF(ISERROR(INDIRECT(CONCATENATE($B255,"!Q20"))),"",INDIRECT(CONCATENATE($B255,"!Q20"))) ->  | AB255: =IF(ISERROR(INDIRECT(CONCATENATE($B255,"!Q21"))),"",INDIRECT(CONCATENATE($B255,"!Q1"))) -> 
E256: =IF(ISERROR(INDIRECT(CONCATENATE($B256,"!M18"))),"",INDIRECT(CONCATENATE($B256,"!M18"))) ->  | F256: =IF(ISERROR(INDIRECT(CONCATENATE($B256,"!M19"))),"",INDIRECT(CONCATENATE($B256,"!M19"))) ->  | G256: =IF(ISERROR(INDIRECT(CONCATENATE($B256,"!M20"))),"",INDIRECT(CONCATENATE($B256,"!M20"))) ->  | H256: =IF(ISERROR(INDIRECT(CONCATENATE($B256,"!M21"))),"",INDIRECT(CONCATENATE($B256,"!M21"))) ->  | J256: =IF(ISERROR(INDIRECT(CONCATENATE($B256,"!N18"))),"",INDIRECT(CONCATENATE($B256,"!N18"))) ->  | K256: =IF(ISERROR(INDIRECT(CONCATENATE($B256,"!N19"))),"",INDIRECT(CONCATENATE($B256,"!N19"))) ->  | L256: =IF(ISERROR(INDIRECT(CONCATENATE($B256,"!N20"))),"",INDIRECT(CONCATENATE($B256,"!N20"))) ->  | M256: =IF(ISERROR(INDIRECT(CONCATENATE($B256,"!N21"))),"",INDIRECT(CONCATENATE($B256,"!N21"))) ->  | O256: =IF(ISERROR(INDIRECT(CONCATENATE($B256,"!O18"))),"",INDIRECT(CONCATENATE($B256,"!O18"))) ->  | P256: =IF(ISERROR(INDIRECT(CONCATENATE($B256,"!O19"))),"",INDIRECT(CONCATENATE($B256,"!O19"))) ->  | Q256: =IF(ISERROR(INDIRECT(CONCATENATE($B256,"!O20"))),"",INDIRECT(CONCATENATE($B256,"!O20"))) ->  | R256: =IF(ISERROR(INDIRECT(CONCATENATE($B256,"!O21"))),"",INDIRECT(CONCATENATE($B256,"!O21"))) ->  | T256: =IF(ISERROR(INDIRECT(CONCATENATE($B256,"!P18"))),"",INDIRECT(CONCATENATE($B256,"!P18"))) ->  | U256: =IF(ISERROR(INDIRECT(CONCATENATE($B256,"!P19"))),"",INDIRECT(CONCATENATE($B256,"!P19"))) ->  | V256: =IF(ISERROR(INDIRECT(CONCATENATE($B256,"!P20"))),"",INDIRECT(CONCATENATE($B256,"!P20"))) ->  | W256: =IF(ISERROR(INDIRECT(CONCATENATE($B256,"!P21"))),"",INDIRECT(CONCATENATE($B256,"!P21"))) ->  | Y256: =IF(ISERROR(INDIRECT(CONCATENATE($B256,"!Q18"))),"",INDIRECT(CONCATENATE($B256,"!Q18"))) ->  | Z256: =IF(ISERROR(INDIRECT(CONCATENATE($B256,"!Q19"))),"",INDIRECT(CONCATENATE($B256,"!Q19"))) ->  | AA256: =IF(ISERROR(INDIRECT(CONCATENATE($B256,"!Q20"))),"",INDIRECT(CONCATENATE($B256,"!Q20"))) ->  | AB256: =IF(ISERROR(INDIRECT(CONCATENATE($B256,"!Q21"))),"",INDIRECT(CONCATENATE($B256,"!Q1"))) -> 
E257: =IF(ISERROR(INDIRECT(CONCATENATE($B257,"!M18"))),"",INDIRECT(CONCATENATE($B257,"!M18"))) ->  | F257: =IF(ISERROR(INDIRECT(CONCATENATE($B257,"!M19"))),"",INDIRECT(CONCATENATE($B257,"!M19"))) ->  | G257: =IF(ISERROR(INDIRECT(CONCATENATE($B257,"!M20"))),"",INDIRECT(CONCATENATE($B257,"!M20"))) ->  | H257: =IF(ISERROR(INDIRECT(CONCATENATE($B257,"!M21"))),"",INDIRECT(CONCATENATE($B257,"!M21"))) ->  | J257: =IF(ISERROR(INDIRECT(CONCATENATE($B257,"!N18"))),"",INDIRECT(CONCATENATE($B257,"!N18"))) ->  | K257: =IF(ISERROR(INDIRECT(CONCATENATE($B257,"!N19"))),"",INDIRECT(CONCATENATE($B257,"!N19"))) ->  | L257: =IF(ISERROR(INDIRECT(CONCATENATE($B257,"!N20"))),"",INDIRECT(CONCATENATE($B257,"!N20"))) ->  | M257: =IF(ISERROR(INDIRECT(CONCATENATE($B257,"!N21"))),"",INDIRECT(CONCATENATE($B257,"!N21"))) ->  | O257: =IF(ISERROR(INDIRECT(CONCATENATE($B257,"!O18"))),"",INDIRECT(CONCATENATE($B257,"!O18"))) ->  | P257: =IF(ISERROR(INDIRECT(CONCATENATE($B257,"!O19"))),"",INDIRECT(CONCATENATE($B257,"!O19"))) ->  | Q257: =IF(ISERROR(INDIRECT(CONCATENATE($B257,"!O20"))),"",INDIRECT(CONCATENATE($B257,"!O20"))) ->  | R257: =IF(ISERROR(INDIRECT(CONCATENATE($B257,"!O21"))),"",INDIRECT(CONCATENATE($B257,"!O21"))) ->  | T257: =IF(ISERROR(INDIRECT(CONCATENATE($B257,"!P18"))),"",INDIRECT(CONCATENATE($B257,"!P18"))) ->  | U257: =IF(ISERROR(INDIRECT(CONCATENATE($B257,"!P19"))),"",INDIRECT(CONCATENATE($B257,"!P19"))) ->  | V257: =IF(ISERROR(INDIRECT(CONCATENATE($B257,"!P20"))),"",INDIRECT(CONCATENATE($B257,"!P20"))) ->  | W257: =IF(ISERROR(INDIRECT(CONCATENATE($B257,"!P21"))),"",INDIRECT(CONCATENATE($B257,"!P21"))) ->  | Y257: =IF(ISERROR(INDIRECT(CONCATENATE($B257,"!Q18"))),"",INDIRECT(CONCATENATE($B257,"!Q18"))) ->  | Z257: =IF(ISERROR(INDIRECT(CONCATENATE($B257,"!Q19"))),"",INDIRECT(CONCATENATE($B257,"!Q19"))) ->  | AA257: =IF(ISERROR(INDIRECT(CONCATENATE($B257,"!Q20"))),"",INDIRECT(CONCATENATE($B257,"!Q20"))) ->  | AB257: =IF(ISERROR(INDIRECT(CONCATENATE($B257,"!Q21"))),"",INDIRECT(CONCATENATE($B257,"!Q1"))) -> 
A297: RURAL | D297: Poorest | I297: Poor | N297: Middle | S297: Rich | X297: Richest
D298: Improved | E298: Basic | F298: Limited | G298: Unimproved | H298: Surface water | I298: Improved | J298: Basic | K298: Limited | L298: Unimproved | M298: Surface water | N298: Improved | O298: Basic | P298: Limited | Q298: Unimproved | R298: Surface water | S298: Improved | T298: Basic | U298: Limited | V298: Unimproved | W298: Surface water | X298: Improved | Y298: Basic | Z298: Limited | AA298: Unimproved | AB298: Surface water
A299: Forecast period: | C299: 2000 | D299: =IF((D301+H301)>100,D301*100/(D301+H301),D301) -> 85.3082922 | E299: =D299*AVERAGEIF(E305:E316,">0")/100 -> 85.06886683 | F299: =D299*(100-AVERAGEIF(E305:E316,">0"))/100 -> 0.2394253692 | G299: =100-(E299+F299+H299) -> 12.84115458 | H299: =IF((D301+H301)>100,H301*100/(D301+H301),H301) -> 1.850553219 | I299: =IF((I301+M301)>100,I301*100/(I301+M301),I301) -> 93.81886634 | J299: =I299*AVERAGEIF(J305:J316,">0")/100 -> 93.6607151 | K299: =I299*(100-AVERAGEIF(J305:J316,">0"))/100 -> 0.1581512452 | L299: =100-(J299+K299+M299) -> 5.505696814 | M299: =IF((I301+M301)>100,M301*100/(I301+M301),M301) -> 0.6754368443 | N299: =IF((N301+R301)>100,N301*100/(N301+R301),N301) -> 92.02204151 | O299: =N299*AVERAGEIF(O305:O316,">0")/100 -> 91.93916933 | P299: =N299*(100-AVERAGEIF(O305:O316,">0"))/100 -> 0.0828721802 | Q299: =100-(O299+P299+R299) -> 7.423964939 | R299: =IF((N301+R301)>100,R301*100/(N301+R301),R301) -> 0.5539935542 | S299: =IF((S301+W301)>100,S301*100/(S301+W301),S301) -> 93.43010373 | T299: =S299*AVERAGEIF(T305:T316,">0")/100 -> 93.40377875 | U299: =S299*(100-AVERAGEIF(T305:T316,">0"))/100 -> 0.02632498142 | V299: =100-(T299+U299+W299) -> 6.244562702 | W299: =IF((S301+W301)>100,W301*100/(S301+W301),W301) -> 0.3253335663 | X299: =IF((X301+AB301)>100,X301*100/(X301+AB301),X301) -> 95.26174777 | Y299: =X299*AVERAGEIF(Y305:Y316,">0")/100 -> 95.21595484 | Z299: =X299*(100-AVERAGEIF(Y305:Y316,">0"))/100 -> 0.0457929335 | AA299: =100-(Y299+Z299+AB299) -> 4.60479016 | AB299: =IF((X301+AB301)>100,AB301*100/(X301+AB301),AB301) -> 0.1334620655
C300: 2020 | D300: =IF((D302+H302)>100,D302*100/(D302+H302),D302) -> 98.87789386 | E300: =D300*AVERAGEIF(E305:E316,">0")/100 -> 98.60038418 | F300: =D300*(100-AVERAGEIF(E305:E316,">0"))/100 -> 0.2775096727 | G300: =100-(E300+F300+H300) -> 0 | H300: =IF((D302+H302)>100,H302*100/(D302+H302),H302) -> 1.122106143 | I300: =IF((I302+M302)>100,I302*100/(I302+M302),I302) -> 99.5569108 | J300: =I300*AVERAGEIF(J305:J316,">0")/100 -> 99.38908689 | K300: =I300*(100-AVERAGEIF(J305:J316,">0"))/100 -> 0.1678239145 | L300: =100-(J300+K300+M300) -> 0.1397291646 | M300: =IF((I302+M302)>100,M302*100/(I302+M302),M302) -> 0.303360032 | N300: =IF((N302+R302)>100,N302*100/(N302+R302),N302) -> 99.86914066 | O300: =N300*AVERAGEIF(O305:O316,">0")/100 -> 99.77920163 | P300: =N300*(100-AVERAGEIF(O305:O316,">0"))/100 -> 0.08993903293 | Q300: =100-(O300+P300+R300) -> 0 | R300: =IF((N302+R302)>100,R302*100/(N302+R302),R302) -> 0.1308593414 | S300: =IF((S302+W302)>100,S302*100/(S302+W302),S302) -> 99.85068247 | T300: =S300*AVERAGEIF(T305:T316,">0")/100 -> 99.82254842 | U300: =S300*(100-AVERAGEIF(T305:T316,">0"))/100 -> 0.02813405161 | V300: =100-(T300+U300+W300) -> 0 | W300: =IF((S302+W302)>100,W302*100/(S302+W302),W302) -> 0.1493175264 | X300: =IF((X302+AB302)>100,X302*100/(X302+AB302),X302) -> 99.82235206 | Y300: =X300*AVERAGEIF(Y305:Y316,">0")/100 -> 99.77436682 | Z300: =X300*(100-AVERAGEIF(Y305:Y316,">0"))/100 -> 0.04798524525 | AA300: =100-(Y300+Z300+AB300) -> 0 | AB300: =IF((X302+AB302)>100,AB302*100/(X302+AB302),AB302) -> 0.1776479382
A301: Regression period: | C301: =MinRegYear(C299,C305:C316) -> 2000 | D301: =IF(MAX(C305:C316)-MIN(C305:C316)<5,AVERAGEIF(C305:C316,">0",D305:D316), IF(FORECAST($C301,D$305:D$316,$C$305:$C$316)<0,0, IF(FORECAST($C301,D$305:D$316,$C$305:$C$316)>100,100, FORECAST($C301,D$305:D$316,$C$305:$C$316)))) -> 85.3082922 | H301: =IF(MAX(C305:C316)-MIN(C305:C316)<5,AVERAGEIF(C305:C316,">0",H305:H316), IF(FORECAST($C301,H$305:H$316,$C$305:$C$316)<0,0, IF(FORECAST($C301,H$305:H$316,$C$305:$C$316)>100,100, FORECAST($C301,H$305:H$316,$C$305:$C$316)))) -> 1.850553219 | I301: =IF(MAX(C305:C316)-MIN(C305:C316)<5,AVERAGEIF(C305:C316,">0",I305:I316), IF(FORECAST($C301,I$305:I$316,$C$305:$C$316)<0,0, IF(FORECAST($C301,I$305:I$316,$C$305:$C$316)>100,100, FORECAST($C301,I$305:I$316,$C$305:$C$316)))) -> 93.81886634 | M301: =IF(MAX(C305:C316)-MIN(C305:C316)<5,AVERAGEIF(C305:C316,">0",M305:M316), IF(FORECAST($C301,M$305:M$316,$C$305:$C$316)<0,0, IF(FORECAST($C301,M$305:M$316,$C$305:$C$316)>100,100, FORECAST($C301,M$305:M$316,$C$305:$C$316)))) -> 0.6754368443 | N301: =IF(MAX(C305:C316)-MIN(C305:C316)<5,AVERAGEIF(C305:C316,">0",N305:N316), IF(FORECAST($C301,N$305:N$316,$C$305:$C$316)<0,0, IF(FORECAST($C301,N$305:N$316,$C$305:$C$316)>100,100, FORECAST($C301,N$305:N$316,$C$305:$C$316)))) -> 92.02204151 | R301: =IF(MAX(C305:C316)-MIN(C305:C316)<5,AVERAGEIF(C305:C316,">0",R305:R316), IF(FORECAST($C301,R$305:R$316,$C$305:$C$316)<0,0, IF(FORECAST($C301,R$305:R$316,$C$305:$C$316)>100,100, FORECAST($C301,R$305:R$316,$C$305:$C$316)))) -> 0.5539935542 | S301: =IF(MAX(C305:C316)-MIN(C305:C316)<5,AVERAGEIF(C305:C316,">0",S305:S316), IF(FORECAST($C301,S$305:S$316,$C$305:$C$316)<0,0, IF(FORECAST($C301,S$305:S$316,$C$305:$C$316)>100,100, FORECAST($C301,S$305:S$316,$C$305:$C$316)))) -> 93.43010373 | W301: =IF(MAX(C305:C316)-MIN(C305:C316)<5,AVERAGEIF(C305:C316,">0",W305:W316), IF(FORECAST($C301,W$305:W$316,$C$305:$C$316)<0,0, IF(FORECAST($C301,W$305:W$316,$C$305:$C$316)>100,100, FORECAST($C301,W$305:W$316,$C$305:$C$316)))) -> 0.3253335663 | X301: =IF(MAX(C305:C316)-MIN(C305:C316)<5,AVERAGEIF(C305:C316,">0",X305:X316), IF(FORECAST($C301,X$305:X$316,$C$305:$C$316)<0,0, IF(FORECAST($C301,X$305:X$316,$C$305:$C$316)>100,100, FORECAST($C301,X$305:X$316,$C$305:$C$316)))) -> 95.26174777 | AB301: =IF(MAX(C305:C316)-MIN(C305:C316)<5,AVERAGEIF(C305:C316,">0",AB305:AB316), IF(FORECAST($C301,AB$305:AB$316,$C$305:$C$316)<0,0, IF(FORECAST($C301,AB$305:AB$316,$C$305:$C$316)>100,100, FORECAST($C301,AB$305:AB$316,$C$305:$C$316)))) -> 0.1334620655
C302: =MaxRegYear(C300,C305:C316) -> 2020 | D302: =IF(MAX(C305:C316)-MIN(C305:C316)<5,AVERAGEIF(C305:C316,">0",D305:D316), IF(FORECAST($C302,D$305:D$316,$C$305:$C$316)<0,0, IF(FORECAST($C302,D$305:D$316,$C$305:$C$316)>100,100, FORECAST($C302,D$305:D$316,$C$305:$C$316)))) -> 100 | H302: =IF(MAX(C305:C316)-MIN(C305:C316)<5,AVERAGEIF(C305:C316,">0",H305:H316), IF(FORECAST($C302,H$305:H$316,$C$305:$C$316)<0,0, IF(FORECAST($C302,H$305:H$316,$C$305:$C$316)>100,100, FORECAST($C302,H$305:H$316,$C$305:$C$316)))) -> 1.134840255 | I302: =IF(MAX(C305:C316)-MIN(C305:C316)<5,AVERAGEIF(C305:C316,">0",I305:I316), IF(FORECAST($C302,I$305:I$316,$C$305:$C$316)<0,0, IF(FORECAST($C302,I$305:I$316,$C$305:$C$316)>100,100, FORECAST($C302,I$305:I$316,$C$305:$C$316)))) -> 99.5569108 | M302: =IF(MAX(C305:C316)-MIN(C305:C316)<5,AVERAGEIF(C305:C316,">0",M305:M316), IF(FORECAST($C302,M$305:M$316,$C$305:$C$316)<0,0, IF(FORECAST($C302,M$305:M$316,$C$305:$C$316)>100,100, FORECAST($C302,M$305:M$316,$C$305:$C$316)))) -> 0.303360032 | N302: =IF(MAX(C305:C316)-MIN(C305:C316)<5,AVERAGEIF(C305:C316,">0",N305:N316), IF(FORECAST($C302,N$305:N$316,$C$305:$C$316)<0,0, IF(FORECAST($C302,N$305:N$316,$C$305:$C$316)>100,100, FORECAST($C302,N$305:N$316,$C$305:$C$316)))) -> 100 | R302: =IF(MAX(C305:C316)-MIN(C305:C316)<5,AVERAGEIF(C305:C316,">0",R305:R316), IF(FORECAST($C302,R$305:R$316,$C$305:$C$316)<0,0, IF(FORECAST($C302,R$305:R$316,$C$305:$C$316)>100,100, FORECAST($C302,R$305:R$316,$C$305:$C$316)))) -> 0.1310308074 | S302: =IF(MAX(C305:C316)-MIN(C305:C316)<5,AVERAGEIF(C305:C316,">0",S305:S316), IF(FORECAST($C302,S$305:S$316,$C$305:$C$316)<0,0, IF(FORECAST($C302,S$305:S$316,$C$305:$C$316)>100,100, FORECAST($C302,S$305:S$316,$C$305:$C$316)))) -> 100 | W302: =IF(MAX(C305:C316)-MIN(C305:C316)<5,AVERAGEIF(C305:C316,">0",W305:W316), IF(FORECAST($C302,W$305:W$316,$C$305:$C$316)<0,0, IF(FORECAST($C302,W$305:W$316,$C$305:$C$316)>100,100, FORECAST($C302,W$305:W$316,$C$305:$C$316)))) -> 0.149540817 | X302: =IF(MAX(C305:C316)-MIN(C305:C316)<5,AVERAGEIF(C305:C316,">0",X305:X316), IF(FORECAST($C302,X$305:X$316,$C$305:$C$316)<0,0, IF(FORECAST($C302,X$305:X$316,$C$305:$C$316)>100,100, FORECAST($C302,X$305:X$316,$C$305:$C$316)))) -> 100 | AB302: =IF(MAX(C305:C316)-MIN(C305:C316)<5,AVERAGEIF(C305:C316,">0",AB305:AB316), IF(FORECAST($C302,AB$305:AB$316,$C$305:$C$316)<0,0, IF(FORECAST($C302,AB$305:AB$316,$C$305:$C$316)>100,100, FORECAST($C302,AB$305:AB$316,$C$305:$C$316)))) -> 0.1779640877
B304: Survey | C304: Year | D304: Improved | E304: Basic | H304: Surface water | I304: Improved | J304: Basic | M304: Surface water | N304: Improved | O304: Basic | R304: Surface water | S304: Improved | T304: Basic | W304: Surface water | X304: Improved | Y304: Basic | AB304: Surface water
B305: SES00 | C305: 2000 | D305: =IF(ISERROR(INDIRECT(CONCATENATE($B305,"!M16"))),"",INDIRECT(CONCATENATE($B305,"!M16"))) -> 83.70049696 | E305: =IF(ISERROR(INDIRECT(CONCATENATE($B305,"!M23"))),"",INDIRECT(CONCATENATE($B305,"!M23"))) -> N/A | H305: =IF(ISERROR(INDIRECT(CONCATENATE($B305,"!M21"))),"",INDIRECT(CONCATENATE($B305,"!M21"))) -> 1.177189815 | I305: =IF(ISERROR(INDIRECT(CONCATENATE($B305,"!N16"))),"",INDIRECT(CONCATENATE($B305,"!N16"))) -> 93.95909681 | J305: =IF(ISERROR(INDIRECT(CONCATENATE($B305,"!N23"))),"",INDIRECT(CONCATENATE($B305,"!N23"))) -> N/A | M305: =IF(ISERROR(INDIRECT(CONCATENATE($B305,"!N21"))),"",INDIRECT(CONCATENATE($B305,"!N21"))) -> 0.3782486643 | N305: =IF(ISERROR(INDIRECT(CONCATENATE($B305,"!O16"))),"",INDIRECT(CONCATENATE($B305,"!O16"))) -> 91.97627759 | O305: =IF(ISERROR(INDIRECT(CONCATENATE($B305,"!O23"))),"",INDIRECT(CONCATENATE($B305,"!O23"))) -> N/A | R305: =IF(ISERROR(INDIRECT(CONCATENATE($B305,"!O21"))),"",INDIRECT(CONCATENATE($B305,"!O21"))) -> 0.598028176 | S305: =IF(ISERROR(INDIRECT(CONCATENATE($B305,"!P16"))),"",INDIRECT(CONCATENATE($B305,"!P16"))) -> 94.27839432 | T305: =IF(ISERROR(INDIRECT(CONCATENATE($B305,"!P23"))),"",INDIRECT(CONCATENATE($B305,"!P23"))) -> N/A | W305: =IF(ISERROR(INDIRECT(CONCATENATE($B305,"!P21"))),"",INDIRECT(CONCATENATE($B305,"!P21"))) -> 0.1493648913 | X305: =IF(ISERROR(INDIRECT(CONCATENATE($B305,"!Q16"))),"",INDIRECT(CONCATENATE($B305,"!Q16"))) -> 95.45645518 | Y305: =IF(ISERROR(INDIRECT(CONCATENATE($B305,"!Q23"))),"",INDIRECT(CONCATENATE($B305,"!Q23"))) -> N/A | AB305: =IF(ISERROR(INDIRECT(CONCATENATE($B305,"!Q221"))),"",INDIRECT(CONCATENATE($B305,"!Q21"))) -> 0.04121407551
B306: SES04 | C306: 2004 | D306: 88.28683679 | E306: N/A | H306: 0.9974342325 | I306: 94.34867725 | J306: N/A | M306: 0.2734098319 | N306: 92.97772576 | O306: N/A | R306: 0.1704121137 | S306: 93.79406269 | T306: N/A | W306: 0.340674849 | X306: 95.82241827 | Y306: N/A | AB306: 0.2088446926
B307: MICS06 | C307: 2006 | D307: 92.09307451 | E307: 99.07736414 | H307: 2.760733053 | I307: 95.75326723 | J307: 99.32571667 | M307: 1.335560307 | N307: 94.92145966 | O307: 99.93977248 | R307: 0.7133192757 | S307: 95.10584172 | T307: 99.88729551 | W307: 0.4053119492 | X307: 96.60482825 | Y307: 99.90771743 | AB307: 0.2542892195
B308: MICS13 | C308: 2013 | D308: 96.10874309 | E308: 99.9 | H308: 3.044319912 | I308: 98.14220498 | J308: 100 | M308: 0.4604822109 | N308: 97.97951734 | O308: 99.8 | R308: 0.3247771907 | S308: 98.18751812 | T308: 100 | W308: 0.3468507352 | X308: 99.33394662 | Y308: 99.9 | AB308: 0.1399674475
B309: MICS16 | C309: 2016 | D309: 97.8 | E309: 99.9 | H309: 0.9 | I309: 98.5 | J309: 100 | M309: 0.5 | N309: 98.6 | O309: 99.9 | R309: 0.1 | S309: 98.8 | T309: 100 | W309: 0.2 | X309: 99.1 | Y309: 100 | AB309: 0
B310: MICS19 | C310: 2019 | D310: 98.81281158 | E310: 100 | H310: 0.1480747058 | I310: 98.85028072 | J310: 100 | M310: 0.0258972959 | N310: 99.10507597 | O310: 100 | R310: 0.1908326035 | S310: 99.75158252 | T310: 100 | W310: 0 | X310: 99.64683324 | Y310: 100 | AB310: 0.2855128224
B318: =CONCATENATE("Rural use of drinking water sources, ",C299,"–",C300) -> Rural use of drinking water sources, 2000–2020 | S318: Data points used for regression

Sheet Sanitation
B4: Summary of trends in use of sanitation facilities by wealth quintile (%)
B5: =IF(ISERROR(INDIRECT(CONCATENATE($B105,"!A2"))),"",INDIRECT(CONCATENATE($B105,"!A2"))) -> Thailand
B7: =B118 -> National use of sanitation facilities, 2000–2020 | J7: =B218 -> Urban use of sanitation facilities, 2000–2020 | R7: =B318 -> Rural use of sanitation facilities, 2000–2020
B31: =IF(ISERROR(INDIRECT(CONCATENATE($B105,"!A2"))),"",INDIRECT(CONCATENATE($B105,"!A2"))) -> Thailand | F31: Poorest | J31: Poor | N31: Middle | R31: Rich | V31: Richest
F32: Basic | G32: Limited | H32: Unimproved | I32: Open defecation | J32: Basic | K32: Limited | L32: Unimproved | M32: Open defecation | N32: Basic | O32: Limited | P32: Unimproved | Q32: Open defecation | R32: Basic | S32: Limited | T32: Unimproved | U32: Open defecation | V32: Basic | W32: Limited | X32: Unimproved | Y32: Open defecation
B33: NATIONAL | D33: Estimate | E33: =C99 -> 2000 | F33: =E99 -> 91.76488838 | G33: =F99 -> 5.220931563 | H33: 0.4578643555 | I33: 2.5563157 | J33: =J99 -> 96.44700672 | K33: =K99 -> 3.051663754 | L33: 0.1076773861 | M33: 0.3936521407 | N33: =O99 -> 96.73983989 | O33: =P99 -> 2.94572388 | P33: 0.04665990825 | Q33: 0.2677763222 | R33: =T99 -> 98.19157359 | S33: =U99 -> 1.721256212 | T33: 0 | U33: 0.08717019768 | V33: =Y99 -> 99.03015271 | W33: =Z99 -> 0.962232522 | X33: 0.007614772555 | Y33: 0
E34: =C100 -> 2020 | F34: =E100 -> 93.80328268 | G34: 5.336905301 | H34: 0.4797625796 | I34: 0.3800494432 | J34: =J100 -> 96.43134719 | K34: 3.051168273 | L34: 0.3589888569 | M34: 0.1584956787 | N34: =O100 -> 96.78569051 | O34: 2.947120029 | P34: 0.2318021881 | Q34: 0.03538726843 | R34: =T100 -> 97.88165375 | S34: 1.71582345 | T34: 0.4002986809 | U34: 0.002224120734 | V34: =Y100 -> 99.0149776 | W34: 0.9620850722 | X34: 0.02293732836 | Y34: 0
B36: URBAN | D36: Estimate | E36: =C199 -> 2000 | F36: =E199 -> 92.23621935 | G36: =F199 -> 7.351892704 | H36: 0.150348855 | I36: 0.2615390875 | J36: =J199 -> 95.2823351 | K36: =K199 -> 4.657829477 | L36: 0.01806942386 | M36: 0.04176600102 | N36: =O199 -> 97.79827377 | O36: =P199 -> 2.182160088 | P36: 0 | Q36: 0.01956614426 | R36: =T199 -> 98.86138055 | S36: =U199 -> 1.138619454 | T36: 0 | U36: 0 | V36: =Y199 -> 98.90249907 | W36: =Z199 -> 1.097500934 | X36: 0 | Y36: 0
E37: =C200 -> 2020 | F37: =E200 -> 91.98640118 | G37: 7.331980392 | H37: 0.4804425384 | I37: 0.2011758906 | J37: =J200 -> 95.07542784 | K37: 4.647714918 | L37: 0.2711615868 | M37: 0.005695653091 | N37: =O200 -> 97.3878045 | O37: 2.173001341 | P37: 0.4370226854 | Q37: 0.002171474422 | R37: =T200 -> 98.51301341 | S37: 1.134607194 | T37: 0.3523793923 | U37: 0 | V37: =Y200 -> 98.88561096 | W37: 1.09731353 | X37: 0.0170755143 | Y37: 0
B39: RURAL | D39: Estimate | E39: =C299 -> 2000 | F39: =E299 -> 89.89765877 | G39: =F299 -> 4.927126115 | H39: 0.7457134735 | I39: 4.429501645 | J39: =J299 -> 96.56267 | K39: =K299 -> 2.484804174 | L39: 0.2691062805 | M39: 0.6834195472 | N39: =O299 -> 97.12995797 | O39: =P299 -> 2.249034662 | P39: 0.04017260151 | Q39: 0.5808347665 | R39: =T299 -> 98.16982773 | S39: =U299 -> 1.542050025 | T39: 0.01802126498 | U39: 0.2701009841 | V39: =Y299 -> 98.90420791 | W39: =Z299 -> 0.9883762135 | X39: 0.06065868067 | Y39: 0.04675719382
E40: =C300 -> 2020 | F40: =E300 -> 94.12562033 | G40: 5.158852949 | H40: 0.5618591545 | I40: 0.1536675675 | J40: =J300 -> 97.06149845 | K40: 2.497640305 | L40: 0.2600290912 | M40: 0.1808321518 | N40: =O300 -> 97.32180847 | O40: 2.253476941 | P40: 0.3109276636 | Q40: 0.1137869294 | R40: =T300 -> 98.3163954 | S40: 1.544352307 | T40: 0.1369462056 | U40: 0.002306091092 | V40: =Y300 -> 98.94255852 | W40: 0.9887594614 | X40: 0.06589620489 | Y40: 0.002785810136
A97: NATIONAL | D97: Poorest | I97: Poor | N97: Middle | S97: Rich | X97: Richest
D98: Improved | E98: Basic | F98: Limited | G98: Unimproved | H98: Open defecation | I98: Improved | J98: Basic | K98: Limited | L98: Unimproved | M98: Open defecation | N98: Improved | O98: Basic | P98: Limited | Q98: Unimproved | R98: Open defecation | S98: Improved | T98: Basic | U98: Limited | V98: Unimproved | W98: Open defecation | X98: Improved | Y98: Basic | Z98: Limited | AA98: Unimproved | AB98: Open defecation
A99: Forecast period: | C99: 2000 | D99: =IF((D101+H101)>100,D101*100/(D101+H101),D101) -> 96.98581994 | E99: =D99*AVERAGEIF(E105:E116,">0")/100 -> 91.76488838 | F99: =D99*(100-AVERAGEIF(E105:E116,">0"))/100 -> 5.220931563 | G99: =100-(E99+F99+H99) -> 0.4578643555 | H99: =IF((D101+H101)>100,H101*100/(D101+H101),H101) -> 2.5563157 | I99: =IF((I101+M101)>100,I101*100/(I101+M101),I101) -> 99.49867047 | J99: =I99*AVERAGEIF(J105:J116,">0")/100 -> 96.44700672 | K99: =I99*(100-AVERAGEIF(J105:J116,">0"))/100 -> 3.051663754 | L99: =100-(J99+K99+M99) -> 0.1076773861 | M99: =IF((I101+M101)>100,M101*100/(I101+M101),M101) -> 0.3936521407 | N99: =IF((N101+R101)>100,N101*100/(N101+R101),N101) -> 99.68556377 | O99: =N99*AVERAGEIF(O105:O116,">0")/100 -> 96.73983989 | P99: =N99*(100-AVERAGEIF(O105:O116,">0"))/100 -> 2.94572388 | Q99: =100-(O99+P99+R99) -> 0.04665990825 | R99: =IF((N101+R101)>100,R101*100/(N101+R101),R101) -> 0.2677763222 | S99: =IF((S101+W101)>100,S101*100/(S101+W101),S101) -> 99.9128298 | T99: =S99*AVERAGEIF(T105:T116,">0")/100 -> 98.19157359 | U99: =S99*(100-AVERAGEIF(T105:T116,">0"))/100 -> 1.721256212 | V99: =100-(T99+U99+W99) -> 0 | W99: =IF((S101+W101)>100,W101*100/(S101+W101),W101) -> 0.08717019768 | X99: =IF((X101+AB101)>100,X101*100/(X101+AB101),X101) -> 99.99238523 | Y99: =X99*AVERAGEIF(Y105:Y116,">0")/100 -> 99.03015271 | Z99: =X99*(100-AVERAGEIF(Y105:Y116,">0"))/100 -> 0.962232522 | AA99: =100-(Y99+Z99+AB99) -> 0.007614772555 | AB99: =IF((X101+AB101)>100,AB101*100/(X101+AB101),AB101) -> 0
C100: 2020 | D100: =IF((D102+H102)>100,D102*100/(D102+H102),D102) -> 99.14018798 | E100: =D100*AVERAGEIF(E105:E116,">0")/100 -> 93.80328268 | F100: =D100*(100-AVERAGEIF(E105:E116,">0"))/100 -> 5.336905301 | G100: =100-(E100+F100+H100) -> 0.4797625796 | H100: =IF((D102+H102)>100,H102*100/(D102+H102),H102) -> 0.3800494432 | I100: =IF((I102+M102)>100,I102*100/(I102+M102),I102) -> 99.48251546 | J100: =I100*AVERAGEIF(J105:J116,">0")/100 -> 96.43134719 | K100: =I100*(100-AVERAGEIF(J105:J116,">0"))/100 -> 3.051168273 | L100: =100-(J100+K100+M100) -> 0.3589888569 | M100: =IF((I102+M102)>100,M102*100/(I102+M102),M102) -> 0.1584956787 | N100: =IF((N102+R102)>100,N102*100/(N102+R102),N102) -> 99.73281054 | O100: =N100*AVERAGEIF(O105:O116,">0")/100 -> 96.78569051 | P100: =N100*(100-AVERAGEIF(O105:O116,">0"))/100 -> 2.947120029 | Q100: =100-(O100+P100+R100) -> 0.2318021881 | R100: =IF((N102+R102)>100,R102*100/(N102+R102),R102) -> 0.03538726843 | S100: =IF((S102+W102)>100,S102*100/(S102+W102),S102) -> 99.5974772 | T100: =S100*AVERAGEIF(T105:T116,">0")/100 -> 97.88165375 | U100: =S100*(100-AVERAGEIF(T105:T116,">0"))/100 -> 1.71582345 | V100: =100-(T100+U100+W100) -> 0.4002986809 | W100: =IF((S102+W102)>100,W102*100/(S102+W102),W102) -> 0.002224120734 | X100: =IF((X102+AB102)>100,X102*100/(X102+AB102),X102) -> 99.97706267 | Y100: =X100*AVERAGEIF(Y105:Y116,">0")/100 -> 99.0149776 | Z100: =X100*(100-AVERAGEIF(Y105:Y116,">0"))/100 -> 0.9620850722 | AA100: =100-(Y100+Z100+AB100) -> 0.02293732836 | AB100: =IF((X102+AB102)>100,AB102*100/(X102+AB102),AB102) -> 0
A101: Regression period: | C101: =MinRegYear(C99,C105:C116) -> 2000 | D101: =IF(MAX(C105:C116)-MIN(C105:C116)<5,AVERAGEIF(C105:C116,">0",D105:D116), IF(FORECAST($C101,D$105:D$116,$C$105:$C$116)<0,0, IF(FORECAST($C101,D$105:D$116,$C$105:$C$116)>100,100, FORECAST($C101,D$105:D$116,$C$105:$C$116)))) -> 96.98581994 | H101: =IF(MAX(C105:C116)-MIN(C105:C116)<5,AVERAGEIF(C105:C116,">0",H105:H116), IF(FORECAST($C101,H$105:H$116,$C$105:$C$116)<0,0, IF(FORECAST($C101,H$105:H$116,$C$105:$C$116)>100,100, FORECAST($C101,H$105:H$116,$C$105:$C$116)))) -> 2.5563157 | I101: =IF(MAX(C105:C116)-MIN(C105:C116)<5,AVERAGEIF(C105:C116,">0",I105:I116), IF(FORECAST($C101,I$105:I$116,$C$105:$C$116)<0,0, IF(FORECAST($C101,I$105:I$116,$C$105:$C$116)>100,100, FORECAST($C101,I$105:I$116,$C$105:$C$116)))) -> 99.49867047 | M101: =IF(MAX(C105:C116)-MIN(C105:C116)<5,AVERAGEIF(C105:C116,">0",M105:M116), IF(FORECAST($C101,M$105:M$116,$C$105:$C$116)<0,0, IF(FORECAST($C101,M$105:M$116,$C$105:$C$116)>100,100, FORECAST($C101,M$105:M$116,$C$105:$C$116)))) -> 0.3936521407 | N101: =IF(MAX(C105:C116)-MIN(C105:C116)<5,AVERAGEIF(C105:C116,">0",N105:N116), IF(FORECAST($C101,N$105:N$116,$C$105:$C$116)<0,0, IF(FORECAST($C101,N$105:N$116,$C$105:$C$116)>100,100, FORECAST($C101,N$105:N$116,$C$105:$C$116)))) -> 99.68556377 | R101: =IF(MAX(C105:C116)-MIN(C105:C116)<5,AVERAGEIF(C105:C116,">0",R105:R116), IF(FORECAST($C101,R$105:R$116,$C$105:$C$116)<0,0, IF(FORECAST($C101,R$105:R$116,$C$105:$C$116)>100,100, FORECAST($C101,R$105:R$116,$C$105:$C$116)))) -> 0.2677763222 | S101: =IF(MAX(C105:C116)-MIN(C105:C116)<5,AVERAGEIF(C105:C116,">0",S105:S116), IF(FORECAST($C101,S$105:S$116,$C$105:$C$116)<0,0, IF(FORECAST($C101,S$105:S$116,$C$105:$C$116)>100,100, FORECAST($C101,S$105:S$116,$C$105:$C$116)))) -> 99.94302327 | W101: =IF(MAX(C105:C116)-MIN(C105:C116)<5,AVERAGEIF(C105:C116,">0",W105:W116), IF(FORECAST($C101,W$105:W$116,$C$105:$C$116)<0,0, IF(FORECAST($C101,W$105:W$116,$C$105:$C$116)>100,100, FORECAST($C101,W$105:W$116,$C$105:$C$116)))) -> 0.08719654035 | X101: =IF(MAX(C105:C116)-MIN(C105:C116)<5,AVERAGEIF(C105:C116,">0",X105:X116), IF(FORECAST($C101,X$105:X$116,$C$105:$C$116)<0,0, IF(FORECAST($C101,X$105:X$116,$C$105:$C$116)>100,100, FORECAST($C101,X$105:X$116,$C$105:$C$116)))) -> 99.99238523 | AB101: =IF(MAX(C105:C116)-MIN(C105:C116)<5,AVERAGEIF(C105:C116,">0",AB105:AB116), IF(FORECAST($C101,AB$105:AB$116,$C$105:$C$116)<0,0, IF(FORECAST($C101,AB$105:AB$116,$C$105:$C$116)>100,100, FORECAST($C101,AB$105:AB$116,$C$105:$C$116)))) -> 0
C102: =MaxRegYear(C100,C105:C116) -> 2020 | D102: =IF(MAX(C105:C116)-MIN(C105:C116)<5,AVERAGEIF(C105:C116,">0",D105:D116), IF(FORECAST($C102,D$105:D$116,$C$105:$C$116)<0,0, IF(FORECAST($C102,D$105:D$116,$C$105:$C$116)>100,100, FORECAST($C102,D$105:D$116,$C$105:$C$116)))) -> 99.14018798 | H102: =IF(MAX(C105:C116)-MIN(C105:C116)<5,AVERAGEIF(C105:C116,">0",H105:H116), IF(FORECAST($C102,H$105:H$116,$C$105:$C$116)<0,0, IF(FORECAST($C102,H$105:H$116,$C$105:$C$116)>100,100, FORECAST($C102,H$105:H$116,$C$105:$C$116)))) -> 0.3800494432 | I102: =IF(MAX(C105:C116)-MIN(C105:C116)<5,AVERAGEIF(C105:C116,">0",I105:I116), IF(FORECAST($C102,I$105:I$116,$C$105:$C$116)<0,0, IF(FORECAST($C102,I$105:I$116,$C$105:$C$116)>100,100, FORECAST($C102,I$105:I$116,$C$105:$C$116)))) -> 99.48251546 | M102: =IF(MAX(C105:C116)-MIN(C105:C116)<5,AVERAGEIF(C105:C116,">0",M105:M116), IF(FORECAST($C102,M$105:M$116,$C$105:$C$116)<0,0, IF(FORECAST($C102,M$105:M$116,$C$105:$C$116)>100,100, FORECAST($C102,M$105:M$116,$C$105:$C$116)))) -> 0.1584956787 | N102: =IF(MAX(C105:C116)-MIN(C105:C116)<5,AVERAGEIF(C105:C116,">0",N105:N116), IF(FORECAST($C102,N$105:N$116,$C$105:$C$116)<0,0, IF(FORECAST($C102,N$105:N$116,$C$105:$C$116)>100,100, FORECAST($C102,N$105:N$116,$C$105:$C$116)))) -> 99.73281054 | R102: =IF(MAX(C105:C116)-MIN(C105:C116)<5,AVERAGEIF(C105:C116,">0",R105:R116), IF(FORECAST($C102,R$105:R$116,$C$105:$C$116)<0,0, IF(FORECAST($C102,R$105:R$116,$C$105:$C$116)>100,100, FORECAST($C102,R$105:R$116,$C$105:$C$116)))) -> 0.03538726843 | S102: =IF(MAX(C105:C116)-MIN(C105:C116)<5,AVERAGEIF(C105:C116,">0",S105:S116), IF(FORECAST($C102,S$105:S$116,$C$105:$C$116)<0,0, IF(FORECAST($C102,S$105:S$116,$C$105:$C$116)>100,100, FORECAST($C102,S$105:S$116,$C$105:$C$116)))) -> 99.5974772 | W102: =IF(MAX(C105:C116)-MIN(C105:C116)<5,AVERAGEIF(C105:C116,">0",W105:W116), IF(FORECAST($C102,W$105:W$116,$C$105:$C$116)<0,0, IF(FORECAST($C102,W$105:W$116,$C$105:$C$116)>100,100, FORECAST($C102,W$105:W$116,$C$105:$C$116)))) -> 0.002224120734 | X102: =IF(MAX(C105:C116)-MIN(C105:C116)<5,AVERAGEIF(C105:C116,">0",X105:X116), IF(FORECAST($C102,X$105:X$116,$C$105:$C$116)<0,0, IF(FORECAST($C102,X$105:X$116,$C$105:$C$116)>100,100, FORECAST($C102,X$105:X$116,$C$105:$C$116)))) -> 99.97706267 | AB102: =IF(MAX(C105:C116)-MIN(C105:C116)<5,AVERAGEIF(C105:C116,">0",AB105:AB116), IF(FORECAST($C102,AB$105:AB$116,$C$105:$C$116)<0,0, IF(FORECAST($C102,AB$105:AB$116,$C$105:$C$116)>100,100, FORECAST($C102,AB$105:AB$116,$C$105:$C$116)))) -> 0
B104: Survey | C104: Year | D104: Improved | E104: Not shared | H104: Open defecation | I104: Improved | J104: Not shared | M104: Open defecation | N104: Improved | O104: Not shared | R104: Open defecation | S104: Improved | T104: Not shared | W104: Open defecation | X104: Improved | Y104: Not shared | AB104: Open defecation
B105: SES00 | C105: 2000 | D105: =IF(ISERROR(INDIRECT(CONCATENATE($B105,"!C122"))),"",INDIRECT(CONCATENATE($B105,"!C122"))) -> 98.13583092 | E105: =IF(ISERROR(INDIRECT(CONCATENATE($B105,"!C129"))),"",INDIRECT(CONCATENATE($B105,"!C129"))) -> N/A | H105: =IF(ISERROR(INDIRECT(CONCATENATE($B105,"!C127"))),"",INDIRECT(CONCATENATE($B105,"!C127"))) -> 1.539189643 | I105: =IF(ISERROR(INDIRECT(CONCATENATE($B105,"!D122"))),"",INDIRECT(CONCATENATE($B105,"!D122"))) -> 99.80331867 | J105: =IF(ISERROR(INDIRECT(CONCATENATE($B105,"!D129"))),"",INDIRECT(CONCATENATE($B105,"!D129"))) -> N/A | M105: =IF(ISERROR(INDIRECT(CONCATENATE($B105,"!D127"))),"",INDIRECT(CONCATENATE($B105,"!D127"))) -> 0.1622564985 | N105: =IF(ISERROR(INDIRECT(CONCATENATE($B105,"!E122"))),"",INDIRECT(CONCATENATE($B105,"!E122"))) -> 99.98071582 | O105: =IF(ISERROR(INDIRECT(CONCATENATE($B105,"!E129"))),"",INDIRECT(CONCATENATE($B105,"!E129"))) -> N/A | R105: =IF(ISERROR(INDIRECT(CONCATENATE($B105,"!E127"))),"",INDIRECT(CONCATENATE($B105,"!E127"))) -> 0.005663086494 | S105: =IF(ISERROR(INDIRECT(CONCATENATE($B105,"!F122"))),"",INDIRECT(CONCATENATE($B105,"!F122"))) -> 99.99568528 | T105: =IF(ISERROR(INDIRECT(CONCATENATE($B105,"!F129"))),"",INDIRECT(CONCATENATE($B105,"!F129"))) -> N/A | W105: =IF(ISERROR(INDIRECT(CONCATENATE($B105,"!F127"))),"",INDIRECT(CONCATENATE($B105,"!F127"))) -> 0 | X105: =IF(ISERROR(INDIRECT(CONCATENATE($B105,"!G122"))),"",INDIRECT(CONCATENATE($B105,"!G122"))) -> 100 | Y105: =IF(ISERROR(INDIRECT(CONCATENATE($B105,"!G129"))),"",INDIRECT(CONCATENATE($B105,"!G129"))) -> N/A | AB105: =IF(ISERROR(INDIRECT(CONCATENATE($B105,"!G2127"))),"",INDIRECT(CONCATENATE($B105,"!G127"))) -> 0
B106: SES04 | C106: 2004 | D106: 95.81357014 | E106: N/A | H106: 3.621306777 | I106: 99.22255564 | J106: N/A | M106: 0.443785324 | N106: 99.78169055 | O106: N/A | R106: 0.1204693967 | S106: 99.80173746 | T106: N/A | W106: 0.0958851778 | X106: 100 | Y106: N/A | AB106: 0
B107: MICS06 | C107: 2006 | D107: 97.84774287 | E107: 93.5633353 | H107: 1.883831018 | I107: 99.33228385 | J107: 95.20191034 | M107: 0.5678078405 | N107: 99.14732471 | O107: 94.70082373 | R107: 0.7444628085 | S107: 99.77153138 | T107: 97.3703734 | W107: 0.1780470511 | X107: 99.95763178 | Y107: 98.85699966 | AB107: 0
B108: MICS13 | C108: 2013 | D108: 98.14725005 | E108: 96.01127749 | H108: 0.621562795 | I108: 99.49900819 | J108: 97.56533754 | M108: 0.1865010834 | N108: 99.70187511 | O108: 97.30345947 | R108: 0.05416295011 | S108: 99.96596849 | T108: 98.63549448 | W108: 0 | X108: 99.99560094 | Y108: 99.1098199 | AB108: 0
B109: MICS16 | C109: 2016 | D109: 98.98502591 | E109: 95.34935809 | H109: 0.8811932479 | I109: 99.5990573 | J109: 97.01273697 | M109: 0.233430941 | N109: 99.84326598 | O109: 97.69472143 | R109: 0.003434910125 | S109: 99.49276462 | T109: 98.47848453 | W109: 0.002826996271 | X109: 99.98283208 | Y109: 99.69669153 | AB109: 0
B110: MICS19 | C110: 2019 | D110: 99.23316707 | E110: 93.54326664 | H110: 0.4796385748 | I110: 99.48894966 | J110: 97.95185623 | M110: 0.08617741709 | N110: 99.7955261 | O110: 98.48093328 | R110: 0.004536525472 | S110: 99.62836878 | T110: 98.62461581 | W110: 0 | X110: 99.97381116 | Y110: 98.48726572 | AB110: 0
B118: =CONCATENATE("National use of sanitation facilities, ",C99,"–",C100) -> National use of sanitation facilities, 2000–2020 | S118: Data points used for regression
A197: URBAN | D197: Poorest | I197: Poor | N197: Middle | S197: Rich | X197: Richest
D198: Improved | E198: Basic | F198: Limited | G198: Unimproved | H198: Open defecation | I198: Improved | J198: Basic | K198: Limited | L198: Unimproved | M198: Open defecation | N198: Improved | O198: Basic | P198: Limited | Q198: Unimproved | R198: Open defecation | S198: Improved | T198: Basic | U198: Limited | V198: Unimproved | W198: Open defecation | X198: Improved | Y198: Basic | Z198: Limited | AA198: Unimproved | AB198: Open defecation
A199: Forecast period: | C199: 2000 | D199: =IF((D201+H201)>100,D201*100/(D201+H201),D201) -> 99.58811206 | E199: =D199*AVERAGEIF(E205:E216,">0")/100 -> 92.23621935 | F199: =D199*(100-AVERAGEIF(E205:E216,">0"))/100 -> 7.351892704 | G199: =100-(E199+F199+H199) -> 0.150348855 | H199: =IF((D201+H201)>100,H201*100/(D201+H201),H201) -> 0.2615390875 | I199: =IF((I201+M201)>100,I201*100/(I201+M201),I201) -> 99.94016458 | J199: =I199*AVERAGEIF(J205:J216,">0")/100 -> 95.2823351 | K199: =I199*(100-AVERAGEIF(J205:J216,">0"))/100 -> 4.657829477 | L199: =100-(J199+K199+M199) -> 0.01806942386 | M199: =IF((I201+M201)>100,M201*100/(I201+M201),M201) -> 0.04176600102 | N199: =IF((N201+R201)>100,N201*100/(N201+R201),N201) -> 99.98043386 | O199: =N199*AVERAGEIF(O205:O216,">0")/100 -> 97.79827377 | P199: =N199*(100-AVERAGEIF(O205:O216,">0"))/100 -> 2.182160088 | Q199: =100-(O199+P199+R199) -> 0 | R199: =IF((N201+R201)>100,R201*100/(N201+R201),R201) -> 0.01956614426 | S199: =IF((S201+W201)>100,S201*100/(S201+W201),S201) -> 100 | T199: =S199*AVERAGEIF(T205:T216,">0")/100 -> 98.86138055 | U199: =S199*(100-AVERAGEIF(T205:T216,">0"))/100 -> 1.138619454 | V199: =100-(T199+U199+W199) -> 0 | W199: =IF((S201+W201)>100,W201*100/(S201+W201),W201) -> 0 | X199: =IF((X201+AB201)>100,X201*100/(X201+AB201),X201) -> 100 | Y199: =X199*AVERAGEIF(Y205:Y216,">0")/100 -> 98.90249907 | Z199: =X199*(100-AVERAGEIF(Y205:Y216,">0"))/100 -> 1.097500934 | AA199: =100-(Y199+Z199+AB199) -> 0 | AB199: =IF((X201+AB201)>100,AB201*100/(X201+AB201),AB201) -> 0
C200: 2020 | D200: =IF((D202+H202)>100,D202*100/(D202+H202),D202) -> 99.31838157 | E200: =D200*AVERAGEIF(E205:E216,">0")/100 -> 91.98640118 | F200: =D200*(100-AVERAGEIF(E205:E216,">0"))/100 -> 7.331980392 | G200: =100-(E200+F200+H200) -> 0.4804425384 | H200: =IF((D202+H202)>100,H202*100/(D202+H202),H202) -> 0.2011758906 | I200: =IF((I202+M202)>100,I202*100/(I202+M202),I202) -> 99.72314276 | J200: =I200*AVERAGEIF(J205:J216,">0")/100 -> 95.07542784 | K200: =I200*(100-AVERAGEIF(J205:J216,">0"))/100 -> 4.647714918 | L200: =100-(J200+K200+M200) -> 0.2711615868 | M200: =IF((I202+M202)>100,M202*100/(I202+M202),M202) -> 0.005695653091 | N200: =IF((N202+R202)>100,N202*100/(N202+R202),N202) -> 99.56080584 | O200: =N200*AVERAGEIF(O205:O216,">0")/100 -> 97.3878045 | P200: =N200*(100-AVERAGEIF(O205:O216,">0"))/100 -> 2.173001341 | Q200: =100-(O200+P200+R200) -> 0.4370226854 | R200: =IF((N202+R202)>100,R202*100/(N202+R202),R202) -> 0.002171474422 | S200: =IF((S202+W202)>100,S202*100/(S202+W202),S202) -> 99.64762061 | T200: =S200*AVERAGEIF(T205:T216,">0")/100 -> 98.51301341 | U200: =S200*(100-AVERAGEIF(T205:T216,">0"))/100 -> 1.134607194 | V200: =100-(T200+U200+W200) -> 0.3523793923 | W200: =IF((S202+W202)>100,W202*100/(S202+W202),W202) -> 0 | X200: =IF((X202+AB202)>100,X202*100/(X202+AB202),X202) -> 99.98292449 | Y200: =X200*AVERAGEIF(Y205:Y216,">0")/100 -> 98.88561096 | Z200: =X200*(100-AVERAGEIF(Y205:Y216,">0"))/100 -> 1.09731353 | AA200: =100-(Y200+Z200+AB200) -> 0.0170755143 | AB200: =IF((X202+AB202)>100,AB202*100/(X202+AB202),AB202) -> 0
A201: Regression period: | C201: =MinRegYear(C199,C205:C216) -> 2000 | D201: =IF(MAX(C205:C216)-MIN(C205:C216)<5,AVERAGEIF(C205:C216,">0",D205:D216), IF(FORECAST($C201,D$205:D$216,$C$205:$C$216)<0,0, IF(FORECAST($C201,D$205:D$216,$C$205:$C$216)>100,100, FORECAST($C201,D$205:D$216,$C$205:$C$216)))) -> 99.58811206 | H201: =IF(MAX(C205:C216)-MIN(C205:C216)<5,AVERAGEIF(C205:C216,">0",H205:H216), IF(FORECAST($C201,H$205:H$216,$C$205:$C$216)<0,0, IF(FORECAST($C201,H$205:H$216,$C$205:$C$216)>100,100, FORECAST($C201,H$205:H$216,$C$205:$C$216)))) -> 0.2615390875 | I201: =IF(MAX(C205:C216)-MIN(C205:C216)<5,AVERAGEIF(C205:C216,">0",I205:I216), IF(FORECAST($C201,I$205:I$216,$C$205:$C$216)<0,0, IF(FORECAST($C201,I$205:I$216,$C$205:$C$216)>100,100, FORECAST($C201,I$205:I$216,$C$205:$C$216)))) -> 99.94016458 | M201: =IF(MAX(C205:C216)-MIN(C205:C216)<5,AVERAGEIF(C205:C216,">0",M205:M216), IF(FORECAST($C201,M$205:M$216,$C$205:$C$216)<0,0, IF(FORECAST($C201,M$205:M$216,$C$205:$C$216)>100,100, FORECAST($C201,M$205:M$216,$C$205:$C$216)))) -> 0.04176600102 | N201: =IF(MAX(C205:C216)-MIN(C205:C216)<5,AVERAGEIF(C205:C216,">0",N205:N216), IF(FORECAST($C201,N$205:N$216,$C$205:$C$216)<0,0, IF(FORECAST($C201,N$205:N$216,$C$205:$C$216)>100,100, FORECAST($C201,N$205:N$216,$C$205:$C$216)))) -> 100 | R201: =IF(MAX(C205:C216)-MIN(C205:C216)<5,AVERAGEIF(C205:C216,">0",R205:R216), IF(FORECAST($C201,R$205:R$216,$C$205:$C$216)<0,0, IF(FORECAST($C201,R$205:R$216,$C$205:$C$216)>100,100, FORECAST($C201,R$205:R$216,$C$205:$C$216)))) -> 0.01956997335 | S201: =IF(MAX(C205:C216)-MIN(C205:C216)<5,AVERAGEIF(C205:C216,">0",S205:S216), IF(FORECAST($C201,S$205:S$216,$C$205:$C$216)<0,0, IF(FORECAST($C201,S$205:S$216,$C$205:$C$216)>100,100, FORECAST($C201,S$205:S$216,$C$205:$C$216)))) -> 100 | W201: =IF(MAX(C205:C216)-MIN(C205:C216)<5,AVERAGEIF(C205:C216,">0",W205:W216), IF(FORECAST($C201,W$205:W$216,$C$205:$C$216)<0,0, IF(FORECAST($C201,W$205:W$216,$C$205:$C$216)>100,100, FORECAST($C201,W$205:W$216,$C$205:$C$216)))) -> 0 | X201: =IF(MAX(C205:C216)-MIN(C205:C216)<5,AVERAGEIF(C205:C216,">0",X205:X216), IF(FORECAST($C201,X$205:X$216,$C$205:$C$216)<0,0, IF(FORECAST($C201,X$205:X$216,$C$205:$C$216)>100,100, FORECAST($C201,X$205:X$216,$C$205:$C$216)))) -> 100 | AB201: =IF(MAX(C205:C216)-MIN(C205:C216)<5,AVERAGEIF(C205:C216,">0",AB205:AB216), IF(FORECAST($C201,AB$205:AB$216,$C$205:$C$216)<0,0, IF(FORECAST($C201,AB$205:AB$216,$C$205:$C$216)>100,100, FORECAST($C201,AB$205:AB$216,$C$205:$C$216)))) -> 0
C202: =MaxRegYear(C200,C205:C216) -> 2020 | D202: =IF(MAX(C205:C216)-MIN(C205:C216)<5,AVERAGEIF(C205:C216,">0",D205:D216), IF(FORECAST($C202,D$205:D$216,$C$205:$C$216)<0,0, IF(FORECAST($C202,D$205:D$216,$C$205:$C$216)>100,100, FORECAST($C202,D$205:D$216,$C$205:$C$216)))) -> 99.31838157 | H202: =IF(MAX(C205:C216)-MIN(C205:C216)<5,AVERAGEIF(C205:C216,">0",H205:H216), IF(FORECAST($C202,H$205:H$216,$C$205:$C$216)<0,0, IF(FORECAST($C202,H$205:H$216,$C$205:$C$216)>100,100, FORECAST($C202,H$205:H$216,$C$205:$C$216)))) -> 0.2011758906 | I202: =IF(MAX(C205:C216)-MIN(C205:C216)<5,AVERAGEIF(C205:C216,">0",I205:I216), IF(FORECAST($C202,I$205:I$216,$C$205:$C$216)<0,0, IF(FORECAST($C202,I$205:I$216,$C$205:$C$216)>100,100, FORECAST($C202,I$205:I$216,$C$205:$C$216)))) -> 99.72314276 | M202: =IF(MAX(C205:C216)-MIN(C205:C216)<5,AVERAGEIF(C205:C216,">0",M205:M216), IF(FORECAST($C202,M$205:M$216,$C$205:$C$216)<0,0, IF(FORECAST($C202,M$205:M$216,$C$205:$C$216)>100,100, FORECAST($C202,M$205:M$216,$C$205:$C$216)))) -> 0.005695653091 | N202: =IF(MAX(C205:C216)-MIN(C205:C216)<5,AVERAGEIF(C205:C216,">0",N205:N216), IF(FORECAST($C202,N$205:N$216,$C$205:$C$216)<0,0, IF(FORECAST($C202,N$205:N$216,$C$205:$C$216)>100,100, FORECAST($C202,N$205:N$216,$C$205:$C$216)))) -> 99.56080584 | R202: =IF(MAX(C205:C216)-MIN(C205:C216)<5,AVERAGEIF(C205:C216,">0",R205:R216), IF(FORECAST($C202,R$205:R$216,$C$205:$C$216)<0,0, IF(FORECAST($C202,R$205:R$216,$C$205:$C$216)>100,100, FORECAST($C202,R$205:R$216,$C$205:$C$216)))) -> 0.002171474422 | S202: =IF(MAX(C205:C216)-MIN(C205:C216)<5,AVERAGEIF(C205:C216,">0",S205:S216), IF(FORECAST($C202,S$205:S$216,$C$205:$C$216)<0,0, IF(FORECAST($C202,S$205:S$216,$C$205:$C$216)>100,100, FORECAST($C202,S$205:S$216,$C$205:$C$216)))) -> 99.64762061 | W202: =IF(MAX(C205:C216)-MIN(C205:C216)<5,AVERAGEIF(C205:C216,">0",W205:W216), IF(FORECAST($C202,W$205:W$216,$C$205:$C$216)<0,0, IF(FORECAST($C202,W$205:W$216,$C$205:$C$216)>100,100, FORECAST($C202,W$205:W$216,$C$205:$C$216)))) -> 0 | X202: =IF(MAX(C205:C216)-MIN(C205:C216)<5,AVERAGEIF(C205:C216,">0",X205:X216), IF(FORECAST($C202,X$205:X$216,$C$205:$C$216)<0,0, IF(FORECAST($C202,X$205:X$216,$C$205:$C$216)>100,100, FORECAST($C202,X$205:X$216,$C$205:$C$216)))) -> 99.98292449 | AB202: =IF(MAX(C205:C216)-MIN(C205:C216)<5,AVERAGEIF(C205:C216,">0",AB205:AB216), IF(FORECAST($C202,AB$205:AB$216,$C$205:$C$216)<0,0, IF(FORECAST($C202,AB$205:AB$216,$C$205:$C$216)>100,100, FORECAST($C202,AB$205:AB$216,$C$205:$C$216)))) -> 0
B204: Survey | C204: Year | D204: Improved | E204: Not shared | H204: Open defecation | I204: Improved | J204: Not shared | M204: Open defecation | N204: Improved | O204: Not shared | R204: Open defecation | S204: Improved | T204: Not shared | W204: Open defecation | X204: Improved | Y204: Not shared | AB204: Open defecation
B205: SES00 | C205: 2000 | D205: =IF(ISERROR(INDIRECT(CONCATENATE($B205,"!H122"))),"",INDIRECT(CONCATENATE($B205,"!H122"))) -> 99.98755856 | E205: =IF(ISERROR(INDIRECT(CONCATENATE($B205,"!H129"))),"",INDIRECT(CONCATENATE($B205,"!H129"))) -> N/A | H205: =IF(ISERROR(INDIRECT(CONCATENATE($B205,"!H127"))),"",INDIRECT(CONCATENATE($B205,"!H127"))) -> 0.007605241543 | I205: =IF(ISERROR(INDIRECT(CONCATENATE($B205,"!I122"))),"",INDIRECT(CONCATENATE($B205,"!I122"))) -> 99.962834 | J205: =IF(ISERROR(INDIRECT(CONCATENATE($B205,"!I129"))),"",INDIRECT(CONCATENATE($B205,"!I129"))) -> N/A | M205: =IF(ISERROR(INDIRECT(CONCATENATE($B205,"!I127"))),"",INDIRECT(CONCATENATE($B205,"!I127"))) -> 0.003041259723 | N205: =IF(ISERROR(INDIRECT(CONCATENATE($B205,"!J122"))),"",INDIRECT(CONCATENATE($B205,"!J122"))) -> 100 | O205: =IF(ISERROR(INDIRECT(CONCATENATE($B205,"!J129"))),"",INDIRECT(CONCATENATE($B205,"!J129"))) -> N/A | R205: =IF(ISERROR(INDIRECT(CONCATENATE($B205,"!J127"))),"",INDIRECT(CONCATENATE($B205,"!J127"))) -> 0 | S205: =IF(ISERROR(INDIRECT(CONCATENATE($B205,"!K122"))),"",INDIRECT(CONCATENATE($B205,"!K122"))) -> 99.99370048 | T205: =IF(ISERROR(INDIRECT(CONCATENATE($B205,"!K129"))),"",INDIRECT(CONCATENATE($B205,"!K129"))) -> N/A | W205: =IF(ISERROR(INDIRECT(CONCATENATE($B205,"!K127"))),"",INDIRECT(CONCATENATE($B205,"!K127"))) -> 0 | X205: =IF(ISERROR(INDIRECT(CONCATENATE($B205,"!L122"))),"",INDIRECT(CONCATENATE($B205,"!L122"))) -> 100 | Y205: =IF(ISERROR(INDIRECT(CONCATENATE($B205,"!L129"))),"",INDIRECT(CONCATENATE($B205,"!L129"))) -> N/A | AB205: =IF(ISERROR(INDIRECT(CONCATENATE($B205,"!L2127"))),"",INDIRECT(CONCATENATE($B205,"!L127"))) -> 0
B206: SES04 | C206: 2004 | D206: 99.42058941 | E206: N/A | H206: 0.4790707437 | I206: 99.88128666 | J206: N/A | M206: 0.0806006865 | N206: 99.94839187 | O206: N/A | R206: 0.05160812916 | S206: 100 | T206: N/A | W206: 0 | X206: 100 | Y206: N/A | AB206: 0
B207: MICS06 | C207: 2006 | D207: 99.0916815 | E207: 88.63923922 | H207: 0.3874851405 | I207: 99.88857301 | J207: 93.06866131 | M207: 0.04213389495 | N207: 99.91791517 | O207: 97.46984411 | R207: 0 | S207: 99.9889108 | T207: 98.88139284 | W207: 0 | X207: 100 | Y207: 98.13032403 | AB207: 0
B208: MICS13 | C208: 2013 | D208: 99.33074933 | E208: 95.03377553 | H208: 0.06949426428 | I208: 99.87559616 | J208: 95.91703788 | M208: 0 | N208: 99.85626698 | O208: 97.55533201 | R208: 0.01535606404 | S208: 99.97232429 | T208: 98.96395472 | W208: 0 | X208: 100 | Y208: 99.34346731 | AB208: 0
B209: MICS16 | C209: 2016 | D209: 99.37500788 | E209: 94.5382582 | H209: 0.3548538485 | I209: 99.48878545 | J209: 95.11831918 | M209: 0.0160775327 | N209: 99.65653413 | O209: 97.42550792 | R209: 0 | S209: 99.45403232 | T209: 99.01706402 | W209: 0 | X209: 99.96296666 | Y209: 99.84949327 | AB209: 0
B210: MICS19 | C210: 2019 | D210: 99.54086726 | E210: 92.25952903 | H210: 0.09567201555 | I210: 99.91454891 | J210: 97.25350892 | M210: 0.004138623271 | N210: 99.49667649 | O210: 98.81896742 | R210: 0 | S210: 99.75626179 | T210: 98.5831106 | W210: 0 | X210: 99.99579286 | Y210: 98.28671166 | AB210: 0
B218: =CONCATENATE("Urban use of sanitation facilities, ",C199,"–",C200) -> Urban use of sanitation facilities, 2000–2020 | S218: Data points used for regression
A297: RURAL | D297: Poorest | I297: Poor | N297: Middle | S297: Rich | X297: Richest
D298: Improved | E298: Basic | F298: Limited | G298: Unimproved | H298: Open defecation | I298: Improved | J298: Basic | K298: Limited | L298: Unimproved | M298: Open defecation | N298: Improved | O298: Basic | P298: Limited | Q298: Unimproved | R298: Open defecation | S298: Improved | T298: Basic | U298: Limited | V298: Unimproved | W298: Open defecation | X298: Improved | Y298: Basic | Z298: Limited | AA298: Unimproved | AB298: Open defecation
A299: Forecast period: | C299: 2000 | D299: =IF((D301+H301)>100,D301*100/(D301+H301),D301) -> 94.82478488 | E299: =D299*AVERAGEIF(E305:E316,">0")/100 -> 89.89765877 | F299: =D299*(100-AVERAGEIF(E305:E316,">0"))/100 -> 4.927126115 | G299: =100-(E299+F299+H299) -> 0.7457134735 | H299: =IF((D301+H301)>100,H301*100/(D301+H301),H301) -> 4.429501645 | I299: =IF((I301+M301)>100,I301*100/(I301+M301),I301) -> 99.04747417 | J299: =I299*AVERAGEIF(J305:J316,">0")/100 -> 96.56267 | K299: =I299*(100-AVERAGEIF(J305:J316,">0"))/100 -> 2.484804174 | L299: =100-(J299+K299+M299) -> 0.2691062805 | M299: =IF((I301+M301)>100,M301*100/(I301+M301),M301) -> 0.6834195472 | N299: =IF((N301+R301)>100,N301*100/(N301+R301),N301) -> 99.37899263 | O299: =N299*AVERAGEIF(O305:O316,">0")/100 -> 97.12995797 | P299: =N299*(100-AVERAGEIF(O305:O316,">0"))/100 -> 2.249034662 | Q299: =100-(O299+P299+R299) -> 0.04017260151 | R299: =IF((N301+R301)>100,R301*100/(N301+R301),R301) -> 0.5808347665 | S299: =IF((S301+W301)>100,S301*100/(S301+W301),S301) -> 99.71187775 | T299: =S299*AVERAGEIF(T305:T316,">0")/100 -> 98.16982773 | U299: =S299*(100-AVERAGEIF(T305:T316,">0"))/100 -> 1.542050025 | V299: =100-(T299+U299+W299) -> 0.01802126498 | W299: =IF((S301+W301)>100,W301*100/(S301+W301),W301) -> 0.2701009841 | X299: =IF((X301+AB301)>100,X301*100/(X301+AB301),X301) -> 99.89258413 | Y299: =X299*AVERAGEIF(Y305:Y316,">0")/100 -> 98.90420791 | Z299: =X299*(100-AVERAGEIF(Y305:Y316,">0"))/100 -> 0.9883762135 | AA299: =100-(Y299+Z299+AB299) -> 0.06065868067 | AB299: =IF((X301+AB301)>100,AB301*100/(X301+AB301),AB301) -> 0.04675719382
C300: 2020 | D300: =IF((D302+H302)>100,D302*100/(D302+H302),D302) -> 99.28447328 | E300: =D300*AVERAGEIF(E305:E316,">0")/100 -> 94.12562033 | F300: =D300*(100-AVERAGEIF(E305:E316,">0"))/100 -> 5.158852949 | G300: =100-(E300+F300+H300) -> 0.5618591545 | H300: =IF((D302+H302)>100,H302*100/(D302+H302),H302) -> 0.1536675675 | I300: =IF((I302+M302)>100,I302*100/(I302+M302),I302) -> 99.55913876 | J300: =I300*AVERAGEIF(J305:J316,">0")/100 -> 97.06149845 | K300: =I300*(100-AVERAGEIF(J305:J316,">0"))/100 -> 2.497640305 | L300: =100-(J300+K300+M300) -> 0.2600290912 | M300: =IF((I302+M302)>100,M302*100/(I302+M302),M302) -> 0.1808321518 | N300: =IF((N302+R302)>100,N302*100/(N302+R302),N302) -> 99.57528541 | O300: =N300*AVERAGEIF(O305:O316,">0")/100 -> 97.32180847 | P300: =N300*(100-AVERAGEIF(O305:O316,">0"))/100 -> 2.253476941 | Q300: =100-(O300+P300+R300) -> 0.3109276636 | R300: =IF((N302+R302)>100,R302*100/(N302+R302),R302) -> 0.1137869294 | S300: =IF((S302+W302)>100,S302*100/(S302+W302),S302) -> 99.8607477 | T300: =S300*AVERAGEIF(T305:T316,">0")/100 -> 98.3163954 | U300: =S300*(100-AVERAGEIF(T305:T316,">0"))/100 -> 1.544352307 | V300: =100-(T300+U300+W300) -> 0.1369462056 | W300: =IF((S302+W302)>100,W302*100/(S302+W302),W302) -> 0.002306091092 | X300: =IF((X302+AB302)>100,X302*100/(X302+AB302),X302) -> 99.93131798 | Y300: =X300*AVERAGEIF(Y305:Y316,">0")/100 -> 98.94255852 | Z300: =X300*(100-AVERAGEIF(Y305:Y316,">0"))/100 -> 0.9887594614 | AA300: =100-(Y300+Z300+AB300) -> 0.06589620489 | AB300: =IF((X302+AB302)>100,AB302*100/(X302+AB302),AB302) -> 0.002785810136
A301: Regression period: | C301: =MinRegYear(C299,C305:C316) -> 2000 | D301: =IF(MAX(C305:C316)-MIN(C305:C316)<5,AVERAGEIF(C305:C316,">0",D305:D316), IF(FORECAST($C301,D$305:D$316,$C$305:$C$316)<0,0, IF(FORECAST($C301,D$305:D$316,$C$305:$C$316)>100,100, FORECAST($C301,D$305:D$316,$C$305:$C$316)))) -> 94.82478488 | H301: =IF(MAX(C305:C316)-MIN(C305:C316)<5,AVERAGEIF(C305:C316,">0",H305:H316), IF(FORECAST($C301,H$305:H$316,$C$305:$C$316)<0,0, IF(FORECAST($C301,H$305:H$316,$C$305:$C$316)>100,100, FORECAST($C301,H$305:H$316,$C$305:$C$316)))) -> 4.429501645 | I301: =IF(MAX(C305:C316)-MIN(C305:C316)<5,AVERAGEIF(C305:C316,">0",I305:I316), IF(FORECAST($C301,I$305:I$316,$C$305:$C$316)<0,0, IF(FORECAST($C301,I$305:I$316,$C$305:$C$316)>100,100, FORECAST($C301,I$305:I$316,$C$305:$C$316)))) -> 99.04747417 | M301: =IF(MAX(C305:C316)-MIN(C305:C316)<5,AVERAGEIF(C305:C316,">0",M305:M316), IF(FORECAST($C301,M$305:M$316,$C$305:$C$316)<0,0, IF(FORECAST($C301,M$305:M$316,$C$305:$C$316)>100,100, FORECAST($C301,M$305:M$316,$C$305:$C$316)))) -> 0.6834195472 | N301: =IF(MAX(C305:C316)-MIN(C305:C316)<5,AVERAGEIF(C305:C316,">0",N305:N316), IF(FORECAST($C301,N$305:N$316,$C$305:$C$316)<0,0, IF(FORECAST($C301,N$305:N$316,$C$305:$C$316)>100,100, FORECAST($C301,N$305:N$316,$C$305:$C$316)))) -> 99.37899263 | R301: =IF(MAX(C305:C316)-MIN(C305:C316)<5,AVERAGEIF(C305:C316,">0",R305:R316), IF(FORECAST($C301,R$305:R$316,$C$305:$C$316)<0,0, IF(FORECAST($C301,R$305:R$316,$C$305:$C$316)>100,100, FORECAST($C301,R$305:R$316,$C$305:$C$316)))) -> 0.5808347665 | S301: =IF(MAX(C305:C316)-MIN(C305:C316)<5,AVERAGEIF(C305:C316,">0",S305:S316), IF(FORECAST($C301,S$305:S$316,$C$305:$C$316)<0,0, IF(FORECAST($C301,S$305:S$316,$C$305:$C$316)>100,100, FORECAST($C301,S$305:S$316,$C$305:$C$316)))) -> 99.71187775 | W301: =IF(MAX(C305:C316)-MIN(C305:C316)<5,AVERAGEIF(C305:C316,">0",W305:W316), IF(FORECAST($C301,W$305:W$316,$C$305:$C$316)<0,0, IF(FORECAST($C301,W$305:W$316,$C$305:$C$316)>100,100, FORECAST($C301,W$305:W$316,$C$305:$C$316)))) -> 0.2701009841 | X301: =IF(MAX(C305:C316)-MIN(C305:C316)<5,AVERAGEIF(C305:C316,">0",X305:X316), IF(FORECAST($C301,X$305:X$316,$C$305:$C$316)<0,0, IF(FORECAST($C301,X$305:X$316,$C$305:$C$316)>100,100, FORECAST($C301,X$305:X$316,$C$305:$C$316)))) -> 99.89258413 | AB301: =IF(MAX(C305:C316)-MIN(C305:C316)<5,AVERAGEIF(C305:C316,">0",AB305:AB316), IF(FORECAST($C301,AB$305:AB$316,$C$305:$C$316)<0,0, IF(FORECAST($C301,AB$305:AB$316,$C$305:$C$316)>100,100, FORECAST($C301,AB$305:AB$316,$C$305:$C$316)))) -> 0.04675719382
C302: =MaxRegYear(C300,C305:C316) -> 2020 | D302: =IF(MAX(C305:C316)-MIN(C305:C316)<5,AVERAGEIF(C305:C316,">0",D305:D316), IF(FORECAST($C302,D$305:D$316,$C$305:$C$316)<0,0, IF(FORECAST($C302,D$305:D$316,$C$305:$C$316)>100,100, FORECAST($C302,D$305:D$316,$C$305:$C$316)))) -> 99.28447328 | H302: =IF(MAX(C305:C316)-MIN(C305:C316)<5,AVERAGEIF(C305:C316,">0",H305:H316), IF(FORECAST($C302,H$305:H$316,$C$305:$C$316)<0,0, IF(FORECAST($C302,H$305:H$316,$C$305:$C$316)>100,100, FORECAST($C302,H$305:H$316,$C$305:$C$316)))) -> 0.1536675675 | I302: =IF(MAX(C305:C316)-MIN(C305:C316)<5,AVERAGEIF(C305:C316,">0",I305:I316), IF(FORECAST($C302,I$305:I$316,$C$305:$C$316)<0,0, IF(FORECAST($C302,I$305:I$316,$C$305:$C$316)>100,100, FORECAST($C302,I$305:I$316,$C$305:$C$316)))) -> 99.55913876 | M302: =IF(MAX(C305:C316)-MIN(C305:C316)<5,AVERAGEIF(C305:C316,">0",M305:M316), IF(FORECAST($C302,M$305:M$316,$C$305:$C$316)<0,0, IF(FORECAST($C302,M$305:M$316,$C$305:$C$316)>100,100, FORECAST($C302,M$305:M$316,$C$305:$C$316)))) -> 0.1808321518 | N302: =IF(MAX(C305:C316)-MIN(C305:C316)<5,AVERAGEIF(C305:C316,">0",N305:N316), IF(FORECAST($C302,N$305:N$316,$C$305:$C$316)<0,0, IF(FORECAST($C302,N$305:N$316,$C$305:$C$316)>100,100, FORECAST($C302,N$305:N$316,$C$305:$C$316)))) -> 99.57528541 | R302: =IF(MAX(C305:C316)-MIN(C305:C316)<5,AVERAGEIF(C305:C316,">0",R305:R316), IF(FORECAST($C302,R$305:R$316,$C$305:$C$316)<0,0, IF(FORECAST($C302,R$305:R$316,$C$305:$C$316)>100,100, FORECAST($C302,R$305:R$316,$C$305:$C$316)))) -> 0.1137869294 | S302: =IF(MAX(C305:C316)-MIN(C305:C316)<5,AVERAGEIF(C305:C316,">0",S305:S316), IF(FORECAST($C302,S$305:S$316,$C$305:$C$316)<0,0, IF(FORECAST($C302,S$305:S$316,$C$305:$C$316)>100,100, FORECAST($C302,S$305:S$316,$C$305:$C$316)))) -> 99.8607477 | W302: =IF(MAX(C305:C316)-MIN(C305:C316)<5,AVERAGEIF(C305:C316,">0",W305:W316), IF(FORECAST($C302,W$305:W$316,$C$305:$C$316)<0,0, IF(FORECAST($C302,W$305:W$316,$C$305:$C$316)>100,100, FORECAST($C302,W$305:W$316,$C$305:$C$316)))) -> 0.002306091092 | X302: =IF(MAX(C305:C316)-MIN(C305:C316)<5,AVERAGEIF(C305:C316,">0",X305:X316), IF(FORECAST($C302,X$305:X$316,$C$305:$C$316)<0,0, IF(FORECAST($C302,X$305:X$316,$C$305:$C$316)>100,100, FORECAST($C302,X$305:X$316,$C$305:$C$316)))) -> 99.93131798 | AB302: =IF(MAX(C305:C316)-MIN(C305:C316)<5,AVERAGEIF(C305:C316,">0",AB305:AB316), IF(FORECAST($C302,AB$305:AB$316,$C$305:$C$316)<0,0, IF(FORECAST($C302,AB$305:AB$316,$C$305:$C$316)>100,100, FORECAST($C302,AB$305:AB$316,$C$305:$C$316)))) -> 0.002785810136
B304: Survey | C304: Year | D304: Improved | E304: Not shared | H304: Open defecation | I304: Improved | J304: Not shared | M304: Open defecation | N304: Improved | O304: Not shared | R304: Open defecation | S304: Improved | T304: Not shared | W304: Open defecation | X304: Improved | Y304: Not shared | AB304: Open defecation
B305: SES00 | C305: 2000 | D305: =IF(ISERROR(INDIRECT(CONCATENATE($B305,"!M122"))),"",INDIRECT(CONCATENATE($B305,"!M122"))) -> 94.95653402 | E305: =IF(ISERROR(INDIRECT(CONCATENATE($B305,"!M129"))),"",INDIRECT(CONCATENATE($B305,"!M129"))) -> N/A | H305: =IF(ISERROR(INDIRECT(CONCATENATE($B305,"!M127"))),"",INDIRECT(CONCATENATE($B305,"!M127"))) -> 4.291743019 | I305: =IF(ISERROR(INDIRECT(CONCATENATE($B305,"!N122"))),"",INDIRECT(CONCATENATE($B305,"!N122"))) -> 99.08499659 | J305: =IF(ISERROR(INDIRECT(CONCATENATE($B305,"!N129"))),"",INDIRECT(CONCATENATE($B305,"!N129"))) -> N/A | M305: =IF(ISERROR(INDIRECT(CONCATENATE($B305,"!N127"))),"",INDIRECT(CONCATENATE($B305,"!N127"))) -> 0.6434374319 | N305: =IF(ISERROR(INDIRECT(CONCATENATE($B305,"!O122"))),"",INDIRECT(CONCATENATE($B305,"!O122"))) -> 99.4898691 | O305: =IF(ISERROR(INDIRECT(CONCATENATE($B305,"!O129"))),"",INDIRECT(CONCATENATE($B305,"!O129"))) -> N/A | R305: =IF(ISERROR(INDIRECT(CONCATENATE($B305,"!O127"))),"",INDIRECT(CONCATENATE($B305,"!O127"))) -> 0.4202054961 | S305: =IF(ISERROR(INDIRECT(CONCATENATE($B305,"!P122"))),"",INDIRECT(CONCATENATE($B305,"!P122"))) -> 99.88842455 | T305: =IF(ISERROR(INDIRECT(CONCATENATE($B305,"!P129"))),"",INDIRECT(CONCATENATE($B305,"!P129"))) -> N/A | W305: =IF(ISERROR(INDIRECT(CONCATENATE($B305,"!P127"))),"",INDIRECT(CONCATENATE($B305,"!P127"))) -> 0.1115754546 | X305: =IF(ISERROR(INDIRECT(CONCATENATE($B305,"!Q122"))),"",INDIRECT(CONCATENATE($B305,"!Q122"))) -> 100 | Y305: =IF(ISERROR(INDIRECT(CONCATENATE($B305,"!Q129"))),"",INDIRECT(CONCATENATE($B305,"!Q129"))) -> N/A | AB305: =IF(ISERROR(INDIRECT(CONCATENATE($B305,"!Q2127"))),"",INDIRECT(CONCATENATE($B305,"!Q127"))) -> 0
B306: SES04 | C306: 2004 | D306: 94.57132734 | E306: N/A | H306: 4.692721927 | I306: 99.00731045 | J306: N/A | M306: 0.6081651893 | N306: 99.62512726 | O306: N/A | R306: 0.2600062973 | S306: 99.82058164 | T306: N/A | W306: 0.07632358484 | X306: 99.8206696 | Y306: N/A | AB306: 0.05070056231
B307: MICS06 | C307: 2006 | D307: 97.37208163 | E307: 93.14480243 | H307: 2.356385956 | I307: 99.37763918 | J307: 96.55534268 | M307: 0.5418814141 | N307: 98.97305826 | O307: 95.60168431 | R307: 1.003765013 | S307: 99.30594129 | T307: 96.88388744 | W307: 0.6270521514 | X307: 99.82426568 | Y307: 98.99607048 | AB307: 0.09704953909
B308: MICS13 | C308: 2013 | D308: 97.45810407 | E308: 96.00347481 | H308: 0.8604232024 | I308: 99.06667104 | J308: 98.09767875 | M308: 0.4396583296 | N308: 99.56072836 | O308: 97.91742653 | R308: 0.1040116134 | S308: 99.95593614 | T308: 98.8276902 | W308: 0.02904952409 | X308: 100 | Y308: 99.106085 | AB308: 0
B309: MICS16 | C309: 2016 | D309: 98.57536596 | E309: 95.13640939 | H309: 1.293859801 | I309: 99.79286625 | J309: 97.63013686 | M309: 0.2023812053 | N309: 99.70536757 | O309: 98.68269741 | R309: 0.2682339138 | S309: 99.97619763 | T309: 99.34766801 | W309: 0 | X309: 99.82350001 | Y309: 99.40045302 | AB309: 0.005276048839
B310: MICS19 | C310: 2019 | D310: 98.9483926 | E310: 94.93118559 | H310: 0.6819571405 | I310: 99.43918883 | J310: 97.68204094 | M310: 0.2074902663 | N310: 99.48905429 | O310: 98.74583732 | R310: 0.07434753788 | S310: 99.75590812 | T310: 98.75473094 | W310: 0 | X310: 99.99939765 | Y310: 98.53963539 | AB310: 0
B318: =CONCATENATE("Rural use of sanitation facilities, ",C299,"–",C300) -> Rural use of sanitation facilities, 2000–2020 | S318: Data points used for regression

Sheet Hygiene
B4: Access to hygiene facilities by wealth quintile (%)
B5: =IF(ISERROR(INDIRECT(CONCATENATE($E$32,"!A2"))),"",INDIRECT(CONCATENATE($E$32,"!A2"))) -> Thailand
B7: =CONCATENATE("National ",IF(ISERROR(INDIRECT(CONCATENATE($E$32,"!A2"))),"",INDIRECT(CONCATENATE($E$32,"!A210")))) -> National Access to hygiene facilities | K7: =CONCATENATE("Urban ",IF(ISERROR(INDIRECT(CONCATENATE($E$32,"!A2"))),"",INDIRECT(CONCATENATE($E$32,"!A210")))) -> Urban Access to hygiene facilities | S7: =CONCATENATE("Rural ",IF(ISERROR(INDIRECT(CONCATENATE($E$32,"!A2"))),"",INDIRECT(CONCATENATE($E$32,"!A210")))) -> Rural Access to hygiene facilities
E32: =INDEX(B88:B100,A88) -> MICS19 | G32: =IF(ISERROR(INDIRECT(CONCATENATE($E$32,"!A2"))),"",INDIRECT(CONCATENATE($E$32,"!A2"))) -> Thailand | K32: Poorest | N32: Poor | Q32: Middle | T32: Rich | W32: Richest
K33: Basic | L33: Limited | M33: No facility | N33: Basic | O33: Limited | P33: No facility | Q33: Basic | R33: Limited | S33: No facility | T33: Basic | U33: Limited | V33: No facility | W33: Basic | X33: Limited | Y33: No facility
B34: >>> Select Survey : | G34: NATIONAL | J34: =IF(ISERROR(INDIRECT(CONCATENATE(#REF!,"!A2"))),"",INDIRECT(CONCATENATE(#REF!,"!A210"))) ->  | K34: =IF(ISERROR(INDIRECT(CONCATENATE($E$32,"!C222"))),"",INDIRECT(CONCATENATE($E$32,"!C222"))) -> 78.65356044 | L34: =IF(ISERROR(INDIRECT(CONCATENATE($E$32,"!C223"))),"",INDIRECT(CONCATENATE($E$32,"!C223"))) -> 11.3648981 | M34: =IF(ISERROR(INDIRECT(CONCATENATE($E$32,"!C224"))),"",INDIRECT(CONCATENATE($E$32,"!C224"))) -> 9.981541464 | N34: =IF(ISERROR(INDIRECT(CONCATENATE($E$32,"!D222"))),"",INDIRECT(CONCATENATE($E$32,"!D222"))) -> 84.47234204 | O34: =IF(ISERROR(INDIRECT(CONCATENATE($E$32,"!D223"))),"",INDIRECT(CONCATENATE($E$32,"!D223"))) -> 9.381096901 | P34: =IF(ISERROR(INDIRECT(CONCATENATE($E$32,"!D224"))),"",INDIRECT(CONCATENATE($E$32,"!D224"))) -> 6.146561056 | Q34: =IF(ISERROR(INDIRECT(CONCATENATE($E$32,"!E222"))),"",INDIRECT(CONCATENATE($E$32,"!E222"))) -> 88.59129199 | R34: =IF(ISERROR(INDIRECT(CONCATENATE($E$32,"!E223"))),"",INDIRECT(CONCATENATE($E$32,"!E223"))) -> 7.190177191 | S34: =IF(ISERROR(INDIRECT(CONCATENATE($E$32,"!E224"))),"",INDIRECT(CONCATENATE($E$32,"!E224"))) -> 4.218530815 | T34: =IF(ISERROR(INDIRECT(CONCATENATE($E$32,"!F222"))),"",INDIRECT(CONCATENATE($E$32,"!F222"))) -> 91.23156129 | U34: =IF(ISERROR(INDIRECT(CONCATENATE($E$32,"!F223"))),"",INDIRECT(CONCATENATE($E$32,"!F223"))) -> 6.090755525 | V34: =IF(ISERROR(INDIRECT(CONCATENATE($E$32,"!F224"))),"",INDIRECT(CONCATENATE($E$32,"!F224"))) -> 2.677683185 | W34: =IF(ISERROR(INDIRECT(CONCATENATE($E$32,"!G222"))),"",INDIRECT(CONCATENATE($E$32,"!G222"))) -> 94.87612406 | X34: =IF(ISERROR(INDIRECT(CONCATENATE($E$32,"!G223"))),"",INDIRECT(CONCATENATE($E$32,"!G223"))) -> 4.199847288 | Y34: =IF(ISERROR(INDIRECT(CONCATENATE($E$32,"!G224"))),"",INDIRECT(CONCATENATE($E$32,"!G224"))) -> 0.9240286522
G37: URBAN | J37: =IF(ISERROR(INDIRECT(CONCATENATE(#REF!,"!A2"))),"",INDIRECT(CONCATENATE(#REF!,"!A210"))) ->  | K37: =IF(ISERROR(INDIRECT(CONCATENATE($E$32,"!H222"))),"",INDIRECT(CONCATENATE($E$32,"!H222"))) -> 81.94182784 | L37: =IF(ISERROR(INDIRECT(CONCATENATE($E$32,"!H223"))),"",INDIRECT(CONCATENATE($E$32,"!H223"))) -> 9.004565586 | M37: =IF(ISERROR(INDIRECT(CONCATENATE($E$32,"!H224"))),"",INDIRECT(CONCATENATE($E$32,"!H224"))) -> 9.053606575 | N37: =IF(ISERROR(INDIRECT(CONCATENATE($E$32,"!I222"))),"",INDIRECT(CONCATENATE($E$32,"!I222"))) -> 88.73596239 | O37: =IF(ISERROR(INDIRECT(CONCATENATE($E$32,"!I223"))),"",INDIRECT(CONCATENATE($E$32,"!I223"))) -> 6.40749426 | P37: =IF(ISERROR(INDIRECT(CONCATENATE($E$32,"!I224"))),"",INDIRECT(CONCATENATE($E$32,"!I224"))) -> 4.856543351 | Q37: =IF(ISERROR(INDIRECT(CONCATENATE($E$32,"!J222"))),"",INDIRECT(CONCATENATE($E$32,"!J222"))) -> 90.68752833 | R37: =IF(ISERROR(INDIRECT(CONCATENATE($E$32,"!J223"))),"",INDIRECT(CONCATENATE($E$32,"!J223"))) -> 6.171526596 | S37: =IF(ISERROR(INDIRECT(CONCATENATE($E$32,"!J224"))),"",INDIRECT(CONCATENATE($E$32,"!J224"))) -> 3.140945078 | T37: =IF(ISERROR(INDIRECT(CONCATENATE($E$32,"!K222"))),"",INDIRECT(CONCATENATE($E$32,"!K222"))) -> 93.89824417 | U37: =IF(ISERROR(INDIRECT(CONCATENATE($E$32,"!K223"))),"",INDIRECT(CONCATENATE($E$32,"!K223"))) -> 4.328859541 | V37: =IF(ISERROR(INDIRECT(CONCATENATE($E$32,"!K224"))),"",INDIRECT(CONCATENATE($E$32,"!K224"))) -> 1.772896291 | W37: =IF(ISERROR(INDIRECT(CONCATENATE($E$32,"!L222"))),"",INDIRECT(CONCATENATE($E$32,"!L222"))) -> 96.32055004 | X37: =IF(ISERROR(INDIRECT(CONCATENATE($E$32,"!L223"))),"",INDIRECT(CONCATENATE($E$32,"!L223"))) -> 3.202072406 | Y37: =IF(ISERROR(INDIRECT(CONCATENATE($E$32,"!L224"))),"",INDIRECT(CONCATENATE($E$32,"!L224"))) -> 0.477377554
G40: RURAL | J40: =IF(ISERROR(INDIRECT(CONCATENATE(#REF!,"!A2"))),"",INDIRECT(CONCATENATE(#REF!,"!A210"))) ->  | K40: =IF(ISERROR(INDIRECT(CONCATENATE($E$32,"!M222"))),"",INDIRECT(CONCATENATE($E$32,"!M222"))) -> 75.77450986 | L40: =IF(ISERROR(INDIRECT(CONCATENATE($E$32,"!M223"))),"",INDIRECT(CONCATENATE($E$32,"!M223"))) -> 13.06870411 | M40: =IF(ISERROR(INDIRECT(CONCATENATE($E$32,"!M224"))),"",INDIRECT(CONCATENATE($E$32,"!M224"))) -> 11.15678603 | N40: =IF(ISERROR(INDIRECT(CONCATENATE($E$32,"!N222"))),"",INDIRECT(CONCATENATE($E$32,"!N222"))) -> 83.05080867 | O40: =IF(ISERROR(INDIRECT(CONCATENATE($E$32,"!N223"))),"",INDIRECT(CONCATENATE($E$32,"!N223"))) -> 10.21072036 | P40: =IF(ISERROR(INDIRECT(CONCATENATE($E$32,"!N224"))),"",INDIRECT(CONCATENATE($E$32,"!N224"))) -> 6.738470967 | Q40: =IF(ISERROR(INDIRECT(CONCATENATE($E$32,"!O222"))),"",INDIRECT(CONCATENATE($E$32,"!O222"))) -> 86.69775772 | R40: =IF(ISERROR(INDIRECT(CONCATENATE($E$32,"!O223"))),"",INDIRECT(CONCATENATE($E$32,"!O223"))) -> 8.651790432 | S40: =IF(ISERROR(INDIRECT(CONCATENATE($E$32,"!O224"))),"",INDIRECT(CONCATENATE($E$32,"!O224"))) -> 4.65045185 | T40: =IF(ISERROR(INDIRECT(CONCATENATE($E$32,"!P222"))),"",INDIRECT(CONCATENATE($E$32,"!P222"))) -> 89.80429733 | U40: =IF(ISERROR(INDIRECT(CONCATENATE($E$32,"!P223"))),"",INDIRECT(CONCATENATE($E$32,"!P223"))) -> 7.050496767 | V40: =IF(ISERROR(INDIRECT(CONCATENATE($E$32,"!P224"))),"",INDIRECT(CONCATENATE($E$32,"!P224"))) -> 3.145205903 | W40: =IF(ISERROR(INDIRECT(CONCATENATE($E$32,"!Q222"))),"",INDIRECT(CONCATENATE($E$32,"!Q222"))) -> 91.36667241 | X40: =IF(ISERROR(INDIRECT(CONCATENATE($E$32,"!Q223"))),"",INDIRECT(CONCATENATE($E$32,"!Q223"))) -> 6.503112932 | Y40: =IF(ISERROR(INDIRECT(CONCATENATE($E$32,"!Q224"))),"",INDIRECT(CONCATENATE($E$32,"!Q224"))) -> 2.130214661
A88: 6 | B88: SES00
B89: SES04
B90: MICS06
B91: MICS13
B92: MICS16
B93: MICS19
B94: Input
B95: Template

Sheet SES00
A2: =A1026 -> Thailand
A3: =A1034 -> 2000
A4: Use of drinking water sources
A5: by wealth quintile and sub-national region
A6: Notes:
A7: WHO/UNICEF JMP customised wealth index excludes water,
A8: sanitation and hygiene assets.
A9: Survey used for analysis: | B9: =A1025 -> SES00
A10: =B1028 -> Ratio of Improved wells based on: | B10: MICS06
A11: =B1027 -> Time to improved source based on: | B11: MICS06
A14: Use of drinking water sources | C14: NATIONAL wealth index quintile | H14: URBAN wealth index quintile | M14: RURAL wealth index quintile | R14: region | BA14: Raw numbers of respondents: | BB14: Use of drinking water sources | BC14: NATIONAL wealth index quintile | BH14: URBAN wealth index quintile | BM14: RURAL wealth index quintile | BR14: SUB-REGIONS:
A15: Weighted percentage (used in graphs) | C15: Poorest | D15: Poor | E15: Middle | F15: Rich | G15: Richest | H15: Poorest | I15: Poor | J15: Middle | K15: Rich | L15: Richest | M15: Poorest | N15: Poor | O15: Middle | P15: Rich | Q15: Richest | R15: Bangkok Vicinity | S15: Central | T15: East | U15: North | V15: Northeast | W15: South | X15: West | BA15: Water data, raw numbers (weighted) | BC15: Poorest | BD15: Poor | BE15: Middle | BF15: Rich | BG15: Richest | BH15: Poorest | BI15: Poor | BJ15: Middle | BK15: Rich | BL15: Richest | BM15: Poorest | BN15: Poor | BO15: Middle | BP15: Rich | BQ15: Richest | BR15: Bangkok Vicinity | BS15: Central | BT15: East | BU15: North | BV15: Northeast | BW15: South | BX15: West
A16: Water | B16: Improved | C16: =C58+C59+C60+C61+C62+C63+C66+C64*MICS06!C24/100 -> 92.38533681 | D16: =D58+D59+D60+D61+D62+D63+D66+D64*MICS06!D24/100 -> 97.25497598 | E16: =E58+E59+E60+E61+E62+E63+E66+E64*MICS06!E24/100 -> 98.08494132 | F16: =F58+F59+F60+F61+F62+F63+F66+F64*MICS06!F24/100 -> 99.23549133 | G16: =G58+G59+G60+G61+G62+G63+G66+G64*MICS06!G24/100 -> 99.57247035 | H16: =H58+H59+H60+H61+H62+H63+H66+H64*MICS06!H24/100 -> 99.78582522 | I16: =I58+I59+I60+I61+I62+I63+I66+I64*MICS06!I24/100 -> 99.93151509 | J16: =J58+J59+J60+J61+J62+J63+J66+J64*MICS06!J24/100 -> 99.87398946 | K16: =K58+K59+K60+K61+K62+K63+K66+K64*MICS06!K24/100 -> 99.71464224 | L16: =L58+L59+L60+L61+L62+L63+L66+L64*MICS06!L24/100 -> 99.79404583 | M16: =M58+M59+M60+M61+M62+M63+M66+M64*MICS06!M24/100 -> 83.70049696 | N16: =N58+N59+N60+N61+N62+N63+N66+N64*MICS06!N24/100 -> 93.95909681 | O16: =O58+O59+O60+O61+O62+O63+O66+O64*MICS06!O24/100 -> 91.97627759 | P16: =P58+P59+P60+P61+P62+P63+P66+P64*MICS06!P24/100 -> 94.27839432 | Q16: =Q58+Q59+Q60+Q61+Q62+Q63+Q66+Q64*MICS06!Q24/100 -> 95.45645518 | R16: =R58+R59+R60+R61+R62+R63+R66+R64*R24/100 -> 99.81184282 | S16: 97.3238998 | T16: 92.82069827 | U16: 88.77630561 | V16: 95.92317041 | W16: 86.41056528 | X16: 96.03187516 | BA16: Water | BB16: Improved | BC16: N/A | BD16: N/A | BE16: N/A | BF16: N/A | BG16: N/A | BH16: N/A | BI16: N/A | BJ16: N/A | BK16: N/A | BL16: N/A | BM16: N/A | BN16: N/A | BO16: N/A | BP16: N/A | BQ16: N/A | BR16: N/A | BS16: N/A | BT16: N/A | BU16: N/A | BV16: N/A | BW16: N/A | BX16: N/A
B17: Not Improved | C17: =100-C16 -> 7.614663193 | D17: =100-D16 -> 2.745024016 | E17: 1.915058679 | F17: 0.7645086667 | G17: 0.427529649 | H17: 0.2141747773 | I17: 0.06848491342 | J17: 0.1260105376 | K17: 0.2853577578 | L17: 0.2059541704 | M17: 16.29950304 | N17: 6.040903186 | O17: 8.023722406 | P17: 5.721605682 | Q17: 4.543544818 | R17: 0.18815718 | S17: 2.676100198 | T17: 7.179301731 | U17: 11.22369439 | V17: 4.076829591 | W17: 13.58943472 | X17: 3.968124841 | BB17: Not Improved | BC17: N/A | BD17: N/A | BE17: N/A | BF17: N/A | BG17: N/A | BH17: N/A | BI17: N/A | BJ17: N/A | BK17: N/A | BL17: N/A | BM17: N/A | BN17: N/A | BO17: N/A | BP17: N/A | BQ17: N/A | BR17: N/A | BS17: N/A | BT17: N/A | BU17: N/A | BV17: N/A | BW17: N/A | BX17: N/A
A18: Water ladder | B18: Basic | C18: =C16*MICS06!C23/100 -> 91.78954398 | D18: =D16*MICS06!D23/100 -> 96.7514734 | E18: =E16*MICS06!E23/100 -> 97.99830563 | F18: =F16*MICS06!F23/100 -> 99.23549133 | G18: =G16*MICS06!G23/100 -> 99.48605289 | H18: =H16*MICS06!H23/100 -> 99.74212314 | I18: =I16*MICS06!I23/100 -> 99.90963801 | J18: =J16*MICS06!J23/100 -> 99.87398946 | K18: =K16*MICS06!K23/100 -> 99.64207333 | L18: =L16*MICS06!L23/100 -> 99.78784058 | M18: =M16*MICS06!M23/100 -> 82.92824617 | N18: =N16*MICS06!N23/100 -> 93.32554628 | O18: =O16*MICS06!O23/100 -> 91.92088256 | P18: =P16*MICS06!P23/100 -> 94.17213833 | Q18: =Q16*MICS06!Q23/100 -> 95.36836552 | R18: =R16*R23/100 -> 99.54480034 | S18: =S16*S23/100 -> 97.06351371 | T18: 92.57236031 | U18: 88.53878825 | V18: 95.66653191 | W18: 86.17937736 | X18: 95.77494582 | BA18: Water ladder | BB18: Basic | BC18: N/A | BD18: N/A | BE18: N/A | BF18: N/A | BG18: N/A | BH18: N/A | BI18: N/A | BJ18: N/A | BK18: N/A | BL18: N/A | BM18: N/A | BN18: N/A | BO18: N/A | BP18: N/A | BQ18: N/A | BR18: N/A | BS18: N/A | BT18: N/A | BU18: N/A | BV18: N/A | BW18: N/A | BX18: N/A
B19: Limited | C19: =C16*MICS06!C22/100 -> 0.5957928226 | D19: =D16*MICS06!D22/100 -> 0.5035025854 | E19: =E16*MICS06!E22/100 -> 0.08663569483 | F19: =F16*MICS06!F22/100 -> 0 | G19: =G16*MICS06!G22/100 -> 0.08641746431 | H19: =H16*MICS06!H22/100 -> 0.04370208675 | I19: =I16*MICS06!I22/100 -> 0.02187707374 | J19: =J16*MICS06!J22/100 -> 0 | K19: =K16*MICS06!K22/100 -> 0.07256891465 | L19: =L16*MICS06!L22/100 -> 0.006205254022 | M19: =M16*MICS06!M22/100 -> 0.7722507971 | N19: =N16*MICS06!N22/100 -> 0.6335505313 | O19: =O16*MICS06!O22/100 -> 0.0553950338 | P19: =P16*MICS06!P22/100 -> 0.1062559873 | Q19: =Q16*MICS06!Q22/100 -> 0.08808966722 | R19: =R16*R22/100 -> 0.2670424831 | S19: =S16*S22/100 -> 0.2603860938 | T19: 0.2483379632 | U19: 0.2375173568 | V19: 0.2566384999 | W19: 0.2311879158 | X19: 0.256929335 | BB19: Limited | BC19: N/A | BD19: N/A | BE19: N/A | BF19: N/A | BG19: N/A | BH19: N/A | BI19: N/A | BJ19: N/A | BK19: N/A | BL19: N/A | BM19: N/A | BN19: N/A | BO19: N/A | BP19: N/A | BQ19: N/A | BR19: N/A | BS19: N/A | BT19: N/A | BU19: N/A | BV19: N/A | BW19: N/A | BX19: N/A
B20: Unimproved | C20: =100-(C18+C19+C21) -> 7.099420463 | D20: =100-(D18+D19+D21) -> 2.551786515 | E20: 1.888808185 | F20: 0.7645086667 | G20: 0.427529649 | H20: 0.2139544412 | I20: 0.06442107387 | J20: 0.121400569 | K20: 0.2853577578 | L20: 0.2059541704 | M20: 15.12231322 | N20: 5.662654522 | O20: 7.42569423 | P20: 5.57224079 | Q20: 4.502330742 | R20: 0.18815718 | S20: 1.562444856 | T20: 7.056199749 | U20: 10.55298351 | V20: 4.008365851 | W20: 13.13338594 | X20: 1.26549887 | BB20: Unimproved | BC20: N/A | BD20: N/A | BE20: N/A | BF20: N/A | BG20: N/A | BH20: N/A | BI20: N/A | BJ20: N/A | BK20: N/A | BL20: N/A | BM20: N/A | BN20: N/A | BO20: N/A | BP20: N/A | BQ20: N/A | BR20: N/A | BS20: N/A | BT20: N/A | BU20: N/A | BV20: N/A | BW20: N/A | BX20: N/A
B21: Surface water | C21: =C65 -> 0.5152427295 | D21: 0.1932375008 | E21: 0.02625049419 | F21: 0 | G21: 0 | H21: 0.0002203361165 | I21: 0.004063839549 | J21: 0.004609968601 | K21: 0 | L21: 0 | M21: 1.177189815 | N21: 0.3782486643 | O21: 0.598028176 | P21: 0.1493648913 | Q21: 0.04121407551 | R21: 0 | S21: 1.113655342 | T21: 0.1231019824 | U21: 0.6707108828 | V21: 0.06846373961 | W21: 0.4560487873 | X21: 2.702625971 | BB21: Surface water | BC21: N/A | BD21: N/A | BE21: N/A | BF21: N/A | BG21: N/A | BH21: N/A | BI21: N/A | BJ21: N/A | BK21: N/A | BL21: N/A | BM21: N/A | BN21: N/A | BO21: N/A | BP21: N/A | BQ21: N/A | BR21: N/A | BS21: N/A | BT21: N/A | BU21: N/A | BV21: N/A | BW21: N/A | BX21: N/A
A22: Improved water point at more than 30 minutes | B22: Yes | C22: N/A | D22: N/A | E22: N/A | F22: N/A | G22: N/A | H22: N/A | I22: N/A | J22: N/A | K22: N/A | L22: N/A | M22: N/A | N22: N/A | O22: N/A | P22: N/A | Q22: N/A | R22: =100-R23 -> 0.2675458899 | S22: =100-S23 -> 0.2675458899 | T22: 0.2675458899 | U22: 0.2675458899 | V22: 0.2675458899 | W22: 0.2675458899 | X22: 0.2675458899 | BA22: Improved water point at more than 30 minutes | BB22: Yes | BC22: N/A | BD22: N/A | BE22: N/A | BF22: N/A | BG22: N/A | BH22: N/A | BI22: N/A | BJ22: N/A | BK22: N/A | BL22: N/A | BM22: N/A | BN22: N/A | BO22: N/A | BP22: N/A | BQ22: N/A | BR22: N/A | BS22: N/A | BT22: N/A | BU22: N/A | BV22: N/A | BW22: N/A | BX22: N/A
B23: No | C23: N/A | D23: N/A | E23: N/A | F23: N/A | G23: N/A | H23: N/A | I23: N/A | J23: N/A | K23: N/A | L23: N/A | M23: N/A | N23: N/A | O23: N/A | P23: N/A | Q23: N/A | R23: =SUM(MICS06!$C23:$G23)/5 -> 99.73245411 | S23: =SUM(MICS06!$C23:$G23)/5 -> 99.73245411 | T23: =SUM(MICS06!$C23:$G23)/5 -> 99.73245411 | U23: =SUM(MICS06!$C23:$G23)/5 -> 99.73245411 | V23: =SUM(MICS06!$C23:$G23)/5 -> 99.73245411 | W23: =SUM(MICS06!$C23:$G23)/5 -> 99.73245411 | X23: =SUM(MICS06!$C23:$G23)/5 -> 99.73245411 | BB23: No | BC23: N/A | BD23: N/A | BE23: N/A | BF23: N/A | BG23: N/A | BH23: N/A | BI23: N/A | BJ23: N/A | BK23: N/A | BL23: N/A | BM23: N/A | BN23: N/A | BO23: N/A | BP23: N/A | BQ23: N/A | BR23: N/A | BS23: N/A | BT23: N/A | BU23: N/A | BV23: N/A | BW23: N/A | BX23: N/A
A24: Manually calculated ratios | B24: Improved wells | R24: =SUM(MICS06!$C24:$G24)/5 -> 66.96813557 | S24: =SUM(MICS06!$C24:$G24)/5 -> 66.96813557 | T24: =SUM(MICS06!$C24:$G24)/5 -> 66.96813557 | U24: =SUM(MICS06!$C24:$G24)/5 -> 66.96813557 | V24: =SUM(MICS06!$C24:$G24)/5 -> 66.96813557 | W24: =SUM(MICS06!$C24:$G24)/5 -> 66.96813557 | X24: =SUM(MICS06!$C24:$G24)/5 -> 66.96813557
B25: Improved springs
B26: Other
C27: NATIONAL wealth index quintile | H27: URBAN wealth index quintile | M27: RURAL wealth index quintile | R27: region | BA27: Raw numbers of respondents: | BB27: Use of drinking water sources | BC27: NATIONAL wealth index quintile | BH27: URBAN wealth index quintile | BM27: RURAL wealth index quintile | BR27: SUB-REGIONS:
A28: Percentage based on weighted population | C28: Poorest | D28: Poor | E28: Middle | F28: Rich | G28: Richest | H28: Poorest | I28: Poor | J28: Middle | K28: Rich | L28: Richest | M28: Poorest | N28: Poor | O28: Middle | P28: Rich | Q28: Richest | R28: Bangkok Vicinity | S28: Central | T28: East | U28: North | V28: Northeast | W28: South | X28: West | BA28: Water data, raw numbers (weighted) | BC28: Poorest | BD28: Poor | BE28: Middle | BF28: Rich | BG28: Richest | BH28: Poorest | BI28: Poor | BJ28: Middle | BK28: Rich | BL28: Richest | BM28: Poorest | BN28: Poor | BO28: Middle | BP28: Rich | BQ28: Richest | BR28: Bangkok Vicinity | BS28: Central | BT28: East | BU28: North | BV28: Northeast | BW28: South | BX28: West
A29: Piped water | B29: Yes | C29: N/A | D29: N/A | E29: N/A | F29: N/A | G29: N/A | H29: N/A | I29: N/A | J29: N/A | K29: N/A | L29: N/A | M29: N/A | N29: N/A | O29: N/A | P29: N/A | Q29: N/A | R29: N/A | S29: N/A | T29: N/A | U29: N/A | V29: N/A | W29: N/A | X29: N/A | BA29: Piped water | BB29: Yes | BC29: N/A | BD29: N/A | BE29: N/A | BF29: N/A | BG29: N/A | BH29: N/A | BI29: N/A | BJ29: N/A | BK29: N/A | BL29: N/A | BM29: N/A | BN29: N/A | BO29: N/A | BP29: N/A | BQ29: N/A | BR29: N/A | BS29: N/A | BT29: N/A | BU29: N/A | BV29: N/A | BW29: N/A | BX29: N/A
B30: No | C30: N/A | D30: N/A | E30: N/A | F30: N/A | G30: N/A | H30: N/A | I30: N/A | J30: N/A | K30: N/A | L30: N/A | M30: N/A | N30: N/A | O30: N/A | P30: N/A | Q30: N/A | R30: N/A | S30: N/A | T30: N/A | U30: N/A | V30: N/A | W30: N/A | X30: N/A | BB30: No | BC30: N/A | BD30: N/A | BE30: N/A | BF30: N/A | BG30: N/A | BH30: N/A | BI30: N/A | BJ30: N/A | BK30: N/A | BL30: N/A | BM30: N/A | BN30: N/A | BO30: N/A | BP30: N/A | BQ30: N/A | BR30: N/A | BS30: N/A | BT30: N/A | BU30: N/A | BV30: N/A | BW30: N/A | BX30: N/A
A31: Piped water on premises | B31: Yes | C31: N/A | D31: N/A | E31: N/A | F31: N/A | G31: N/A | H31: N/A | I31: N/A | J31: N/A | K31: N/A | L31: N/A | M31: N/A | N31: N/A | O31: N/A | P31: N/A | Q31: N/A | R31: N/A | S31: N/A | T31: N/A | U31: N/A | V31: N/A | W31: N/A | X31: N/A | BA31: Piped water on premises | BB31: Yes | BC31: N/A | BD31: N/A | BE31: N/A | BF31: N/A | BG31: N/A | BH31: N/A | BI31: N/A | BJ31: N/A | BK31: N/A | BL31: N/A | BM31: N/A | BN31: N/A | BO31: N/A | BP31: N/A | BQ31: N/A | BR31: N/A | BS31: N/A | BT31: N/A | BU31: N/A | BV31: N/A | BW31: N/A | BX31: N/A
B32: No | C32: N/A | D32: N/A | E32: N/A | F32: N/A | G32: N/A | H32: N/A | I32: N/A | J32: N/A | K32: N/A | L32: N/A | M32: N/A | N32: N/A | O32: N/A | P32: N/A | Q32: N/A | R32: N/A | S32: N/A | T32: N/A | U32: N/A | V32: N/A | W32: N/A | X32: N/A | BB32: No | BC32: N/A | BD32: N/A | BE32: N/A | BF32: N/A | BG32: N/A | BH32: N/A | BI32: N/A | BJ32: N/A | BK32: N/A | BL32: N/A | BM32: N/A | BN32: N/A | BO32: N/A | BP32: N/A | BQ32: N/A | BR32: N/A | BS32: N/A | BT32: N/A | BU32: N/A | BV32: N/A | BW32: N/A | BX32: N/A
A33: Piped water into dwelling | B33: Yes | C33: N/A | D33: N/A | E33: N/A | F33: N/A | G33: N/A | H33: N/A | I33: N/A | J33: N/A | K33: N/A | L33: N/A | M33: N/A | N33: N/A | O33: N/A | P33: N/A | Q33: N/A | R33: N/A | S33: N/A | T33: N/A | U33: N/A | V33: N/A | W33: N/A | X33: N/A | BA33: Piped water into dwelling | BB33: Yes | BC33: N/A | BD33: N/A | BE33: N/A | BF33: N/A | BG33: N/A | BH33: N/A | BI33: N/A | BJ33: N/A | BK33: N/A | BL33: N/A | BM33: N/A | BN33: N/A | BO33: N/A | BP33: N/A | BQ33: N/A | BR33: N/A | BS33: N/A | BT33: N/A | BU33: N/A | BV33: N/A | BW33: N/A | BX33: N/A
B34: No | C34: N/A | D34: N/A | E34: N/A | F34: N/A | G34: N/A | H34: N/A | I34: N/A | J34: N/A | K34: N/A | L34: N/A | M34: N/A | N34: N/A | O34: N/A | P34: N/A | Q34: N/A | R34: N/A | S34: N/A | T34: N/A | U34: N/A | V34: N/A | W34: N/A | X34: N/A | BB34: No | BC34: N/A | BD34: N/A | BE34: N/A | BF34: N/A | BG34: N/A | BH34: N/A | BI34: N/A | BJ34: N/A | BK34: N/A | BL34: N/A | BM34: N/A | BN34: N/A | BO34: N/A | BP34: N/A | BQ34: N/A | BR34: N/A | BS34: N/A | BT34: N/A | BU34: N/A | BV34: N/A | BW34: N/A | BX34: N/A
A35: Water source on premises | B35: Yes | C35: N/A | D35: N/A | E35: N/A | F35: N/A | G35: N/A | H35: N/A | I35: N/A | J35: N/A | K35: N/A | L35: N/A | M35: N/A | N35: N/A | O35: N/A | P35: N/A | Q35: N/A | R35: N/A | S35: N/A | T35: N/A | U35: N/A | V35: N/A | W35: N/A | X35: N/A | BA35: Water source on premises | BB35: Yes | BC35: N/A | BD35: N/A | BE35: N/A | BF35: N/A | BG35: N/A | BH35: N/A | BI35: N/A | BJ35: N/A | BK35: N/A | BL35: N/A | BM35: N/A | BN35: N/A | BO35: N/A | BP35: N/A | BQ35: N/A | BR35: N/A | BS35: N/A | BT35: N/A | BU35: N/A | BV35: N/A | BW35: N/A | BX35: N/A
B36: No | C36: N/A | D36: N/A | E36: N/A | F36: N/A | G36: N/A | H36: N/A | I36: N/A | J36: N/A | K36: N/A | L36: N/A | M36: N/A | N36: N/A | O36: N/A | P36: N/A | Q36: N/A | R36: N/A | S36: N/A | T36: N/A | U36: N/A | V36: N/A | W36: N/A | X36: N/A | BB36: No | BC36: N/A | BD36: N/A | BE36: N/A | BF36: N/A | BG36: N/A | BH36: N/A | BI36: N/A | BJ36: N/A | BK36: N/A | BL36: N/A | BM36: N/A | BN36: N/A | BO36: N/A | BP36: N/A | BQ36: N/A | BR36: N/A | BS36: N/A | BT36: N/A | BU36: N/A | BV36: N/A | BW36: N/A | BX36: N/A
A37: Improved Water source on premises | B37: Yes | C37: N/A | D37: N/A | E37: N/A | F37: N/A | G37: N/A | H37: N/A | I37: N/A | J37: N/A | K37: N/A | L37: N/A | M37: N/A | N37: N/A | O37: N/A | P37: N/A | Q37: N/A | R37: N/A | S37: N/A | T37: N/A | U37: N/A | V37: N/A | W37: N/A | X37: N/A | BA37: Improved water source on premises | BB37: Yes | BC37: N/A | BD37: N/A | BE37: N/A | BF37: N/A | BG37: N/A | BH37: N/A | BI37: N/A | BJ37: N/A | BK37: N/A | BL37: N/A | BM37: N/A | BN37: N/A | BO37: N/A | BP37: N/A | BQ37: N/A | BR37: N/A | BS37: N/A | BT37: N/A | BU37: N/A | BV37: N/A | BW37: N/A | BX37: N/A
B38: No | C38: N/A | D38: N/A | E38: N/A | F38: N/A | G38: N/A | H38: N/A | I38: N/A | J38: N/A | K38: N/A | L38: N/A | M38: N/A | N38: N/A | O38: N/A | P38: N/A | Q38: N/A | R38: N/A | S38: N/A | T38: N/A | U38: N/A | V38: N/A | W38: N/A | X38: N/A | BB38: No | BC38: N/A | BD38: N/A | BE38: N/A | BF38: N/A | BG38: N/A | BH38: N/A | BI38: N/A | BJ38: N/A | BK38: N/A | BL38: N/A | BM38: N/A | BN38: N/A | BO38: N/A | BP38: N/A | BQ38: N/A | BR38: N/A | BS38: N/A | BT38: N/A | BU38: N/A | BV38: N/A | BW38: N/A | BX38: N/A
A39: Piped water on premises available when needed | B39: Yes | C39: N/A | D39: N/A | E39: N/A | F39: N/A | G39: N/A | H39: N/A | I39: N/A | J39: N/A | K39: N/A | L39: N/A | M39: N/A | N39: N/A | O39: N/A | P39: N/A | Q39: N/A | R39: N/A | S39: N/A | T39: N/A | U39: N/A | V39: N/A | W39: N/A | X39: N/A | BA39: Piped water on premises available when needed | BB39: Yes | BC39: N/A | BD39: N/A | BE39: N/A | BF39: N/A | BG39: N/A | BH39: N/A | BI39: N/A | BJ39: N/A | BK39: N/A | BL39: N/A | BM39: N/A | BN39: N/A | BO39: N/A | BP39: N/A | BQ39: N/A | BR39: N/A | BS39: N/A | BT39: N/A | BU39: N/A | BV39: N/A | BW39: N/A | BX39: N/A
B40: No | C40: N/A | D40: N/A | E40: N/A | F40: N/A | G40: N/A | H40: N/A | I40: N/A | J40: N/A | K40: N/A | L40: N/A | M40: N/A | N40: N/A | O40: N/A | P40: N/A | Q40: N/A | R40: N/A | S40: N/A | T40: N/A | U40: N/A | V40: N/A | W40: N/A | X40: N/A | BB40: No | BC40: N/A | BD40: N/A | BE40: N/A | BF40: N/A | BG40: N/A | BH40: N/A | BI40: N/A | BJ40: N/A | BK40: N/A | BL40: N/A | BM40: N/A | BN40: N/A | BO40: N/A | BP40: N/A | BQ40: N/A | BR40: N/A | BS40: N/A | BT40: N/A | BU40: N/A | BV40: N/A | BW40: N/A | BX40: N/A
A41: Water point at more than 30 minutes | B41: Yes | C41: N/A | D41: N/A | E41: N/A | F41: N/A | G41: N/A | H41: N/A | I41: N/A | J41: N/A | K41: N/A | L41: N/A | M41: N/A | N41: N/A | O41: N/A | P41: N/A | Q41: N/A | R41: N/A | S41: N/A | T41: N/A | U41: N/A | V41: N/A | W41: N/A | X41: N/A | BA41: Water point at more than 30 minutes | BB41: Yes | BC41: N/A | BD41: N/A | BE41: N/A | BF41: N/A | BG41: N/A | BH41: N/A | BI41: N/A | BJ41: N/A | BK41: N/A | BL41: N/A | BM41: N/A | BN41: N/A | BO41: N/A | BP41: N/A | BQ41: N/A | BR41: N/A | BS41: N/A | BT41: N/A | BU41: N/A | BV41: N/A | BW41: N/A | BX41: N/A
B42: No | C42: N/A | D42: N/A | E42: N/A | F42: N/A | G42: N/A | H42: N/A | I42: N/A | J42: N/A | K42: N/A | L42: N/A | M42: N/A | N42: N/A | O42: N/A | P42: N/A | Q42: N/A | R42: N/A | S42: N/A | T42: N/A | U42: N/A | V42: N/A | W42: N/A | X42: N/A | BB42: No | BC42: N/A | BD42: N/A | BE42: N/A | BF42: N/A | BG42: N/A | BH42: N/A | BI42: N/A | BJ42: N/A | BK42: N/A | BL42: N/A | BM42: N/A | BN42: N/A | BO42: N/A | BP42: N/A | BQ42: N/A | BR42: N/A | BS42: N/A | BT42: N/A | BU42: N/A | BV42: N/A | BW42: N/A | BX42: N/A
A43: Water source available when needed | B43: Yes | C43: N/A | D43: N/A | E43: N/A | F43: N/A | G43: N/A | H43: N/A | I43: N/A | J43: N/A | K43: N/A | L43: N/A | M43: N/A | N43: N/A | O43: N/A | P43: N/A | Q43: N/A | R43: N/A | S43: N/A | T43: N/A | U43: N/A | V43: N/A | W43: N/A | X43: N/A | BA43: Water source available when needed | BB43: Yes | BC43: N/A | BD43: N/A | BE43: N/A | BF43: N/A | BG43: N/A | BH43: N/A | BI43: N/A | BJ43: N/A | BK43: N/A | BL43: N/A | BM43: N/A | BN43: N/A | BO43: N/A | BP43: N/A | BQ43: N/A | BR43: N/A | BS43: N/A | BT43: N/A | BU43: N/A | BV43: N/A | BW43: N/A | BX43: N/A
B44: No | C44: N/A | D44: N/A | E44: N/A | F44: N/A | G44: N/A | H44: N/A | I44: N/A | J44: N/A | K44: N/A | L44: N/A | M44: N/A | N44: N/A | O44: N/A | P44: N/A | Q44: N/A | R44: N/A | S44: N/A | T44: N/A | U44: N/A | V44: N/A | W44: N/A | X44: N/A | BB44: No | BC44: N/A | BD44: N/A | BE44: N/A | BF44: N/A | BG44: N/A | BH44: N/A | BI44: N/A | BJ44: N/A | BK44: N/A | BL44: N/A | BM44: N/A | BN44: N/A | BO44: N/A | BP44: N/A | BQ44: N/A | BR44: N/A | BS44: N/A | BT44: N/A | BU44: N/A | BV44: N/A | BW44: N/A | BX44: N/A
A45: Improved water source available when needed | B45: Yes | C45: N/A | D45: N/A | E45: N/A | F45: N/A | G45: N/A | H45: N/A | I45: N/A | J45: N/A | K45: N/A | L45: N/A | M45: N/A | N45: N/A | O45: N/A | P45: N/A | Q45: N/A | R45: N/A | S45: N/A | T45: N/A | U45: N/A | V45: N/A | W45: N/A | X45: N/A | BA45: Improved water source available when needed | BB45: Yes | BC45: N/A | BD45: N/A | BE45: N/A | BF45: N/A | BG45: N/A | BH45: N/A | BI45: N/A | BJ45: N/A | BK45: N/A | BL45: N/A | BM45: N/A | BN45: N/A | BO45: N/A | BP45: N/A | BQ45: N/A | BR45: N/A | BS45: N/A | BT45: N/A | BU45: N/A | BV45: N/A | BW45: N/A | BX45: N/A
B46: No | C46: N/A | D46: N/A | E46: N/A | F46: N/A | G46: N/A | H46: N/A | I46: N/A | J46: N/A | K46: N/A | L46: N/A | M46: N/A | N46: N/A | O46: N/A | P46: N/A | Q46: N/A | R46: N/A | S46: N/A | T46: N/A | U46: N/A | V46: N/A | W46: N/A | X46: N/A | BB46: No | BC46: N/A | BD46: N/A | BE46: N/A | BF46: N/A | BG46: N/A | BH46: N/A | BI46: N/A | BJ46: N/A | BK46: N/A | BL46: N/A | BM46: N/A | BN46: N/A | BO46: N/A | BP46: N/A | BQ46: N/A | BR46: N/A | BS46: N/A | BT46: N/A | BU46: N/A | BV46: N/A | BW46: N/A | BX46: N/A
A47: Microbiological quality at point of collection | B47: Not contaminated (No E. coli in 100 mL) | C47: N/A | D47: N/A | E47: N/A | F47: N/A | G47: N/A | H47: N/A | I47: N/A | J47: N/A | K47: N/A | L47: N/A | M47: N/A | N47: N/A | O47: N/A | P47: N/A | Q47: N/A | R47: N/A | S47: N/A | T47: N/A | U47: N/A | V47: N/A | W47: N/A | X47: N/A | BA47: Microbiological quality at point of collection | BB47: Not contaminated (No E. coli in 100 mL) | BC47: N/A | BD47: N/A | BE47: N/A | BF47: N/A | BG47: N/A | BH47: N/A | BI47: N/A | BJ47: N/A | BK47: N/A | BL47: N/A | BM47: N/A | BN47: N/A | BO47: N/A | BP47: N/A | BQ47: N/A | BR47: N/A | BS47: N/A | BT47: N/A | BU47: N/A | BV47: N/A | BW47: N/A | BX47: N/A
B48: Contaminated (E. coli detected in 100 mL) | C48: N/A | D48: N/A | E48: N/A | F48: N/A | G48: N/A | H48: N/A | I48: N/A | J48: N/A | K48: N/A | L48: N/A | M48: N/A | N48: N/A | O48: N/A | P48: N/A | Q48: N/A | R48: N/A | S48: N/A | T48: N/A | U48: N/A | V48: N/A | W48: N/A | X48: N/A | BB48: Contaminated (E. coli detected in 100 mL) | BC48: N/A | BD48: N/A | BE48: N/A | BF48: N/A | BG48: N/A | BH48: N/A | BI48: N/A | BJ48: N/A | BK48: N/A | BL48: N/A | BM48: N/A | BN48: N/A | BO48: N/A | BP48: N/A | BQ48: N/A | BR48: N/A | BS48: N/A | BT48: N/A | BU48: N/A | BV48: N/A | BW48: N/A | BX48: N/A
B49: Highly contaminated (>100 CFU/100 mL) | C49: N/A | D49: N/A | E49: N/A | F49: N/A | G49: N/A | H49: N/A | I49: N/A | J49: N/A | K49: N/A | L49: N/A | M49: N/A | N49: N/A | O49: N/A | P49: N/A | Q49: N/A | R49: N/A | S49: N/A | T49: N/A | U49: N/A | V49: N/A | W49: N/A | X49: N/A | BB49: Highly contaminated (>100 CFU/100 mL) | BC49: N/A | BD49: N/A | BE49: N/A | BF49: N/A | BG49: N/A | BH49: N/A | BI49: N/A | BJ49: N/A | BK49: N/A | BL49: N/A | BM49: N/A | BN49: N/A | BO49: N/A | BP49: N/A | BQ49: N/A | BR49: N/A | BS49: N/A | BT49: N/A | BU49: N/A | BV49: N/A | BW49: N/A | BX49: N/A
A50: Microbiological quality of improved water sources at point of collection | B50: Not contaminated (No E. coli in 100 mL) | C50: N/A | D50: N/A | E50: N/A | F50: N/A | G50: N/A | H50: N/A | I50: N/A | J50: N/A | K50: N/A | L50: N/A | M50: N/A | N50: N/A | O50: N/A | P50: N/A | Q50: N/A | R50: N/A | S50: N/A | T50: N/A | U50: N/A | V50: N/A | W50: N/A | X50: N/A | BA50: Microbiological quality of improved water sources at point of collection | BB50: Not contaminated (No E. coli in 100 mL) | BC50: N/A | BD50: N/A | BE50: N/A | BF50: N/A | BG50: N/A | BH50: N/A | BI50: N/A | BJ50: N/A | BK50: N/A | BL50: N/A | BM50: N/A | BN50: N/A | BO50: N/A | BP50: N/A | BQ50: N/A | BR50: N/A | BS50: N/A | BT50: N/A | BU50: N/A | BV50: N/A | BW50: N/A | BX50: N/A
B51: Contaminated (E. coli detected in 100 mL) | C51: N/A | D51: N/A | E51: N/A | F51: N/A | G51: N/A | H51: N/A | I51: N/A | J51: N/A | K51: N/A | L51: N/A | M51: N/A | N51: N/A | O51: N/A | P51: N/A | Q51: N/A | R51: N/A | S51: N/A | T51: N/A | U51: N/A | V51: N/A | W51: N/A | X51: N/A | BB51: Contaminated (E. coli detected in 100 mL) | BC51: N/A | BD51: N/A | BE51: N/A | BF51: N/A | BG51: N/A | BH51: N/A | BI51: N/A | BJ51: N/A | BK51: N/A | BL51: N/A | BM51: N/A | BN51: N/A | BO51: N/A | BP51: N/A | BQ51: N/A | BR51: N/A | BS51: N/A | BT51: N/A | BU51: N/A | BV51: N/A | BW51: N/A | BX51: N/A
B52: Highly contaminated (>100 CFU/100 mL) | C52: N/A | D52: N/A | E52: N/A | F52: N/A | G52: N/A | H52: N/A | I52: N/A | J52: N/A | K52: N/A | L52: N/A | M52: N/A | N52: N/A | O52: N/A | P52: N/A | Q52: N/A | R52: N/A | S52: N/A | T52: N/A | U52: N/A | V52: N/A | W52: N/A | X52: N/A | BB52: Highly contaminated (>100 CFU/100 mL) | BC52: N/A | BD52: N/A | BE52: N/A | BF52: N/A | BG52: N/A | BH52: N/A | BI52: N/A | BJ52: N/A | BK52: N/A | BL52: N/A | BM52: N/A | BN52: N/A | BO52: N/A | BP52: N/A | BQ52: N/A | BR52: N/A | BS52: N/A | BT52: N/A | BU52: N/A | BV52: N/A | BW52: N/A | BX52: N/A
A53: Microbiological quality of piped on premises at point of collection | B53: Not contaminated (No E. coli in 100 mL) | C53: N/A | D53: N/A | E53: N/A | F53: N/A | G53: N/A | H53: N/A | I53: N/A | J53: N/A | K53: N/A | L53: N/A | M53: N/A | N53: N/A | O53: N/A | P53: N/A | Q53: N/A | R53: N/A | S53: N/A | T53: N/A | U53: N/A | V53: N/A | W53: N/A | X53: N/A | BA53: Microbiological quality of piped on premises at point of collection | BB53: Not contaminated (No E. coli in 100 mL) | BC53: N/A | BD53: N/A | BE53: N/A | BF53: N/A | BG53: N/A | BH53: N/A | BI53: N/A | BJ53: N/A | BK53: N/A | BL53: N/A | BM53: N/A | BN53: N/A | BO53: N/A | BP53: N/A | BQ53: N/A | BR53: N/A | BS53: N/A | BT53: N/A | BU53: N/A | BV53: N/A | BW53: N/A | BX53: N/A
B54: Contaminated (E. coli detected in 100 mL) | C54: N/A | D54: N/A | E54: N/A | F54: N/A | G54: N/A | H54: N/A | I54: N/A | J54: N/A | K54: N/A | L54: N/A | M54: N/A | N54: N/A | O54: N/A | P54: N/A | Q54: N/A | R54: N/A | S54: N/A | T54: N/A | U54: N/A | V54: N/A | W54: N/A | X54: N/A | BB54: Contaminated (E. coli detected in 100 mL) | BC54: N/A | BD54: N/A | BE54: N/A | BF54: N/A | BG54: N/A | BH54: N/A | BI54: N/A | BJ54: N/A | BK54: N/A | BL54: N/A | BM54: N/A | BN54: N/A | BO54: N/A | BP54: N/A | BQ54: N/A | BR54: N/A | BS54: N/A | BT54: N/A | BU54: N/A | BV54: N/A | BW54: N/A | BX54: N/A
B55: Highly contaminated (>100 CFU/100 mL) | C55: N/A | D55: N/A | E55: N/A | F55: N/A | G55: N/A | H55: N/A | I55: N/A | J55: N/A | K55: N/A | L55: N/A | M55: N/A | N55: N/A | O55: N/A | P55: N/A | Q55: N/A | R55: N/A | S55: N/A | T55: N/A | U55: N/A | V55: N/A | W55: N/A | X55: N/A | BB55: Highly contaminated (>100 CFU/100 mL) | BC55: N/A | BD55: N/A | BE55: N/A | BF55: N/A | BG55: N/A | BH55: N/A | BI55: N/A | BJ55: N/A | BK55: N/A | BL55: N/A | BM55: N/A | BN55: N/A | BO55: N/A | BP55: N/A | BQ55: N/A | BR55: N/A | BS55: N/A | BT55: N/A | BU55: N/A | BV55: N/A | BW55: N/A | BX55: N/A
C56: NATIONAL wealth index quintile | H56: URBAN wealth index quintile | M56: RURAL wealth index quintile | R56: region | BA56: Raw numbers of respondents: | BB56: Use of drinking water sources | BC56: NATIONAL wealth index quintile | BH56: URBAN wealth index quintile | BM56: RURAL wealth index quintile | BR56: SUB-REGIONS:
A57: Percentage based on weighted population | C57: Poorest | D57: Poor | E57: Middle | F57: Rich | G57: Richest | H57: Poorest | I57: Poor | J57: Middle | K57: Rich | L57: Richest | M57: Poorest | N57: Poor | O57: Middle | P57: Rich | Q57: Richest | R57: Bangkok Vicinity | S57: Central | T57: East | U57: North | V57: Northeast | W57: South | X57: West | BA57: Water data, raw numbers (weighted) | BC57: Poorest | BD57: Poor | BE57: Middle | BF57: Rich | BG57: Richest | BH57: Poorest | BI57: Poor | BJ57: Middle | BK57: Rich | BL57: Richest | BM57: Poorest | BN57: Poor | BO57: Middle | BP57: Rich | BQ57: Richest | BR57: Bangkok Vicinity | BS57: Central | BT57: East | BU57: North | BV57: Northeast | BW57: South | BX57: West
A58: Drinking water | B58: Bottle - water | C58: 23.5305033 | D58: 27.67701033 | E58: 29.05673903 | F58: 26.07738262 | G58: 19.53707947 | H58: 57.58901525 | I58: 37.63166472 | J58: 26.33311041 | K58: 27.60385826 | L58: 14.54173485 | M58: 0.9883944309 | N58: 3.45514278 | O58: 4.188164059 | P58: 7.002738487 | Q58: 26.37769836 | R58: 31.95643441 | S58: 12.15856238 | T58: 26.58299013 | U58: 14.77337662 | V58: 4.574343139 | W58: 19.26642825 | X58: 10.37028523
B59: Inside piped water supply, private | C59: 13.84418414 | D59: 26.83548227 | E59: 42.2370343 | F59: 62.22663576 | G59: 76.83454734 | H59: 28.2472506 | I59: 49.76500421 | J59: 66.37515171 | K59: 68.83000061 | L59: 82.81727525 | M59: 9.039561634 | N59: 12.58428136 | O59: 11.16789484 | P59: 11.95066251 | Q59: 13.16935403 | R59: 59.59942902 | S59: 12.29552953 | T59: 7.722121281 | U59: 27.04765435 | V59: 7.596281146 | W59: 8.95737786 | X59: 11.92064944
B60: Inside piped water supply, shared | C60: 3.995838835 | D60: 5.906007785 | E60: 2.607274439 | F60: 0.08978307423 | G60: 0.2706500449 | H60: 10.00781953 | I60: 6.628611905 | J60: 0.3488965164 | K60: 0.04350520303 | L60: 0.3854362079 | M60: 0.4568372627 | N60: 0.5278558154 | O60: 0.2510157727 | P60: 1.329465563 | Q60: 0.2201211021 | R60: 3.635702696 | S60: 0.1036572811 | T60: 0.1574779211 | U60: 0.9971414379 | V60: 0.1874959356 | W60: 0.1910409599 | X60: 0.07405134998
B61: Inside piped underground water, private | C61: 2.620935393 | D61: 2.147732239 | E61: 1.16056876 | F61: 1.261170514 | G61: 1.019419089 | H61: 0.08426561526 | I61: 0.1941829641 | J61: 0.5648897947 | K61: 0.5764479871 | L61: 1.108491923 | M61: 4.024478673 | N61: 3.812737233 | O61: 4.123893427 | P61: 4.722096453 | Q61: 4.122443695 | R61: 0.4769823267 | S61: 0.7601245358 | T61: 0.7094492656 | U61: 13.04583941 | V61: 1.254413886 | W61: 3.127341634 | X61: 2.579626145
B62: Inside piped underground water, shared | C62: 0.3287515526 | D62: 0.1510679296 | E62: 0.04458812998 | F62: 0.003151192624 | G62: 0 | H62: 0.3027572805 | I62: 0.005359374475 | J62: 0.003433092698 | K62: 0 | L62: 0 | M62: 0.560653749 | N62: 0.2130758339 | O62: 0.04554180626 | P62: 0.1385509911 | Q62: 0.04828789951 | R62: 0.07029858964 | S62: 0.01256971676 | T62: 0 | U62: 0.5752047498 | V62: 0.0685797564 | W62: 0.1373253094 | X62: 0.03869295209
B63: Water supply piped | C63: 1.619801229 | D63: 0.8646725693 | E63: 0.9120074093 | F63: 0.01754025617 | G63: 0.01383502986 | H63: 2.529854486 | I63: 1.469206633 | J63: 0.02901603364 | K63: 0.008187758695 | L63: 0.007861010877 | M63: 0.5654025851 | N63: 0.4416679041 | O63: 0.6034586251 | P63: 0.3029410931 | Q63: 0.1400824236 | R63: 0.810689674 | S63: 0.2853278897 | T63: 0.2963432603 | U63: 0.5793589809 | V63: 0.1717615024 | W63: 0.9120581766 | X63: 0.8882626904
B64: Well or public tap | C64: 13.54522131 | D64: 7.077797299 | E64: 4.769209733 | F64: 1.641628937 | G64: 0.2310378453 | H64: 0.1569756439 | I64: 0.2192548785 | J64: 0.3935292035 | K64: 0.1428029414 | L64: 0.05648836084 | M64: 24.18046551 | N64: 16.81516758 | O64: 16.35570719 | P64: 15.18681951 | Q64: 13.00482924 | R64: 0.06861773581 | S64: 2.51690689 | T64: 19.70897249 | U64: 18.03661788 | V64: 11.9955146 | W64: 38.39376268 | X64: 3.092902409
B65: River, stream, etc. | C65: 0.5152427295 | D65: 0.1932375008 | E65: 0.02625049419 | F65: 0 | G65: 0 | H65: 0.0002203361165 | I65: 0.004063839549 | J65: 0.004609968601 | K65: 0 | L65: 0 | M65: 1.177189815 | N65: 0.3782486643 | O65: 0.598028176 | P65: 0.1493648913 | Q65: 0.04121407551 | R65: 0 | S65: 1.113655342 | T65: 0.1231019824 | U65: 0.6707108828 | V65: 0.06846373961 | W65: 0.4560487873 | X65: 2.702625971
B66: Rain water | C66: 38.43614936 | D66: 28.93977077 | E66: 19.06910352 | F66: 8.527148919 | G66: 1.704998448 | H66: 0.9077221001 | I66: 4.075216525 | J66: 5.938445699 | K66: 2.53841593 | L66: 0.8830275907 | M66: 54.71890276 | N66: 61.41628393 | O66: 62.23146118 | P66: 58.84270644 | Q66: 41.93831065 | R66: 3.21635408 | S66: 70.02260285 | T66: 44.153585 | U66: 19.67894334 | V66: 74.03712257 | W66: 28.10740604 | X66: 68.08904827
B67: Other | C67: 1.563372156 | D67: 0.2072213072 | E67: 0.1172241788 | F67: 0.1555587232 | G67: 0.3884327334 | H67: 0.1741191477 | I67: 0.007434959319 | J67: 0.008917574867 | K67: 0.2567813129 | L67: 0.1996848076 | M67: 4.28811358 | N67: 0.3555389039 | O67: 0.434834926 | P67: 0.3746540703 | Q67: 0.9376585226 | R67: 0.1654914625 | S67: 0.7310635843 | T67: 0.5459586762 | U67: 4.595152344 | V67: 0.04602373159 | W67: 0.4512102971 | X67: 0.2438555394
A108: =A1026 -> Thailand
A109: =A1034 -> 2000
A110: Use of sanitation facilities
A111: by wealth quintile and sub-national region
A112: Notes:
A113: WHO/UNICEF JMP customised wealth index excludes water,
A114: sanitation and hygiene assets.
A115: Survey used for analysis: | B115: =A1025 -> SES00
A117: =B1029 -> Ratio of Shared improved based on: | B117: MICS06
A120: Use of sanitation facilities | C120: NATIONAL wealth index quintile | H120: URBAN wealth index quintile | M120: RURAL wealth index quintile | R120: region | BA120: Raw numbers of respondents: | BB120: Use of sanitation facilities | BC120: NATIONAL wealth index quintile | BH120: URBAN wealth index quintile | BM120: RURAL wealth index quintile | BR120: SUB-REGIONS:
A121: Weighted percentage (used in graphs) | C121: Poorest | D121: Poor | E121: Middle | F121: Rich | G121: Richest | H121: Poorest | I121: Poor | J121: Middle | K121: Rich | L121: Richest | M121: Poorest | N121: Poor | O121: Middle | P121: Rich | Q121: Richest | R121: Bangkok Vicinity | S121: Central | T121: East | U121: North | V121: Northeast | W121: South | X121: West | BA121: Sanitation data, raw numbers (weighted) | BC121: Poorest | BD121: Poor | BE121: Middle | BF121: Rich | BG121: Richest | BH121: Poorest | BI121: Poor | BJ121: Middle | BK121: Rich | BL121: Richest | BM121: Poorest | BN121: Poor | BO121: Middle | BP121: Rich | BQ121: Richest | BR121: Bangkok Vicinity | BS121: Central | BT121: East | BU121: North | BV121: Northeast | BW121: South | BX121: West
A122: Sanitation | B122: Improved | C122: =C154+C155+C156+C157+C158+C159 -> 98.13583092 | D122: =D154+D155+D156+D157+D158+D159 -> 99.80331867 | E122: 99.98071582 | F122: 99.99568528 | G122: 100 | H122: 99.98755856 | I122: 99.962834 | J122: 100 | K122: 99.99370048 | L122: 100 | M122: 94.95653402 | N122: 99.08499659 | O122: 99.4898691 | P122: 99.88842455 | Q122: 100 | R122: 99.99129403 | S122: 99.71557455 | T122: 99.10856066 | U122: 98.80798225 | V122: 98.92851514 | W122: 97.22936661 | X122: 99.48634481 | BA122: Sanitation | BB122: Improved | BC122: N/A | BD122: N/A | BE122: N/A | BF122: N/A | BG122: N/A | BH122: N/A | BI122: N/A | BJ122: N/A | BK122: N/A | BL122: N/A | BM122: N/A | BN122: N/A | BO122: N/A | BP122: N/A | BQ122: N/A | BR122: N/A | BS122: N/A | BT122: N/A | BU122: N/A | BV122: N/A | BW122: N/A | BX122: N/A
B123: Not Improved | C123: =100-C122 -> 1.864169085 | D123: =100-D122 -> 0.1966813332 | E123: 0.01928418236 | F123: 0.004314724086 | G123: 0 | H123: 0.0124414442 | I123: 0.03716600234 | J123: 0 | K123: 0.006299522489 | L123: 1.136868377e-13 | M123: 5.043465976 | N123: 0.9150034136 | O123: 0.5101308967 | P123: 0.1115754546 | Q123: -1.98951966e-13 | R123: 0.008705965389 | S123: 0.2844254533 | T123: 0.8914393396 | U123: 1.192017748 | V123: 1.071484861 | W123: 2.770633387 | X123: 0.5136551908 | BB123: Not Improved | BC123: N/A | BD123: N/A | BE123: N/A | BF123: N/A | BG123: N/A | BH123: N/A | BI123: N/A | BJ123: N/A | BK123: N/A | BL123: N/A | BM123: N/A | BN123: N/A | BO123: N/A | BP123: N/A | BQ123: N/A | BR123: N/A | BS123: N/A | BT123: N/A | BU123: N/A | BV123: N/A | BW123: N/A | BX123: N/A
A124: Sanitation ladder | B124: Basic | C124: =C122*MICS06!C129/100 -> 91.81915653 | D124: =D122*MICS06!D129/100 -> 95.01466595 | E124: =E122*MICS06!E129/100 -> 94.68256146 | F124: =F122*MICS06!F129/100 -> 97.36617214 | G124: =G122*MICS06!G129/100 -> 98.85699966 | H124: =H122*MICS06!H129/100 -> 88.62821122 | I124: =I122*MICS06!I129/100 -> 93.03407141 | J124: =J122*MICS06!J129/100 -> 97.46984411 | K124: =K122*MICS06!K129/100 -> 98.87516379 | L124: =L122*MICS06!L129/100 -> 98.13032403 | M124: =M122*MICS06!M129/100 -> 88.44707601 | N124: =N122*MICS06!N129/100 -> 95.671858 | O124: =O122*MICS06!O129/100 -> 95.11399058 | P124: =P122*MICS06!P129/100 -> 96.7757888 | Q124: =Q122*MICS06!Q129/100 -> 98.99607048 | R124: =R122*R129/100 -> 95.9303361 | S124: =S122*S129/100 -> 95.66581444 | T124: 95.08345328 | U124: 94.79508229 | V124: 94.91071996 | W124: 93.28057915 | X124: 95.44589443 | BA124: Sanitation ladder | BB124: Basic | BC124: N/A | BD124: N/A | BE124: N/A | BF124: N/A | BG124: N/A | BH124: N/A | BI124: N/A | BJ124: N/A | BK124: N/A | BL124: N/A | BM124: N/A | BN124: N/A | BO124: N/A | BP124: N/A | BQ124: N/A | BR124: N/A | BS124: N/A | BT124: N/A | BU124: N/A | BV124: N/A | BW124: N/A | BX124: N/A
B125: Limited | C125: =C122*MICS06!C128/100 -> 6.316674388 | D125: =D122*MICS06!D128/100 -> 4.788652715 | E125: =E122*MICS06!E128/100 -> 5.298154362 | F125: =F122*MICS06!F128/100 -> 2.629513136 | G125: =G122*MICS06!G128/100 -> 1.143000344 | H125: =H122*MICS06!H128/100 -> 11.35934733 | I125: =I122*MICS06!I128/100 -> 6.928762587 | J125: =J122*MICS06!J128/100 -> 2.530155894 | K125: =K122*MICS06!K128/100 -> 1.11853669 | L125: =L122*MICS06!L128/100 -> 1.869675974 | M125: =M122*MICS06!M128/100 -> 6.509458013 | N125: =N122*MICS06!N128/100 -> 3.413138583 | O125: =O122*MICS06!O128/100 -> 4.375878528 | P125: =P122*MICS06!P128/100 -> 3.112635746 | Q125: =Q122*MICS06!Q128/100 -> 1.003929521 | R125: =R122*R128/100 -> 4.060957937 | S125: =S122*S128/100 -> 4.04976011 | T125: 4.025107385 | U125: 4.01289996 | V125: 4.017795176 | W125: 3.948787461 | X125: 4.040450376 | BB125: Limited | BC125: N/A | BD125: N/A | BE125: N/A | BF125: N/A | BG125: N/A | BH125: N/A | BI125: N/A | BJ125: N/A | BK125: N/A | BL125: N/A | BM125: N/A | BN125: N/A | BO125: N/A | BP125: N/A | BQ125: N/A | BR125: N/A | BS125: N/A | BT125: N/A | BU125: N/A | BV125: N/A | BW125: N/A | BX125: N/A
B126: Unimproved | C126: =100-(C124+C125+C127) -> 0.3249794423 | D126: =100-(D124+D125+D127) -> 0.03442483468 | E126: 0.01362109587 | F126: 0.004314724086 | G126: -1.98951966e-13 | H126: 0.004836202652 | I126: 0.03412474261 | J126: 0 | K126: 0.006299522489 | L126: 0 | M126: 0.7517229574 | N126: 0.2715659817 | O126: 0.08992540064 | P126: 0 | Q126: -1.98951966e-13 | R126: -1.563194019e-13 | S126: 0.06855227412 | T126: 0.1582714189 | U126: 0.6527942195 | V126: 0.0007415215793 | W126: 0.4709548331 | X126: 0.1739000234 | BB126: Unimproved | BC126: N/A | BD126: N/A | BE126: N/A | BF126: N/A | BG126: N/A | BH126: N/A | BI126: N/A | BJ126: N/A | BK126: N/A | BL126: N/A | BM126: N/A | BN126: N/A | BO126: N/A | BP126: N/A | BQ126: N/A | BR126: N/A | BS126: N/A | BT126: N/A | BU126: N/A | BV126: N/A | BW126: N/A | BX126: N/A
B127: Open defecation | C127: =C153 -> 1.539189643 | D127: =D153 -> 0.1622564985 | E127: 0.005663086494 | F127: 0 | G127: 0 | H127: 0.007605241543 | I127: 0.003041259723 | J127: 0 | K127: 0 | L127: 0 | M127: 4.291743019 | N127: 0.6434374319 | O127: 0.4202054961 | P127: 0.1115754546 | Q127: 0 | R127: 0.008705965389 | S127: 0.2158731792 | T127: 0.7331679207 | U127: 0.5392235282 | V127: 1.07074334 | W127: 2.299678554 | X127: 0.3397551674 | BB127: Open defecation | BC127: N/A | BD127: N/A | BE127: N/A | BF127: N/A | BG127: N/A | BH127: N/A | BI127: N/A | BJ127: N/A | BK127: N/A | BL127: N/A | BM127: N/A | BN127: N/A | BO127: N/A | BP127: N/A | BQ127: N/A | BR127: N/A | BS127: N/A | BT127: N/A | BU127: N/A | BV127: N/A | BW127: N/A | BX127: N/A
A128: Shared among Improved Sanitation | B128: Yes | C128: N/A | D128: N/A | E128: N/A | F128: N/A | G128: N/A | H128: N/A | I128: N/A | J128: N/A | K128: N/A | L128: N/A | M128: N/A | N128: N/A | O128: N/A | P128: N/A | Q128: N/A | R128: =100-R129 -> 4.061311514 | S128: =100-S129 -> 4.061311514 | T128: 4.061311514 | U128: 4.061311514 | V128: 4.061311514 | W128: 4.061311514 | X128: 4.061311514 | BA128: Shared among improved sanitation facilities | BB128: Yes | BC128: N/A | BD128: N/A | BE128: N/A | BF128: N/A | BG128: N/A | BH128: N/A | BI128: N/A | BJ128: N/A | BK128: N/A | BL128: N/A | BM128: N/A | BN128: N/A | BO128: N/A | BP128: N/A | BQ128: N/A | BR128: N/A | BS128: N/A | BT128: N/A | BU128: N/A | BV128: N/A | BW128: N/A | BX128: N/A
B129: No | C129: N/A | D129: N/A | E129: N/A | F129: N/A | G129: N/A | H129: N/A | I129: N/A | J129: N/A | K129: N/A | L129: N/A | M129: N/A | N129: N/A | O129: N/A | P129: N/A | Q129: N/A | R129: =SUM(MICS06!$C129:$G129)/5 -> 95.93868849 | S129: =SUM(MICS06!$C129:$G129)/5 -> 95.93868849 | T129: =SUM(MICS06!$C129:$G129)/5 -> 95.93868849 | U129: =SUM(MICS06!$C129:$G129)/5 -> 95.93868849 | V129: =SUM(MICS06!$C129:$G129)/5 -> 95.93868849 | W129: =SUM(MICS06!$C129:$G129)/5 -> 95.93868849 | X129: =SUM(MICS06!$C129:$G129)/5 -> 95.93868849 | BB129: No | BC129: N/A | BD129: N/A | BE129: N/A | BF129: N/A | BG129: N/A | BH129: N/A | BI129: N/A | BJ129: N/A | BK129: N/A | BL129: N/A | BM129: N/A | BN129: N/A | BO129: N/A | BP129: N/A | BQ129: N/A | BR129: N/A | BS129: N/A | BT129: N/A | BU129: N/A | BV129: N/A | BW129: N/A | BX129: N/A
A130: Manually calculated ratios | B130: Improved latrines
B131: Other
B132: Other
C133: NATIONAL wealth index quintile | H133: URBAN wealth index quintile | M133: RURAL wealth index quintile | R133: region | BA133: Raw numbers of respondents: | BB133: Use of sanitation facilities | BC133: NATIONAL wealth index quintile | BH133: URBAN wealth index quintile | BM133: RURAL wealth index quintile | BR133: SUB-REGIONS:
A134: Percentage based on weighted population | C134: Poorest | D134: Poor | E134: Middle | F134: Rich | G134: Richest | H134: Poorest | I134: Poor | J134: Middle | K134: Rich | L134: Richest | M134: Poorest | N134: Poor | O134: Middle | P134: Rich | Q134: Richest | R134: Bangkok Vicinity | S134: Central | T134: East | U134: North | V134: Northeast | W134: South | X134: West | BA134: Sanitation data, raw numbers (weighted) | BC134: Poorest | BD134: Poor | BE134: Middle | BF134: Rich | BG134: Richest | BH134: Poorest | BI134: Poor | BJ134: Middle | BK134: Rich | BL134: Richest | BM134: Poorest | BN134: Poor | BO134: Middle | BP134: Rich | BQ134: Richest | BR134: Bangkok Vicinity | BS134: Central | BT134: East | BU134: North | BV134: Northeast | BW134: South | BX134: West
A135: Sanitation type | B135: Sewer connection | C135: N/A | D135: N/A | E135: N/A | F135: N/A | G135: N/A | H135: N/A | I135: N/A | J135: N/A | K135: N/A | L135: N/A | M135: N/A | N135: N/A | O135: N/A | P135: N/A | Q135: N/A | R135: N/A | S135: N/A | T135: N/A | U135: N/A | V135: N/A | W135: N/A | X135: N/A | BA135: Sanitation type | BB135: Sewer connection | BC135: N/A | BD135: N/A | BE135: N/A | BF135: N/A | BG135: N/A | BH135: N/A | BI135: N/A | BJ135: N/A | BK135: N/A | BL135: N/A | BM135: N/A | BN135: N/A | BO135: N/A | BP135: N/A | BQ135: N/A | BR135: N/A | BS135: N/A | BT135: N/A | BU135: N/A | BV135: N/A | BW135: N/A | BX135: N/A
B136: Septic tank connection | C136: N/A | D136: N/A | E136: N/A | F136: N/A | G136: N/A | H136: N/A | I136: N/A | J136: N/A | K136: N/A | L136: N/A | M136: N/A | N136: N/A | O136: N/A | P136: N/A | Q136: N/A | R136: N/A | S136: N/A | T136: N/A | U136: N/A | V136: N/A | W136: N/A | X136: N/A | BB136: Septic tank connection | BC136: N/A | BD136: N/A | BE136: N/A | BF136: N/A | BG136: N/A | BH136: N/A | BI136: N/A | BJ136: N/A | BK136: N/A | BL136: N/A | BM136: N/A | BN136: N/A | BO136: N/A | BP136: N/A | BQ136: N/A | BR136: N/A | BS136: N/A | BT136: N/A | BU136: N/A | BV136: N/A | BW136: N/A | BX136: N/A
B137: Improved latrines | C137: N/A | D137: N/A | E137: N/A | F137: N/A | G137: N/A | H137: N/A | I137: N/A | J137: N/A | K137: N/A | L137: N/A | M137: N/A | N137: N/A | O137: N/A | P137: N/A | Q137: N/A | R137: N/A | S137: N/A | T137: N/A | U137: N/A | V137: N/A | W137: N/A | X137: N/A | BB137: Improved latrines | BC137: N/A | BD137: N/A | BE137: N/A | BF137: N/A | BG137: N/A | BH137: N/A | BI137: N/A | BJ137: N/A | BK137: N/A | BL137: N/A | BM137: N/A | BN137: N/A | BO137: N/A | BP137: N/A | BQ137: N/A | BR137: N/A | BS137: N/A | BT137: N/A | BU137: N/A | BV137: N/A | BW137: N/A | BX137: N/A
B138: Unimproved facilities | C138: N/A | D138: N/A | E138: N/A | F138: N/A | G138: N/A | H138: N/A | I138: N/A | J138: N/A | K138: N/A | L138: N/A | M138: N/A | N138: N/A | O138: N/A | P138: N/A | Q138: N/A | R138: N/A | S138: N/A | T138: N/A | U138: N/A | V138: N/A | W138: N/A | X138: N/A | BB138: Unimproved facilities | BC138: N/A | BD138: N/A | BE138: N/A | BF138: N/A | BG138: N/A | BH138: N/A | BI138: N/A | BJ138: N/A | BK138: N/A | BL138: N/A | BM138: N/A | BN138: N/A | BO138: N/A | BP138: N/A | BQ138: N/A | BR138: N/A | BS138: N/A | BT138: N/A | BU138: N/A | BV138: N/A | BW138: N/A | BX138: N/A
B139: Open defecation | C139: N/A | D139: N/A | E139: N/A | F139: N/A | G139: N/A | H139: N/A | I139: N/A | J139: N/A | K139: N/A | L139: N/A | M139: N/A | N139: N/A | O139: N/A | P139: N/A | Q139: N/A | R139: N/A | S139: N/A | T139: N/A | U139: N/A | V139: N/A | W139: N/A | X139: N/A | BB139: Open defecation | BC139: N/A | BD139: N/A | BE139: N/A | BF139: N/A | BG139: N/A | BH139: N/A | BI139: N/A | BJ139: N/A | BK139: N/A | BL139: N/A | BM139: N/A | BN139: N/A | BO139: N/A | BP139: N/A | BQ139: N/A | BR139: N/A | BS139: N/A | BT139: N/A | BU139: N/A | BV139: N/A | BW139: N/A | BX139: N/A
A140: Septic tank emptying practices | B140: Not emptied/treated and disposed in situ | C140: N/A | D140: N/A | E140: N/A | F140: N/A | G140: N/A | H140: N/A | I140: N/A | J140: N/A | K140: N/A | L140: N/A | M140: N/A | N140: N/A | O140: N/A | P140: N/A | Q140: N/A | R140: N/A | S140: N/A | T140: N/A | U140: N/A | V140: N/A | W140: N/A | X140: N/A | BA140: Septic tank emptying practices | BB140: Not emptied/treated and disposed in situ | BC140: N/A | BD140: N/A | BE140: N/A | BF140: N/A | BG140: N/A | BH140: N/A | BI140: N/A | BJ140: N/A | BK140: N/A | BL140: N/A | BM140: N/A | BN140: N/A | BO140: N/A | BP140: N/A | BQ140: N/A | BR140: N/A | BS140: N/A | BT140: N/A | BU140: N/A | BV140: N/A | BW140: N/A | BX140: N/A
B141: Emptied and buried on site | C141: N/A | D141: N/A | E141: N/A | F141: N/A | G141: N/A | H141: N/A | I141: N/A | J141: N/A | K141: N/A | L141: N/A | M141: N/A | N141: N/A | O141: N/A | P141: N/A | Q141: N/A | R141: N/A | S141: N/A | T141: N/A | U141: N/A | V141: N/A | W141: N/A | X141: N/A | BB141: Emptied and buried on site | BC141: N/A | BD141: N/A | BE141: N/A | BF141: N/A | BG141: N/A | BH141: N/A | BI141: N/A | BJ141: N/A | BK141: N/A | BL141: N/A | BM141: N/A | BN141: N/A | BO141: N/A | BP141: N/A | BQ141: N/A | BR141: N/A | BS141: N/A | BT141: N/A | BU141: N/A | BV141: N/A | BW141: N/A | BX141: N/A
B142: Emptied and discharged locally | C142: N/A | D142: N/A | E142: N/A | F142: N/A | G142: N/A | H142: N/A | I142: N/A | J142: N/A | K142: N/A | L142: N/A | M142: N/A | N142: N/A | O142: N/A | P142: N/A | Q142: N/A | R142: N/A | S142: N/A | T142: N/A | U142: N/A | V142: N/A | W142: N/A | X142: N/A | BB142: Emptied and discharged locally | BC142: N/A | BD142: N/A | BE142: N/A | BF142: N/A | BG142: N/A | BH142: N/A | BI142: N/A | BJ142: N/A | BK142: N/A | BL142: N/A | BM142: N/A | BN142: N/A | BO142: N/A | BP142: N/A | BQ142: N/A | BR142: N/A | BS142: N/A | BT142: N/A | BU142: N/A | BV142: N/A | BW142: N/A | BX142: N/A
B143: Emptied and removed offsite | C143: N/A | D143: N/A | E143: N/A | F143: N/A | G143: N/A | H143: N/A | I143: N/A | J143: N/A | K143: N/A | L143: N/A | M143: N/A | N143: N/A | O143: N/A | P143: N/A | Q143: N/A | R143: N/A | S143: N/A | T143: N/A | U143: N/A | V143: N/A | W143: N/A | X143: N/A | BB143: Emptied and removed offsite | BC143: N/A | BD143: N/A | BE143: N/A | BF143: N/A | BG143: N/A | BH143: N/A | BI143: N/A | BJ143: N/A | BK143: N/A | BL143: N/A | BM143: N/A | BN143: N/A | BO143: N/A | BP143: N/A | BQ143: N/A | BR143: N/A | BS143: N/A | BT143: N/A | BU143: N/A | BV143: N/A | BW143: N/A | BX143: N/A
A144: Latrine emptying practices | B144: Not emptied/treated and disposed in situ | C144: N/A | D144: N/A | E144: N/A | F144: N/A | G144: N/A | H144: N/A | I144: N/A | J144: N/A | K144: N/A | L144: N/A | M144: N/A | N144: N/A | O144: N/A | P144: N/A | Q144: N/A | R144: N/A | S144: N/A | T144: N/A | U144: N/A | V144: N/A | W144: N/A | X144: N/A | BA144: Latrine emptying practices | BB144: Not emptied/treated and disposed in situ | BC144: N/A | BD144: N/A | BE144: N/A | BF144: N/A | BG144: N/A | BH144: N/A | BI144: N/A | BJ144: N/A | BK144: N/A | BL144: N/A | BM144: N/A | BN144: N/A | BO144: N/A | BP144: N/A | BQ144: N/A | BR144: N/A | BS144: N/A | BT144: N/A | BU144: N/A | BV144: N/A | BW144: N/A | BX144: N/A
B145: Emptied and buried on site | C145: N/A | D145: N/A | E145: N/A | F145: N/A | G145: N/A | H145: N/A | I145: N/A | J145: N/A | K145: N/A | L145: N/A | M145: N/A | N145: N/A | O145: N/A | P145: N/A | Q145: N/A | R145: N/A | S145: N/A | T145: N/A | U145: N/A | V145: N/A | W145: N/A | X145: N/A | BB145: Emptied and buried on site | BC145: N/A | BD145: N/A | BE145: N/A | BF145: N/A | BG145: N/A | BH145: N/A | BI145: N/A | BJ145: N/A | BK145: N/A | BL145: N/A | BM145: N/A | BN145: N/A | BO145: N/A | BP145: N/A | BQ145: N/A | BR145: N/A | BS145: N/A | BT145: N/A | BU145: N/A | BV145: N/A | BW145: N/A | BX145: N/A
B146: Emptied and discharged locally | C146: N/A | D146: N/A | E146: N/A | F146: N/A | G146: N/A | H146: N/A | I146: N/A | J146: N/A | K146: N/A | L146: N/A | M146: N/A | N146: N/A | O146: N/A | P146: N/A | Q146: N/A | R146: N/A | S146: N/A | T146: N/A | U146: N/A | V146: N/A | W146: N/A | X146: N/A | BB146: Emptied and discharged locally | BC146: N/A | BD146: N/A | BE146: N/A | BF146: N/A | BG146: N/A | BH146: N/A | BI146: N/A | BJ146: N/A | BK146: N/A | BL146: N/A | BM146: N/A | BN146: N/A | BO146: N/A | BP146: N/A | BQ146: N/A | BR146: N/A | BS146: N/A | BT146: N/A | BU146: N/A | BV146: N/A | BW146: N/A | BX146: N/A
B147: Emptied and removed offsite | C147: N/A | D147: N/A | E147: N/A | F147: N/A | G147: N/A | H147: N/A | I147: N/A | J147: N/A | K147: N/A | L147: N/A | M147: N/A | N147: N/A | O147: N/A | P147: N/A | Q147: N/A | R147: N/A | S147: N/A | T147: N/A | U147: N/A | V147: N/A | W147: N/A | X147: N/A | BB147: Emptied and removed offsite | BC147: N/A | BD147: N/A | BE147: N/A | BF147: N/A | BG147: N/A | BH147: N/A | BI147: N/A | BJ147: N/A | BK147: N/A | BL147: N/A | BM147: N/A | BN147: N/A | BO147: N/A | BP147: N/A | BQ147: N/A | BR147: N/A | BS147: N/A | BT147: N/A | BU147: N/A | BV147: N/A | BW147: N/A | BX147: N/A
A148: Shared among improved sanitation facilities | B148: Yes | C148: N/A | D148: N/A | E148: N/A | F148: N/A | G148: N/A | H148: N/A | I148: N/A | J148: N/A | K148: N/A | L148: N/A | M148: N/A | N148: N/A | O148: N/A | P148: N/A | Q148: N/A | R148: N/A | S148: N/A | T148: N/A | U148: N/A | V148: N/A | W148: N/A | X148: N/A | BA148: Shared among improved sanitation facilities | BB148: Yes | BC148: N/A | BD148: N/A | BE148: N/A | BF148: N/A | BG148: N/A | BH148: N/A | BI148: N/A | BJ148: N/A | BK148: N/A | BL148: N/A | BM148: N/A | BN148: N/A | BO148: N/A | BP148: N/A | BQ148: N/A | BR148: N/A | BS148: N/A | BT148: N/A | BU148: N/A | BV148: N/A | BW148: N/A | BX148: N/A
B149: No | C149: N/A | D149: N/A | E149: N/A | F149: N/A | G149: N/A | H149: N/A | I149: N/A | J149: N/A | K149: N/A | L149: N/A | M149: N/A | N149: N/A | O149: N/A | P149: N/A | Q149: N/A | R149: N/A | S149: N/A | T149: N/A | U149: N/A | V149: N/A | W149: N/A | X149: N/A | BB149: No | BC149: N/A | BD149: N/A | BE149: N/A | BF149: N/A | BG149: N/A | BH149: N/A | BI149: N/A | BJ149: N/A | BK149: N/A | BL149: N/A | BM149: N/A | BN149: N/A | BO149: N/A | BP149: N/A | BQ149: N/A | BR149: N/A | BS149: N/A | BT149: N/A | BU149: N/A | BV149: N/A | BW149: N/A | BX149: N/A
B150: DK/missing | C150: N/A | D150: N/A | E150: N/A | F150: N/A | G150: N/A | H150: N/A | I150: N/A | J150: N/A | K150: N/A | L150: N/A | M150: N/A | N150: N/A | O150: N/A | P150: N/A | Q150: N/A | R150: N/A | S150: N/A | T150: N/A | U150: N/A | V150: N/A | W150: N/A | X150: N/A | BB150: DK/missing | BC150: N/A | BD150: N/A | BE150: N/A | BF150: N/A | BG150: N/A | BH150: N/A | BI150: N/A | BJ150: N/A | BK150: N/A | BL150: N/A | BM150: N/A | BN150: N/A | BO150: N/A | BP150: N/A | BQ150: N/A | BR150: N/A | BS150: N/A | BT150: N/A | BU150: N/A | BV150: N/A | BW150: N/A | BX150: N/A
A151: Shared among all sanitation facilities | B151: Yes | C151: N/A | D151: N/A | E151: N/A | F151: N/A | G151: N/A | H151: N/A | I151: N/A | J151: N/A | K151: N/A | L151: N/A | M151: N/A | N151: N/A | O151: N/A | P151: N/A | Q151: N/A | R151: N/A | S151: N/A | T151: N/A | U151: N/A | V151: N/A | W151: N/A | X151: N/A | BA151: Shared among all sanitation facilities | BB151: Yes | BC151: N/A | BD151: N/A | BE151: N/A | BF151: N/A | BG151: N/A | BH151: N/A | BI151: N/A | BJ151: N/A | BK151: N/A | BL151: N/A | BM151: N/A | BN151: N/A | BO151: N/A | BP151: N/A | BQ151: N/A | BR151: N/A | BS151: N/A | BT151: N/A | BU151: N/A | BV151: N/A | BW151: N/A | BX151: N/A
B152: No | C152: N/A | D152: N/A | E152: N/A | F152: N/A | G152: N/A | H152: N/A | I152: N/A | J152: N/A | K152: N/A | L152: N/A | M152: N/A | N152: N/A | O152: N/A | P152: N/A | Q152: N/A | R152: N/A | S152: N/A | T152: N/A | U152: N/A | V152: N/A | W152: N/A | X152: N/A | BB152: No | BC152: N/A | BD152: N/A | BE152: N/A | BF152: N/A | BG152: N/A | BH152: N/A | BI152: N/A | BJ152: N/A | BK152: N/A | BL152: N/A | BM152: N/A | BN152: N/A | BO152: N/A | BP152: N/A | BQ152: N/A | BR152: N/A | BS152: N/A | BT152: N/A | BU152: N/A | BV152: N/A | BW152: N/A | BX152: N/A
A153: sanitation | B153: 0 | C153: 1.539189643 | D153: 0.1622564985 | E153: 0.005663086494 | F153: 0 | G153: 0 | H153: 0.007605241543 | I153: 0.003041259723 | J153: 0 | K153: 0 | L153: 0 | M153: 4.291743019 | N153: 0.6434374319 | O153: 0.4202054961 | P153: 0.1115754546 | Q153: 0 | R153: 0.008705965389 | S153: 0.2158731792 | T153: 0.7331679207 | U153: 0.5392235282 | V153: 1.07074334 | W153: 2.299678554 | X153: 0.3397551674 | BA153: sanitation | BB153: 0 | BC153: 3866.313761 | BD153: 408.51861 | BE153: 14.201682 | BF153: 0 | BG153: 0 | BH153: 13.179487 | BI153: 5.268618 | BJ153: 0 | BK153: 0 | BL153: 0 | BM153: 3352.336633 | BN153: 502.824885 | BO153: 328.282267 | BP153: 87.142163 | BQ153: 0 | BR153: 74.070455 | BS153: 45.465496 | BT153: 167.517566 | BU153: 469.971675 | BV153: 2046.162021 | BW153: 1411.860993 | BX153: 73.985847
B154: Flush latrine-Private | C154: 3.076637336 | D154: 5.144122906 | E154: 7.93229443 | F154: 19.38048377 | G154: 47.02069439 | H154: 7.069630105 | I154: 9.565105324 | J154: 16.43659851 | K154: 27.42901031 | L154: 53.88160241 | M154: 1.510431362 | N154: 1.339113259 | O154: 1.591240902 | P154: 1.965169653 | Q154: 5.760127014 | R154: 23.14881537 | S154: 3.545857274 | T154: 4.955289357 | U154: 1.990659566 | V154: 2.130491514 | W154: 3.655326786 | X154: 2.544838277 | BB154: Flush latrine-Private | BC154: 7728.251894 | BD154: 12951.53019 | BE154: 19892.31899 | BF154: 48638.25218 | BG154: 118223.6745 | BH154: 12251.30031 | BI154: 16570.39867 | BJ154: 28561.44068 | BK154: 47148.6088 | BL154: 93398.29934 | BM154: 1179.817702 | BN154: 1046.472333 | BO154: 1243.144546 | BP154: 1534.828022 | BQ154: 4499.717333 | BR154: 196950.391 | BS154: 746.800322 | BT154: 1132.207218 | BU154: 1735.001464 | BV154: 4071.312573 | BW154: 2244.145512 | BX154: 554.169689
B155: Flush latrine-Shared | C155: 0.9317966484 | D155: 1.713030978 | E155: 1.197578958 | F155: 0.01957569529 | G155: 0.001663599087 | H155: 2.446981689 | I155: 2.298894435 | J155: 0.4411310734 | K155: 0.004977263234 | L155: 0 | M155: 0.3284136083 | N155: 0.1097568036 | O155: 0.2711182761 | P155: 0.1322043375 | Q155: 0.06988760262 | R155: 1.046012135 | S155: 0.07547432772 | T155: 0.1736210147 | U155: 0.2161086117 | V155: 0.1674219605 | W155: 0.3096752739 | X155: 0.2601085774 | BB155: Flush latrine-Shared | BC155: 2340.594105 | BD155: 4312.955355 | BE155: 3003.244883 | BF155: 49.128165 | BG155: 4.182771 | BH155: 4240.491663 | BI155: 3982.559105 | BJ155: 766.54175 | BK155: 8.555578 | BL155: 0 | BM155: 256.528167 | BN155: 85.77128 | BO155: 211.809039 | BP155: 103.253641 | BQ155: 54.595056 | BR155: 8899.483435 | BS155: 15.895804 | BT155: 39.669725 | BU155: 188.354033 | BV155: 319.93891 | BW155: 190.121545 | BX155: 56.641827
B156: Moulded latrine-Private | C156: 78.19339319 | D156: 84.55506933 | E156: 86.17434196 | F156: 71.6564974 | G156: 27.04252288 | H156: 62.74371646 | I156: 81.70883598 | J156: 75.68858597 | K156: 54.76461864 | L156: 20.52303073 | M156: 87.31303408 | N156: 93.2562639 | O156: 96.13022614 | P156: 95.08852286 | Q156: 91.23647938 | R156: 58.37780748 | S156: 93.78702422 | T156: 90.92787589 | U156: 93.38072673 | V156: 93.96832028 | W156: 89.04933922 | X156: 93.66016315 | BB156: Moulded latrine-Private | BC156: 196415.1679 | BD156: 212887.1245 | BE156: 216104.8754 | BF156: 179832.8067 | BG156: 67992.7522 | BH156: 108731.5887 | BI156: 141550.7662 | BJ156: 131522.0456 | BK156: 94136.66595 | BL156: 35574.5947 | BM156: 68201.35349 | BN156: 72876.65878 | BO156: 75100.98953 | BP156: 74265.61326 | BQ156: 71272.45054 | BR156: 496679.0664 | BS156: 19752.67882 | BT156: 20775.61773 | BU156: 81387.94816 | BV156: 179570.9588 | BW156: 54670.80966 | BX156: 20395.64712
B157: Moulded latrine-Shared | C157: 15.46128867 | D157: 8.127853522 | E157: 3.590294851 | F157: 1.18686635 | G157: 0.001930636273 | H157: 27.23363812 | I157: 5.41253106 | J157: 2.093542965 | K157: 0.242025917 | L157: 0 | M157: 5.421503467 | N157: 4.294942408 | O157: 1.142745941 | P157: 2.402214327 | Q157: 0.3881967647 | R157: 7.342801691 | S157: 0.9003537959 | T157: 2.475081341 | U157: 1.944328259 | V157: 2.152207825 | W157: 2.853453589 | X157: 2.301758373 | BB157: Moulded latrine-Shared | BC157: 38837.44505 | BD157: 20463.7685 | BE157: 9003.610632 | BF157: 2978.620427 | BG157: 4.85418 | BH157: 47194.47469 | BI157: 9376.561413 | BJ157: 3637.894006 | BK157: 416.02614 | BL157: 0 | BM157: 4234.807303 | BN157: 3356.354193 | BO157: 892.761355 | BP157: 1876.1667 | BQ157: 303.252985 | BR157: 62472.64237 | BS157: 189.625372 | BT157: 565.517926 | BU157: 1694.620433 | BV157: 4112.811866 | BW157: 1751.844757 | BX157: 501.236064
B158: Flush and moulded-Private | C158: 0.1065188231 | D158: 0.2431657361 | E158: 1.06082961 | F158: 7.378882309 | G158: 25.64205929 | H158: 0.02852111847 | I158: 0.9434453306 | J158: 4.814161875 | K158: 17.55306835 | L158: 25.1730847 | M158: 0.2373211656 | N158: 0.08492021667 | O158: 0.2962997793 | P158: 0.2878338699 | Q158: 2.515774443 | R158: 9.786959771 | S158: 1.406864931 | T158: 0.5598527428 | U158: 1.170371731 | V158: 0.4565195091 | W158: 1.293350918 | X158: 0.6971727447 | BB158: Flush and moulded-Private | BC158: 267.566244 | BD158: 612.226502 | BE158: 2660.309849 | BF158: 18518.42002 | BG158: 64471.58022 | BH158: 49.425611 | BI158: 1634.405971 | BJ158: 8365.441228 | BK158: 30172.53425 | BL158: 43634.99218 | BM158: 185.374668 | BN158: 66.362316 | BO158: 231.481892 | BP158: 224.802723 | BQ158: 1965.281988 | BR158: 83267.56781 | BS158: 296.302728 | BT158: 127.91772 | BU158: 1020.062245 | BV158: 872.39663 | BW158: 794.037805 | BX158: 151.8179
B159: Flush and moulded-Shared | C159: 0.3661962427 | D159: 0.02007619649 | E159: 0.02537600784 | F159: 0.3733797516 | G159: 0.2911292094 | H159: 0.4650710613 | I159: 0.03402187316 | J159: 0.5259796109 | K159: 0 | L159: 0.4222821563 | M159: 0.1458303414 | N159: 0 | O159: 0.05823806867 | P159: 0.01247950086 | Q159: 0.02953479444 | R159: 0.2888975897 | S159: 0 | T159: 0.01684031353 | U159: 0.105787351 | V159: 0.05355404999 | W159: 0.06822082211 | X159: 0.02230368292 | BB159: Flush and moulded-Shared | BC159: 919.853885 | BD159: 50.546511 | BE159: 63.637028 | BF159: 937.0529 | BG159: 731.983339 | BH159: 805.943897 | BI159: 58.938818 | BJ159: 913.9808 | BK159: 0 | BL159: 731.983339 | BM159: 113.909988 | BN159: 0 | BO159: 45.498037 | BP159: 9.746684 | BQ159: 23.0721 | BR159: 2457.94406 | BS159: 0 | BT159: 3.847752 | BU159: 92.201204 | BV159: 102.340364 | BW159: 41.883383 | BX159: 4.8569
B160: Others | C160: 0.3249794423 | D160: 0.03442483468 | E160: 0.01362109587 | F160: 0.004314724086 | G160: 0 | H160: 0.004836202652 | I160: 0.03412474261 | J160: 0 | K160: 0.006299522489 | L160: 0 | M160: 0.7517229574 | N160: 0.2715659817 | O160: 0.08992540064 | P160: 0 | Q160: 0 | R160: 0 | S160: 0.06855227412 | T160: 0.1582714189 | U160: 0.6527942195 | V160: 0.0007415215793 | W160: 0.4709548331 | X160: 0.1739000234 | BB160: Others | BC160: 816.32078 | BD160: 86.672557 | BE160: 34.158488 | BF160: 10.828452 | BG160: 0 | BH160: 8.380887 | BI160: 59.117027 | BJ160: 0 | BK160: 10.828452 | BL160: 0 | BM160: 587.180639 | BN160: 212.219754 | BO160: 70.253518 | BP160: 0 | BQ160: 0 | BR160: 0 | BS160: 14.437936 | BT160: 36.162579 | BU160: 568.956614 | BV160: 1.417028 | BW160: 289.137261 | BX160: 37.868859
BB161: Total | BC161: 251191.5136 | BD161: 251773.3427 | BE161: 250776.3569 | BF161: 250965.1089 | BG161: 251429.0272 | BH161: 173294.7852 | BI161: 173238.0158 | BJ161: 173767.344 | BK161: 171893.2192 | BL161: 173339.8696 | BM161: 78111.30859 | BN161: 78146.66354 | BO161: 78124.22019 | BP161: 78101.55319 | BQ161: 78118.37 | BR161: 850801.1655 | BS161: 21061.20648 | BT161: 22848.45821 | BU161: 87157.11582 | BV161: 191097.3382 | BW161: 61393.84092 | BX161: 21776.22421
A208: =A1026 -> Thailand
A209: =A1034 -> 2000
A210: Access to hygiene facilities
A211: by wealth quintile and sub-national region
A212: Notes:
A213: WHO/UNICEF JMP customised wealth index excludes water,
A214: sanitation and hygiene assets.
A215: Survey used for analysis: | B215: =A1025 -> SES00
A220: Access to handwashing | C220: NATIONAL wealth index quintile | H220: URBAN wealth index quintile | M220: RURAL wealth index quintile | R220: region | BA220: Raw numbers of respondents: | BB220: Access to handwashing | BC220: NATIONAL wealth index quintile | BH220: URBAN wealth index quintile | BM220: RURAL wealth index quintile | BR220: SUB-REGIONS:
A221: Weighted percentage (used in graphs) | C221: Poorest | D221: Poor | E221: Middle | F221: Rich | G221: Richest | H221: Poorest | I221: Poor | J221: Middle | K221: Rich | L221: Richest | M221: Poorest | N221: Poor | O221: Middle | P221: Rich | Q221: Richest | R221: Bangkok Vicinity | S221: Central | T221: East | U221: North | V221: Northeast | W221: South | X221: West | BA221: Hygiene data, raw numbers (weighted) | BC221: Poorest | BD221: Poor | BE221: Middle | BF221: Rich | BG221: Richest | BH221: Poorest | BI221: Poor | BJ221: Middle | BK221: Rich | BL221: Richest | BM221: Poorest | BN221: Poor | BO221: Middle | BP221: Rich | BQ221: Richest | BR221: Bangkok Vicinity | BS221: Central | BT221: East | BU221: North | BV221: Northeast | BW221: South | BX221: West
A222: Hygiene ladder | B222: Basic | C222: N/A | D222: N/A | E222: N/A | F222: N/A | G222: N/A | H222: N/A | I222: N/A | J222: N/A | K222: N/A | L222: N/A | M222: N/A | N222: N/A | O222: N/A | P222: N/A | Q222: N/A | R222: N/A | S222: N/A | T222: N/A | U222: N/A | V222: N/A | W222: N/A | X222: N/A | BA222: Hygiene ladder | BB222: Basic | BC222: N/A | BD222: N/A | BE222: N/A | BF222: N/A | BG222: N/A | BH222: N/A | BI222: N/A | BJ222: N/A | BK222: N/A | BL222: N/A | BM222: N/A | BN222: N/A | BO222: N/A | BP222: N/A | BQ222: N/A | BR222: N/A | BS222: N/A | BT222: N/A | BU222: N/A | BV222: N/A | BW222: N/A | BX222: N/A
B223: Limited | C223: N/A | D223: N/A | E223: N/A | F223: N/A | G223: N/A | H223: N/A | I223: N/A | J223: N/A | K223: N/A | L223: N/A | M223: N/A | N223: N/A | O223: N/A | P223: N/A | Q223: N/A | R223: N/A | S223: N/A | T223: N/A | U223: N/A | V223: N/A | W223: N/A | X223: N/A | BB223: Limited | BC223: N/A | BD223: N/A | BE223: N/A | BF223: N/A | BG223: N/A | BH223: N/A | BI223: N/A | BJ223: N/A | BK223: N/A | BL223: N/A | BM223: N/A | BN223: N/A | BO223: N/A | BP223: N/A | BQ223: N/A | BR223: N/A | BS223: N/A | BT223: N/A | BU223: N/A | BV223: N/A | BW223: N/A | BX223: N/A
B224: No facility | C224: N/A | D224: N/A | E224: N/A | F224: N/A | G224: N/A | H224: N/A | I224: N/A | J224: N/A | K224: N/A | L224: N/A | M224: N/A | N224: N/A | O224: N/A | P224: N/A | Q224: N/A | R224: N/A | S224: N/A | T224: N/A | U224: N/A | V224: N/A | W224: N/A | X224: N/A | BB224: No facility | BC224: N/A | BD224: N/A | BE224: N/A | BF224: N/A | BG224: N/A | BH224: N/A | BI224: N/A | BJ224: N/A | BK224: N/A | BL224: N/A | BM224: N/A | BN224: N/A | BO224: N/A | BP224: N/A | BQ224: N/A | BR224: N/A | BS224: N/A | BT224: N/A | BU224: N/A | BV224: N/A | BW224: N/A | BX224: N/A
BA225: Observed handwashing place | BB225: Fixed | BC225: N/A | BD225: N/A | BE225: N/A | BF225: N/A | BG225: N/A | BH225: N/A | BI225: N/A | BJ225: N/A | BK225: N/A | BL225: N/A | BM225: N/A | BN225: N/A | BO225: N/A | BP225: N/A | BQ225: N/A | BR225: N/A | BS225: N/A | BT225: N/A | BU225: N/A | BV225: N/A | BW225: N/A | BX225: N/A
BB226: Mobile | BC226: N/A | BD226: N/A | BE226: N/A | BF226: N/A | BG226: N/A | BH226: N/A | BI226: N/A | BJ226: N/A | BK226: N/A | BL226: N/A | BM226: N/A | BN226: N/A | BO226: N/A | BP226: N/A | BQ226: N/A | BR226: N/A | BS226: N/A | BT226: N/A | BU226: N/A | BV226: N/A | BW226: N/A | BX226: N/A
BA227: Water / Soap | BB227: Water and soap | BC227: N/A | BD227: N/A | BE227: N/A | BF227: N/A | BG227: N/A | BH227: N/A | BI227: N/A | BJ227: N/A | BK227: N/A | BL227: N/A | BM227: N/A | BN227: N/A | BO227: N/A | BP227: N/A | BQ227: N/A | BR227: N/A | BS227: N/A | BT227: N/A | BU227: N/A | BV227: N/A | BW227: N/A | BX227: N/A
BB228: Water only | BC228: N/A | BD228: N/A | BE228: N/A | BF228: N/A | BG228: N/A | BH228: N/A | BI228: N/A | BJ228: N/A | BK228: N/A | BL228: N/A | BM228: N/A | BN228: N/A | BO228: N/A | BP228: N/A | BQ228: N/A | BR228: N/A | BS228: N/A | BT228: N/A | BU228: N/A | BV228: N/A | BW228: N/A | BX228: N/A
BB229: Soap only | BC229: N/A | BD229: N/A | BE229: N/A | BF229: N/A | BG229: N/A | BH229: N/A | BI229: N/A | BJ229: N/A | BK229: N/A | BL229: N/A | BM229: N/A | BN229: N/A | BO229: N/A | BP229: N/A | BQ229: N/A | BR229: N/A | BS229: N/A | BT229: N/A | BU229: N/A | BV229: N/A | BW229: N/A | BX229: N/A
BB230: Neither | BC230: N/A | BD230: N/A | BE230: N/A | BF230: N/A | BG230: N/A | BH230: N/A | BI230: N/A | BJ230: N/A | BK230: N/A | BL230: N/A | BM230: N/A | BN230: N/A | BO230: N/A | BP230: N/A | BQ230: N/A | BR230: N/A | BS230: N/A | BT230: N/A | BU230: N/A | BV230: N/A | BW230: N/A | BX230: N/A
BA259: Raw numbers of respondents: | BB259: Menstrual health and hygiene | BC259: NATIONAL wealth index quintile | BH259: URBAN wealth index quintile | BM259: RURAL wealth index quintile | BR259: SUB-REGIONS:
BA260: MHH data, raw numbers (weighted) | BC260: Poorest | BD260: Poor | BE260: Middle | BF260: Rich | BG260: Richest | BH260: Poorest | BI260: Poor | BJ260: Middle | BK260: Rich | BL260: Richest | BM260: Poorest | BN260: Poor | BO260: Middle | BP260: Rich | BQ260: Richest | BR260: Bangkok Vicinity | BS260: Central | BT260: East | BU260: North | BV260: Northeast | BW260: South | BX260: West
BA261: Private place to wash and change | BB261: Yes | BC261: N/A | BD261: N/A | BE261: N/A | BF261: N/A | BG261: N/A | BH261: N/A | BI261: N/A | BJ261: N/A | BK261: N/A | BL261: N/A | BM261: N/A | BN261: N/A | BO261: N/A | BP261: N/A | BQ261: N/A | BR261: N/A | BS261: N/A | BT261: N/A | BU261: N/A | BV261: N/A | BW261: N/A | BX261: N/A
BB262: No | BC262: N/A | BD262: N/A | BE262: N/A | BF262: N/A | BG262: N/A | BH262: N/A | BI262: N/A | BJ262: N/A | BK262: N/A | BL262: N/A | BM262: N/A | BN262: N/A | BO262: N/A | BP262: N/A | BQ262: N/A | BR262: N/A | BS262: N/A | BT262: N/A | BU262: N/A | BV262: N/A | BW262: N/A | BX262: N/A
BB263: DK/not sure/missing | BC263: N/A | BD263: N/A | BE263: N/A | BF263: N/A | BG263: N/A | BH263: N/A | BI263: N/A | BJ263: N/A | BK263: N/A | BL263: N/A | BM263: N/A | BN263: N/A | BO263: N/A | BP263: N/A | BQ263: N/A | BR263: N/A | BS263: N/A | BT263: N/A | BU263: N/A | BV263: N/A | BW263: N/A | BX263: N/A
BA264: Use of menstrual materials | BB264: Materials reusable | BC264: N/A | BD264: N/A | BE264: N/A | BF264: N/A | BG264: N/A | BH264: N/A | BI264: N/A | BJ264: N/A | BK264: N/A | BL264: N/A | BM264: N/A | BN264: N/A | BO264: N/A | BP264: N/A | BQ264: N/A | BR264: N/A | BS264: N/A | BT264: N/A | BU264: N/A | BV264: N/A | BW264: N/A | BX264: N/A
BB265: Materials not reusable | BC265: N/A | BD265: N/A | BE265: N/A | BF265: N/A | BG265: N/A | BH265: N/A | BI265: N/A | BJ265: N/A | BK265: N/A | BL265: N/A | BM265: N/A | BN265: N/A | BO265: N/A | BP265: N/A | BQ265: N/A | BR265: N/A | BS265: N/A | BT265: N/A | BU265: N/A | BV265: N/A | BW265: N/A | BX265: N/A
BB266: No materials used | BC266: N/A | BD266: N/A | BE266: N/A | BF266: N/A | BG266: N/A | BH266: N/A | BI266: N/A | BJ266: N/A | BK266: N/A | BL266: N/A | BM266: N/A | BN266: N/A | BO266: N/A | BP266: N/A | BQ266: N/A | BR266: N/A | BS266: N/A | BT266: N/A | BU266: N/A | BV266: N/A | BW266: N/A | BX266: N/A
BB267: DK/not sure/missing | BC267: N/A | BD267: N/A | BE267: N/A | BF267: N/A | BG267: N/A | BH267: N/A | BI267: N/A | BJ267: N/A | BK267: N/A | BL267: N/A | BM267: N/A | BN267: N/A | BO267: N/A | BP267: N/A | BQ267: N/A | BR267: N/A | BS267: N/A | BT267: N/A | BU267: N/A | BV267: N/A | BW267: N/A | BX267: N/A
BA268: Use of menstrual materials with private place to wash and change | BB268: Materials reusable | BC268: N/A | BD268: N/A | BE268: N/A | BF268: N/A | BG268: N/A | BH268: N/A | BI268: N/A | BJ268: N/A | BK268: N/A | BL268: N/A | BM268: N/A | BN268: N/A | BO268: N/A | BP268: N/A | BQ268: N/A | BR268: N/A | BS268: N/A | BT268: N/A | BU268: N/A | BV268: N/A | BW268: N/A | BX268: N/A
BB269: Materials not reusable | BC269: N/A | BD269: N/A | BE269: N/A | BF269: N/A | BG269: N/A | BH269: N/A | BI269: N/A | BJ269: N/A | BK269: N/A | BL269: N/A | BM269: N/A | BN269: N/A | BO269: N/A | BP269: N/A | BQ269: N/A | BR269: N/A | BS269: N/A | BT269: N/A | BU269: N/A | BV269: N/A | BW269: N/A | BX269: N/A
BB270: No materials used | BC270: N/A | BD270: N/A | BE270: N/A | BF270: N/A | BG270: N/A | BH270: N/A | BI270: N/A | BJ270: N/A | BK270: N/A | BL270: N/A | BM270: N/A | BN270: N/A | BO270: N/A | BP270: N/A | BQ270: N/A | BR270: N/A | BS270: N/A | BT270: N/A | BU270: N/A | BV270: N/A | BW270: N/A | BX270: N/A
BA271: Awareness of menstruation before menarche | BB271: Yes | BC271: N/A | BD271: N/A | BE271: N/A | BF271: N/A | BG271: N/A | BH271: N/A | BI271: N/A | BJ271: N/A | BK271: N/A | BL271: N/A | BM271: N/A | BN271: N/A | BO271: N/A | BP271: N/A | BQ271: N/A | BR271: N/A | BS271: N/A | BT271: N/A | BU271: N/A | BV271: N/A | BW271: N/A | BX271: N/A
BB272: No | BC272: N/A | BD272: N/A | BE272: N/A | BF272: N/A | BG272: N/A | BH272: N/A | BI272: N/A | BJ272: N/A | BK272: N/A | BL272: N/A | BM272: N/A | BN272: N/A | BO272: N/A | BP272: N/A | BQ272: N/A | BR272: N/A | BS272: N/A | BT272: N/A | BU272: N/A | BV272: N/A | BW272: N/A | BX272: N/A
BB273: DK/not sure/missing | BC273: N/A | BD273: N/A | BE273: N/A | BF273: N/A | BG273: N/A | BH273: N/A | BI273: N/A | BJ273: N/A | BK273: N/A | BL273: N/A | BM273: N/A | BN273: N/A | BO273: N/A | BP273: N/A | BQ273: N/A | BR273: N/A | BS273: N/A | BT273: N/A | BU273: N/A | BV273: N/A | BW273: N/A | BX273: N/A
BA274: Participation in (all) activities during menstruation | BB274: Yes | BC274: N/A | BD274: N/A | BE274: N/A | BF274: N/A | BG274: N/A | BH274: N/A | BI274: N/A | BJ274: N/A | BK274: N/A | BL274: N/A | BM274: N/A | BN274: N/A | BO274: N/A | BP274: N/A | BQ274: N/A | BR274: N/A | BS274: N/A | BT274: N/A | BU274: N/A | BV274: N/A | BW274: N/A | BX274: N/A
BB275: No | BC275: N/A | BD275: N/A | BE275: N/A | BF275: N/A | BG275: N/A | BH275: N/A | BI275: N/A | BJ275: N/A | BK275: N/A | BL275: N/A | BM275: N/A | BN275: N/A | BO275: N/A | BP275: N/A | BQ275: N/A | BR275: N/A | BS275: N/A | BT275: N/A | BU275: N/A | BV275: N/A | BW275: N/A | BX275: N/A
BB276: DK/not sure/missing/no such activity | BC276: N/A | BD276: N/A | BE276: N/A | BF276: N/A | BG276: N/A | BH276: N/A | BI276: N/A | BJ276: N/A | BK276: N/A | BL276: N/A | BM276: N/A | BN276: N/A | BO276: N/A | BP276: N/A | BQ276: N/A | BR276: N/A | BS276: N/A | BT276: N/A | BU276: N/A | BV276: N/A | BW276: N/A | BX276: N/A
BA277: Participation in specific activities during menstruation | BB277: Did not go to school (amongst those usually attending school) | BC277: N/A | BD277: N/A | BE277: N/A | BF277: N/A | BG277: N/A | BH277: N/A | BI277: N/A | BJ277: N/A | BK277: N/A | BL277: N/A | BM277: N/A | BN277: N/A | BO277: N/A | BP277: N/A | BQ277: N/A | BR277: N/A | BS277: N/A | BT277: N/A | BU277: N/A | BV277: N/A | BW277: N/A | BX277: N/A
BB278: Did not go to work (amongst those who usually work) | BC278: N/A | BD278: N/A | BE278: N/A | BF278: N/A | BG278: N/A | BH278: N/A | BI278: N/A | BJ278: N/A | BK278: N/A | BL278: N/A | BM278: N/A | BN278: N/A | BO278: N/A | BP278: N/A | BQ278: N/A | BR278: N/A | BS278: N/A | BT278: N/A | BU278: N/A | BV278: N/A | BW278: N/A | BX278: N/A
BB279: Did not participate in social activities | BC279: N/A | BD279: N/A | BE279: N/A | BF279: N/A | BG279: N/A | BH279: N/A | BI279: N/A | BJ279: N/A | BK279: N/A | BL279: N/A | BM279: N/A | BN279: N/A | BO279: N/A | BP279: N/A | BQ279: N/A | BR279: N/A | BS279: N/A | BT279: N/A | BU279: N/A | BV279: N/A | BW279: N/A | BX279: N/A
BB280: Did not cook food | BC280: N/A | BD280: N/A | BE280: N/A | BF280: N/A | BG280: N/A | BH280: N/A | BI280: N/A | BJ280: N/A | BK280: N/A | BL280: N/A | BM280: N/A | BN280: N/A | BO280: N/A | BP280: N/A | BQ280: N/A | BR280: N/A | BS280: N/A | BT280: N/A | BU280: N/A | BV280: N/A | BW280: N/A | BX280: N/A
BB281: Did not eat with others | BC281: N/A | BD281: N/A | BE281: N/A | BF281: N/A | BG281: N/A | BH281: N/A | BI281: N/A | BJ281: N/A | BK281: N/A | BL281: N/A | BM281: N/A | BN281: N/A | BO281: N/A | BP281: N/A | BQ281: N/A | BR281: N/A | BS281: N/A | BT281: N/A | BU281: N/A | BV281: N/A | BW281: N/A | BX281: N/A
BB282: Did not bathe in regular place | BC282: N/A | BD282: N/A | BE282: N/A | BF282: N/A | BG282: N/A | BH282: N/A | BI282: N/A | BJ282: N/A | BK282: N/A | BL282: N/A | BM282: N/A | BN282: N/A | BO282: N/A | BP282: N/A | BQ282: N/A | BR282: N/A | BS282: N/A | BT282: N/A | BU282: N/A | BV282: N/A | BW282: N/A | BX282: N/A
BB283: Did not participate in other activities | BC283: N/A | BD283: N/A | BE283: N/A | BF283: N/A | BG283: N/A | BH283: N/A | BI283: N/A | BJ283: N/A | BK283: N/A | BL283: N/A | BM283: N/A | BN283: N/A | BO283: N/A | BP283: N/A | BQ283: N/A | BR283: N/A | BS283: N/A | BT283: N/A | BU283: N/A | BV283: N/A | BW283: N/A | BX283: N/A
BB284: DK/not sure/missing/no such activity | BC284: N/A | BD284: N/A | BE284: N/A | BF284: N/A | BG284: N/A | BH284: N/A | BI284: N/A | BJ284: N/A | BK284: N/A | BL284: N/A | BM284: N/A | BN284: N/A | BO284: N/A | BP284: N/A | BQ284: N/A | BR284: N/A | BS284: N/A | BT284: N/A | BU284: N/A | BV284: N/A | BW284: N/A | BX284: N/A
BA339: Raw numbers of respondents: | BB339: Basic water, sanitation and hygiene | BC339: NATIONAL wealth index quintile | BH339: URBAN wealth index quintile | BM339: RURAL wealth index quintile | BR339: SUB-REGIONS:
BA340: WatSan data, raw numbers (weighted) | BC340: Poorest | BD340: Poor | BE340: Middle | BF340: Rich | BG340: Richest | BH340: Poorest | BI340: Poor | BJ340: Middle | BK340: Rich | BL340: Richest | BM340: Poorest | BN340: Poor | BO340: Middle | BP340: Rich | BQ340: Richest | BR340: Bangkok Vicinity | BS340: Central | BT340: East | BU340: North | BV340: Northeast | BW340: South | BX340: West
BA341: Use of Basic Water Sanitation and Hygiene | BB341: Yes | BC341: N/A | BD341: N/A | BE341: N/A | BF341: N/A | BG341: N/A | BH341: N/A | BI341: N/A | BJ341: N/A | BK341: N/A | BL341: N/A | BM341: N/A | BN341: N/A | BO341: N/A | BP341: N/A | BQ341: N/A | BR341: N/A | BS341: N/A | BT341: N/A | BU341: N/A | BV341: N/A | BW341: N/A | BX341: N/A
BB342: No | BC342: N/A | BD342: N/A | BE342: N/A | BF342: N/A | BG342: N/A | BH342: N/A | BI342: N/A | BJ342: N/A | BK342: N/A | BL342: N/A | BM342: N/A | BN342: N/A | BO342: N/A | BP342: N/A | BQ342: N/A | BR342: N/A | BS342: N/A | BT342: N/A | BU342: N/A | BV342: N/A | BW342: N/A | BX342: N/A
BA343: Use of Basic Water and Sanitation | BB343: Yes | BC343: N/A | BD343: N/A | BE343: N/A | BF343: N/A | BG343: N/A | BH343: N/A | BI343: N/A | BJ343: N/A | BK343: N/A | BL343: N/A | BM343: N/A | BN343: N/A | BO343: N/A | BP343: N/A | BQ343: N/A | BR343: N/A | BS343: N/A | BT343: N/A | BU343: N/A | BV343: N/A | BW343: N/A | BX343: N/A
BB344: No | BC344: N/A | BD344: N/A | BE344: N/A | BF344: N/A | BG344: N/A | BH344: N/A | BI344: N/A | BJ344: N/A | BK344: N/A | BL344: N/A | BM344: N/A | BN344: N/A | BO344: N/A | BP344: N/A | BQ344: N/A | BR344: N/A | BS344: N/A | BT344: N/A | BU344: N/A | BV344: N/A | BW344: N/A | BX344: N/A
BA345: Use of Basic Water and Hygiene | BB345: Yes | BC345: N/A | BD345: N/A | BE345: N/A | BF345: N/A | BG345: N/A | BH345: N/A | BI345: N/A | BJ345: N/A | BK345: N/A | BL345: N/A | BM345: N/A | BN345: N/A | BO345: N/A | BP345: N/A | BQ345: N/A | BR345: N/A | BS345: N/A | BT345: N/A | BU345: N/A | BV345: N/A | BW345: N/A | BX345: N/A
BB346: No | BC346: N/A | BD346: N/A | BE346: N/A | BF346: N/A | BG346: N/A | BH346: N/A | BI346: N/A | BJ346: N/A | BK346: N/A | BL346: N/A | BM346: N/A | BN346: N/A | BO346: N/A | BP346: N/A | BQ346: N/A | BR346: N/A | BS346: N/A | BT346: N/A | BU346: N/A | BV346: N/A | BW346: N/A | BX346: N/A
BA347: Use of Basic Sanitation and Hygiene | BB347: Yes | BC347: N/A | BD347: N/A | BE347: N/A | BF347: N/A | BG347: N/A | BH347: N/A | BI347: N/A | BJ347: N/A | BK347: N/A | BL347: N/A | BM347: N/A | BN347: N/A | BO347: N/A | BP347: N/A | BQ347: N/A | BR347: N/A | BS347: N/A | BT347: N/A | BU347: N/A | BV347: N/A | BW347: N/A | BX347: N/A
BB348: No | BC348: N/A | BD348: N/A | BE348: N/A | BF348: N/A | BG348: N/A | BH348: N/A | BI348: N/A | BJ348: N/A | BK348: N/A | BL348: N/A | BM348: N/A | BN348: N/A | BO348: N/A | BP348: N/A | BQ348: N/A | BR348: N/A | BS348: N/A | BT348: N/A | BU348: N/A | BV348: N/A | BW348: N/A | BX348: N/A
BA349: Use of Basic Water | BB349: Yes | BC349: N/A | BD349: N/A | BE349: N/A | BF349: N/A | BG349: N/A | BH349: N/A | BI349: N/A | BJ349: N/A | BK349: N/A | BL349: N/A | BM349: N/A | BN349: N/A | BO349: N/A | BP349: N/A | BQ349: N/A | BR349: N/A | BS349: N/A | BT349: N/A | BU349: N/A | BV349: N/A | BW349: N/A | BX349: N/A
BB350: No | BC350: N/A | BD350: N/A | BE350: N/A | BF350: N/A | BG350: N/A | BH350: N/A | BI350: N/A | BJ350: N/A | BK350: N/A | BL350: N/A | BM350: N/A | BN350: N/A | BO350: N/A | BP350: N/A | BQ350: N/A | BR350: N/A | BS350: N/A | BT350: N/A | BU350: N/A | BV350: N/A | BW350: N/A | BX350: N/A
BA351: Use of Basic Sanitation | BB351: Yes | BC351: N/A | BD351: N/A | BE351: N/A | BF351: N/A | BG351: N/A | BH351: N/A | BI351: N/A | BJ351: N/A | BK351: N/A | BL351: N/A | BM351: N/A | BN351: N/A | BO351: N/A | BP351: N/A | BQ351: N/A | BR351: N/A | BS351: N/A | BT351: N/A | BU351: N/A | BV351: N/A | BW351: N/A | BX351: N/A
BB352: No | BC352: N/A | BD352: N/A | BE352: N/A | BF352: N/A | BG352: N/A | BH352: N/A | BI352: N/A | BJ352: N/A | BK352: N/A | BL352: N/A | BM352: N/A | BN352: N/A | BO352: N/A | BP352: N/A | BQ352: N/A | BR352: N/A | BS352: N/A | BT352: N/A | BU352: N/A | BV352: N/A | BW352: N/A | BX352: N/A
BA353: Access to Basic Hygiene | BB353: Yes | BC353: N/A | BD353: N/A | BE353: N/A | BF353: N/A | BG353: N/A | BH353: N/A | BI353: N/A | BJ353: N/A | BK353: N/A | BL353: N/A | BM353: N/A | BN353: N/A | BO353: N/A | BP353: N/A | BQ353: N/A | BR353: N/A | BS353: N/A | BT353: N/A | BU353: N/A | BV353: N/A | BW353: N/A | BX353: N/A
BB354: No | BC354: N/A | BD354: N/A | BE354: N/A | BF354: N/A | BG354: N/A | BH354: N/A | BI354: N/A | BJ354: N/A | BK354: N/A | BL354: N/A | BM354: N/A | BN354: N/A | BO354: N/A | BP354: N/A | BQ354: N/A | BR354: N/A | BS354: N/A | BT354: N/A | BU354: N/A | BV354: N/A | BW354: N/A | BX354: N/A
C399: INITIAL (national) Wealth Index | H399: URBAN Wealth Index | M399: RURAL Wealth Index
C400: Component Matrix | H400: Component Matrix | M400: Component Matrix
E401: Component | J401: Component | O401: Component
B402: Note: The INITIAL (national) Wealth Index is based on the first component of the Principal Component Analysis (PCA) which has been obtained at national level. The final national-level (NATIONAL) Wealth Index is based on the URBAN and RURAL specific wealth indexes. Regression procedures are used to establish the relationships between the two sets of scores (urban and rural) and the initial (national) wealth factors. This allows best use of the available information for each area and a better precision of the FINAL (NATIONAL) Wealth Index. For dependency reasons, all WASH variables (contained in the generic MICS and DHS scripts) have been excluded from the sets of asset variables used in the PCAs. The PCA can extracts as many components as there are asset variables in the input. Only the first of the components is used to represent the Wealth Index. The scores represent the weights of the asset variables on the Wealth Index (correlations between the variables and the component). The communalities are the proportion of each variable's variance that can be explained by the component. Proportion of explained variance is the part of the model's total variance that is explained by the component. For more information on the procedure used: The DHS Wealth Index, DHS Comparative Reports No. 6, Shea Oscar Rutstein, Kiersten Johnson, ORC Macro International Inc., 2004. The DHS Wealth Index: Approaches for Rural and Urban Areas, Shea O. Rutstein, ORC Macro International Inc., 2008. MICS Methodological Paper No. 4, Review of options for reporting water, sanitation and hygiene coverage by wealth quintile, UNICEF, 2016. | E402: 1 | J402: 1 | O402: 1
C403: telephone | E403: 0.6756731085 | H403: washing machine | J403: 0.6669972206 | M403: Gas | O403: 0.6517480441
C404: washing machine | E404: 0.6630751288 | H404: living room sofa | J404: 0.6510378048 | M404: refrigerator | O404: 0.6345777339
C405: video | E405: 0.6213392734 | H405: telephone | J405: 0.6322364474 | M405: gas stove | O405: 0.6322936399
C406: Gas | E406: 0.6209959303 | H406: gas stove | J406: 0.6290516036 | M406: washing machine | O406: 0.6207860456
C407: refrigerator | E407: 0.6172956815 | H407: refrigerator | J407: 0.6217541219 | M407: telephone | O407: 0.6153163016
C408: living room sofa | E408: 0.6087391484 | H408: Gas | J408: 0.604036574 | M408: electric iron | O408: 0.6098127237
C409: bed (wood & metal) | E409: 0.6011441464 | H409: bed (wood & metal) | J409: 0.6008342944 | M409: bed (wood & metal) | O409: 0.5796661936
C410: gas stove | E410: 0.6010177841 | H410: video | J410: 0.5838006089 | M410: living room sofa | O410: 0.5755000185
C411: electric iron | E411: 0.5788948407 | H411: air conditioner | J411: 0.5678221353 | M411: video | O411: 0.5639690212
C412: air conditioner | E412: 0.5320055982 | H412: water boiler | J412: 0.5499083961 | M412: Shingle (asphalt) | O412: -0.4950891727
C413: water boiler | E413: 0.4926164438 | H413: automobile | J413: 0.4954376249 | M413: cooking pot, electric | O413: 0.4909255476
C414: Shingle (asphalt) | E414: -0.4693353133 | H414: Sharecropping | J414: -0.4939846692 | M414: t.v. | O414: 0.4712191202
C415: Wood | E415: -0.4660989305 | H415: Owned | J415: 0.4915907767 | M415: electric fan | O415: 0.4548635958
C416: cooking pot, electric | E416: 0.4630237133 | H416: t.v. | J416: 0.454633552 | M416: Wood | O416: -0.4421165791
C417: automobile | E417: 0.457945499 | H417: electric iron | J417: 0.4042044653 | M417: radio | O417: 0.430988219
C418: t.v. | E418: 0.4545473981 | H418: home computer | J418: 0.4034538504 | M418: pick up / mini-tru | O418: 0.4183081507
C419: radio | E419: 0.443914202 | H419: radio | J419: 0.3823876521 | M419: air conditioner | O419: 0.400750627
C420: electric fan | E420: 0.4188127785 | H420: cooking pot, electric | J420: 0.3642540437 | M420: water boiler | O420: 0.3813140488
C421: Concrete | E421: 0.4145037415 | H421: pick up / mini-tru | J421: 0.3483755473 | M421: Concrete | O421: 0.3618952996
C422: home computer | E422: 0.3766576787 | H422: Bio gaz | J422: -0.3200141143 | M422: automobile | O422: 0.3549966455
... 191 more rows

Sheet SES04
A2: =A1026 -> Thailand
A3: =A1034 -> 2004
A4: Use of drinking water sources
A5: by wealth quintile and sub-national region
A6: Notes:
A7: WHO/UNICEF JMP customised wealth index excludes water,
A8: sanitation and hygiene assets.
A9: Survey used for analysis: | B9: =A1025 -> SES04
A10: =B1028 -> Ratio of Improved wells based on: | B10: MICS06
A11: =B1027 -> Time to improved source based on: | B11: MICS06
A14: Use of drinking water sources | C14: NATIONAL wealth index quintile | H14: URBAN wealth index quintile | M14: RURAL wealth index quintile | R14: N/A | BA14: Raw numbers of respondents: | BB14: Use of drinking water sources | BC14: NATIONAL wealth index quintile | BH14: URBAN wealth index quintile | BM14: RURAL wealth index quintile | BR14: SUB-REGIONS:
A15: Weighted percentage (used in graphs) | C15: Poorest | D15: Poor | E15: Middle | F15: Rich | G15: Richest | H15: Poorest | I15: Poor | J15: Middle | K15: Rich | L15: Richest | M15: Poorest | N15: Poor | O15: Middle | P15: Rich | Q15: Richest | R15: None valid | BA15: Water data, raw numbers (weighted) | BC15: Poorest | BD15: Poor | BE15: Middle | BF15: Rich | BG15: Richest | BH15: Poorest | BI15: Poor | BJ15: Middle | BK15: Rich | BL15: Richest | BM15: Poorest | BN15: Poor | BO15: Middle | BP15: Rich | BQ15: Richest | BR15: None valid
A16: Water | B16: Improved | C16: =C58+C59+C60+C61+C62+C63+C64*MICS06!C24/100+C66 -> 90.4786003 | D16: =D58+D59+D60+D61+D62+D63+D64*MICS06!D24/100+D66 -> 94.82410109 | E16: =E58+E59+E60+E61+E62+E63+E64*MICS06!E24/100+E66 -> 94.3628071 | F16: =F58+F59+F60+F61+F62+F63+F64*MICS06!F24/100+F66 -> 95.11098662 | G16: =G58+G59+G60+G61+G62+G63+G64*MICS06!G24/100+G66 -> 98.57222717 | H16: =H58+H59+H60+H61+H62+H63+H64*MICS06!H24/100+H66 -> 98.06034353 | I16: =I58+I59+I60+I61+I62+I63+I64*MICS06!I24/100+I66 -> 98.53676584 | J16: =J58+J59+J60+J61+J62+J63+J64*MICS06!J24/100+J66 -> 98.55165939 | K16: =K58+K59+K60+K61+K62+K63+K64*MICS06!K24/100+K66 -> 99.14968378 | L16: =L58+L59+L60+L61+L62+L63+L64*MICS06!L24/100+L66 -> 99.66866204 | M16: =M58+M59+M60+M61+M62+M63+M64*MICS06!M24/100+M66 -> 88.28683679 | N16: =N58+N59+N60+N61+N62+N63+N64*MICS06!N24/100+N66 -> 94.34867725 | O16: =O58+O59+O60+O61+O62+O63+O64*MICS06!O24/100+O66 -> 92.97772576 | P16: =P58+P59+P60+P61+P62+P63+P64*MICS06!P24/100+P66 -> 93.79406269 | Q16: =Q58+Q59+Q60+Q61+Q62+Q63+Q64*MICS06!Q24/100+Q66 -> 95.82241827 | R16: N/A | BA16: Water | BB16: Improved | BC16: N/A | BD16: N/A | BE16: N/A | BF16: N/A | BG16: N/A | BH16: N/A | BI16: N/A | BJ16: N/A | BK16: N/A | BL16: N/A | BM16: N/A | BN16: N/A | BO16: N/A | BP16: N/A | BQ16: N/A | BR16: N/A
B17: Not Improved | C17: =100-C16 -> 9.521399704 | D17: =100-D16 -> 5.175898907 | E17: 5.637192898 | F17: 4.889013377 | G17: 1.427772827 | H17: 1.939656474 | I17: 1.463234161 | J17: 1.44834061 | K17: 0.8503162212 | L17: 0.3313379595 | M17: 11.71316321 | N17: 5.651322754 | O17: 7.022274242 | P17: 6.20593731 | Q17: 4.177581731 | R17: N/A | BB17: Not Improved | BC17: N/A | BD17: N/A | BE17: N/A | BF17: N/A | BG17: N/A | BH17: N/A | BI17: N/A | BJ17: N/A | BK17: N/A | BL17: N/A | BM17: N/A | BN17: N/A | BO17: N/A | BP17: N/A | BQ17: N/A | BR17: N/A
A18: Water ladder | B18: Basic | C18: =C16*MICS06!C23/100 -> 89.89510401 | D18: =D16*MICS06!D23/100 -> 94.33318349 | E18: =E16*MICS06!E23/100 -> 94.27945906 | F18: =F16*MICS06!F23/100 -> 95.11098662 | G18: =G16*MICS06!G23/100 -> 98.48667781 | H18: =H16*MICS06!H23/100 -> 98.01739713 | I18: =I16*MICS06!I23/100 -> 98.5151941 | J18: =J16*MICS06!J23/100 -> 98.55165939 | K18: =K16*MICS06!K23/100 -> 99.07752602 | L18: =L16*MICS06!L23/100 -> 99.66246458 | M18: =M16*MICS06!M23/100 -> 87.47227078 | N18: =N16*MICS06!N23/100 -> 93.71249984 | O18: =O16*MICS06!O23/100 -> 92.92172758 | P18: =P16*MICS06!P23/100 -> 93.68835257 | Q18: =Q16*MICS06!Q23/100 -> 95.73399088 | R18: N/A | BA18: Water ladder | BB18: Basic | BC18: N/A | BD18: N/A | BE18: N/A | BF18: N/A | BG18: N/A | BH18: N/A | BI18: N/A | BJ18: N/A | BK18: N/A | BL18: N/A | BM18: N/A | BN18: N/A | BO18: N/A | BP18: N/A | BQ18: N/A | BR18: N/A
B19: Limited | C19: =C16*MICS06!C22/100 -> 0.5834962832 | D19: =D16*MICS06!D22/100 -> 0.4909176068 | E19: =E16*MICS06!E22/100 -> 0.08334803741 | F19: =F16*MICS06!F22/100 -> 0 | G19: =G16*MICS06!G22/100 -> 0.08554936815 | H19: =H16*MICS06!H22/100 -> 0.04294639674 | I19: =I16*MICS06!I22/100 -> 0.02157173431 | J19: =J16*MICS06!J22/100 -> 0 | K19: =K16*MICS06!K22/100 -> 0.07215775716 | L19: =L16*MICS06!L22/100 -> 0.006197457582 | M19: =M16*MICS06!M22/100 -> 0.8145660129 | N19: =N16*MICS06!N22/100 -> 0.6361774073 | O19: =O16*MICS06!O22/100 -> 0.05599818123 | P19: =P16*MICS06!P22/100 -> 0.1057101238 | Q19: =Q16*MICS06!Q22/100 -> 0.08842738735 | R19: N/A | BB19: Limited | BC19: N/A | BD19: N/A | BE19: N/A | BF19: N/A | BG19: N/A | BH19: N/A | BI19: N/A | BJ19: N/A | BK19: N/A | BL19: N/A | BM19: N/A | BN19: N/A | BO19: N/A | BP19: N/A | BQ19: N/A | BR19: N/A
B20: Unimproved | C20: =100-(C18+C19+C21) -> 8.718579218 | D20: =100-(D18+D19+D21) -> 4.979407933 | E20: 5.441001266 | F20: 4.615033556 | G20: 1.396319238 | H20: 1.794635624 | I20: 1.459311981 | J20: 1.374589186 | K20: 0.8503162212 | L20: 0.3313379595 | M20: 10.71572898 | N20: 5.377912922 | O20: 6.851862128 | P20: 5.865262461 | Q20: 3.968737038 | R20: N/A | BB20: Unimproved | BC20: N/A | BD20: N/A | BE20: N/A | BF20: N/A | BG20: N/A | BH20: N/A | BI20: N/A | BJ20: N/A | BK20: N/A | BL20: N/A | BM20: N/A | BN20: N/A | BO20: N/A | BP20: N/A | BQ20: N/A | BR20: N/A
B21: Surface water | C21: =C65 -> 0.8028204862 | D21: 0.1964909741 | E21: 0.1961916312 | F21: 0.2739798215 | G21: 0.03145358845 | H21: 0.1450208502 | I21: 0.003922180901 | J21: 0.07375142354 | K21: 0 | L21: 0 | M21: 0.9974342325 | N21: 0.2734098319 | O21: 0.1704121137 | P21: 0.340674849 | Q21: 0.2088446926 | R21: N/A | BB21: Surface water | BC21: N/A | BD21: N/A | BE21: N/A | BF21: N/A | BG21: N/A | BH21: N/A | BI21: N/A | BJ21: N/A | BK21: N/A | BL21: N/A | BM21: N/A | BN21: N/A | BO21: N/A | BP21: N/A | BQ21: N/A | BR21: N/A
A22: Improved water point at more than 30 minutes | B22: Yes | C22: N/A | D22: N/A | E22: N/A | F22: N/A | G22: N/A | H22: N/A | I22: N/A | J22: N/A | K22: N/A | L22: N/A | M22: N/A | N22: N/A | O22: N/A | P22: N/A | Q22: N/A | R22: N/A | BA22: Improved water point at more than 30 minutes | BB22: Yes | BC22: N/A | BD22: N/A | BE22: N/A | BF22: N/A | BG22: N/A | BH22: N/A | BI22: N/A | BJ22: N/A | BK22: N/A | BL22: N/A | BM22: N/A | BN22: N/A | BO22: N/A | BP22: N/A | BQ22: N/A | BR22: N/A
B23: No | C23: N/A | D23: N/A | E23: N/A | F23: N/A | G23: N/A | H23: N/A | I23: N/A | J23: N/A | K23: N/A | L23: N/A | M23: N/A | N23: N/A | O23: N/A | P23: N/A | Q23: N/A | R23: N/A | BB23: No | BC23: N/A | BD23: N/A | BE23: N/A | BF23: N/A | BG23: N/A | BH23: N/A | BI23: N/A | BJ23: N/A | BK23: N/A | BL23: N/A | BM23: N/A | BN23: N/A | BO23: N/A | BP23: N/A | BQ23: N/A | BR23: N/A
A24: Manually calculated ratios | B24: Improved wells
B25: Improved springs
B26: Other
C27: NATIONAL wealth index quintile | H27: URBAN wealth index quintile | M27: RURAL wealth index quintile | R27: N/A | BA27: Raw numbers of respondents: | BB27: Use of drinking water sources | BC27: NATIONAL wealth index quintile | BH27: URBAN wealth index quintile | BM27: RURAL wealth index quintile | BR27: SUB-REGIONS:
A28: Percentage based on weighted population | C28: Poorest | D28: Poor | E28: Middle | F28: Rich | G28: Richest | H28: Poorest | I28: Poor | J28: Middle | K28: Rich | L28: Richest | M28: Poorest | N28: Poor | O28: Middle | P28: Rich | Q28: Richest | R28: None valid | BA28: Water data, raw numbers (weighted) | BC28: Poorest | BD28: Poor | BE28: Middle | BF28: Rich | BG28: Richest | BH28: Poorest | BI28: Poor | BJ28: Middle | BK28: Rich | BL28: Richest | BM28: Poorest | BN28: Poor | BO28: Middle | BP28: Rich | BQ28: Richest | BR28: None valid
A29: Piped water | B29: Yes | C29: N/A | D29: N/A | E29: N/A | F29: N/A | G29: N/A | H29: N/A | I29: N/A | J29: N/A | K29: N/A | L29: N/A | M29: N/A | N29: N/A | O29: N/A | P29: N/A | Q29: N/A | R29: N/A | BA29: Piped water | BB29: Yes | BC29: N/A | BD29: N/A | BE29: N/A | BF29: N/A | BG29: N/A | BH29: N/A | BI29: N/A | BJ29: N/A | BK29: N/A | BL29: N/A | BM29: N/A | BN29: N/A | BO29: N/A | BP29: N/A | BQ29: N/A | BR29: N/A
B30: No | C30: N/A | D30: N/A | E30: N/A | F30: N/A | G30: N/A | H30: N/A | I30: N/A | J30: N/A | K30: N/A | L30: N/A | M30: N/A | N30: N/A | O30: N/A | P30: N/A | Q30: N/A | R30: N/A | BB30: No | BC30: N/A | BD30: N/A | BE30: N/A | BF30: N/A | BG30: N/A | BH30: N/A | BI30: N/A | BJ30: N/A | BK30: N/A | BL30: N/A | BM30: N/A | BN30: N/A | BO30: N/A | BP30: N/A | BQ30: N/A | BR30: N/A
A31: Piped water on premises | B31: Yes | C31: N/A | D31: N/A | E31: N/A | F31: N/A | G31: N/A | H31: N/A | I31: N/A | J31: N/A | K31: N/A | L31: N/A | M31: N/A | N31: N/A | O31: N/A | P31: N/A | Q31: N/A | R31: N/A | BA31: Piped water on premises | BB31: Yes | BC31: N/A | BD31: N/A | BE31: N/A | BF31: N/A | BG31: N/A | BH31: N/A | BI31: N/A | BJ31: N/A | BK31: N/A | BL31: N/A | BM31: N/A | BN31: N/A | BO31: N/A | BP31: N/A | BQ31: N/A | BR31: N/A
B32: No | C32: N/A | D32: N/A | E32: N/A | F32: N/A | G32: N/A | H32: N/A | I32: N/A | J32: N/A | K32: N/A | L32: N/A | M32: N/A | N32: N/A | O32: N/A | P32: N/A | Q32: N/A | R32: N/A | BB32: No | BC32: N/A | BD32: N/A | BE32: N/A | BF32: N/A | BG32: N/A | BH32: N/A | BI32: N/A | BJ32: N/A | BK32: N/A | BL32: N/A | BM32: N/A | BN32: N/A | BO32: N/A | BP32: N/A | BQ32: N/A | BR32: N/A
A33: Piped water into dwelling | B33: Yes | C33: N/A | D33: N/A | E33: N/A | F33: N/A | G33: N/A | H33: N/A | I33: N/A | J33: N/A | K33: N/A | L33: N/A | M33: N/A | N33: N/A | O33: N/A | P33: N/A | Q33: N/A | R33: N/A | BA33: Piped water into dwelling | BB33: Yes | BC33: N/A | BD33: N/A | BE33: N/A | BF33: N/A | BG33: N/A | BH33: N/A | BI33: N/A | BJ33: N/A | BK33: N/A | BL33: N/A | BM33: N/A | BN33: N/A | BO33: N/A | BP33: N/A | BQ33: N/A | BR33: N/A
B34: No | C34: N/A | D34: N/A | E34: N/A | F34: N/A | G34: N/A | H34: N/A | I34: N/A | J34: N/A | K34: N/A | L34: N/A | M34: N/A | N34: N/A | O34: N/A | P34: N/A | Q34: N/A | R34: N/A | BB34: No | BC34: N/A | BD34: N/A | BE34: N/A | BF34: N/A | BG34: N/A | BH34: N/A | BI34: N/A | BJ34: N/A | BK34: N/A | BL34: N/A | BM34: N/A | BN34: N/A | BO34: N/A | BP34: N/A | BQ34: N/A | BR34: N/A
A35: Water source on premises | B35: Yes | C35: N/A | D35: N/A | E35: N/A | F35: N/A | G35: N/A | H35: N/A | I35: N/A | J35: N/A | K35: N/A | L35: N/A | M35: N/A | N35: N/A | O35: N/A | P35: N/A | Q35: N/A | R35: N/A | BA35: Water source on premises | BB35: Yes | BC35: N/A | BD35: N/A | BE35: N/A | BF35: N/A | BG35: N/A | BH35: N/A | BI35: N/A | BJ35: N/A | BK35: N/A | BL35: N/A | BM35: N/A | BN35: N/A | BO35: N/A | BP35: N/A | BQ35: N/A | BR35: N/A
B36: No | C36: N/A | D36: N/A | E36: N/A | F36: N/A | G36: N/A | H36: N/A | I36: N/A | J36: N/A | K36: N/A | L36: N/A | M36: N/A | N36: N/A | O36: N/A | P36: N/A | Q36: N/A | R36: N/A | BB36: No | BC36: N/A | BD36: N/A | BE36: N/A | BF36: N/A | BG36: N/A | BH36: N/A | BI36: N/A | BJ36: N/A | BK36: N/A | BL36: N/A | BM36: N/A | BN36: N/A | BO36: N/A | BP36: N/A | BQ36: N/A | BR36: N/A
A37: Improved Water source on premises | B37: Yes | C37: N/A | D37: N/A | E37: N/A | F37: N/A | G37: N/A | H37: N/A | I37: N/A | J37: N/A | K37: N/A | L37: N/A | M37: N/A | N37: N/A | O37: N/A | P37: N/A | Q37: N/A | R37: N/A | BA37: Improved water source on premises | BB37: Yes | BC37: N/A | BD37: N/A | BE37: N/A | BF37: N/A | BG37: N/A | BH37: N/A | BI37: N/A | BJ37: N/A | BK37: N/A | BL37: N/A | BM37: N/A | BN37: N/A | BO37: N/A | BP37: N/A | BQ37: N/A | BR37: N/A
B38: No | C38: N/A | D38: N/A | E38: N/A | F38: N/A | G38: N/A | H38: N/A | I38: N/A | J38: N/A | K38: N/A | L38: N/A | M38: N/A | N38: N/A | O38: N/A | P38: N/A | Q38: N/A | R38: N/A | BB38: No | BC38: N/A | BD38: N/A | BE38: N/A | BF38: N/A | BG38: N/A | BH38: N/A | BI38: N/A | BJ38: N/A | BK38: N/A | BL38: N/A | BM38: N/A | BN38: N/A | BO38: N/A | BP38: N/A | BQ38: N/A | BR38: N/A
A39: Piped water on premises available when needed | B39: Yes | C39: N/A | D39: N/A | E39: N/A | F39: N/A | G39: N/A | H39: N/A | I39: N/A | J39: N/A | K39: N/A | L39: N/A | M39: N/A | N39: N/A | O39: N/A | P39: N/A | Q39: N/A | R39: N/A | BA39: Piped water on premises available when needed | BB39: Yes | BC39: N/A | BD39: N/A | BE39: N/A | BF39: N/A | BG39: N/A | BH39: N/A | BI39: N/A | BJ39: N/A | BK39: N/A | BL39: N/A | BM39: N/A | BN39: N/A | BO39: N/A | BP39: N/A | BQ39: N/A | BR39: N/A
B40: No | C40: N/A | D40: N/A | E40: N/A | F40: N/A | G40: N/A | H40: N/A | I40: N/A | J40: N/A | K40: N/A | L40: N/A | M40: N/A | N40: N/A | O40: N/A | P40: N/A | Q40: N/A | R40: N/A | BB40: No | BC40: N/A | BD40: N/A | BE40: N/A | BF40: N/A | BG40: N/A | BH40: N/A | BI40: N/A | BJ40: N/A | BK40: N/A | BL40: N/A | BM40: N/A | BN40: N/A | BO40: N/A | BP40: N/A | BQ40: N/A | BR40: N/A
A41: Water point at more than 30 minutes | B41: Yes | C41: N/A | D41: N/A | E41: N/A | F41: N/A | G41: N/A | H41: N/A | I41: N/A | J41: N/A | K41: N/A | L41: N/A | M41: N/A | N41: N/A | O41: N/A | P41: N/A | Q41: N/A | R41: N/A | BA41: Water point at more than 30 minutes | BB41: Yes | BC41: N/A | BD41: N/A | BE41: N/A | BF41: N/A | BG41: N/A | BH41: N/A | BI41: N/A | BJ41: N/A | BK41: N/A | BL41: N/A | BM41: N/A | BN41: N/A | BO41: N/A | BP41: N/A | BQ41: N/A | BR41: N/A
B42: No | C42: N/A | D42: N/A | E42: N/A | F42: N/A | G42: N/A | H42: N/A | I42: N/A | J42: N/A | K42: N/A | L42: N/A | M42: N/A | N42: N/A | O42: N/A | P42: N/A | Q42: N/A | R42: N/A | BB42: No | BC42: N/A | BD42: N/A | BE42: N/A | BF42: N/A | BG42: N/A | BH42: N/A | BI42: N/A | BJ42: N/A | BK42: N/A | BL42: N/A | BM42: N/A | BN42: N/A | BO42: N/A | BP42: N/A | BQ42: N/A | BR42: N/A
A43: Water source available when needed | B43: Yes | C43: N/A | D43: N/A | E43: N/A | F43: N/A | G43: N/A | H43: N/A | I43: N/A | J43: N/A | K43: N/A | L43: N/A | M43: N/A | N43: N/A | O43: N/A | P43: N/A | Q43: N/A | R43: N/A | BA43: Water source available when needed | BB43: Yes | BC43: N/A | BD43: N/A | BE43: N/A | BF43: N/A | BG43: N/A | BH43: N/A | BI43: N/A | BJ43: N/A | BK43: N/A | BL43: N/A | BM43: N/A | BN43: N/A | BO43: N/A | BP43: N/A | BQ43: N/A | BR43: N/A
B44: No | C44: N/A | D44: N/A | E44: N/A | F44: N/A | G44: N/A | H44: N/A | I44: N/A | J44: N/A | K44: N/A | L44: N/A | M44: N/A | N44: N/A | O44: N/A | P44: N/A | Q44: N/A | R44: N/A | BB44: No | BC44: N/A | BD44: N/A | BE44: N/A | BF44: N/A | BG44: N/A | BH44: N/A | BI44: N/A | BJ44: N/A | BK44: N/A | BL44: N/A | BM44: N/A | BN44: N/A | BO44: N/A | BP44: N/A | BQ44: N/A | BR44: N/A
A45: Improved water source available when needed | B45: Yes | C45: N/A | D45: N/A | E45: N/A | F45: N/A | G45: N/A | H45: N/A | I45: N/A | J45: N/A | K45: N/A | L45: N/A | M45: N/A | N45: N/A | O45: N/A | P45: N/A | Q45: N/A | R45: N/A | BA45: Improved water source available when needed | BB45: Yes | BC45: N/A | BD45: N/A | BE45: N/A | BF45: N/A | BG45: N/A | BH45: N/A | BI45: N/A | BJ45: N/A | BK45: N/A | BL45: N/A | BM45: N/A | BN45: N/A | BO45: N/A | BP45: N/A | BQ45: N/A | BR45: N/A
B46: No | C46: N/A | D46: N/A | E46: N/A | F46: N/A | G46: N/A | H46: N/A | I46: N/A | J46: N/A | K46: N/A | L46: N/A | M46: N/A | N46: N/A | O46: N/A | P46: N/A | Q46: N/A | R46: N/A | BB46: No | BC46: N/A | BD46: N/A | BE46: N/A | BF46: N/A | BG46: N/A | BH46: N/A | BI46: N/A | BJ46: N/A | BK46: N/A | BL46: N/A | BM46: N/A | BN46: N/A | BO46: N/A | BP46: N/A | BQ46: N/A | BR46: N/A
A47: Microbiological quality at point of collection | B47: Not contaminated (No E. coli in 100 mL) | C47: N/A | D47: N/A | E47: N/A | F47: N/A | G47: N/A | H47: N/A | I47: N/A | J47: N/A | K47: N/A | L47: N/A | M47: N/A | N47: N/A | O47: N/A | P47: N/A | Q47: N/A | R47: N/A | BA47: Microbiological quality at point of collection | BB47: Not contaminated (No E. coli in 100 mL) | BC47: N/A | BD47: N/A | BE47: N/A | BF47: N/A | BG47: N/A | BH47: N/A | BI47: N/A | BJ47: N/A | BK47: N/A | BL47: N/A | BM47: N/A | BN47: N/A | BO47: N/A | BP47: N/A | BQ47: N/A | BR47: N/A
B48: Contaminated (E. coli detected in 100 mL) | C48: N/A | D48: N/A | E48: N/A | F48: N/A | G48: N/A | H48: N/A | I48: N/A | J48: N/A | K48: N/A | L48: N/A | M48: N/A | N48: N/A | O48: N/A | P48: N/A | Q48: N/A | R48: N/A | BB48: Contaminated (E. coli detected in 100 mL) | BC48: N/A | BD48: N/A | BE48: N/A | BF48: N/A | BG48: N/A | BH48: N/A | BI48: N/A | BJ48: N/A | BK48: N/A | BL48: N/A | BM48: N/A | BN48: N/A | BO48: N/A | BP48: N/A | BQ48: N/A | BR48: N/A
B49: Highly contaminated (>100 CFU/100 mL) | C49: N/A | D49: N/A | E49: N/A | F49: N/A | G49: N/A | H49: N/A | I49: N/A | J49: N/A | K49: N/A | L49: N/A | M49: N/A | N49: N/A | O49: N/A | P49: N/A | Q49: N/A | R49: N/A | BB49: Highly contaminated (>100 CFU/100 mL) | BC49: N/A | BD49: N/A | BE49: N/A | BF49: N/A | BG49: N/A | BH49: N/A | BI49: N/A | BJ49: N/A | BK49: N/A | BL49: N/A | BM49: N/A | BN49: N/A | BO49: N/A | BP49: N/A | BQ49: N/A | BR49: N/A
A50: Microbiological quality of improved water sources at point of collection | B50: Not contaminated (No E. coli in 100 mL) | C50: N/A | D50: N/A | E50: N/A | F50: N/A | G50: N/A | H50: N/A | I50: N/A | J50: N/A | K50: N/A | L50: N/A | M50: N/A | N50: N/A | O50: N/A | P50: N/A | Q50: N/A | R50: N/A | BA50: Microbiological quality of improved water sources at point of collection | BB50: Not contaminated (No E. coli in 100 mL) | BC50: N/A | BD50: N/A | BE50: N/A | BF50: N/A | BG50: N/A | BH50: N/A | BI50: N/A | BJ50: N/A | BK50: N/A | BL50: N/A | BM50: N/A | BN50: N/A | BO50: N/A | BP50: N/A | BQ50: N/A | BR50: N/A
B51: Contaminated (E. coli detected in 100 mL) | C51: N/A | D51: N/A | E51: N/A | F51: N/A | G51: N/A | H51: N/A | I51: N/A | J51: N/A | K51: N/A | L51: N/A | M51: N/A | N51: N/A | O51: N/A | P51: N/A | Q51: N/A | R51: N/A | BB51: Contaminated (E. coli detected in 100 mL) | BC51: N/A | BD51: N/A | BE51: N/A | BF51: N/A | BG51: N/A | BH51: N/A | BI51: N/A | BJ51: N/A | BK51: N/A | BL51: N/A | BM51: N/A | BN51: N/A | BO51: N/A | BP51: N/A | BQ51: N/A | BR51: N/A
B52: Highly contaminated (>100 CFU/100 mL) | C52: N/A | D52: N/A | E52: N/A | F52: N/A | G52: N/A | H52: N/A | I52: N/A | J52: N/A | K52: N/A | L52: N/A | M52: N/A | N52: N/A | O52: N/A | P52: N/A | Q52: N/A | R52: N/A | BB52: Highly contaminated (>100 CFU/100 mL) | BC52: N/A | BD52: N/A | BE52: N/A | BF52: N/A | BG52: N/A | BH52: N/A | BI52: N/A | BJ52: N/A | BK52: N/A | BL52: N/A | BM52: N/A | BN52: N/A | BO52: N/A | BP52: N/A | BQ52: N/A | BR52: N/A
A53: Microbiological quality of piped on premises at point of collection | B53: Not contaminated (No E. coli in 100 mL) | C53: N/A | D53: N/A | E53: N/A | F53: N/A | G53: N/A | H53: N/A | I53: N/A | J53: N/A | K53: N/A | L53: N/A | M53: N/A | N53: N/A | O53: N/A | P53: N/A | Q53: N/A | R53: N/A | BA53: Microbiological quality of piped on premises at point of collection | BB53: Not contaminated (No E. coli in 100 mL) | BC53: N/A | BD53: N/A | BE53: N/A | BF53: N/A | BG53: N/A | BH53: N/A | BI53: N/A | BJ53: N/A | BK53: N/A | BL53: N/A | BM53: N/A | BN53: N/A | BO53: N/A | BP53: N/A | BQ53: N/A | BR53: N/A
B54: Contaminated (E. coli detected in 100 mL) | C54: N/A | D54: N/A | E54: N/A | F54: N/A | G54: N/A | H54: N/A | I54: N/A | J54: N/A | K54: N/A | L54: N/A | M54: N/A | N54: N/A | O54: N/A | P54: N/A | Q54: N/A | R54: N/A | BB54: Contaminated (E. coli detected in 100 mL) | BC54: N/A | BD54: N/A | BE54: N/A | BF54: N/A | BG54: N/A | BH54: N/A | BI54: N/A | BJ54: N/A | BK54: N/A | BL54: N/A | BM54: N/A | BN54: N/A | BO54: N/A | BP54: N/A | BQ54: N/A | BR54: N/A
B55: Highly contaminated (>100 CFU/100 mL) | C55: N/A | D55: N/A | E55: N/A | F55: N/A | G55: N/A | H55: N/A | I55: N/A | J55: N/A | K55: N/A | L55: N/A | M55: N/A | N55: N/A | O55: N/A | P55: N/A | Q55: N/A | R55: N/A | BB55: Highly contaminated (>100 CFU/100 mL) | BC55: N/A | BD55: N/A | BE55: N/A | BF55: N/A | BG55: N/A | BH55: N/A | BI55: N/A | BJ55: N/A | BK55: N/A | BL55: N/A | BM55: N/A | BN55: N/A | BO55: N/A | BP55: N/A | BQ55: N/A | BR55: N/A
C56: NATIONAL wealth index quintile | H56: URBAN wealth index quintile | M56: RURAL wealth index quintile | R56: N/A | BA56: Raw numbers of respondents: | BB56: Use of drinking water sources | BC56: NATIONAL wealth index quintile | BH56: URBAN wealth index quintile | BM56: RURAL wealth index quintile | BR56: SUB-REGIONS:
A57: Percentage based on weighted population | C57: Poorest | D57: Poor | E57: Middle | F57: Rich | G57: Richest | H57: Poorest | I57: Poor | J57: Middle | K57: Rich | L57: Richest | M57: Poorest | N57: Poor | O57: Middle | P57: Rich | Q57: Richest | R57: None valid | BA57: Water data, raw numbers (weighted) | BC57: Poorest | BD57: Poor | BE57: Middle | BF57: Rich | BG57: Richest | BH57: Poorest | BI57: Poor | BJ57: Middle | BK57: Rich | BL57: Richest | BM57: Poorest | BN57: Poor | BO57: Middle | BP57: Rich | BQ57: Richest | BR57: None valid
A58: Drinking water | B58: Bottle - water | C58: 6.673579595 | D58: 11.80994884 | E58: 16.93606288 | F58: 27.27926981 | G58: 40.16812248 | H58: 38.89297442 | I58: 44.10328767 | J58: 43.83245606 | K58: 45.11424185 | L58: 33.59251828 | M58: 2.465295207 | N58: 5.567351429 | O58: 8.879487516 | P58: 14.96469537 | Q58: 31.6529084 | R58: N/A
B59: Inside piped water supply, private | C59: 14.33917958 | D59: 15.11694392 | E59: 15.93758052 | F59: 20.06680854 | G59: 35.78625249 | H59: 19.52397761 | I59: 25.40632335 | J59: 33.4709355 | K59: 40.3320953 | L59: 59.98634117 | M59: 13.38548346 | N59: 14.27591677 | O59: 14.75926618 | P59: 14.10243034 | Q59: 15.04091386 | R59: N/A
B60: Inside piped water supply, shared | C60: 1.224115156 | D60: 0.9409155597 | E60: 0.5404673256 | F60: 0.5835485058 | G60: 0.2292314173 | H60: 4.827920894 | I60: 1.723768846 | J60: 1.422286961 | K60: 0.3408976589 | L60: 0.006903593493 | M60: 0.7614543011 | N60: 0.1791385391 | O60: 0.4230621819 | P60: 0.2158402849 | Q60: 0.09898717522 | R60: N/A
B61: Inside piped underground water, private | C61: 2.974582067 | D61: 2.761202165 | E61: 2.104687218 | F61: 2.40720739 | G61: 1.576860047 | H61: 2.204049319 | I61: 1.469163855 | J61: 1.187225952 | K61: 1.153765714 | L61: 0.9910540643 | M61: 2.688337885 | N61: 3.185666621 | O61: 2.764913624 | P61: 2.231175324 | Q61: 2.800989075 | R61: N/A
B62: Inside piped underground water, shared | C62: 0.5917232667 | D62: 0.279763079 | E62: 0.0917718444 | F62: 0.1290171299 | G62: 0.134589603 | H62: 0.4022034202 | I62: 0.03028920995 | J62: 0.06614018433 | K62: 0.02279547519 | L62: 0 | M62: 0.7456577058 | N62: 0.05968261699 | O62: 0.3256222014 | P62: 0.203941099 | Q62: 0.1621717001 | R62: N/A
B63: Water supply piped | C63: 0.5566484294 | D63: 0.5834009453 | E63: 0.437793248 | F63: 0.3089734591 | G63: 0.2280430527 | H63: 0.6835458348 | I63: 0.2071256429 | J63: 0.1581133642 | K63: 0.06635721672 | L63: 0.06248929254 | M63: 0.5196968944 | N63: 0.6731254734 | O63: 0.4033890377 | P63: 0.4251790859 | Q63: 0.452598041 | R63: N/A
B64: Well or public tap | C64: 18.02293098 | D64: 13.39929227 | E64: 13.47835912 | F64: 11.62186362 | G64: 4.740640068 | H64: 6.529707695 | I64: 5.068958221 | J64: 4.050842667 | K64: 2.129216742 | L64: 0.8595569576 | M64: 20.17634132 | N64: 14.85550744 | O64: 15.05014235 | P64: 15.53167341 | Q64: 11.98079232 | R64: N/A
B65: River, stream, etc. | C65: 0.8028204862 | D65: 0.1964909741 | E65: 0.1961916312 | F65: 0.2739798215 | G65: 0.03145358845 | H65: 0.1450208502 | I65: 0.003922180901 | J65: 0.07375142354 | K65: 0 | L65: 0 | M65: 0.9974342325 | N65: 0.2734098319 | O65: 0.1704121137 | P65: 0.340674849 | Q65: 0.2088446926 | R65: N/A
B66: Rain water | C66: 53.46196794 | D66: 54.37123479 | E66: 49.84279399 | F66: 37.02534132 | G66: 16.51071331 | H66: 26.65299097 | I66: 21.84531224 | J66: 15.52151664 | K66: 10.4163936 | L66: 4.265196644 | M66: 56.58469829 | N66: 60.24090625 | O66: 56.80466923 | P66: 51.43473842 | Q66: 36.91703757 | R66: N/A
B67: Other | C67: 1.352452507 | D67: 0.5408074544 | E67: 0.4342922355 | F67: 0.3039903986 | G67: 0.5940939407 | H67: 0.1376089899 | I67: 0.1418487802 | J67: 0.216731248 | K67: 0.4242364475 | L67: 0.235939998 | M67: 1.675600705 | N67: 0.68929503 | O67: 0.4190355651 | P67: 0.5496518124 | Q67: 0.6847571589 | R67: N/A
A108: =A1026 -> Thailand
A109: =A1034 -> 2004
A110: Use of sanitation facilities
A111: by wealth quintile and sub-national region
A112: Notes:
A113: WHO/UNICEF JMP customised wealth index excludes water,
A114: sanitation and hygiene assets.
A115: Survey used for analysis: | B115: =A1025 -> SES04
A117: =B1029 -> Ratio of Shared improved based on: | B117: MICS06
A120: Use of sanitation facilities | C120: NATIONAL wealth index quintile | H120: URBAN wealth index quintile | M120: RURAL wealth index quintile | R120: N/A | BA120: Raw numbers of respondents: | BB120: Use of sanitation facilities | BC120: NATIONAL wealth index quintile | BH120: URBAN wealth index quintile | BM120: RURAL wealth index quintile | BR120: SUB-REGIONS:
A121: Weighted percentage (used in graphs) | C121: Poorest | D121: Poor | E121: Middle | F121: Rich | G121: Richest | H121: Poorest | I121: Poor | J121: Middle | K121: Rich | L121: Richest | M121: Poorest | N121: Poor | O121: Middle | P121: Rich | Q121: Richest | R121: None valid | BA121: Sanitation data, raw numbers (weighted) | BC121: Poorest | BD121: Poor | BE121: Middle | BF121: Rich | BG121: Richest | BH121: Poorest | BI121: Poor | BJ121: Middle | BK121: Rich | BL121: Richest | BM121: Poorest | BN121: Poor | BO121: Middle | BP121: Rich | BQ121: Richest | BR121: None valid
A122: Sanitation | B122: Improved | C122: =C154+C155+C156+C157+C158+C159 -> 95.81357014 | D122: =D154+D155+D156+D157+D158+D159 -> 99.22255564 | E122: 99.78169055 | F122: 99.80173746 | G122: 100 | H122: 99.42058941 | I122: 99.88128666 | J122: 99.94839187 | K122: 100 | L122: 100 | M122: 94.57132734 | N122: 99.00731045 | O122: 99.62512726 | P122: 99.82058164 | Q122: 99.8206696 | R122: N/A | BA122: Sanitation | BB122: Improved | BC122: N/A | BD122: N/A | BE122: N/A | BF122: N/A | BG122: N/A | BH122: N/A | BI122: N/A | BJ122: N/A | BK122: N/A | BL122: N/A | BM122: N/A | BN122: N/A | BO122: N/A | BP122: N/A | BQ122: N/A | BR122: N/A
B123: Not Improved | C123: =100-C122 -> 4.186429859 | D123: =100-D122 -> 0.7774443612 | E123: 0.2183094526 | F123: 0.1982625361 | G123: 0 | H123: 0.5794105929 | I123: 0.1187133406 | J123: 0.05160812916 | K123: 0 | L123: 0 | M123: 5.428672656 | N123: 0.992689552 | O123: 0.3748727449 | P123: 0.1794183604 | Q123: 0.1793303979 | R123: N/A | BB123: Not Improved | BC123: N/A | BD123: N/A | BE123: N/A | BF123: N/A | BG123: N/A | BH123: N/A | BI123: N/A | BJ123: N/A | BK123: N/A | BL123: N/A | BM123: N/A | BN123: N/A | BO123: N/A | BP123: N/A | BQ123: N/A | BR123: N/A
A124: Sanitation ladder | B124: Basic | C124: =C122*MICS06!C129/100 -> 89.64637189 | D124: =D122*MICS06!D129/100 -> 94.46176845 | E124: =E122*MICS06!E129/100 -> 94.49408289 | F124: =F122*MICS06!F129/100 -> 97.17732443 | G124: =G122*MICS06!G129/100 -> 98.85699966 | H124: =H122*MICS06!H129/100 -> 88.12565408 | I124: =I122*MICS06!I129/100 -> 92.95817639 | J124: =J122*MICS06!J129/100 -> 97.41954174 | K124: =K122*MICS06!K129/100 -> 98.88139284 | L124: =L122*MICS06!L129/100 -> 98.13032403 | M124: =M122*MICS06!M129/100 -> 88.08827601 | N124: =N122*MICS06!N129/100 -> 95.59684789 | O124: =O122*MICS06!O129/100 -> 95.24329965 | P124: =P122*MICS06!P129/100 -> 96.71005996 | Q124: =Q122*MICS06!Q129/100 -> 98.81854043 | R124: N/A | BA124: Sanitation ladder | BB124: Basic | BC124: N/A | BD124: N/A | BE124: N/A | BF124: N/A | BG124: N/A | BH124: N/A | BI124: N/A | BJ124: N/A | BK124: N/A | BL124: N/A | BM124: N/A | BN124: N/A | BO124: N/A | BP124: N/A | BQ124: N/A | BR124: N/A
B125: Limited | C125: =C122*MICS06!C128/100 -> 6.167198249 | D125: =D122*MICS06!D128/100 -> 4.760787184 | E125: =E122*MICS06!E128/100 -> 5.287607662 | F125: =F122*MICS06!F128/100 -> 2.624413032 | G125: =G122*MICS06!G128/100 -> 1.143000344 | H125: =H122*MICS06!H128/100 -> 11.29493533 | I125: =I122*MICS06!I128/100 -> 6.923110265 | J125: =J122*MICS06!J128/100 -> 2.528850128 | K125: =K122*MICS06!K128/100 -> 1.118607157 | L125: =L122*MICS06!L128/100 -> 1.869675974 | M125: =M122*MICS06!M128/100 -> 6.483051334 | N125: =N122*MICS06!N128/100 -> 3.410462562 | O125: =O122*MICS06!O128/100 -> 4.381827608 | P125: =P122*MICS06!P128/100 -> 3.110521684 | Q125: =Q122*MICS06!Q128/100 -> 1.00212917 | R125: N/A | BB125: Limited | BC125: N/A | BD125: N/A | BE125: N/A | BF125: N/A | BG125: N/A | BH125: N/A | BI125: N/A | BJ125: N/A | BK125: N/A | BL125: N/A | BM125: N/A | BN125: N/A | BO125: N/A | BP125: N/A | BQ125: N/A | BR125: N/A
B126: Unimproved | C126: =100-(C124+C125+C127) -> 0.5651230819 | D126: =100-(D124+D125+D127) -> 0.3336590372 | E126: 0.09784005593 | F126: 0.1023773583 | G126: 0 | H126: 0.1003398492 | I126: 0.03811265414 | J126: 0 | K126: 0 | L126: 0 | M126: 0.7359507288 | N126: 0.3845243627 | O126: 0.1148664475 | P126: 0.1030947755 | Q126: 0.1286298356 | R126: N/A | BB126: Unimproved | BC126: N/A | BD126: N/A | BE126: N/A | BF126: N/A | BG126: N/A | BH126: N/A | BI126: N/A | BJ126: N/A | BK126: N/A | BL126: N/A | BM126: N/A | BN126: N/A | BO126: N/A | BP126: N/A | BQ126: N/A | BR126: N/A
B127: Open defecation | C127: =C153 -> 3.621306777 | D127: =D153 -> 0.443785324 | E127: 0.1204693967 | F127: 0.0958851778 | G127: 0 | H127: 0.4790707437 | I127: 0.0806006865 | J127: 0.05160812916 | K127: 0 | L127: 0 | M127: 4.692721927 | N127: 0.6081651893 | O127: 0.2600062973 | P127: 0.07632358484 | Q127: 0.05070056231 | R127: N/A | BB127: Open defecation | BC127: N/A | BD127: N/A | BE127: N/A | BF127: N/A | BG127: N/A | BH127: N/A | BI127: N/A | BJ127: N/A | BK127: N/A | BL127: N/A | BM127: N/A | BN127: N/A | BO127: N/A | BP127: N/A | BQ127: N/A | BR127: N/A
A128: Shared among Improved Sanitation | B128: Yes | C128: N/A | D128: N/A | E128: N/A | F128: N/A | G128: N/A | H128: N/A | I128: N/A | J128: N/A | K128: N/A | L128: N/A | M128: N/A | N128: N/A | O128: N/A | P128: N/A | Q128: N/A | R128: N/A | BA128: Shared among improved sanitation facilities | BB128: Yes | BC128: N/A | BD128: N/A | BE128: N/A | BF128: N/A | BG128: N/A | BH128: N/A | BI128: N/A | BJ128: N/A | BK128: N/A | BL128: N/A | BM128: N/A | BN128: N/A | BO128: N/A | BP128: N/A | BQ128: N/A | BR128: N/A
B129: No | C129: N/A | D129: N/A | E129: N/A | F129: N/A | G129: N/A | H129: N/A | I129: N/A | J129: N/A | K129: N/A | L129: N/A | M129: N/A | N129: N/A | O129: N/A | P129: N/A | Q129: N/A | R129: N/A | BB129: No | BC129: N/A | BD129: N/A | BE129: N/A | BF129: N/A | BG129: N/A | BH129: N/A | BI129: N/A | BJ129: N/A | BK129: N/A | BL129: N/A | BM129: N/A | BN129: N/A | BO129: N/A | BP129: N/A | BQ129: N/A | BR129: N/A
A130: Manually calculated ratios | B130: Improved latrines
B131: Other
B132: Other
C133: NATIONAL wealth index quintile | H133: URBAN wealth index quintile | M133: RURAL wealth index quintile | R133: N/A | BA133: Raw numbers of respondents: | BB133: Use of sanitation facilities | BC133: NATIONAL wealth index quintile | BH133: URBAN wealth index quintile | BM133: RURAL wealth index quintile | BR133: SUB-REGIONS:
A134: Percentage based on weighted population | C134: Poorest | D134: Poor | E134: Middle | F134: Rich | G134: Richest | H134: Poorest | I134: Poor | J134: Middle | K134: Rich | L134: Richest | M134: Poorest | N134: Poor | O134: Middle | P134: Rich | Q134: Richest | R134: None valid | BA134: Sanitation data, raw numbers (weighted) | BC134: Poorest | BD134: Poor | BE134: Middle | BF134: Rich | BG134: Richest | BH134: Poorest | BI134: Poor | BJ134: Middle | BK134: Rich | BL134: Richest | BM134: Poorest | BN134: Poor | BO134: Middle | BP134: Rich | BQ134: Richest | BR134: None valid
A135: Sanitation type | B135: Sewer connection | C135: N/A | D135: N/A | E135: N/A | F135: N/A | G135: N/A | H135: N/A | I135: N/A | J135: N/A | K135: N/A | L135: N/A | M135: N/A | N135: N/A | O135: N/A | P135: N/A | Q135: N/A | R135: N/A | BA135: Sanitation type | BB135: Sewer connection | BC135: N/A | BD135: N/A | BE135: N/A | BF135: N/A | BG135: N/A | BH135: N/A | BI135: N/A | BJ135: N/A | BK135: N/A | BL135: N/A | BM135: N/A | BN135: N/A | BO135: N/A | BP135: N/A | BQ135: N/A | BR135: N/A
B136: Septic tank connection | C136: N/A | D136: N/A | E136: N/A | F136: N/A | G136: N/A | H136: N/A | I136: N/A | J136: N/A | K136: N/A | L136: N/A | M136: N/A | N136: N/A | O136: N/A | P136: N/A | Q136: N/A | R136: N/A | BB136: Septic tank connection | BC136: N/A | BD136: N/A | BE136: N/A | BF136: N/A | BG136: N/A | BH136: N/A | BI136: N/A | BJ136: N/A | BK136: N/A | BL136: N/A | BM136: N/A | BN136: N/A | BO136: N/A | BP136: N/A | BQ136: N/A | BR136: N/A
B137: Improved latrines | C137: N/A | D137: N/A | E137: N/A | F137: N/A | G137: N/A | H137: N/A | I137: N/A | J137: N/A | K137: N/A | L137: N/A | M137: N/A | N137: N/A | O137: N/A | P137: N/A | Q137: N/A | R137: N/A | BB137: Improved latrines | BC137: N/A | BD137: N/A | BE137: N/A | BF137: N/A | BG137: N/A | BH137: N/A | BI137: N/A | BJ137: N/A | BK137: N/A | BL137: N/A | BM137: N/A | BN137: N/A | BO137: N/A | BP137: N/A | BQ137: N/A | BR137: N/A
B138: Unimproved facilities | C138: N/A | D138: N/A | E138: N/A | F138: N/A | G138: N/A | H138: N/A | I138: N/A | J138: N/A | K138: N/A | L138: N/A | M138: N/A | N138: N/A | O138: N/A | P138: N/A | Q138: N/A | R138: N/A | BB138: Unimproved facilities | BC138: N/A | BD138: N/A | BE138: N/A | BF138: N/A | BG138: N/A | BH138: N/A | BI138: N/A | BJ138: N/A | BK138: N/A | BL138: N/A | BM138: N/A | BN138: N/A | BO138: N/A | BP138: N/A | BQ138: N/A | BR138: N/A
B139: Open defecation | C139: N/A | D139: N/A | E139: N/A | F139: N/A | G139: N/A | H139: N/A | I139: N/A | J139: N/A | K139: N/A | L139: N/A | M139: N/A | N139: N/A | O139: N/A | P139: N/A | Q139: N/A | R139: N/A | BB139: Open defecation | BC139: N/A | BD139: N/A | BE139: N/A | BF139: N/A | BG139: N/A | BH139: N/A | BI139: N/A | BJ139: N/A | BK139: N/A | BL139: N/A | BM139: N/A | BN139: N/A | BO139: N/A | BP139: N/A | BQ139: N/A | BR139: N/A
A140: Septic tank emptying practices | B140: Not emptied/treated and disposed in situ | C140: N/A | D140: N/A | E140: N/A | F140: N/A | G140: N/A | H140: N/A | I140: N/A | J140: N/A | K140: N/A | L140: N/A | M140: N/A | N140: N/A | O140: N/A | P140: N/A | Q140: N/A | R140: N/A | BA140: Septic tank emptying practices | BB140: Not emptied/treated and disposed in situ | BC140: N/A | BD140: N/A | BE140: N/A | BF140: N/A | BG140: N/A | BH140: N/A | BI140: N/A | BJ140: N/A | BK140: N/A | BL140: N/A | BM140: N/A | BN140: N/A | BO140: N/A | BP140: N/A | BQ140: N/A | BR140: N/A
B141: Emptied and buried on site | C141: N/A | D141: N/A | E141: N/A | F141: N/A | G141: N/A | H141: N/A | I141: N/A | J141: N/A | K141: N/A | L141: N/A | M141: N/A | N141: N/A | O141: N/A | P141: N/A | Q141: N/A | R141: N/A | BB141: Emptied and buried on site | BC141: N/A | BD141: N/A | BE141: N/A | BF141: N/A | BG141: N/A | BH141: N/A | BI141: N/A | BJ141: N/A | BK141: N/A | BL141: N/A | BM141: N/A | BN141: N/A | BO141: N/A | BP141: N/A | BQ141: N/A | BR141: N/A
B142: Emptied and discharged locally | C142: N/A | D142: N/A | E142: N/A | F142: N/A | G142: N/A | H142: N/A | I142: N/A | J142: N/A | K142: N/A | L142: N/A | M142: N/A | N142: N/A | O142: N/A | P142: N/A | Q142: N/A | R142: N/A | BB142: Emptied and discharged locally | BC142: N/A | BD142: N/A | BE142: N/A | BF142: N/A | BG142: N/A | BH142: N/A | BI142: N/A | BJ142: N/A | BK142: N/A | BL142: N/A | BM142: N/A | BN142: N/A | BO142: N/A | BP142: N/A | BQ142: N/A | BR142: N/A
B143: Emptied and removed offsite | C143: N/A | D143: N/A | E143: N/A | F143: N/A | G143: N/A | H143: N/A | I143: N/A | J143: N/A | K143: N/A | L143: N/A | M143: N/A | N143: N/A | O143: N/A | P143: N/A | Q143: N/A | R143: N/A | BB143: Emptied and removed offsite | BC143: N/A | BD143: N/A | BE143: N/A | BF143: N/A | BG143: N/A | BH143: N/A | BI143: N/A | BJ143: N/A | BK143: N/A | BL143: N/A | BM143: N/A | BN143: N/A | BO143: N/A | BP143: N/A | BQ143: N/A | BR143: N/A
A144: Latrine emptying practices | B144: Not emptied/treated and disposed in situ | C144: N/A | D144: N/A | E144: N/A | F144: N/A | G144: N/A | H144: N/A | I144: N/A | J144: N/A | K144: N/A | L144: N/A | M144: N/A | N144: N/A | O144: N/A | P144: N/A | Q144: N/A | R144: N/A | BA144: Latrine emptying practices | BB144: Not emptied/treated and disposed in situ | BC144: N/A | BD144: N/A | BE144: N/A | BF144: N/A | BG144: N/A | BH144: N/A | BI144: N/A | BJ144: N/A | BK144: N/A | BL144: N/A | BM144: N/A | BN144: N/A | BO144: N/A | BP144: N/A | BQ144: N/A | BR144: N/A
B145: Emptied and buried on site | C145: N/A | D145: N/A | E145: N/A | F145: N/A | G145: N/A | H145: N/A | I145: N/A | J145: N/A | K145: N/A | L145: N/A | M145: N/A | N145: N/A | O145: N/A | P145: N/A | Q145: N/A | R145: N/A | BB145: Emptied and buried on site | BC145: N/A | BD145: N/A | BE145: N/A | BF145: N/A | BG145: N/A | BH145: N/A | BI145: N/A | BJ145: N/A | BK145: N/A | BL145: N/A | BM145: N/A | BN145: N/A | BO145: N/A | BP145: N/A | BQ145: N/A | BR145: N/A
B146: Emptied and discharged locally | C146: N/A | D146: N/A | E146: N/A | F146: N/A | G146: N/A | H146: N/A | I146: N/A | J146: N/A | K146: N/A | L146: N/A | M146: N/A | N146: N/A | O146: N/A | P146: N/A | Q146: N/A | R146: N/A | BB146: Emptied and discharged locally | BC146: N/A | BD146: N/A | BE146: N/A | BF146: N/A | BG146: N/A | BH146: N/A | BI146: N/A | BJ146: N/A | BK146: N/A | BL146: N/A | BM146: N/A | BN146: N/A | BO146: N/A | BP146: N/A | BQ146: N/A | BR146: N/A
B147: Emptied and removed offsite | C147: N/A | D147: N/A | E147: N/A | F147: N/A | G147: N/A | H147: N/A | I147: N/A | J147: N/A | K147: N/A | L147: N/A | M147: N/A | N147: N/A | O147: N/A | P147: N/A | Q147: N/A | R147: N/A | BB147: Emptied and removed offsite | BC147: N/A | BD147: N/A | BE147: N/A | BF147: N/A | BG147: N/A | BH147: N/A | BI147: N/A | BJ147: N/A | BK147: N/A | BL147: N/A | BM147: N/A | BN147: N/A | BO147: N/A | BP147: N/A | BQ147: N/A | BR147: N/A
A148: Shared among improved sanitation facilities | B148: Yes | C148: N/A | D148: N/A | E148: N/A | F148: N/A | G148: N/A | H148: N/A | I148: N/A | J148: N/A | K148: N/A | L148: N/A | M148: N/A | N148: N/A | O148: N/A | P148: N/A | Q148: N/A | R148: N/A | BA148: Shared among improved sanitation facilities | BB148: Yes | BC148: N/A | BD148: N/A | BE148: N/A | BF148: N/A | BG148: N/A | BH148: N/A | BI148: N/A | BJ148: N/A | BK148: N/A | BL148: N/A | BM148: N/A | BN148: N/A | BO148: N/A | BP148: N/A | BQ148: N/A | BR148: N/A
B149: No | C149: N/A | D149: N/A | E149: N/A | F149: N/A | G149: N/A | H149: N/A | I149: N/A | J149: N/A | K149: N/A | L149: N/A | M149: N/A | N149: N/A | O149: N/A | P149: N/A | Q149: N/A | R149: N/A | BB149: No | BC149: N/A | BD149: N/A | BE149: N/A | BF149: N/A | BG149: N/A | BH149: N/A | BI149: N/A | BJ149: N/A | BK149: N/A | BL149: N/A | BM149: N/A | BN149: N/A | BO149: N/A | BP149: N/A | BQ149: N/A | BR149: N/A
B150: DK/missing | C150: N/A | D150: N/A | E150: N/A | F150: N/A | G150: N/A | H150: N/A | I150: N/A | J150: N/A | K150: N/A | L150: N/A | M150: N/A | N150: N/A | O150: N/A | P150: N/A | Q150: N/A | R150: N/A | BB150: DK/missing | BC150: N/A | BD150: N/A | BE150: N/A | BF150: N/A | BG150: N/A | BH150: N/A | BI150: N/A | BJ150: N/A | BK150: N/A | BL150: N/A | BM150: N/A | BN150: N/A | BO150: N/A | BP150: N/A | BQ150: N/A | BR150: N/A
A151: Shared among all sanitation facilities | B151: Yes | C151: N/A | D151: N/A | E151: N/A | F151: N/A | G151: N/A | H151: N/A | I151: N/A | J151: N/A | K151: N/A | L151: N/A | M151: N/A | N151: N/A | O151: N/A | P151: N/A | Q151: N/A | R151: N/A | BA151: Shared among all sanitation facilities | BB151: Yes | BC151: N/A | BD151: N/A | BE151: N/A | BF151: N/A | BG151: N/A | BH151: N/A | BI151: N/A | BJ151: N/A | BK151: N/A | BL151: N/A | BM151: N/A | BN151: N/A | BO151: N/A | BP151: N/A | BQ151: N/A | BR151: N/A
B152: No | C152: N/A | D152: N/A | E152: N/A | F152: N/A | G152: N/A | H152: N/A | I152: N/A | J152: N/A | K152: N/A | L152: N/A | M152: N/A | N152: N/A | O152: N/A | P152: N/A | Q152: N/A | R152: N/A | BB152: No | BC152: N/A | BD152: N/A | BE152: N/A | BF152: N/A | BG152: N/A | BH152: N/A | BI152: N/A | BJ152: N/A | BK152: N/A | BL152: N/A | BM152: N/A | BN152: N/A | BO152: N/A | BP152: N/A | BQ152: N/A | BR152: N/A
A153: sanitation | B153: 0 | C153: 3.621306777 | D153: 0.443785324 | E153: 0.1204693967 | F153: 0.0958851778 | G153: 0 | H153: 0.4790707437 | I153: 0.0806006865 | J153: 0.05160812916 | K153: 0 | L153: 0 | M153: 4.692721927 | N153: 0.6081651893 | O153: 0.2600062973 | P153: 0.07632358484 | Q153: 0.05070056231 | R153: N/A | BA153: sanitation | BB153: 0 | BC153: 3961.061851 | BD153: 485.270924 | BE153: 131.769927 | BF153: 104.894936 | BG153: 0 | BH153: 145.095955 | BI153: 24.421868 | BJ153: 15.631788 | BK153: 0 | BL153: 0 | BM153: 3710.978195 | BN153: 480.781568 | BO153: 205.63309 | BP153: 60.359409 | BQ153: 40.095765 | BR153: N/A
B154: Flush latrine-Private | C154: 2.346894014 | D154: 2.286180569 | E154: 3.949776781 | F154: 5.33563006 | G154: 22.86570615 | H154: 4.47553657 | I154: 6.222728826 | J154: 8.882538491 | K154: 15.25707254 | L154: 44.57717176 | M154: 2.128343182 | N154: 1.48698691 | O154: 2.919616961 | P154: 3.729874354 | Q154: 10.18230612 | R154: N/A | BB154: Flush latrine-Private | BC154: 2567.08225 | BD154: 2499.895551 | BE154: 4320.282266 | BF154: 5836.98739 | BG154: 25001.6171 | BH154: 1355.503882 | BI154: 1885.476025 | BJ154: 2690.466809 | BK154: 4621.77057 | BL154: 13502.73869 | BM154: 1683.081858 | BN154: 1175.529134 | BO154: 2309.058909 | BP154: 2949.717471 | BQ154: 8052.521208 | BR154: N/A
B155: Flush latrine-Shared | C155: 0.6231562791 | D155: 0.7677796531 | E155: 0.5416931739 | F155: 0.5386545628 | G155: 0.2516563879 | H155: 1.246446179 | I155: 0.5014446701 | J155: 0.3777440531 | K155: 0.2474167478 | L155: 0.1449140683 | M155: 0.489181123 | N155: 0.6181575038 | O155: 0.5622269573 | P155: 0.8229053363 | Q155: 0.3090993956 | R155: N/A | BB155: Flush latrine-Shared | BC155: 681.621502 | BD155: 839.552643 | BE155: 592.506246 | BF155: 589.268719 | BG155: 275.16389 | BH155: 377.510631 | BI155: 151.936864 | BJ155: 114.416373 | BK155: 74.949073 | BL155: 43.89549 | BM155: 386.84169 | BN155: 488.680936 | BO155: 444.652563 | BP155: 650.782846 | BQ155: 244.446534 | BR155: N/A
B156: Moulded latrine-Private | C156: 85.20791982 | D156: 92.60110095 | E156: 92.7782133 | F156: 91.72773096 | G156: 67.65150552 | H156: 79.33757593 | I156: 88.33102717 | J156: 85.94564927 | K156: 76.16737383 | L156: 38.23026497 | M156: 84.83808662 | N156: 94.71232085 | O156: 94.15466479 | P156: 93.88699974 | Q156: 86.11426934 | R156: N/A | BB156: Moulded latrine-Private | BC156: 93202.22267 | BD156: 101257.5662 | BE156: 101481.1955 | BF156: 100346.8387 | BG156: 73970.90762 | BH156: 24028.93831 | BI156: 26764.1478 | BJ156: 26032.41371 | BK156: 23073.11091 | BL156: 11580.21601 | BM156: 67089.48335 | BN156: 74874.29226 | BO156: 74464.79127 | BP156: 74249.18298 | BQ156: 68102.15408 | BR156: N/A
B157: Moulded latrine-Shared | C157: 7.070487995 | D157: 2.829187686 | E157: 1.998548779 | F157: 1.069213998 | G157: 0.3683321104 | H157: 12.99397536 | I157: 3.291269502 | J157: 1.51948847 | K157: 0.5917527035 | L157: 0.3605385688 | M157: 6.57048 | N157: 1.681176124 | O157: 1.542727583 | P157: 1.030216683 | Q157: 0.4359072576 | R157: N/A | BB157: Moulded latrine-Shared | BC157: 7733.84913 | BD157: 3093.663644 | BE157: 2186.020965 | BF157: 1169.681659 | BG157: 402.738421 | BH157: 3935.479863 | BI157: 997.248942 | BJ157: 460.243803 | BK157: 179.257536 | BL157: 109.209667 | BM157: 5195.898754 | BN157: 1329.044324 | BO157: 1220.108294 | BP157: 814.732042 | BQ157: 344.730594 | BR157: N/A
B158: Flush and moulded-Private | C158: 0.1654106498 | D158: 0.5822041913 | E158: 0.4203757854 | F158: 1.060194628 | G158: 8.813124723 | H158: 0.8472934452 | I158: 1.297059726 | J158: 2.946810947 | K158: 7.684739997 | L158: 16.68711064 | M158: 0.1226214117 | N158: 0.3547218863 | O158: 0.4013731487 | P158: 0.3505855306 | Q158: 2.752427909 | R158: N/A | BB158: Flush and moulded-Private | BC158: 180.929663 | BD158: 636.629358 | BE158: 459.808782 | BF158: 1159.814793 | BG158: 9636.36847 | BH158: 256.61941 | BI158: 393.006844 | BJ158: 892.571088 | BK158: 2327.91088 | BL158: 5054.64312 | BM158: 96.968325 | BN158: 280.423391 | BO158: 317.43693 | BP158: 277.255523 | BQ158: 2176.715555 | BR158: N/A
B159: Flush and moulded-Shared | C159: 0.3997013855 | D159: 0.156102592 | E159: 0.09308272532 | F159: 0.07031325577 | G159: 0.04967510079 | H159: 0.5197619217 | I159: 0.237756769 | J159: 0.2761606404 | K159: 0.05164418574 | L159: 0 | M159: 0.4226150075 | N159: 0.1539471701 | O159: 0.04451781081 | P159: 0 | Q159: 0.02665958065 | R159: N/A | BB159: Flush and moulded-Shared | BC159: 437.201819 | BD159: 170.695255 | BE159: 101.814272 | BF159: 76.920173 | BG159: 54.315307 | BH159: 157.420075 | BI159: 72.039888 | BJ159: 83.647376 | BK159: 15.644389 | BL159: 0 | BM159: 334.201579 | BN159: 121.702069 | BO159: 35.208128 | BP159: 0 | BQ159: 21.083322 | BR159: N/A
B160: Others | C160: 0.5651230819 | D160: 0.3336590372 | E160: 0.09784005593 | F160: 0.1023773583 | G160: 0 | H160: 0.1003398492 | I160: 0.03811265414 | J160: 0 | K160: 0 | L160: 0 | M160: 0.7359507288 | N160: 0.3845243627 | O160: 0.1148664475 | P160: 0.1030947755 | Q160: 0.1286298356 | R160: N/A | BB160: Others | BC160: 618.143565 | BD160: 364.849896 | BE160: 107.01786 | BF160: 111.997148 | BG160: 0 | BH160: 30.389888 | BI160: 11.548068 | BJ160: 0 | BK160: 0 | BL160: 0 | BM160: 581.985711 | BN160: 303.983571 | BO160: 90.845271 | BP160: 81.53102 | BQ160: 101.72494 | BR160: N/A
BB161: Total | BC161: 109382.1125 | BD161: 109348.1235 | BE161: 109380.4158 | BF161: 109396.4035 | BG161: 109341.1108 | BH161: 30286.95801 | BI161: 30299.82629 | BJ161: 30289.39094 | BK161: 30292.64335 | BL161: 30290.70298 | BM161: 79079.43946 | BN161: 79054.43725 | BO161: 79087.73446 | BP161: 79083.56129 | BQ161: 79083.472 | BR161: N/A
A208: =A1026 -> Thailand
A209: =A1034 -> 2004
A210: Access to hygiene facilities
A211: by wealth quintile and sub-national region
A212: Notes:
A213: WHO/UNICEF JMP customised wealth index excludes water,
A214: sanitation and hygiene assets.
A215: Survey used for analysis: | B215: =A1025 -> SES04
A220: Access to handwashing | C220: NATIONAL wealth index quintile | H220: URBAN wealth index quintile | M220: RURAL wealth index quintile | R220: N/A | BA220: Raw numbers of respondents: | BB220: Access to handwashing | BC220: NATIONAL wealth index quintile | BH220: URBAN wealth index quintile | BM220: RURAL wealth index quintile | BR220: SUB-REGIONS:
A221: Weighted percentage (used in graphs) | C221: Poorest | D221: Poor | E221: Middle | F221: Rich | G221: Richest | H221: Poorest | I221: Poor | J221: Middle | K221: Rich | L221: Richest | M221: Poorest | N221: Poor | O221: Middle | P221: Rich | Q221: Richest | R221: None valid | BA221: Hygiene data, raw numbers (weighted) | BC221: Poorest | BD221: Poor | BE221: Middle | BF221: Rich | BG221: Richest | BH221: Poorest | BI221: Poor | BJ221: Middle | BK221: Rich | BL221: Richest | BM221: Poorest | BN221: Poor | BO221: Middle | BP221: Rich | BQ221: Richest | BR221: None valid
A222: Hygiene ladder | B222: Basic | C222: N/A | D222: N/A | E222: N/A | F222: N/A | G222: N/A | H222: N/A | I222: N/A | J222: N/A | K222: N/A | L222: N/A | M222: N/A | N222: N/A | O222: N/A | P222: N/A | Q222: N/A | R222: N/A | BA222: Hygiene ladder | BB222: Basic | BC222: N/A | BD222: N/A | BE222: N/A | BF222: N/A | BG222: N/A | BH222: N/A | BI222: N/A | BJ222: N/A | BK222: N/A | BL222: N/A | BM222: N/A | BN222: N/A | BO222: N/A | BP222: N/A | BQ222: N/A | BR222: N/A
B223: Limited | C223: N/A | D223: N/A | E223: N/A | F223: N/A | G223: N/A | H223: N/A | I223: N/A | J223: N/A | K223: N/A | L223: N/A | M223: N/A | N223: N/A | O223: N/A | P223: N/A | Q223: N/A | R223: N/A | BB223: Limited | BC223: N/A | BD223: N/A | BE223: N/A | BF223: N/A | BG223: N/A | BH223: N/A | BI223: N/A | BJ223: N/A | BK223: N/A | BL223: N/A | BM223: N/A | BN223: N/A | BO223: N/A | BP223: N/A | BQ223: N/A | BR223: N/A
B224: No facility | C224: N/A | D224: N/A | E224: N/A | F224: N/A | G224: N/A | H224: N/A | I224: N/A | J224: N/A | K224: N/A | L224: N/A | M224: N/A | N224: N/A | O224: N/A | P224: N/A | Q224: N/A | R224: N/A | BB224: No facility | BC224: N/A | BD224: N/A | BE224: N/A | BF224: N/A | BG224: N/A | BH224: N/A | BI224: N/A | BJ224: N/A | BK224: N/A | BL224: N/A | BM224: N/A | BN224: N/A | BO224: N/A | BP224: N/A | BQ224: N/A | BR224: N/A
BA225: Observed handwashing place | BB225: Fixed | BC225: N/A | BD225: N/A | BE225: N/A | BF225: N/A | BG225: N/A | BH225: N/A | BI225: N/A | BJ225: N/A | BK225: N/A | BL225: N/A | BM225: N/A | BN225: N/A | BO225: N/A | BP225: N/A | BQ225: N/A | BR225: N/A
BB226: Mobile | BC226: N/A | BD226: N/A | BE226: N/A | BF226: N/A | BG226: N/A | BH226: N/A | BI226: N/A | BJ226: N/A | BK226: N/A | BL226: N/A | BM226: N/A | BN226: N/A | BO226: N/A | BP226: N/A | BQ226: N/A | BR226: N/A
BA227: Water / Soap | BB227: Water and soap | BC227: N/A | BD227: N/A | BE227: N/A | BF227: N/A | BG227: N/A | BH227: N/A | BI227: N/A | BJ227: N/A | BK227: N/A | BL227: N/A | BM227: N/A | BN227: N/A | BO227: N/A | BP227: N/A | BQ227: N/A | BR227: N/A
BB228: Water only | BC228: N/A | BD228: N/A | BE228: N/A | BF228: N/A | BG228: N/A | BH228: N/A | BI228: N/A | BJ228: N/A | BK228: N/A | BL228: N/A | BM228: N/A | BN228: N/A | BO228: N/A | BP228: N/A | BQ228: N/A | BR228: N/A
BB229: Soap only | BC229: N/A | BD229: N/A | BE229: N/A | BF229: N/A | BG229: N/A | BH229: N/A | BI229: N/A | BJ229: N/A | BK229: N/A | BL229: N/A | BM229: N/A | BN229: N/A | BO229: N/A | BP229: N/A | BQ229: N/A | BR229: N/A
BB230: Neither | BC230: N/A | BD230: N/A | BE230: N/A | BF230: N/A | BG230: N/A | BH230: N/A | BI230: N/A | BJ230: N/A | BK230: N/A | BL230: N/A | BM230: N/A | BN230: N/A | BO230: N/A | BP230: N/A | BQ230: N/A | BR230: N/A
BA259: Raw numbers of respondents: | BB259: Menstrual health and hygiene | BC259: NATIONAL wealth index quintile | BH259: URBAN wealth index quintile | BM259: RURAL wealth index quintile | BR259: SUB-REGIONS:
BA260: MHH data, raw numbers (weighted) | BC260: Poorest | BD260: Poor | BE260: Middle | BF260: Rich | BG260: Richest | BH260: Poorest | BI260: Poor | BJ260: Middle | BK260: Rich | BL260: Richest | BM260: Poorest | BN260: Poor | BO260: Middle | BP260: Rich | BQ260: Richest | BR260: None valid
BA261: Private place to wash and change | BB261: Yes | BC261: N/A | BD261: N/A | BE261: N/A | BF261: N/A | BG261: N/A | BH261: N/A | BI261: N/A | BJ261: N/A | BK261: N/A | BL261: N/A | BM261: N/A | BN261: N/A | BO261: N/A | BP261: N/A | BQ261: N/A | BR261: N/A
BB262: No | BC262: N/A | BD262: N/A | BE262: N/A | BF262: N/A | BG262: N/A | BH262: N/A | BI262: N/A | BJ262: N/A | BK262: N/A | BL262: N/A | BM262: N/A | BN262: N/A | BO262: N/A | BP262: N/A | BQ262: N/A | BR262: N/A
BB263: DK/not sure/missing | BC263: N/A | BD263: N/A | BE263: N/A | BF263: N/A | BG263: N/A | BH263: N/A | BI263: N/A | BJ263: N/A | BK263: N/A | BL263: N/A | BM263: N/A | BN263: N/A | BO263: N/A | BP263: N/A | BQ263: N/A | BR263: N/A
BA264: Use of menstrual materials | BB264: Materials reusable | BC264: N/A | BD264: N/A | BE264: N/A | BF264: N/A | BG264: N/A | BH264: N/A | BI264: N/A | BJ264: N/A | BK264: N/A | BL264: N/A | BM264: N/A | BN264: N/A | BO264: N/A | BP264: N/A | BQ264: N/A | BR264: N/A
BB265: Materials not reusable | BC265: N/A | BD265: N/A | BE265: N/A | BF265: N/A | BG265: N/A | BH265: N/A | BI265: N/A | BJ265: N/A | BK265: N/A | BL265: N/A | BM265: N/A | BN265: N/A | BO265: N/A | BP265: N/A | BQ265: N/A | BR265: N/A
BB266: No materials used | BC266: N/A | BD266: N/A | BE266: N/A | BF266: N/A | BG266: N/A | BH266: N/A | BI266: N/A | BJ266: N/A | BK266: N/A | BL266: N/A | BM266: N/A | BN266: N/A | BO266: N/A | BP266: N/A | BQ266: N/A | BR266: N/A
BB267: DK/not sure/missing | BC267: N/A | BD267: N/A | BE267: N/A | BF267: N/A | BG267: N/A | BH267: N/A | BI267: N/A | BJ267: N/A | BK267: N/A | BL267: N/A | BM267: N/A | BN267: N/A | BO267: N/A | BP267: N/A | BQ267: N/A | BR267: N/A
BA268: Use of menstrual materials with private place to wash and change | BB268: Materials reusable | BC268: N/A | BD268: N/A | BE268: N/A | BF268: N/A | BG268: N/A | BH268: N/A | BI268: N/A | BJ268: N/A | BK268: N/A | BL268: N/A | BM268: N/A | BN268: N/A | BO268: N/A | BP268: N/A | BQ268: N/A | BR268: N/A
BB269: Materials not reusable | BC269: N/A | BD269: N/A | BE269: N/A | BF269: N/A | BG269: N/A | BH269: N/A | BI269: N/A | BJ269: N/A | BK269: N/A | BL269: N/A | BM269: N/A | BN269: N/A | BO269: N/A | BP269: N/A | BQ269: N/A | BR269: N/A
BB270: No materials used | BC270: N/A | BD270: N/A | BE270: N/A | BF270: N/A | BG270: N/A | BH270: N/A | BI270: N/A | BJ270: N/A | BK270: N/A | BL270: N/A | BM270: N/A | BN270: N/A | BO270: N/A | BP270: N/A | BQ270: N/A | BR270: N/A
BA271: Awareness of menstruation before menarche | BB271: Yes | BC271: N/A | BD271: N/A | BE271: N/A | BF271: N/A | BG271: N/A | BH271: N/A | BI271: N/A | BJ271: N/A | BK271: N/A | BL271: N/A | BM271: N/A | BN271: N/A | BO271: N/A | BP271: N/A | BQ271: N/A | BR271: N/A
BB272: No | BC272: N/A | BD272: N/A | BE272: N/A | BF272: N/A | BG272: N/A | BH272: N/A | BI272: N/A | BJ272: N/A | BK272: N/A | BL272: N/A | BM272: N/A | BN272: N/A | BO272: N/A | BP272: N/A | BQ272: N/A | BR272: N/A
BB273: DK/not sure/missing | BC273: N/A | BD273: N/A | BE273: N/A | BF273: N/A | BG273: N/A | BH273: N/A | BI273: N/A | BJ273: N/A | BK273: N/A | BL273: N/A | BM273: N/A | BN273: N/A | BO273: N/A | BP273: N/A | BQ273: N/A | BR273: N/A
BA274: Participation in (all) activities during menstruation | BB274: Yes | BC274: N/A | BD274: N/A | BE274: N/A | BF274: N/A | BG274: N/A | BH274: N/A | BI274: N/A | BJ274: N/A | BK274: N/A | BL274: N/A | BM274: N/A | BN274: N/A | BO274: N/A | BP274: N/A | BQ274: N/A | BR274: N/A
BB275: No | BC275: N/A | BD275: N/A | BE275: N/A | BF275: N/A | BG275: N/A | BH275: N/A | BI275: N/A | BJ275: N/A | BK275: N/A | BL275: N/A | BM275: N/A | BN275: N/A | BO275: N/A | BP275: N/A | BQ275: N/A | BR275: N/A
BB276: DK/not sure/missing/no such activity | BC276: N/A | BD276: N/A | BE276: N/A | BF276: N/A | BG276: N/A | BH276: N/A | BI276: N/A | BJ276: N/A | BK276: N/A | BL276: N/A | BM276: N/A | BN276: N/A | BO276: N/A | BP276: N/A | BQ276: N/A | BR276: N/A
BA277: Participation in specific activities during menstruation | BB277: Did not go to school (amongst those usually attending school) | BC277: N/A | BD277: N/A | BE277: N/A | BF277: N/A | BG277: N/A | BH277: N/A | BI277: N/A | BJ277: N/A | BK277: N/A | BL277: N/A | BM277: N/A | BN277: N/A | BO277: N/A | BP277: N/A | BQ277: N/A | BR277: N/A
BB278: Did not go to work (amongst those who usually work) | BC278: N/A | BD278: N/A | BE278: N/A | BF278: N/A | BG278: N/A | BH278: N/A | BI278: N/A | BJ278: N/A | BK278: N/A | BL278: N/A | BM278: N/A | BN278: N/A | BO278: N/A | BP278: N/A | BQ278: N/A | BR278: N/A
BB279: Did not participate in social activities | BC279: N/A | BD279: N/A | BE279: N/A | BF279: N/A | BG279: N/A | BH279: N/A | BI279: N/A | BJ279: N/A | BK279: N/A | BL279: N/A | BM279: N/A | BN279: N/A | BO279: N/A | BP279: N/A | BQ279: N/A | BR279: N/A
BB280: Did not cook food | BC280: N/A | BD280: N/A | BE280: N/A | BF280: N/A | BG280: N/A | BH280: N/A | BI280: N/A | BJ280: N/A | BK280: N/A | BL280: N/A | BM280: N/A | BN280: N/A | BO280: N/A | BP280: N/A | BQ280: N/A | BR280: N/A
BB281: Did not eat with others | BC281: N/A | BD281: N/A | BE281: N/A | BF281: N/A | BG281: N/A | BH281: N/A | BI281: N/A | BJ281: N/A | BK281: N/A | BL281: N/A | BM281: N/A | BN281: N/A | BO281: N/A | BP281: N/A | BQ281: N/A | BR281: N/A
BB282: Did not bathe in regular place | BC282: N/A | BD282: N/A | BE282: N/A | BF282: N/A | BG282: N/A | BH282: N/A | BI282: N/A | BJ282: N/A | BK282: N/A | BL282: N/A | BM282: N/A | BN282: N/A | BO282: N/A | BP282: N/A | BQ282: N/A | BR282: N/A
BB283: Did not participate in other activities | BC283: N/A | BD283: N/A | BE283: N/A | BF283: N/A | BG283: N/A | BH283: N/A | BI283: N/A | BJ283: N/A | BK283: N/A | BL283: N/A | BM283: N/A | BN283: N/A | BO283: N/A | BP283: N/A | BQ283: N/A | BR283: N/A
BB284: DK/not sure/missing/no such activity | BC284: N/A | BD284: N/A | BE284: N/A | BF284: N/A | BG284: N/A | BH284: N/A | BI284: N/A | BJ284: N/A | BK284: N/A | BL284: N/A | BM284: N/A | BN284: N/A | BO284: N/A | BP284: N/A | BQ284: N/A | BR284: N/A
BA339: Raw numbers of respondents: | BB339: Basic water, sanitation and hygiene | BC339: NATIONAL wealth index quintile | BH339: URBAN wealth index quintile | BM339: RURAL wealth index quintile | BR339: SUB-REGIONS:
BA340: WatSan data, raw numbers (weighted) | BC340: Poorest | BD340: Poor | BE340: Middle | BF340: Rich | BG340: Richest | BH340: Poorest | BI340: Poor | BJ340: Middle | BK340: Rich | BL340: Richest | BM340: Poorest | BN340: Poor | BO340: Middle | BP340: Rich | BQ340: Richest | BR340: None valid
BA341: Use of Basic Water Sanitation and Hygiene | BB341: Yes | BC341: N/A | BD341: N/A | BE341: N/A | BF341: N/A | BG341: N/A | BH341: N/A | BI341: N/A | BJ341: N/A | BK341: N/A | BL341: N/A | BM341: N/A | BN341: N/A | BO341: N/A | BP341: N/A | BQ341: N/A | BR341: N/A
BB342: No | BC342: N/A | BD342: N/A | BE342: N/A | BF342: N/A | BG342: N/A | BH342: N/A | BI342: N/A | BJ342: N/A | BK342: N/A | BL342: N/A | BM342: N/A | BN342: N/A | BO342: N/A | BP342: N/A | BQ342: N/A | BR342: N/A
BA343: Use of Basic Water and Sanitation | BB343: Yes | BC343: N/A | BD343: N/A | BE343: N/A | BF343: N/A | BG343: N/A | BH343: N/A | BI343: N/A | BJ343: N/A | BK343: N/A | BL343: N/A | BM343: N/A | BN343: N/A | BO343: N/A | BP343: N/A | BQ343: N/A | BR343: N/A
BB344: No | BC344: N/A | BD344: N/A | BE344: N/A | BF344: N/A | BG344: N/A | BH344: N/A | BI344: N/A | BJ344: N/A | BK344: N/A | BL344: N/A | BM344: N/A | BN344: N/A | BO344: N/A | BP344: N/A | BQ344: N/A | BR344: N/A
BA345: Use of Basic Water and Hygiene | BB345: Yes | BC345: N/A | BD345: N/A | BE345: N/A | BF345: N/A | BG345: N/A | BH345: N/A | BI345: N/A | BJ345: N/A | BK345: N/A | BL345: N/A | BM345: N/A | BN345: N/A | BO345: N/A | BP345: N/A | BQ345: N/A | BR345: N/A
BB346: No | BC346: N/A | BD346: N/A | BE346: N/A | BF346: N/A | BG346: N/A | BH346: N/A | BI346: N/A | BJ346: N/A | BK346: N/A | BL346: N/A | BM346: N/A | BN346: N/A | BO346: N/A | BP346: N/A | BQ346: N/A | BR346: N/A
BA347: Use of Basic Sanitation and Hygiene | BB347: Yes | BC347: N/A | BD347: N/A | BE347: N/A | BF347: N/A | BG347: N/A | BH347: N/A | BI347: N/A | BJ347: N/A | BK347: N/A | BL347: N/A | BM347: N/A | BN347: N/A | BO347: N/A | BP347: N/A | BQ347: N/A | BR347: N/A
BB348: No | BC348: N/A | BD348: N/A | BE348: N/A | BF348: N/A | BG348: N/A | BH348: N/A | BI348: N/A | BJ348: N/A | BK348: N/A | BL348: N/A | BM348: N/A | BN348: N/A | BO348: N/A | BP348: N/A | BQ348: N/A | BR348: N/A
BA349: Use of Basic Water | BB349: Yes | BC349: N/A | BD349: N/A | BE349: N/A | BF349: N/A | BG349: N/A | BH349: N/A | BI349: N/A | BJ349: N/A | BK349: N/A | BL349: N/A | BM349: N/A | BN349: N/A | BO349: N/A | BP349: N/A | BQ349: N/A | BR349: N/A
BB350: No | BC350: N/A | BD350: N/A | BE350: N/A | BF350: N/A | BG350: N/A | BH350: N/A | BI350: N/A | BJ350: N/A | BK350: N/A | BL350: N/A | BM350: N/A | BN350: N/A | BO350: N/A | BP350: N/A | BQ350: N/A | BR350: N/A
BA351: Use of Basic Sanitation | BB351: Yes | BC351: N/A | BD351: N/A | BE351: N/A | BF351: N/A | BG351: N/A | BH351: N/A | BI351: N/A | BJ351: N/A | BK351: N/A | BL351: N/A | BM351: N/A | BN351: N/A | BO351: N/A | BP351: N/A | BQ351: N/A | BR351: N/A
BB352: No | BC352: N/A | BD352: N/A | BE352: N/A | BF352: N/A | BG352: N/A | BH352: N/A | BI352: N/A | BJ352: N/A | BK352: N/A | BL352: N/A | BM352: N/A | BN352: N/A | BO352: N/A | BP352: N/A | BQ352: N/A | BR352: N/A
BA353: Access to Basic Hygiene | BB353: Yes | BC353: N/A | BD353: N/A | BE353: N/A | BF353: N/A | BG353: N/A | BH353: N/A | BI353: N/A | BJ353: N/A | BK353: N/A | BL353: N/A | BM353: N/A | BN353: N/A | BO353: N/A | BP353: N/A | BQ353: N/A | BR353: N/A
BB354: No | BC354: N/A | BD354: N/A | BE354: N/A | BF354: N/A | BG354: N/A | BH354: N/A | BI354: N/A | BJ354: N/A | BK354: N/A | BL354: N/A | BM354: N/A | BN354: N/A | BO354: N/A | BP354: N/A | BQ354: N/A | BR354: N/A
C399: INITIAL (national) Wealth Index | H399: URBAN Wealth Index | M399: RURAL Wealth Index
C400: Component Matrix | H400: Component Matrix | M400: Component Matrix
E401: Component | J401: Component | O401: Component
B402: Note: The INITIAL (national) Wealth Index is based on the first component of the Principal Component Analysis (PCA) which has been obtained at national level. The final national-level (NATIONAL) Wealth Index is based on the URBAN and RURAL specific wealth indexes. Regression procedures are used to establish the relationships between the two sets of scores (urban and rural) and the initial (national) wealth factors. This allows best use of the available information for each area and a better precision of the FINAL (NATIONAL) Wealth Index. For dependency reasons, all WASH variables (contained in the generic MICS and DHS scripts) have been excluded from the sets of asset variables used in the PCAs. The PCA can extracts as many components as there are asset variables in the input. Only the first of the components is used to represent the Wealth Index. The scores represent the weights of the asset variables on the Wealth Index (correlations between the variables and the component). The communalities are the proportion of each variable's variance that can be explained by the component. Proportion of explained variance is the part of the model's total variance that is explained by the component. For more information on the procedure used: The DHS Wealth Index, DHS Comparative Reports No. 6, Shea Oscar Rutstein, Kiersten Johnson, ORC Macro International Inc., 2004. The DHS Wealth Index: Approaches for Rural and Urban Areas, Shea O. Rutstein, ORC Macro International Inc., 2008. MICS Methodological Paper No. 4, Review of options for reporting water, sanitation and hygiene coverage by wealth quintile, UNICEF, 2016. | E402: 1 | J402: 1 | O402: 1
C403: WASHING MACHINE | E403: 0.6592659197 | H403: WASHING MACHINE | J403: 0.6562261984 | M403: Gas | O403: 0.6235186764
C404: TELEPHONE | E404: 0.6251864686 | H404: TELEPHONE | J404: 0.6318805309 | M404: COOK STOVE, GAS | O404: 0.6213340759
C405: Gas | E405: 0.6027833933 | H405: AIR CONDITIONER | J405: 0.5944592006 | M405: WASHING MACHINE | O405: 0.6198065753
C406: AIR CONDITIONER | E406: 0.5729980716 | H406: Gas | J406: 0.5878479006 | M406: REFRIGERATOR | O406: 0.614732923
C407: COOK STOVE, GAS | E407: 0.5695532554 | H407: HOME COMPUTER | J407: 0.578564935 | M407: ELECTRIC IRON | O407: 0.6078905461
C408: REFRIGERATOR | E408: 0.5687107787 | H408: WATER BOILER | J408: 0.5683752169 | M408: MOBILE PHONE | O408: 0.5871822583
C409: HOME COMPUTER | E409: 0.5631663251 | H409: COOK STOVE, GAS | J409: 0.5567740135 | M409: VIDEO | O409: 0.5321397723
C410: ELECTRIC IRON | E410: 0.5577831611 | H410: REFRIGERATOR | J410: 0.5525746362 | M410: ELETRIC POT | O410: 0.5276939239
C411: MOBILE PHONE | E411: 0.5511209108 | H411: MICROWAVE OVENS | J411: 0.5444199646 | M411: BED (WOOD/METAL) | O411: 0.5183472178
C412: BED (WOOD/METAL) | E412: 0.5488184644 | H412: BED (WOOD/METAL) | J412: 0.5442779434 | M412: TELEPHONE | O412: 0.5109004369
C413: ELETRIC POT | E413: 0.5459987621 | H413: ELETRIC POT | J413: 0.5427782075 | M413: COOKING POT, ELEC. | O413: 0.5057741161
C414: WATER BOILER | E414: 0.5422412151 | H414: ELECTRIC IRON | J414: 0.5120004664 | M414: T.V. | O414: 0.4987335137
C415: MICROWAVE OVENS | E415: 0.5222645384 | H415: VIDEO | J415: 0.5042605113 | M415: ELETRIC FAN | O415: 0.4625491723
C416: VIDEO | E416: 0.5180941079 | H416: MOBILE PHONE | J416: 0.4918071147 | M416: HOME COMPUTER | O416: 0.4586822331
C417: AUTOMOBILE | E417: 0.4594036912 | H417: AUTOMOBILE | J417: 0.4697571461 | M417: Shingle (asphalt) | O417: -0.4405179109
C418: COOKING POT, ELEC. | E418: 0.4504872666 | H418: NUMBER OF COMPUTER WITH ACCESS TO THE INTERNET | J418: 0.4591179058 | M418: AIR CONDITIONER | O418: 0.4216626616
C419: NUMBER OF COMPUTER WITH ACCESS TO THE INTERNET | E419: 0.4404146682 | H419: COOKING POT, ELEC. | J419: 0.4123774658 | M419: PICK UP (MINI-TRUCK), VAN | O419: 0.4081977349
C420: T.V. | E420: 0.4283381316 | H420: T.V. | J420: 0.3892537458 | M420: MICROWAVE OVENS | O420: 0.4038030664
C421: Shingle (asphalt) | E421: -0.4162441814 | H421: PICK UP (MINI-TRUCK), VAN | J421: 0.3866226204 | M421: WATER BOILER | O421: 0.4006006598
C422: PICK UP (MINI-TRUCK), VAN | E422: 0.3933601155 | H422: RADIO | J422: 0.3724445474 | M422: MOTORCYCLE | O422: 0.3695614768
... 167 more rows

Sheet MICS06
A2: =A1026 -> Thailand
A3: =A1034 -> 2006
A4: Use of drinking water sources
A5: by wealth quintile and sub-national region
A6: Notes:
A7: WHO/UNICEF JMP customised wealth index excludes water,
A8: sanitation and hygiene assets.
A9: Survey used for analysis: | B9: =A1025 -> MICS06
A10: =B1028 -> 
A11: =B1027 -> 
A14: Use of drinking water sources | C14: NATIONAL wealth index quintile | H14: URBAN wealth index quintile | M14: RURAL wealth index quintile | R14: SUB-REGIONS: | BA14: Raw numbers of respondents: | BB14: Use of drinking water sources | BC14: NATIONAL wealth index quintile | BH14: URBAN wealth index quintile | BM14: RURAL wealth index quintile | BR14: SUB-REGIONS:
A15: Weighted percentage (used in graphs) | C15: Poorest | D15: Poor | E15: Middle | F15: Rich | G15: Richest | H15: Poorest | I15: Poor | J15: Middle | K15: Rich | L15: Richest | M15: Poorest | N15: Poor | O15: Middle | P15: Rich | Q15: Richest | R15: Central (include BKK.) | S15: North | T15: Northeast | U15: South | BA15: Water data, raw numbers (weighted) | BC15: Poorest | BD15: Poor | BE15: Middle | BF15: Rich | BG15: Richest | BH15: Poorest | BI15: Poor | BJ15: Middle | BK15: Rich | BL15: Richest | BM15: Poorest | BN15: Poor | BO15: Middle | BP15: Rich | BQ15: Richest | BR15: Central (include BKK.) | BS15: North | BT15: Northeast | BU15: South
A16: Water | B16: Improved | C16: 93.15430542 | D16: 96.17128402 | E16: 95.97947156 | F16: 96.16641248 | G16: 99.10059949 | H16: 97.59284173 | I16: 98.77713299 | J16: 99.3135298 | K16: 99.57018806 | L16: 99.64991771 | M16: 92.09307451 | N16: 95.75326723 | O16: 94.92145966 | P16: 95.10584172 | Q16: 96.60482825 | R16: 99.12450967 | S16: 95.93377518 | T16: 96.75111826 | U16: 87.3159483 | BA16: Water | BB16: Improved | BC16: N/A | BD16: N/A | BE16: N/A | BF16: N/A | BG16: N/A | BH16: N/A | BI16: N/A | BJ16: N/A | BK16: N/A | BL16: N/A | BM16: N/A | BN16: N/A | BO16: N/A | BP16: N/A | BQ16: N/A | BR16: N/A | BS16: N/A | BT16: N/A | BU16: N/A
B17: Not Improved | C17: 6.845694583 | D17: 3.828715983 | E17: 4.020528441 | F17: 3.833587525 | G17: 0.899400512 | H17: 2.407158269 | I17: 1.222867007 | J17: 0.6864702045 | K17: 0.4298119397 | L17: 0.3500822929 | M17: 7.90692549 | N17: 4.246732766 | O17: 5.078540337 | P17: 4.894158276 | Q17: 3.395171753 | R17: 0.8754903277 | S17: 4.066224821 | T17: 3.248881739 | U17: 12.6840517 | BB17: Not Improved | BC17: N/A | BD17: N/A | BE17: N/A | BF17: N/A | BG17: N/A | BH17: N/A | BI17: N/A | BJ17: N/A | BK17: N/A | BL17: N/A | BM17: N/A | BN17: N/A | BO17: N/A | BP17: N/A | BQ17: N/A | BR17: N/A | BS17: N/A | BT17: N/A | BU17: N/A
A18: Water ladder | B18: Basic | C18: 92.55355352 | D18: 95.67339186 | E18: 95.89469557 | F18: 96.16641248 | G18: 99.01459155 | H18: 97.55010008 | I18: 98.75550864 | J18: 99.3135298 | K18: 99.49772427 | L18: 99.64372142 | M18: 91.24339078 | N18: 95.10761891 | O18: 94.86429082 | P18: 94.99865317 | Q18: 96.51567883 | R18: 99.0951309 | S18: 95.90251652 | T18: 96.05813933 | U18: 87.28115496 | BA18: Water ladder | BB18: Basic | BC18: N/A | BD18: N/A | BE18: N/A | BF18: N/A | BG18: N/A | BH18: N/A | BI18: N/A | BJ18: N/A | BK18: N/A | BL18: N/A | BM18: N/A | BN18: N/A | BO18: N/A | BP18: N/A | BQ18: N/A | BR18: N/A | BS18: N/A | BT18: N/A | BU18: N/A
B19: Limited | C19: 0.6007518994 | D19: 0.4978921608 | E19: 0.08477599207 | F19: 0 | G19: 0.08600793461 | H19: 0.04274165019 | I19: 0.02162435564 | J19: 0 | K19: 0.07246378583 | L19: 0.006196292048 | M19: 0.8496837269 | N19: 0.6456483235 | O19: 0.05716884401 | P19: 0.1071885577 | Q19: 0.08914941537 | R19: 0.02937877316 | S19: 0.0312586619 | T19: 0.6929789298 | U19: 0.03479334399 | BB19: Limited | BC19: N/A | BD19: N/A | BE19: N/A | BF19: N/A | BG19: N/A | BH19: N/A | BI19: N/A | BJ19: N/A | BK19: N/A | BL19: N/A | BM19: N/A | BN19: N/A | BO19: N/A | BP19: N/A | BQ19: N/A | BR19: N/A | BS19: N/A | BT19: N/A | BU19: N/A
B20: Unimproved | C20: 4.317268968 | D20: 3.201731648 | E20: 3.541492662 | F20: 3.554334262 | G20: 0.8620390225 | H20: 2.200640537 | I20: 1.193715209 | J20: 0.563403256 | K20: 0.406900733 | L20: 0.3500822929 | M20: 5.146192437 | N20: 2.911172459 | O20: 4.365221062 | P20: 4.488846327 | Q20: 3.140882533 | R20: 0.7384919189 | S20: 1.583952134 | T20: 2.817379407 | U20: 11.61517812 | BB20: Unimproved | BC20: N/A | BD20: N/A | BE20: N/A | BF20: N/A | BG20: N/A | BH20: N/A | BI20: N/A | BJ20: N/A | BK20: N/A | BL20: N/A | BM20: N/A | BN20: N/A | BO20: N/A | BP20: N/A | BQ20: N/A | BR20: N/A | BS20: N/A | BT20: N/A | BU20: N/A
B21: Surface water | C21: 2.528425615 | D21: 0.6269843355 | E21: 0.4790357786 | F21: 0.2792532634 | G21: 0.03736148951 | H21: 0.2065177325 | I21: 0.02915179834 | J21: 0.1230669485 | K21: 0.02291120677 | L21: 0 | M21: 2.760733053 | N21: 1.335560307 | O21: 0.7133192757 | P21: 0.4053119492 | Q21: 0.2542892195 | R21: 0.1369984088 | S21: 2.482272687 | T21: 0.4315023315 | U21: 1.068873576 | BB21: Surface water | BC21: N/A | BD21: N/A | BE21: N/A | BF21: N/A | BG21: N/A | BH21: N/A | BI21: N/A | BJ21: N/A | BK21: N/A | BL21: N/A | BM21: N/A | BN21: N/A | BO21: N/A | BP21: N/A | BQ21: N/A | BR21: N/A | BS21: N/A | BT21: N/A | BU21: N/A
A22: Improved water point at more than 30 minutes | B22: Yes | C22: 0.6448997678 | D22: 0.5177139579 | E22: 0.08832721278 | F22: 0 | G22: 0.08678851092 | H22: 0.04379588649 | I22: 0.0218920665 | J22: 0 | K22: 0.07277658829 | L22: 0.006218060376 | M22: 0.9226358566 | N22: 0.6742833348 | O22: 0.06022752306 | P22: 0.112704494 | Q22: 0.09228256701 | R22: 0.0296382532 | S22: 0.03258358366 | T22: 0.7162490132 | U22: 0.03984763914 | BA22: Improved water point at more than 30 minutes | BB22: Yes | BC22: N/A | BD22: N/A | BE22: N/A | BF22: N/A | BG22: N/A | BH22: N/A | BI22: N/A | BJ22: N/A | BK22: N/A | BL22: N/A | BM22: N/A | BN22: N/A | BO22: N/A | BP22: N/A | BQ22: N/A | BR22: N/A | BS22: N/A | BT22: N/A | BU22: N/A
B23: No | C23: 99.35510023 | D23: 99.48228604 | E23: 99.91167279 | F23: 100 | G23: 99.91321149 | H23: 99.95620411 | I23: 99.97810793 | J23: 100 | K23: 99.92722341 | L23: 99.99378194 | M23: 99.07736414 | N23: 99.32571667 | O23: 99.93977248 | P23: 99.88729551 | Q23: 99.90771743 | R23: 99.97036175 | S23: 99.96741642 | T23: 99.28375099 | U23: 99.96015236 | BB23: No | BC23: N/A | BD23: N/A | BE23: N/A | BF23: N/A | BG23: N/A | BH23: N/A | BI23: N/A | BJ23: N/A | BK23: N/A | BL23: N/A | BM23: N/A | BN23: N/A | BO23: N/A | BP23: N/A | BQ23: N/A | BR23: N/A | BS23: N/A | BT23: N/A | BU23: N/A
A24: Manually calculated ratios | B24: Improved wells | C24: =C62/(C62+C63)*100 -> 59.12914098 | D24: 66.87436629 | E24: 62.85371989 | F24: 62.90574991 | G24: 83.07770078 | H24: 74.62326475 | I24: 74.00919197 | J24: 71.41686229 | K24: 79.98889614 | L24: 88.90149621 | M24: 55.19441247 | N24: 68.43852079 | O24: 57.25737063 | P24: 65.77567332 | Q24: 72.58962687 | R24: 82.76164424 | S24: 87.30520438 | T24: 52.87726196 | U24: 55.28305399
B25: Improved springs
B26: Other
C27: NATIONAL wealth index quintile | H27: URBAN wealth index quintile | M27: RURAL wealth index quintile | R27: SUB-REGIONS: | BA27: Raw numbers of respondents: | BB27: Use of drinking water sources | BC27: NATIONAL wealth index quintile | BH27: URBAN wealth index quintile | BM27: RURAL wealth index quintile | BR27: SUB-REGIONS:
A28: Percentage based on weighted population | C28: Poorest | D28: Poor | E28: Middle | F28: Rich | G28: Richest | H28: Poorest | I28: Poor | J28: Middle | K28: Rich | L28: Richest | M28: Poorest | N28: Poor | O28: Middle | P28: Rich | Q28: Richest | R28: Central (include BKK.) | S28: North | T28: Northeast | U28: South | BA28: Water data, raw numbers (weighted) | BC28: Poorest | BD28: Poor | BE28: Middle | BF28: Rich | BG28: Richest | BH28: Poorest | BI28: Poor | BJ28: Middle | BK28: Rich | BL28: Richest | BM28: Poorest | BN28: Poor | BO28: Middle | BP28: Rich | BQ28: Richest | BR28: Central (include BKK.) | BS28: North | BT28: Northeast | BU28: South
A29: Piped water | B29: Yes | C29: 17.61850789 | D29: 25.11521584 | E29: 42.53973706 | F29: 52.50177894 | G29: 71.06974973 | H29: 53.23862128 | I29: 78.42510848 | J29: 79.39650579 | K29: 83.66202137 | L29: 89.46441473 | M29: 14.94451069 | N29: 19.58574527 | O29: 25.27785722 | P29: 31.56778176 | Q29: 42.893275 | R29: 65.9989622 | S29: 47.58384381 | T29: 18.84760148 | U29: 29.71682633 | BA29: Piped water | BB29: Yes | BC29: N/A | BD29: N/A | BE29: N/A | BF29: N/A | BG29: N/A | BH29: N/A | BI29: N/A | BJ29: N/A | BK29: N/A | BL29: N/A | BM29: N/A | BN29: N/A | BO29: N/A | BP29: N/A | BQ29: N/A | BR29: N/A | BS29: N/A | BT29: N/A | BU29: N/A
B30: No | C30: 82.38149211 | D30: 74.88478416 | E30: 57.46026294 | F30: 47.49822106 | G30: 28.93025027 | H30: 46.76137872 | I30: 21.57489152 | J30: 20.60349421 | K30: 16.33797863 | L30: 10.53558527 | M30: 85.05548931 | N30: 80.41425473 | O30: 74.72214278 | P30: 68.43221824 | Q30: 57.106725 | R30: 34.0010378 | S30: 52.41615619 | T30: 81.15239852 | U30: 70.28317367 | BB30: No | BC30: N/A | BD30: N/A | BE30: N/A | BF30: N/A | BG30: N/A | BH30: N/A | BI30: N/A | BJ30: N/A | BK30: N/A | BL30: N/A | BM30: N/A | BN30: N/A | BO30: N/A | BP30: N/A | BQ30: N/A | BR30: N/A | BS30: N/A | BT30: N/A | BU30: N/A
A31: Piped water on premises | B31: Yes | C31: 17.45611286 | D31: 24.96088126 | E31: 42.46109773 | F31: 52.49819102 | G31: 71.06124784 | H31: 53.14368332 | I31: 78.41256075 | J31: 79.38709259 | K31: 83.65855116 | L31: 89.46441473 | M31: 14.87115198 | N31: 19.30545822 | O31: 25.18838215 | P31: 31.49182496 | Q31: 42.8826315 | R31: 65.96793881 | S31: 47.35174269 | T31: 18.78026636 | U31: 29.67286107 | BA31: Piped water on premises | BB31: Yes | BC31: N/A | BD31: N/A | BE31: N/A | BF31: N/A | BG31: N/A | BH31: N/A | BI31: N/A | BJ31: N/A | BK31: N/A | BL31: N/A | BM31: N/A | BN31: N/A | BO31: N/A | BP31: N/A | BQ31: N/A | BR31: N/A | BS31: N/A | BT31: N/A | BU31: N/A
B32: No | C32: 82.54388714 | D32: 75.03911874 | E32: 57.53890227 | F32: 47.50180898 | G32: 28.93875216 | H32: 46.85631668 | I32: 21.58743925 | J32: 20.61290741 | K32: 16.34144884 | L32: 10.53558527 | M32: 85.12884802 | N32: 80.69454178 | O32: 74.81161785 | P32: 68.50817504 | Q32: 57.1173685 | R32: 34.03206119 | S32: 52.64825731 | T32: 81.21973364 | U32: 70.32713893 | BB32: No | BC32: N/A | BD32: N/A | BE32: N/A | BF32: N/A | BG32: N/A | BH32: N/A | BI32: N/A | BJ32: N/A | BK32: N/A | BL32: N/A | BM32: N/A | BN32: N/A | BO32: N/A | BP32: N/A | BQ32: N/A | BR32: N/A | BS32: N/A | BT32: N/A | BU32: N/A
A33: Piped water into dwelling | B33: Yes | C33: N/A | D33: N/A | E33: N/A | F33: N/A | G33: N/A | H33: N/A | I33: N/A | J33: N/A | K33: N/A | L33: N/A | M33: N/A | N33: N/A | O33: N/A | P33: N/A | Q33: N/A | R33: N/A | S33: N/A | T33: N/A | U33: N/A | BA33: Piped water into dwelling | BB33: Yes | BC33: N/A | BD33: N/A | BE33: N/A | BF33: N/A | BG33: N/A | BH33: N/A | BI33: N/A | BJ33: N/A | BK33: N/A | BL33: N/A | BM33: N/A | BN33: N/A | BO33: N/A | BP33: N/A | BQ33: N/A | BR33: N/A | BS33: N/A | BT33: N/A | BU33: N/A
B34: No | C34: N/A | D34: N/A | E34: N/A | F34: N/A | G34: N/A | H34: N/A | I34: N/A | J34: N/A | K34: N/A | L34: N/A | M34: N/A | N34: N/A | O34: N/A | P34: N/A | Q34: N/A | R34: N/A | S34: N/A | T34: N/A | U34: N/A | BB34: No | BC34: N/A | BD34: N/A | BE34: N/A | BF34: N/A | BG34: N/A | BH34: N/A | BI34: N/A | BJ34: N/A | BK34: N/A | BL34: N/A | BM34: N/A | BN34: N/A | BO34: N/A | BP34: N/A | BQ34: N/A | BR34: N/A | BS34: N/A | BT34: N/A | BU34: N/A
A35: Water source on premises | B35: Yes | C35: 87.94930755 | D35: 90.38971317 | E35: 93.22880336 | F35: 95.32200292 | G35: 97.90592756 | H35: 92.90539369 | I35: 97.50654182 | J35: 98.28520422 | K35: 98.57250402 | L35: 98.91380688 | M35: 86.91860121 | N35: 89.84745837 | O35: 91.49895512 | P35: 92.13386884 | Q35: 95.29972091 | R35: 97.53454784 | S35: 92.88148554 | T35: 89.09237321 | U35: 91.10105771 | BA35: Water source on premises | BB35: Yes | BC35: N/A | BD35: N/A | BE35: N/A | BF35: N/A | BG35: N/A | BH35: N/A | BI35: N/A | BJ35: N/A | BK35: N/A | BL35: N/A | BM35: N/A | BN35: N/A | BO35: N/A | BP35: N/A | BQ35: N/A | BR35: N/A | BS35: N/A | BT35: N/A | BU35: N/A
B36: No | C36: 12.05069245 | D36: 9.610286834 | E36: 6.771196641 | F36: 4.677997076 | G36: 2.094072439 | H36: 7.094606311 | I36: 2.493458184 | J36: 1.714795777 | K36: 1.427495981 | L36: 1.086193122 | M36: 13.08139879 | N36: 10.15254163 | O36: 8.501044882 | P36: 7.866131157 | Q36: 4.700279085 | R36: 2.465452164 | S36: 7.118514463 | T36: 10.90762679 | U36: 8.89894229 | BB36: No | BC36: N/A | BD36: N/A | BE36: N/A | BF36: N/A | BG36: N/A | BH36: N/A | BI36: N/A | BJ36: N/A | BK36: N/A | BL36: N/A | BM36: N/A | BN36: N/A | BO36: N/A | BP36: N/A | BQ36: N/A | BR36: N/A | BS36: N/A | BT36: N/A | BU36: N/A
A37: Improved Water source on premises | B37: Yes | C37: 90.46608637 | D37: 91.87945241 | E37: 94.21654557 | F37: 96.03738978 | G37: 98.03934181 | H37: 94.37577919 | I37: 97.99061681 | J37: 98.42017157 | K37: 98.61176915 | L37: 99.06631041 | M37: 89.92381926 | N37: 91.16629363 | O37: 92.84673448 | P37: 93.12569118 | Q37: 95.8511761 | R37: 97.82075972 | S37: 93.71454767 | T37: 90.96749362 | U37: 93.19902636 | BA37: Improved water source on premises | BB37: Yes | BC37: N/A | BD37: N/A | BE37: N/A | BF37: N/A | BG37: N/A | BH37: N/A | BI37: N/A | BJ37: N/A | BK37: N/A | BL37: N/A | BM37: N/A | BN37: N/A | BO37: N/A | BP37: N/A | BQ37: N/A | BR37: N/A | BS37: N/A | BT37: N/A | BU37: N/A
B38: No | C38: 9.533913633 | D38: 8.120547588 | E38: 5.783454427 | F38: 3.962610221 | G38: 1.960658194 | H38: 5.624220813 | I38: 2.009383189 | J38: 1.579828432 | K38: 1.388230848 | L38: 0.9336895858 | M38: 10.07618074 | N38: 8.833706369 | O38: 7.153265515 | P38: 6.874308823 | Q38: 4.148823897 | R38: 2.179240279 | S38: 6.285452334 | T38: 9.03250638 | U38: 6.800973636 | BB38: No | BC38: N/A | BD38: N/A | BE38: N/A | BF38: N/A | BG38: N/A | BH38: N/A | BI38: N/A | BJ38: N/A | BK38: N/A | BL38: N/A | BM38: N/A | BN38: N/A | BO38: N/A | BP38: N/A | BQ38: N/A | BR38: N/A | BS38: N/A | BT38: N/A | BU38: N/A
A39: Piped water on premises available when needed | B39: Yes | C39: N/A | D39: N/A | E39: N/A | F39: N/A | G39: N/A | H39: N/A | I39: N/A | J39: N/A | K39: N/A | L39: N/A | M39: N/A | N39: N/A | O39: N/A | P39: N/A | Q39: N/A | R39: N/A | S39: N/A | T39: N/A | U39: N/A | BA39: Piped water on premises available when needed | BB39: Yes | BC39: N/A | BD39: N/A | BE39: N/A | BF39: N/A | BG39: N/A | BH39: N/A | BI39: N/A | BJ39: N/A | BK39: N/A | BL39: N/A | BM39: N/A | BN39: N/A | BO39: N/A | BP39: N/A | BQ39: N/A | BR39: N/A | BS39: N/A | BT39: N/A | BU39: N/A
B40: No | C40: N/A | D40: N/A | E40: N/A | F40: N/A | G40: N/A | H40: N/A | I40: N/A | J40: N/A | K40: N/A | L40: N/A | M40: N/A | N40: N/A | O40: N/A | P40: N/A | Q40: N/A | R40: N/A | S40: N/A | T40: N/A | U40: N/A | BB40: No | BC40: N/A | BD40: N/A | BE40: N/A | BF40: N/A | BG40: N/A | BH40: N/A | BI40: N/A | BJ40: N/A | BK40: N/A | BL40: N/A | BM40: N/A | BN40: N/A | BO40: N/A | BP40: N/A | BQ40: N/A | BR40: N/A | BS40: N/A | BT40: N/A | BU40: N/A
A41: Water point at more than 30 minutes | B41: Yes | C41: 1.228372509 | D41: 0.7439834003 | E41: 0.1186955294 | F41: 0.1563800314 | G41: 0.1155046248 | H41: 0.09723629641 | I41: 0.04111764127 | J41: 0 | K41: 0.09231270646 | L41: 0.006196292048 | M41: 1.720917391 | N41: 0.9365124603 | O41: 0.1172419699 | P41: 0.1472581665 | Q41: 0.3455284534 | R41: 0.02937877316 | S41: 0.07590303425 | T41: 1.31846075 | U41: 0.03479334399 | BA41: Water point at more than 30 minutes | BB41: Yes | BC41: N/A | BD41: N/A | BE41: N/A | BF41: N/A | BG41: N/A | BH41: N/A | BI41: N/A | BJ41: N/A | BK41: N/A | BL41: N/A | BM41: N/A | BN41: N/A | BO41: N/A | BP41: N/A | BQ41: N/A | BR41: N/A | BS41: N/A | BT41: N/A | BU41: N/A
B42: No | C42: 98.77162749 | D42: 99.2560166 | E42: 99.88130447 | F42: 99.84361997 | G42: 99.88449538 | H42: 99.9027637 | I42: 99.95888236 | J42: 100 | K42: 99.90768729 | L42: 99.99380371 | M42: 98.27908261 | N42: 99.06348754 | O42: 99.88275803 | P42: 99.85274183 | Q42: 99.65447155 | R42: 99.97062123 | S42: 99.92409697 | T42: 98.68153925 | U42: 99.96520666 | BB42: No | BC42: N/A | BD42: N/A | BE42: N/A | BF42: N/A | BG42: N/A | BH42: N/A | BI42: N/A | BJ42: N/A | BK42: N/A | BL42: N/A | BM42: N/A | BN42: N/A | BO42: N/A | BP42: N/A | BQ42: N/A | BR42: N/A | BS42: N/A | BT42: N/A | BU42: N/A
A43: Water source available when needed | B43: Yes | C43: N/A | D43: N/A | E43: N/A | F43: N/A | G43: N/A | H43: N/A | I43: N/A | J43: N/A | K43: N/A | L43: N/A | M43: N/A | N43: N/A | O43: N/A | P43: N/A | Q43: N/A | R43: N/A | S43: N/A | T43: N/A | U43: N/A | BA43: Water source available when needed | BB43: Yes | BC43: N/A | BD43: N/A | BE43: N/A | BF43: N/A | BG43: N/A | BH43: N/A | BI43: N/A | BJ43: N/A | BK43: N/A | BL43: N/A | BM43: N/A | BN43: N/A | BO43: N/A | BP43: N/A | BQ43: N/A | BR43: N/A | BS43: N/A | BT43: N/A | BU43: N/A
B44: No | C44: N/A | D44: N/A | E44: N/A | F44: N/A | G44: N/A | H44: N/A | I44: N/A | J44: N/A | K44: N/A | L44: N/A | M44: N/A | N44: N/A | O44: N/A | P44: N/A | Q44: N/A | R44: N/A | S44: N/A | T44: N/A | U44: N/A | BB44: No | BC44: N/A | BD44: N/A | BE44: N/A | BF44: N/A | BG44: N/A | BH44: N/A | BI44: N/A | BJ44: N/A | BK44: N/A | BL44: N/A | BM44: N/A | BN44: N/A | BO44: N/A | BP44: N/A | BQ44: N/A | BR44: N/A | BS44: N/A | BT44: N/A | BU44: N/A
A45: Improved water source available when needed | B45: Yes | C45: N/A | D45: N/A | E45: N/A | F45: N/A | G45: N/A | H45: N/A | I45: N/A | J45: N/A | K45: N/A | L45: N/A | M45: N/A | N45: N/A | O45: N/A | P45: N/A | Q45: N/A | R45: N/A | S45: N/A | T45: N/A | U45: N/A | BA45: Improved water source available when needed | BB45: Yes | BC45: N/A | BD45: N/A | BE45: N/A | BF45: N/A | BG45: N/A | BH45: N/A | BI45: N/A | BJ45: N/A | BK45: N/A | BL45: N/A | BM45: N/A | BN45: N/A | BO45: N/A | BP45: N/A | BQ45: N/A | BR45: N/A | BS45: N/A | BT45: N/A | BU45: N/A
B46: No | C46: N/A | D46: N/A | E46: N/A | F46: N/A | G46: N/A | H46: N/A | I46: N/A | J46: N/A | K46: N/A | L46: N/A | M46: N/A | N46: N/A | O46: N/A | P46: N/A | Q46: N/A | R46: N/A | S46: N/A | T46: N/A | U46: N/A | BB46: No | BC46: N/A | BD46: N/A | BE46: N/A | BF46: N/A | BG46: N/A | BH46: N/A | BI46: N/A | BJ46: N/A | BK46: N/A | BL46: N/A | BM46: N/A | BN46: N/A | BO46: N/A | BP46: N/A | BQ46: N/A | BR46: N/A | BS46: N/A | BT46: N/A | BU46: N/A
A47: Microbiological quality at point of collection | B47: Not contaminated (No E. coli in 100 mL) | C47: N/A | D47: N/A | E47: N/A | F47: N/A | G47: N/A | H47: N/A | I47: N/A | J47: N/A | K47: N/A | L47: N/A | M47: N/A | N47: N/A | O47: N/A | P47: N/A | Q47: N/A | R47: N/A | S47: N/A | T47: N/A | U47: N/A | BA47: Microbiological quality at point of collection | BB47: Not contaminated (No E. coli in 100 mL) | BC47: N/A | BD47: N/A | BE47: N/A | BF47: N/A | BG47: N/A | BH47: N/A | BI47: N/A | BJ47: N/A | BK47: N/A | BL47: N/A | BM47: N/A | BN47: N/A | BO47: N/A | BP47: N/A | BQ47: N/A | BR47: N/A | BS47: N/A | BT47: N/A | BU47: N/A
B48: Contaminated (E. coli detected in 100 mL) | C48: N/A | D48: N/A | E48: N/A | F48: N/A | G48: N/A | H48: N/A | I48: N/A | J48: N/A | K48: N/A | L48: N/A | M48: N/A | N48: N/A | O48: N/A | P48: N/A | Q48: N/A | R48: N/A | S48: N/A | T48: N/A | U48: N/A | BB48: Contaminated (E. coli detected in 100 mL) | BC48: N/A | BD48: N/A | BE48: N/A | BF48: N/A | BG48: N/A | BH48: N/A | BI48: N/A | BJ48: N/A | BK48: N/A | BL48: N/A | BM48: N/A | BN48: N/A | BO48: N/A | BP48: N/A | BQ48: N/A | BR48: N/A | BS48: N/A | BT48: N/A | BU48: N/A
B49: Highly contaminated (>100 CFU/100 mL) | C49: N/A | D49: N/A | E49: N/A | F49: N/A | G49: N/A | H49: N/A | I49: N/A | J49: N/A | K49: N/A | L49: N/A | M49: N/A | N49: N/A | O49: N/A | P49: N/A | Q49: N/A | R49: N/A | S49: N/A | T49: N/A | U49: N/A | BB49: Highly contaminated (>100 CFU/100 mL) | BC49: N/A | BD49: N/A | BE49: N/A | BF49: N/A | BG49: N/A | BH49: N/A | BI49: N/A | BJ49: N/A | BK49: N/A | BL49: N/A | BM49: N/A | BN49: N/A | BO49: N/A | BP49: N/A | BQ49: N/A | BR49: N/A | BS49: N/A | BT49: N/A | BU49: N/A
A50: Microbiological quality of improved water sources at point of collection | B50: Not contaminated (No E. coli in 100 mL) | C50: N/A | D50: N/A | E50: N/A | F50: N/A | G50: N/A | H50: N/A | I50: N/A | J50: N/A | K50: N/A | L50: N/A | M50: N/A | N50: N/A | O50: N/A | P50: N/A | Q50: N/A | R50: N/A | S50: N/A | T50: N/A | U50: N/A | BA50: Microbiological quality of improved water sources at point of collection | BB50: Not contaminated (No E. coli in 100 mL) | BC50: N/A | BD50: N/A | BE50: N/A | BF50: N/A | BG50: N/A | BH50: N/A | BI50: N/A | BJ50: N/A | BK50: N/A | BL50: N/A | BM50: N/A | BN50: N/A | BO50: N/A | BP50: N/A | BQ50: N/A | BR50: N/A | BS50: N/A | BT50: N/A | BU50: N/A
B51: Contaminated (E. coli detected in 100 mL) | C51: N/A | D51: N/A | E51: N/A | F51: N/A | G51: N/A | H51: N/A | I51: N/A | J51: N/A | K51: N/A | L51: N/A | M51: N/A | N51: N/A | O51: N/A | P51: N/A | Q51: N/A | R51: N/A | S51: N/A | T51: N/A | U51: N/A | BB51: Contaminated (E. coli detected in 100 mL) | BC51: N/A | BD51: N/A | BE51: N/A | BF51: N/A | BG51: N/A | BH51: N/A | BI51: N/A | BJ51: N/A | BK51: N/A | BL51: N/A | BM51: N/A | BN51: N/A | BO51: N/A | BP51: N/A | BQ51: N/A | BR51: N/A | BS51: N/A | BT51: N/A | BU51: N/A
B52: Highly contaminated (>100 CFU/100 mL) | C52: N/A | D52: N/A | E52: N/A | F52: N/A | G52: N/A | H52: N/A | I52: N/A | J52: N/A | K52: N/A | L52: N/A | M52: N/A | N52: N/A | O52: N/A | P52: N/A | Q52: N/A | R52: N/A | S52: N/A | T52: N/A | U52: N/A | BB52: Highly contaminated (>100 CFU/100 mL) | BC52: N/A | BD52: N/A | BE52: N/A | BF52: N/A | BG52: N/A | BH52: N/A | BI52: N/A | BJ52: N/A | BK52: N/A | BL52: N/A | BM52: N/A | BN52: N/A | BO52: N/A | BP52: N/A | BQ52: N/A | BR52: N/A | BS52: N/A | BT52: N/A | BU52: N/A
A53: Microbiological quality of piped on premises at point of collection | B53: Not contaminated (No E. coli in 100 mL) | C53: N/A | D53: N/A | E53: N/A | F53: N/A | G53: N/A | H53: N/A | I53: N/A | J53: N/A | K53: N/A | L53: N/A | M53: N/A | N53: N/A | O53: N/A | P53: N/A | Q53: N/A | R53: N/A | S53: N/A | T53: N/A | U53: N/A | BA53: Microbiological quality of piped on premises at point of collection | BB53: Not contaminated (No E. coli in 100 mL) | BC53: N/A | BD53: N/A | BE53: N/A | BF53: N/A | BG53: N/A | BH53: N/A | BI53: N/A | BJ53: N/A | BK53: N/A | BL53: N/A | BM53: N/A | BN53: N/A | BO53: N/A | BP53: N/A | BQ53: N/A | BR53: N/A | BS53: N/A | BT53: N/A | BU53: N/A
B54: Contaminated (E. coli detected in 100 mL) | C54: N/A | D54: N/A | E54: N/A | F54: N/A | G54: N/A | H54: N/A | I54: N/A | J54: N/A | K54: N/A | L54: N/A | M54: N/A | N54: N/A | O54: N/A | P54: N/A | Q54: N/A | R54: N/A | S54: N/A | T54: N/A | U54: N/A | BB54: Contaminated (E. coli detected in 100 mL) | BC54: N/A | BD54: N/A | BE54: N/A | BF54: N/A | BG54: N/A | BH54: N/A | BI54: N/A | BJ54: N/A | BK54: N/A | BL54: N/A | BM54: N/A | BN54: N/A | BO54: N/A | BP54: N/A | BQ54: N/A | BR54: N/A | BS54: N/A | BT54: N/A | BU54: N/A
B55: Highly contaminated (>100 CFU/100 mL) | C55: N/A | D55: N/A | E55: N/A | F55: N/A | G55: N/A | H55: N/A | I55: N/A | J55: N/A | K55: N/A | L55: N/A | M55: N/A | N55: N/A | O55: N/A | P55: N/A | Q55: N/A | R55: N/A | S55: N/A | T55: N/A | U55: N/A | BB55: Highly contaminated (>100 CFU/100 mL) | BC55: N/A | BD55: N/A | BE55: N/A | BF55: N/A | BG55: N/A | BH55: N/A | BI55: N/A | BJ55: N/A | BK55: N/A | BL55: N/A | BM55: N/A | BN55: N/A | BO55: N/A | BP55: N/A | BQ55: N/A | BR55: N/A | BS55: N/A | BT55: N/A | BU55: N/A
C56: NATIONAL wealth index quintile | H56: URBAN wealth index quintile | M56: RURAL wealth index quintile | R56: SUB-REGIONS: | BA56: Raw numbers of respondents: | BB56: Use of drinking water sources | BC56: NATIONAL wealth index quintile | BH56: URBAN wealth index quintile | BM56: RURAL wealth index quintile | BR56: SUB-REGIONS:
A57: Percentage based on weighted population | C57: Poorest | D57: Poor | E57: Middle | F57: Rich | G57: Richest | H57: Poorest | I57: Poor | J57: Middle | K57: Rich | L57: Richest | M57: Poorest | N57: Poor | O57: Middle | P57: Rich | Q57: Richest | R57: Central (include BKK.) | S57: North | T57: Northeast | U57: South | BA57: Water data, raw numbers (weighted) | BC57: Poorest | BD57: Poor | BE57: Middle | BF57: Rich | BG57: Richest | BH57: Poorest | BI57: Poor | BJ57: Middle | BK57: Rich | BL57: Richest | BM57: Poorest | BN57: Poor | BO57: Middle | BP57: Rich | BQ57: Richest | BR57: Central (include BKK.) | BS57: North | BT57: Northeast | BU57: South
A58: Main source of drinking water | B58: Piped into dwelling | C58: 12.87289243 | D58: 16.43763592 | E58: 20.170826 | F58: 19.04500774 | G58: 36.99122603 | H58: 25.16257018 | I58: 31.60700501 | J58: 29.66552806 | K58: 42.67956472 | L58: 58.47596691 | M58: 11.45087562 | N58: 14.44015603 | O58: 16.40419772 | P58: 13.68479027 | Q58: 14.63635974 | R58: 34.21966697 | S58: 25.9869582 | T58: 9.475240826 | U58: 10.40953783
B59: Piped into yard or plot | C59: 2.659286119 | D59: 1.297898075 | E59: 1.396933854 | F59: 1.316803706 | G59: 1.706600017 | H59: 2.881135153 | I59: 1.965210345 | J59: 1.755963497 | K59: 2.583148682 | L59: 2.278547787 | M59: 2.620863044 | N59: 1.674765347 | O59: 1.065291973 | P59: 1.014564418 | Q59: 0.6896312434 | R59: 1.961833967 | S59: 3.154239019 | T59: 0.8212410703 | U59: 1.104703551
B60: Public tap/standpipe | C60: 0.1300068823 | D60: 0.08917495989 | E60: 0.07133962618 | F60: 0.002590105085 | G60: 0.001035365082 | H60: 0.09493796692 | I60: 0.01254772883 | J60: 0.006071696731 | K60: 0.003470212131 | L60: 0 | M60: 0.07335871061 | N60: 0.1648093826 | O60: 0.06584956918 | P60: 0.06554999425 | Q60: 0 | R60: 0.0218502106 | S60: 0.2321011188 | T60: 0.01923860446 | U60: 0.01997142155
B61: Tubewell/borehole | C61: 4.917968386 | D61: 5.460222504 | E61: 3.901943628 | F61: 4.05777262 | G61: 2.677349049 | H61: 4.411091767 | I61: 1.965118666 | J61: 1.655617423 | K61: 2.496488606 | L61: 1.079954548 | M61: 4.928665842 | N61: 5.25056848 | O61: 4.870219081 | P61: 4.814002192 | Q61: 5.152524461 | R61: 2.172420612 | S61: 6.778878206 | T61: 3.959599286 | U61: 6.466775905
B62: Protected well | C62: 5.852806081 | D62: 6.142751168 | E62: 5.483626487 | F62: 5.782318715 | G62: 3.687232598 | H62: 4.182176578 | I62: 1.74127898 | J62: 1.263381528 | K62: 1.530677691 | L62: 0.8953643894 | M62: 5.969197361 | N62: 6.248911312 | O62: 5.675716224 | P62: 8.358021051 | Q62: 8.069529951 | R62: 1.912246826 | S62: 9.573230299 | T62: 3.058214222 | U62: 14.22833161
B63: Unprotected well | C63: 4.045538431 | D63: 3.042758182 | E63: 3.240799842 | F63: 3.409716548 | G63: 0.751061389 | H63: 1.422210461 | I63: 0.6115084692 | J63: 0.5056426036 | K63: 0.382935029 | L63: 0.1117777033 | M63: 4.845660691 | N63: 2.881781812 | O63: 4.236922379 | P63: 4.348836408 | Q63: 3.04711343 | R63: 0.3983003404 | S63: 1.392015549 | T63: 2.725395044 | U63: 11.50890717
B64: Protected spring | C64: 0.06386558709 | D64: 0.004575624379 | E64: 0.02395157896 | F64: 0.01540424972 | G64: 0.01741605887 | H64: 0.01926921501 | I64: 0 | J64: 0.03896184393 | K64: 0.01465204924 | L64: 0 | M64: 0.08934042256 | N64: 0 | O64: 0.02876071415 | P64: 0.01074164282 | Q64: 0.01859489474 | R64: 0 | S64: 0.006342384553 | T64: 0.03388947924 | U64: 0.09029857448
B65: Unprotected spring | C65: 0.02649365311 | D65: 0 | E65: 0.03462304749 | F65: 0.01268029049 | G65: 0.00265819529 | H65: 0 | I65: 0 | J65: 0 | K65: 0.008909419203 | L65: 0 | M65: 0.03775548179 | N65: 0 | O65: 0.02703041325 | P65: 0.04038121864 | Q65: 0 | R65: 0.001546866991 | S65: 0 | T65: 0.01573726582 | U65: 0.06844127686
B66: Rainwater collection | C66: 61.1372678 | D66: 54.04445757 | E66: 36.18504073 | F66: 23.11067644 | G66: 11.89641917 | H66: 27.52147973 | I66: 10.20311022 | J66: 6.677294799 | K66: 5.131565895 | L66: 3.265385607 | M66: 62.82335324 | N66: 60.70272742 | O66: 53.01486066 | P66: 40.72923193 | Q66: 25.92140947 | R66: 22.08708904 | S66: 23.39933374 | T66: 66.83744533 | U66: 21.24114358
B67: Tanker-truck | C67: 1.915014241 | D67: 1.163840084 | E67: 0.2021475881 | F67: 0.2273126971 | G67: 0.1389403837 | H67: 0.4369605655 | I67: 0.1607615473 | J67: 0.09345138471 | K67: 0.114274557 | L67: 0.06888858125 | M67: 2.39688754 | N67: 1.436046179 | O67: 0.5880715398 | P67: 0.04859509443 | Q67: 0.3572936315 | R67: 0.239725672 | S67: 0.006533420051 | T67: 1.89819093 | U67: 0.04886993196
B68: Surface water | C68: 2.528425615 | D68: 0.6269843355 | E68: 0.4790357786 | F68: 0.2792532634 | G68: 0.03736148951 | H68: 0.2065177325 | I68: 0.02915179834 | J68: 0.1230669485 | K68: 0.02291120677 | L68: 0 | M68: 2.760733053 | N68: 1.335560307 | O68: 0.7133192757 | P68: 0.4053119492 | Q68: 0.2542892195 | R68: 0.1369984088 | S68: 2.482272687 | T68: 0.4315023315 | U68: 1.068873576
B69: Bottled water | C69: 3.605197894 | D69: 11.53072811 | E69: 28.54366208 | F69: 42.6085262 | G69: 41.98438082 | H69: 32.88322057 | I69: 51.1221005 | J69: 58.15725956 | K69: 45.01634565 | L69: 33.58580989 | M69: 1.740532725 | N69: 5.83528309 | O69: 13.20849218 | P69: 26.38034513 | Q69: 41.75948486 | R69: 36.50967637 | S69: 26.79615879 | T69: 10.64805852 | U69: 33.70631589
B70: Other | C70: 0.2452368837 | D70: 0.1589734663 | E70: 0.2660697728 | F70: 0.1319374226 | G70: 0.1083194382 | H70: 0.7784300757 | I70: 0.5822067398 | J70: 0.05776065242 | K70: 0.01505628481 | L70: 0.2383045896 | M70: 0.2627762642 | N70: 0.0293906469 | O70: 0.1012682697 | P70: 0.09962870027 | Q70: 0.09376910343 | R70: 0.3386447115 | S70: 0.1919365847 | T70: 0.07624709798 | U70: 0.03782967503
A108: =A1026 -> Thailand
A109: =A1034 -> 2006
A110: Use of sanitation facilities
A111: by wealth quintile and sub-national region
A112: Notes:
A113: WHO/UNICEF JMP customised wealth index excludes water,
A114: sanitation and hygiene assets.
A115: Survey used for analysis: | B115: =A1025 -> MICS06
A116: =B1030 -> 
A117: =B1029 -> 
A120: Use of sanitation facilities | C120: NATIONAL wealth index quintile | H120: URBAN wealth index quintile | M120: RURAL wealth index quintile | R120: SUB-REGIONS: | BA120: Raw numbers of respondents: | BB120: Use of sanitation facilities | BC120: NATIONAL wealth index quintile | BH120: URBAN wealth index quintile | BM120: RURAL wealth index quintile | BR120: SUB-REGIONS:
A121: Weighted percentage (used in graphs) | C121: Poorest | D121: Poor | E121: Middle | F121: Rich | G121: Richest | H121: Poorest | I121: Poor | J121: Middle | K121: Rich | L121: Richest | M121: Poorest | N121: Poor | O121: Middle | P121: Rich | Q121: Richest | R121: Central (include BKK.) | S121: North | T121: Northeast | U121: South | BA121: Sanitation data, raw numbers (weighted) | BC121: Poorest | BD121: Poor | BE121: Middle | BF121: Rich | BG121: Richest | BH121: Poorest | BI121: Poor | BJ121: Middle | BK121: Rich | BL121: Richest | BM121: Poorest | BN121: Poor | BO121: Middle | BP121: Rich | BQ121: Richest | BR121: Central (include BKK.) | BS121: North | BT121: Northeast | BU121: South
A122: Sanitation | B122: Improved | C122: 97.84774287 | D122: 99.33228385 | E122: 99.14732471 | F122: 99.77153138 | G122: 99.95763178 | H122: 99.0916815 | I122: 99.88857301 | J122: 99.91791517 | K122: 99.9889108 | L122: 100 | M122: 97.37208163 | N122: 99.37763918 | O122: 98.97305826 | P122: 99.30594129 | Q122: 99.82426568 | R122: 99.80495543 | S122: 99.66596029 | T122: 99.42814255 | U122: 96.61033723 | BA122: Sanitation | BB122: Improved | BC122: 12181276.12 | BD122: 12367311.44 | BE122: 12345616.19 | BF122: 12414965.49 | BG122: 12446255.11 | BH122: 3681142.124 | BI122: 3709236.298 | BJ122: 3712680.658 | BK122: 3714600.119 | BL122: 3714760.347 | BM122: 8506252.286 | BN122: 8674786.153 | BO122: 8648935.492 | BP122: 8673507.718 | BQ122: 8719523.153 | BR122: 21355451.48 | BS122: 11248735.24 | BT122: 20838375.85 | BU122: 8312861.78
B123: Not Improved | C123: 2.152257126 | D123: 0.6677161484 | E123: 0.8526752945 | F123: 0.2284686188 | G123: 0.04236822177 | H123: 0.9083185017 | I123: 0.1114269934 | J123: 0.08208483172 | K123: 0.01108919677 | L123: 0 | M123: 2.627918366 | N123: 0.6223608204 | O123: 1.026941744 | P123: 0.6940587135 | Q123: 0.175734315 | R123: 0.19504457 | S123: 0.3340397057 | T123: 0.5718574506 | U123: 3.389662771 | BB123: Not Improved | BC123: 267939.1221 | BD123: 83133.6323 | BE123: 106173.333 | BF123: 28429.2521 | BG123: 5275.4921 | BH123: 33742.9888 | BI123: 4137.701 | BJ123: 3050.0513 | BK123: 411.965 | BL123: 0 | BM123: 229570.2858 | BN123: 54326.5776 | BO123: 89741.118 | BP123: 60619.9743 | BQ123: 15350.1698 | BR123: 41734.0485 | BS123: 37701.179 | BT123: 119851.1828 | BU123: 291664.4213
A124: Sanitation ladder | B124: Basic | C124: 91.54961175 | D124: 94.56623181 | E124: 93.89333321 | F124: 97.14791266 | G124: 98.8151157 | H124: 87.83411261 | I124: 92.9649577 | J124: 97.38983615 | K124: 98.87042769 | L124: 98.13032403 | M124: 90.69703306 | N124: 95.95442006 | O124: 94.6199107 | P124: 96.21145637 | Q124: 98.82210041 | R124: 94.94608557 | S124: 95.85952652 | T124: 97.03993003 | U124: 90.44372927 | BA124: Sanitation ladder | BB124: Basic | BC124: 11397208.22 | BD124: 11773916.75 | BE124: 11691400.23 | BF124: 12088498.26 | BG124: 12303994.37 | BH124: 3262936.374 | BI124: 3452136.568 | BJ124: 3618744.049 | BK124: 3673048.336 | BL124: 3645306.366 | BM124: 7923131.886 | BN124: 8375969.497 | BO124: 8268528.005 | BP124: 8403231.455 | BQ124: 8631985.286 | BR124: 20315790.08 | BS124: 10819124.51 | BT124: 20337848.85 | BU124: 7782254.382
B125: Limited | C125: 6.298131127 | D125: 4.766052042 | E125: 5.253991498 | F125: 2.623618725 | G125: 1.142516075 | H125: 11.25756888 | I125: 6.923615306 | J125: 2.52807902 | K125: 1.118483113 | L125: 1.869675974 | M125: 6.675048574 | N125: 3.423219118 | O125: 4.353147555 | P125: 3.094484912 | Q125: 1.002165272 | R125: 4.858869865 | S125: 3.806433778 | T125: 2.388212524 | U125: 6.166607956 | BB125: Limited | BC125: 784067.9 | BD125: 593394.6916 | BE125: 654215.963 | BF125: 326467.2345 | BG125: 142260.7387 | BH125: 418205.7506 | BI125: 257099.7306 | BJ125: 93936.6085 | BK125: 41551.7828 | BL125: 69453.9817 | BM125: 583120.4 | BN125: 298816.6558 | BO125: 380407.4872 | BP125: 270276.2636 | BQ125: 87537.867 | BR125: 1039661.399 | BS125: 429610.7281 | BT125: 500527.0029 | BU125: 530607.3973
B126: Unimproved | C126: 0.2684261077 | D126: 0.09990830792 | E126: 0.108212486 | F126: 0.05042156767 | G126: 0.04236822177 | H126: 0.5208333612 | I126: 0.06929309842 | J126: 0.08208483172 | K126: 0.01108919677 | L126: 0 | M126: 0.2715324104 | N126: 0.08047940629 | O126: 0.02317673133 | P126: 0.06700656214 | Q126: 0.07868477591 | R126: 0.0880980668 | S126: 0.04664308826 | T126: 0.0168309633 | U126: 0.5024993694 | BB126: Unimproved | BC126: 33416.9439 | BD126: 12439.029 | BE126: 13474.391 | BF126: 6274.1547 | BG126: 5275.4921 | BH126: 19348.361 | BI126: 2573.1119 | BJ126: 3050.0513 | BK126: 411.965 | BL126: 0 | BM126: 23720.5896 | BN126: 7025.1381 | BO126: 2025.3396 | BP126: 5852.4387 | BQ126: 6873.0155 | BR126: 18850.5068 | BS126: 5264.3425 | BT126: 3527.4715 | BU126: 43237.6899
B127: Open defecation | C127: 1.883831018 | D127: 0.5678078405 | E127: 0.7444628085 | F127: 0.1780470511 | G127: 0 | H127: 0.3874851405 | I127: 0.04213389495 | J127: 0 | K127: 0 | L127: 0 | M127: 2.356385956 | N127: 0.5418814141 | O127: 1.003765013 | P127: 0.6270521514 | Q127: 0.09704953909 | R127: 0.1069465032 | S127: 0.2873966175 | T127: 0.5550264873 | U127: 2.887163402 | BB127: Open defecation | BC127: 234522.1782 | BD127: 70694.6033 | BE127: 92698.942 | BF127: 22155.0974 | BG127: 0 | BH127: 14394.6278 | BI127: 1564.5891 | BJ127: 0 | BK127: 0 | BL127: 0 | BM127: 205849.6962 | BN127: 47301.4395 | BO127: 87715.7784 | BP127: 54767.5356 | BQ127: 8477.1543 | BR127: 22883.5417 | BS127: 32436.8365 | BT127: 116323.7113 | BU127: 248426.7314
A128: Shared among Improved Sanitation | B128: Yes | C128: 6.436664702 | D128: 4.798089661 | E128: 5.299176265 | F128: 2.629626597 | G128: 1.143000344 | H128: 11.36076078 | I128: 6.931338688 | J128: 2.530155894 | K128: 1.118607157 | L128: 1.869675974 | M128: 6.85519757 | N128: 3.444657315 | O128: 4.398315695 | P128: 3.116112562 | Q128: 1.003929521 | R128: 4.868365347 | S128: 3.819191393 | T128: 2.401948244 | U128: 6.382969083 | BA128: Shared among improved sanitation facilities | BB128: Yes | BC128: N/A | BD128: N/A | BE128: N/A | BF128: N/A | BG128: N/A | BH128: N/A | BI128: N/A | BJ128: N/A | BK128: N/A | BL128: N/A | BM128: N/A | BN128: N/A | BO128: N/A | BP128: N/A | BQ128: N/A | BR128: N/A | BS128: N/A | BT128: N/A | BU128: N/A
B129: No | C129: 93.5633353 | D129: 95.20191034 | E129: 94.70082373 | F129: 97.3703734 | G129: 98.85699966 | H129: 88.63923922 | I129: 93.06866131 | J129: 97.46984411 | K129: 98.88139284 | L129: 98.13032403 | M129: 93.14480243 | N129: 96.55534268 | O129: 95.60168431 | P129: 96.88388744 | Q129: 98.99607048 | R129: 95.13163465 | S129: 96.18080861 | T129: 97.59805176 | U129: 93.61703092 | BB129: No | BC129: N/A | BD129: N/A | BE129: N/A | BF129: N/A | BG129: N/A | BH129: N/A | BI129: N/A | BJ129: N/A | BK129: N/A | BL129: N/A | BM129: N/A | BN129: N/A | BO129: N/A | BP129: N/A | BQ129: N/A | BR129: N/A | BS129: N/A | BT129: N/A | BU129: N/A
A130: Manually calculated ratios | B130: Improved latrines
B131: Other
B132: Other
C133: NATIONAL wealth index quintile | H133: URBAN wealth index quintile | M133: RURAL wealth index quintile | R133: SUB-REGIONS: | BA133: Raw numbers of respondents: | BB133: Use of sanitation facilities | BC133: NATIONAL wealth index quintile | BH133: URBAN wealth index quintile | BM133: RURAL wealth index quintile | BR133: SUB-REGIONS:
A134: Percentage based on weighted population | C134: Poorest | D134: Poor | E134: Middle | F134: Rich | G134: Richest | H134: Poorest | I134: Poor | J134: Middle | K134: Rich | L134: Richest | M134: Poorest | N134: Poor | O134: Middle | P134: Rich | Q134: Richest | R134: Central (include BKK.) | S134: North | T134: Northeast | U134: South | BA134: Sanitation data, raw numbers (weighted) | BC134: Poorest | BD134: Poor | BE134: Middle | BF134: Rich | BG134: Richest | BH134: Poorest | BI134: Poor | BJ134: Middle | BK134: Rich | BL134: Richest | BM134: Poorest | BN134: Poor | BO134: Middle | BP134: Rich | BQ134: Richest | BR134: Central (include BKK.) | BS134: North | BT134: Northeast | BU134: South
A135: Sanitation type | B135: Sewer connection | C135: 4.485047854 | D135: 5.064569729 | E135: 7.213060143 | F135: 10.17671282 | G135: 7.301807494 | H135: 6.437989798 | I135: 12.23860351 | J135: 14.08317125 | K135: 7.675403992 | L135: 6.027868505 | M135: 4.616235486 | N135: 4.302395079 | O135: 5.600915309 | P135: 6.936966422 | Q135: 7.583898008 | R135: 10.51894548 | S135: 3.454000683 | T135: 5.248853834 | U135: 6.06572117 | BA135: Sanitation type | BB135: Sewer connection | BC135: N/A | BD135: N/A | BE135: N/A | BF135: N/A | BG135: N/A | BH135: N/A | BI135: N/A | BJ135: N/A | BK135: N/A | BL135: N/A | BM135: N/A | BN135: N/A | BO135: N/A | BP135: N/A | BQ135: N/A | BR135: N/A | BS135: N/A | BT135: N/A | BU135: N/A
B136: Septic tank connection | C136: 92.42501642 | D136: 93.60666966 | E136: 90.27028932 | F136: 87.34084568 | G136: 91.39357079 | H136: 92.03943916 | I136: 86.81773884 | J136: 84.80987047 | K136: 91.41007278 | L136: 93.07212482 | M136: 91.63363852 | N136: 94.68111486 | O136: 91.87562495 | P136: 89.81866952 | Q136: 89.96087095 | R136: 87.95738314 | S136: 96.027906 | T136: 93.94935563 | U136: 84.84273106 | BB136: Septic tank connection | BC136: N/A | BD136: N/A | BE136: N/A | BF136: N/A | BG136: N/A | BH136: N/A | BI136: N/A | BJ136: N/A | BK136: N/A | BL136: N/A | BM136: N/A | BN136: N/A | BO136: N/A | BP136: N/A | BQ136: N/A | BR136: N/A | BS136: N/A | BT136: N/A | BU136: N/A
B137: Improved latrines | C137: 0.9376785971 | D137: 0.6610444616 | E137: 1.663975239 | F137: 2.253972891 | G137: 1.262253499 | H137: 0.6142525436 | I137: 0.8322306561 | J137: 1.024873452 | K137: 0.9034340277 | L137: 0.9000066781 | M137: 1.122207626 | N137: 0.3941292427 | O137: 1.496517997 | P137: 2.550305348 | Q137: 2.279496731 | R137: 1.328626802 | S137: 0.1840536147 | T137: 0.2299330899 | U137: 5.701885001 | BB137: Improved latrines | BC137: N/A | BD137: N/A | BE137: N/A | BF137: N/A | BG137: N/A | BH137: N/A | BI137: N/A | BJ137: N/A | BK137: N/A | BL137: N/A | BM137: N/A | BN137: N/A | BO137: N/A | BP137: N/A | BQ137: N/A | BR137: N/A | BS137: N/A | BT137: N/A | BU137: N/A
B138: Unimproved facilities | C138: 0.2684261077 | D138: 0.09990830792 | E138: 0.108212486 | F138: 0.05042156767 | G138: 0.04236822177 | H138: 0.5208333612 | I138: 0.06929309842 | J138: 0.08208483172 | K138: 0.01108919677 | L138: 0 | M138: 0.2715324104 | N138: 0.08047940629 | O138: 0.02317673133 | P138: 0.06700656214 | Q138: 0.07868477591 | R138: 0.0880980668 | S138: 0.04664308826 | T138: 0.0168309633 | U138: 0.5024993694 | BB138: Unimproved facilities | BC138: N/A | BD138: N/A | BE138: N/A | BF138: N/A | BG138: N/A | BH138: N/A | BI138: N/A | BJ138: N/A | BK138: N/A | BL138: N/A | BM138: N/A | BN138: N/A | BO138: N/A | BP138: N/A | BQ138: N/A | BR138: N/A | BS138: N/A | BT138: N/A | BU138: N/A
B139: Open defecation | C139: 1.883831018 | D139: 0.5678078405 | E139: 0.7444628085 | F139: 0.1780470511 | G139: 0 | H139: 0.3874851405 | I139: 0.04213389495 | J139: 0 | K139: 0 | L139: 0 | M139: 2.356385956 | N139: 0.5418814141 | O139: 1.003765013 | P139: 0.6270521514 | Q139: 0.09704953909 | R139: 0.1069465032 | S139: 0.2873966175 | T139: 0.5550264873 | U139: 2.887163402 | BB139: Open defecation | BC139: N/A | BD139: N/A | BE139: N/A | BF139: N/A | BG139: N/A | BH139: N/A | BI139: N/A | BJ139: N/A | BK139: N/A | BL139: N/A | BM139: N/A | BN139: N/A | BO139: N/A | BP139: N/A | BQ139: N/A | BR139: N/A | BS139: N/A | BT139: N/A | BU139: N/A
A140: Septic tank emptying practices | B140: Not emptied/treated and disposed in situ | C140: N/A | D140: N/A | E140: N/A | F140: N/A | G140: N/A | H140: N/A | I140: N/A | J140: N/A | K140: N/A | L140: N/A | M140: N/A | N140: N/A | O140: N/A | P140: N/A | Q140: N/A | R140: N/A | S140: N/A | T140: N/A | U140: N/A | BA140: Septic tank emptying practices | BB140: Not emptied/treated and disposed in situ | BC140: N/A | BD140: N/A | BE140: N/A | BF140: N/A | BG140: N/A | BH140: N/A | BI140: N/A | BJ140: N/A | BK140: N/A | BL140: N/A | BM140: N/A | BN140: N/A | BO140: N/A | BP140: N/A | BQ140: N/A | BR140: N/A | BS140: N/A | BT140: N/A | BU140: N/A
B141: Emptied and buried on site | C141: N/A | D141: N/A | E141: N/A | F141: N/A | G141: N/A | H141: N/A | I141: N/A | J141: N/A | K141: N/A | L141: N/A | M141: N/A | N141: N/A | O141: N/A | P141: N/A | Q141: N/A | R141: N/A | S141: N/A | T141: N/A | U141: N/A | BB141: Emptied and buried on site | BC141: N/A | BD141: N/A | BE141: N/A | BF141: N/A | BG141: N/A | BH141: N/A | BI141: N/A | BJ141: N/A | BK141: N/A | BL141: N/A | BM141: N/A | BN141: N/A | BO141: N/A | BP141: N/A | BQ141: N/A | BR141: N/A | BS141: N/A | BT141: N/A | BU141: N/A
B142: Emptied and discharged locally | C142: N/A | D142: N/A | E142: N/A | F142: N/A | G142: N/A | H142: N/A | I142: N/A | J142: N/A | K142: N/A | L142: N/A | M142: N/A | N142: N/A | O142: N/A | P142: N/A | Q142: N/A | R142: N/A | S142: N/A | T142: N/A | U142: N/A | BB142: Emptied and discharged locally | BC142: N/A | BD142: N/A | BE142: N/A | BF142: N/A | BG142: N/A | BH142: N/A | BI142: N/A | BJ142: N/A | BK142: N/A | BL142: N/A | BM142: N/A | BN142: N/A | BO142: N/A | BP142: N/A | BQ142: N/A | BR142: N/A | BS142: N/A | BT142: N/A | BU142: N/A
B143: Emptied and removed offsite | C143: N/A | D143: N/A | E143: N/A | F143: N/A | G143: N/A | H143: N/A | I143: N/A | J143: N/A | K143: N/A | L143: N/A | M143: N/A | N143: N/A | O143: N/A | P143: N/A | Q143: N/A | R143: N/A | S143: N/A | T143: N/A | U143: N/A | BB143: Emptied and removed offsite | BC143: N/A | BD143: N/A | BE143: N/A | BF143: N/A | BG143: N/A | BH143: N/A | BI143: N/A | BJ143: N/A | BK143: N/A | BL143: N/A | BM143: N/A | BN143: N/A | BO143: N/A | BP143: N/A | BQ143: N/A | BR143: N/A | BS143: N/A | BT143: N/A | BU143: N/A
A144: Latrine emptying practices | B144: Not emptied/treated and disposed in situ | C144: N/A | D144: N/A | E144: N/A | F144: N/A | G144: N/A | H144: N/A | I144: N/A | J144: N/A | K144: N/A | L144: N/A | M144: N/A | N144: N/A | O144: N/A | P144: N/A | Q144: N/A | R144: N/A | S144: N/A | T144: N/A | U144: N/A | BA144: Latrine emptying practices | BB144: Not emptied/treated and disposed in situ | BC144: N/A | BD144: N/A | BE144: N/A | BF144: N/A | BG144: N/A | BH144: N/A | BI144: N/A | BJ144: N/A | BK144: N/A | BL144: N/A | BM144: N/A | BN144: N/A | BO144: N/A | BP144: N/A | BQ144: N/A | BR144: N/A | BS144: N/A | BT144: N/A | BU144: N/A
B145: Emptied and buried on site | C145: N/A | D145: N/A | E145: N/A | F145: N/A | G145: N/A | H145: N/A | I145: N/A | J145: N/A | K145: N/A | L145: N/A | M145: N/A | N145: N/A | O145: N/A | P145: N/A | Q145: N/A | R145: N/A | S145: N/A | T145: N/A | U145: N/A | BB145: Emptied and buried on site | BC145: N/A | BD145: N/A | BE145: N/A | BF145: N/A | BG145: N/A | BH145: N/A | BI145: N/A | BJ145: N/A | BK145: N/A | BL145: N/A | BM145: N/A | BN145: N/A | BO145: N/A | BP145: N/A | BQ145: N/A | BR145: N/A | BS145: N/A | BT145: N/A | BU145: N/A
B146: Emptied and discharged locally | C146: N/A | D146: N/A | E146: N/A | F146: N/A | G146: N/A | H146: N/A | I146: N/A | J146: N/A | K146: N/A | L146: N/A | M146: N/A | N146: N/A | O146: N/A | P146: N/A | Q146: N/A | R146: N/A | S146: N/A | T146: N/A | U146: N/A | BB146: Emptied and discharged locally | BC146: N/A | BD146: N/A | BE146: N/A | BF146: N/A | BG146: N/A | BH146: N/A | BI146: N/A | BJ146: N/A | BK146: N/A | BL146: N/A | BM146: N/A | BN146: N/A | BO146: N/A | BP146: N/A | BQ146: N/A | BR146: N/A | BS146: N/A | BT146: N/A | BU146: N/A
